Workbook

Sheet Notes
B2: Interactive census population toolkit | M2: Version date: 2 November 2022
B4: This file presents the population by age and sex from the 2001, 2011 and 2021 Census for Kent and individual Kent districts.
B5: The summary allows users to:-
B6: see a chart of male, female and total population by age between 2001,2011, and 2021 for you chosen area
B7: see the number and percentage change in male, female and total population between the years 2001 and 2011, and 2011 and 2021 for a single selected area.
B8: see change in population for between the years 2001, 2011, and 2021.
B10: Choose between 2001, 2011, and 2021 to see the full age profile by 5 year age group for your selected area for each Census year.
B12: The data are taken from the 2001, 2011 and 2021 Census' as published by the Office for National Statistics (ONS).
B16: Enquiries or requests for further information should be directed to:
B17: Kent Analytics
B18: Kent County Council
B19: Tel: 03000 417444
B20: Email: research@kent.gov.uk

Sheet Summary
A2: Interactive census population toolkit
A3: Source: 2001, 2011 and 2021 Census: Office for National Statistics
A4: Presented by: Kent Analytics, Kent County Council. Email: research@kent.gov.uk
A5: =Notes!M2 -> Version date: 2 November 2022
A8: Select District
B11: Start Age | D11: End Age
L16: =Index!E7&" in "&Index!C11&", "&Index!C16&" - "&Index!C19 -> Change in population aged 0-90+ in Ashford, 2011 - 2021
L18: Start Year | N18: End Year
L22: Year | M22: Males | N22: Females | O22: Total
L23: =Index!C16 -> 2011 | M23: =INDEX('All Districts unrounded'!F12:F29,Index!B11) -> 57232 | N23: =INDEX('All Districts unrounded'!F33:F50,Index!B11) -> 60724 | O23: =INDEX('All Districts unrounded'!F54:F71,Index!B11) -> 117956
L24: =Index!C19 -> 2021 | M24: =INDEX('All Districts unrounded'!G12:G29,Index!B11) -> 64593 | N24: =INDEX('All Districts unrounded'!G33:G50,Index!B11) -> 68159 | O24: =INDEX('All Districts unrounded'!G54:G71,Index!B11) -> 132752
L25: Change | M25: =M24-M23 -> 7361 | N25: =N24-N23 -> 7435 | O25: 14796
L26: % change | M26: =M25/M23 -> 0.1286168577 | N26: =N25/N23 -> 0.1224392333 | O26: 0.1254366035
L27: Source: Office for National Statistics. Kent Analytics, Kent County Council
A32: =Index!C11&" population aged "&Index!C4&" - "&Index!C9 -> Ashford population aged 0 - 90+ | F32: =Index!E7&" in "&Index!C11 -> Change in population aged 0-90+ in Ashford
B33: 2001 | C33: 2011 | D33: 2021 | G33: 2001-2011 | H33: 2011-2021 | I33: 2001-2011 | J33: 2011-2021
A34: Males | B34: =INDEX('All Districts unrounded'!B$12:B$29,Index!$B$11) -> 49967 | C34: =INDEX('All Districts unrounded'!C$12:C$29,Index!$B$11) -> 57232 | D34: =INDEX('All Districts unrounded'!D$12:D$29,Index!$B$11) -> 64593 | F34: Males | G34: =C34-B34 -> 7265 | H34: 7361 | I34: =G34/B34 -> 0.1453959613 | J34: 0.1286168577
A35: Females | B35: =INDEX('All Districts unrounded'!B$33:B$50,Index!$B$11) -> 52706 | C35: =INDEX('All Districts unrounded'!C$33:C$50,Index!$B$11) -> 60724 | D35: =INDEX('All Districts unrounded'!D$33:D$50,Index!$B$11) -> 68159 | F35: Females | G35: 8018 | H35: 7435 | I35: 0.1521268926 | J35: 0.1224392333
A36: Total | B36: =INDEX('All Districts unrounded'!B$54:B$71,Index!$B$11) -> 102673 | C36: =INDEX('All Districts unrounded'!C$54:C$71,Index!$B$11) -> 117956 | D36: =INDEX('All Districts unrounded'!D$54:D$71,Index!$B$11) -> 132752 | F36: Total | G36: 15283 | H36: 14796 | I36: 0.1488512072 | J36: 0.1254366035
A37: Source: Office for National Statistics. Presented by: Kent Analytics, Kent County Council
A38: All figures have been individually rounded to the nearest one hundred and therefore may not sum

Sheet Population Pyramid
C2: Interactive census Population toolkit
C3: Source: 2001, 2011 and 2021 Census, The Office for National Statistics (ONS).
C4: Presented by: Kent Analytics, Kent County Council. Email: research@kent.gov.uk | M4: Click here to return to the population summary page
C5: =Notes!M2 -> Version date: 2 November 2022
F8: Select district
F10: Select year
C13: ='All Districts unrounded'!A123&", "&'All Districts unrounded'!A124 -> Ashford, 2021
D14: Total | E14: % of total population | F14: Males | G14: % of total population | H14: Females | I14: % of total population
C15: All Ages | D15: ='All Districts unrounded'!B125+'All Districts unrounded'!E125-2 -> 132750 | E15: =('All Districts unrounded'!B125+'All Districts unrounded'!E125)/'All Districts unrounded'!$C$123 -> 1 | F15: ='All Districts unrounded'!B125-2 -> 64591 | G15: ='All Districts unrounded'!C125 -> 0.4865689406 | H15: ='All Districts unrounded'!E125-2 -> 68157 | I15: ='All Districts unrounded'!F125 -> 0.5134310594
C16: 0-4 | D16: ='All Districts unrounded'!B126+'All Districts unrounded'!E126-2 -> 7606 | E16: =('All Districts unrounded'!B126+'All Districts unrounded'!E126)/'All Districts unrounded'!$C$123 -> 0.05730987104 | F16: ='All Districts unrounded'!B126-2 -> 3884 | G16: ='All Districts unrounded'!C126 -> 0.02927262866 | H16: ='All Districts unrounded'!E126-2 -> 3720 | I16: ='All Districts unrounded'!F126 -> 0.02803724238
C17: 5-9 | D17: ='All Districts unrounded'!B127+'All Districts unrounded'!E127-2 -> 8312 | E17: =('All Districts unrounded'!B127+'All Districts unrounded'!E127)/'All Districts unrounded'!$C$123 -> 0.06262805833 | F17: ='All Districts unrounded'!B127-2 -> 4266 | G17: ='All Districts unrounded'!C127 -> 0.03215017476 | H17: ='All Districts unrounded'!E127-2 -> 4044 | I17: ='All Districts unrounded'!F127 -> 0.03047788357
C18: 10-14 | D18: ='All Districts unrounded'!B128+'All Districts unrounded'!E128-2 -> 8557 | E18: =('All Districts unrounded'!B128+'All Districts unrounded'!E128)/'All Districts unrounded'!$C$123 -> 0.06447360492 | F18: ='All Districts unrounded'!B128-2 -> 4302 | G18: ='All Districts unrounded'!C128 -> 0.03242135712 | H18: ='All Districts unrounded'!E128-2 -> 4253 | I18: ='All Districts unrounded'!F128 -> 0.0320522478
C19: 15-19 | D19: ='All Districts unrounded'!B129+'All Districts unrounded'!E129-2 -> 7304 | E19: =('All Districts unrounded'!B129+'All Districts unrounded'!E129)/'All Districts unrounded'!$C$123 -> 0.05503495239 | F19: ='All Districts unrounded'!B129-2 -> 3808 | G19: ='All Districts unrounded'!C129 -> 0.02870013258 | H19: ='All Districts unrounded'!E129-2 -> 3494 | I19: ='All Districts unrounded'!F129 -> 0.02633481981
C20: 20-24 | D20: ='All Districts unrounded'!B130+'All Districts unrounded'!E130-2 -> 6469 | E20: =('All Districts unrounded'!B130+'All Districts unrounded'!E130)/'All Districts unrounded'!$C$123 -> 0.04874502832 | F20: ='All Districts unrounded'!B130-2 -> 3267 | G20: ='All Districts unrounded'!C130 -> 0.02462486441 | H20: ='All Districts unrounded'!E130-2 -> 3200 | I20: ='All Districts unrounded'!F130 -> 0.02412016391
C21: 25-29 | D21: ='All Districts unrounded'!B131+'All Districts unrounded'!E131-2 -> 7955 | E21: =('All Districts unrounded'!B131+'All Districts unrounded'!E131)/'All Districts unrounded'!$C$123 -> 0.05993883331 | F21: ='All Districts unrounded'!B131-2 -> 3862 | G21: ='All Districts unrounded'!C131 -> 0.02910690611 | H21: ='All Districts unrounded'!E131-2 -> 4091 | I21: ='All Districts unrounded'!F131 -> 0.0308319272
C22: 30-34 | D22: ='All Districts unrounded'!B132+'All Districts unrounded'!E132-2 -> 8850 | E22: =('All Districts unrounded'!B132+'All Districts unrounded'!E132)/'All Districts unrounded'!$C$123 -> 0.06668072797 | F22: ='All Districts unrounded'!B132-2 -> 4157 | G22: ='All Districts unrounded'!C132 -> 0.03132909485 | H22: ='All Districts unrounded'!E132-2 -> 4691 | I22: ='All Districts unrounded'!F132 -> 0.03535163312
C23: 35-39 | D23: ='All Districts unrounded'!B133+'All Districts unrounded'!E133-2 -> 8338 | E23: =('All Districts unrounded'!B133+'All Districts unrounded'!E133)/'All Districts unrounded'!$C$123 -> 0.06282391226 | F23: ='All Districts unrounded'!B133-2 -> 3941 | G23: ='All Districts unrounded'!C133 -> 0.02970200072 | H23: ='All Districts unrounded'!E133-2 -> 4395 | I23: ='All Districts unrounded'!F133 -> 0.03312191153
C24: 40-44 | D24: ='All Districts unrounded'!B134+'All Districts unrounded'!E134-2 -> 8165 | E24: =('All Districts unrounded'!B134+'All Districts unrounded'!E134)/'All Districts unrounded'!$C$123 -> 0.06152073038 | F24: ='All Districts unrounded'!B134-2 -> 3953 | G24: ='All Districts unrounded'!C134 -> 0.02979239484 | H24: ='All Districts unrounded'!E134-2 -> 4210 | I24: ='All Districts unrounded'!F134 -> 0.03172833554
C25: 45-49 | D25: ='All Districts unrounded'!B135+'All Districts unrounded'!E135-2 -> 8485 | E25: =('All Districts unrounded'!B135+'All Districts unrounded'!E135)/'All Districts unrounded'!$C$123 -> 0.06393124021 | F25: ='All Districts unrounded'!B135-2 -> 4041 | G25: ='All Districts unrounded'!C135 -> 0.03045528504 | H25: ='All Districts unrounded'!E135-2 -> 4442 | I25: ='All Districts unrounded'!F135 -> 0.03347595516
C26: 50-54 | D26: ='All Districts unrounded'!B136+'All Districts unrounded'!E136-2 -> 9953 | E26: =('All Districts unrounded'!B136+'All Districts unrounded'!E136)/'All Districts unrounded'!$C$123 -> 0.07498945402 | F26: ='All Districts unrounded'!B136-2 -> 4882 | G26: ='All Districts unrounded'!C136 -> 0.03679040617 | H26: ='All Districts unrounded'!E136-2 -> 5069 | I26: ='All Districts unrounded'!F136 -> 0.03819904785
C27: 55-59 | D27: ='All Districts unrounded'!B137+'All Districts unrounded'!E137-2 -> 9289 | E27: =('All Districts unrounded'!B137+'All Districts unrounded'!E137)/'All Districts unrounded'!$C$123 -> 0.06998764614 | F27: ='All Districts unrounded'!B137-2 -> 4600 | G27: ='All Districts unrounded'!C137 -> 0.03466614439 | H27: ='All Districts unrounded'!E137-2 -> 4687 | I27: ='All Districts unrounded'!F137 -> 0.03532150175
C28: 60-64 | D28: ='All Districts unrounded'!B138+'All Districts unrounded'!E138-2 -> 7447 | E28: =('All Districts unrounded'!B138+'All Districts unrounded'!E138)/'All Districts unrounded'!$C$123 -> 0.05611214897 | F28: ='All Districts unrounded'!B138-2 -> 3659 | G28: ='All Districts unrounded'!C138 -> 0.02757773894 | H28: ='All Districts unrounded'!E138-2 -> 3786 | I28: ='All Districts unrounded'!F138 -> 0.02853441003
C29: 65-69 | D29: ='All Districts unrounded'!B139+'All Districts unrounded'!E139-2 -> 6652 | E29: =('All Districts unrounded'!B139+'All Districts unrounded'!E139)/'All Districts unrounded'!$C$123 -> 0.05012353863 | F29: ='All Districts unrounded'!B139-2 -> 3196 | G29: ='All Districts unrounded'!C139 -> 0.02409003254 | H29: ='All Districts unrounded'!E139-2 -> 3454 | I29: ='All Districts unrounded'!F139 -> 0.02603350609
C30: 70-74 | D30: ='All Districts unrounded'!B140+'All Districts unrounded'!E140-2 -> 7236 | E30: =('All Districts unrounded'!B140+'All Districts unrounded'!E140)/'All Districts unrounded'!$C$123 -> 0.05452271906 | F30: ='All Districts unrounded'!B140-2 -> 3385 | G30: ='All Districts unrounded'!C140 -> 0.02551373991 | H30: ='All Districts unrounded'!E140-2 -> 3849 | I30: ='All Districts unrounded'!F140 -> 0.02900897915
C31: 75-79 | D31: ='All Districts unrounded'!B141+'All Districts unrounded'!E141-2 -> 5399 | E31: =('All Districts unrounded'!B141+'All Districts unrounded'!E141)/'All Districts unrounded'!$C$123 -> 0.0406848861 | F31: ='All Districts unrounded'!B141-2 -> 2526 | G31: ='All Districts unrounded'!C141 -> 0.0190430276 | H31: ='All Districts unrounded'!E141-2 -> 2871 | I31: ='All Districts unrounded'!F141 -> 0.0216418585
C32: 80-84 | D32: ='All Districts unrounded'!B142+'All Districts unrounded'!E142-2 -> 3503 | E32: =('All Districts unrounded'!B142+'All Districts unrounded'!E142)/'All Districts unrounded'!$C$123 -> 0.0264026154 | F32: ='All Districts unrounded'!B142-2 -> 1599 | G32: ='All Districts unrounded'!C142 -> 0.01206008196 | H32: ='All Districts unrounded'!E142-2 -> 1902 | I32: ='All Districts unrounded'!F142 -> 0.01434253345
C33: 85-89 | D33: ='All Districts unrounded'!B143+'All Districts unrounded'!E143-2 -> 2059 | E33: =('All Districts unrounded'!B143+'All Districts unrounded'!E143)/'All Districts unrounded'!$C$123 -> 0.01552518983 | F33: ='All Districts unrounded'!B143-2 -> 864 | G33: ='All Districts unrounded'!C143 -> 0.006523442208 | H33: ='All Districts unrounded'!E143-2 -> 1193 | I33: ='All Districts unrounded'!F143 -> 0.00900174762
C34: 90+ | D34: ='All Districts unrounded'!B144+'All Districts unrounded'!E144-2 -> 1135 | E34: =('All Districts unrounded'!B144+'All Districts unrounded'!E144)/'All Districts unrounded'!$C$123 -> 0.008564842714 | F34: ='All Districts unrounded'!B144-2 -> 363 | G34: ='All Districts unrounded'!C144 -> 0.002749487767 | H34: ='All Districts unrounded'!E144-2 -> 770 | I34: ='All Districts unrounded'!F144 -> 0.005815354948
C35: Source: Office for National Statistics. Presented by: Kent Analytics, Kent County Council

Sheet Index (hidden)
A1: Index | E1: Chart Formatting
A3: Start age index | C3: Selected start age | E3: Chart Title
A4: Index 1 | B4: 1 | C4: =INDEX($A$30:$A$120,B4) -> 0 | E4: ="Population aged "&C4&"-"&C9&", 2001-2021"&" - "&C11 -> Population aged 0-90+, 2001-2021 - Ashford
A6: End age index | C6: Selected end age | E6: Table title
A7: Index 2 | B7: 91 | C7: =INDEX(A$30:A$120,$B$7) -> 90+ | E7: ="Change in population aged "&C4&"-"&C9 -> Change in population aged 0-90+
C8: =(B7-1)-C4 -> 90 | E8: ="Population change aged: "&C4&"-"&C9&" - "&C16&"-"&C19 -> Population change aged: 0-90+ - 2011-2021
A9: District Select | C9: =IF($B$7=91,"90+",INDEX(A$30:A$120,$B$7)) -> 90+ | E9: Chart Labels
A10: Index 3 | C10: Selected district | E10: =C11&" males" -> Ashford males
A11: District 1 | B11: 2 | C11: =INDEX($B$30:$B$47,$B11) -> Ashford | E11: =C11&" females" -> Ashford females
A12: District 2 | B12: 1 | C12: =INDEX($B$30:$B$47,$B12) -> - | E12: =C11&" total" -> Ashford total
A13: District 3 | B13: 1 | C13: =INDEX($B$30:$B$47,$B13) -> - | E13: =C12&" males" -> - males
E14: =C12&" females" -> - females
A15: Start year select | C15: Selected start year | E15: =C12&" total" -> - total
A16: Index 4 | B16: 2 | C16: =INDEX(C30:C31,B16) -> 2011 | E16: =C13&" males" -> - males
C17: =C16-C19 -> -10 | E17: =C13&" females" -> - females
A18: End year select | C18: Selected end year | E18: =C13&" total" -> - total
A19: Index 5 | B19: 2 | C19: =INDEX(C31:C32,B19) -> 2021
A21: Pop Pyramid year select | C21: Selected pyramid year
A22: Index 6 | B22: 19 | C22: =INDEX(C30:C32,Index!$B$23) -> 2021
A23: Index 7 | B23: 3
A27: Drop Downs
A28: Drop down 1 | B28: Drop Down 2 | C28: Drop Down 3
A29: Age selection | B29: District slection | C29: Year selection
A30: 0 | B30: - | C30: 2001
A31: 1 | B31: Ashford | C31: 2011
A32: 2 | B32: Canterbury | C32: 2021
A33: 3 | B33: Dartford
A34: 4 | B34: Dover
A35: 5 | B35: Gravesham
A36: 6 | B36: Maidstone
A37: 7 | B37: Medway
A38: 8 | B38: Sevenoaks
A39: 9 | B39: Folkestone & Hythe
A40: 10 | B40: Swale
A41: 11 | B41: Thanet
A42: 12 | B42: Tonbridge & Malling
A43: 13 | B43: Tunbridge Wells
A44: 14 | B44: Kent
A45: 15 | B45: Kent + Medway
A46: 16 | B46: South East Region
A47: 17 | B47: England & Wales
A48: 18
A49: 19
A50: 20
A51: 21
A52: 22
A53: 23
A54: 24
A55: 25
A56: 26
A57: 27
A58: 28
A59: 29
A60: 30
A61: 31
A62: 32
A63: 33
A64: 34
A65: 35
A66: 36
A67: 37
A68: 38
A69: 39
A70: 40
A71: 41
A72: 42
A73: 43
A74: 44
A75: 45
A76: 46
A77: 47
A78: 48
A79: 49
A80: 50
A81: 51
A82: 52
A83: 53
A84: 54
A85: 55
A86: 56
A87: 57
A88: 58
A89: 59
A90: 60
A91: 61
A92: 62
A93: 63
A94: 64
A95: 65
A96: 66
A97: 67
A98: 68
A99: 69
A100: 70
A101: 71
A102: 72
A103: 73
A104: 74
A105: 75
A106: 76
A107: 77
A108: 78
A109: 79
A110: 80
A111: 81
A112: 82
A113: 83
A114: 84
A115: 85
A116: 86
A117: 87
A118: 88
A119: 89
A120: 90+

Sheet All Districts unrounded (hidden)
A1: All data on this sheet reads directly from each of the district worksheets | AE1: Insert column here before extending the table
A2: Figures in red are calculations
A8: Selected Ages: | B8: =Index!$C$4&" : "&Index!$C$7 -> 0 : 90+
A10: Males | F10: Change
B11: 2001 | C11: 2011 | D11: 2021 | F11: =Index!$C$16 -> 2011 | G11: =Index!$C$19 -> 2021 | H11: Number change | I11: % change
A12: -
A13: Ashford | B13: =ASH!H$4 -> 49967 | C13: =ASH!I$4 -> 57232 | D13: =ASH!J$4 -> 64593 | F13: =INDEX($B13:$E13,Index!$B$16) -> 57232 | G13: =INDEX($C13:$E13,Index!$B$19) -> 64593 | H13: =G13-F13 -> 7361 | I13: =IF(F13<0,0,H13/F13) -> 0.1286168577
A14: Canterbury | B14: =CAN!H$4 -> 64125 | C14: =CAN!I$4 -> 72638 | D14: =CAN!J$4 -> 75576 | F14: =INDEX($B14:$E14,Index!$B$16) -> 72638 | G14: =INDEX($C14:$E14,Index!$B$19) -> 75576 | H14: =G14-F14 -> 2938 | I14: =IF(F14<0,0,H14/F14) -> 0.04044714888
A15: Dartford | B15: =DAR!H$4 -> 42117 | C15: =DAR!I$4 -> 48061 | D15: =DAR!J$4 -> 57155 | F15: =INDEX($B15:$E15,Index!$B$16) -> 48061 | G15: =INDEX($C15:$E15,Index!$B$19) -> 57155 | H15: 9094 | I15: 0.189217869
A16: Dover | B16: =DOV!H$4 -> 50327 | C16: =DOV!I$4 -> 54765 | D16: =DOV!J$4 -> 56796 | F16: =INDEX($B16:$E16,Index!$B$16) -> 54765 | G16: =INDEX($C16:$E16,Index!$B$19) -> 56796 | H16: 2031 | I16: 0.03708572994
A17: Gravesham | B17: =GRA!H$4 -> 46890 | C17: =GRA!I$4 -> 50139 | D17: =GRA!J$4 -> 52229 | F17: =INDEX($B17:$E17,Index!$B$16) -> 50139 | G17: =INDEX($C17:$E17,Index!$B$19) -> 52229 | H17: 2090 | I17: 0.04168411815
A18: Maidstone | B18: =MAI!H$4 -> 68350 | C18: =MAI!I$4 -> 76492 | D18: =MAI!J$4 -> 86964 | F18: =INDEX($B18:$E18,Index!$B$16) -> 76492 | G18: =INDEX($C18:$E18,Index!$B$19) -> 86964 | H18: 10472 | I18: 0.1369032056
A19: Medway | B19: =MED!H$4 -> 122900 | C19: =MED!I$4 -> 130825 | D19: =MED!J$4 -> 137125 | F19: =INDEX($B19:$E19,Index!$B$16) -> 130825 | G19: =INDEX($C19:$E19,Index!$B$19) -> 137125 | H19: 6300 | I19: 0.0481559335
A20: Sevenoaks | B20: =SEV!H$4 -> 52874 | C20: =SEV!I$4 -> 55743 | D20: =SEV!J$4 -> 58212 | F20: =INDEX($B20:$E20,Index!$B$16) -> 55743 | G20: =INDEX($C20:$E20,Index!$B$19) -> 58212 | H20: 2469 | I20: 0.04429255691
A21: Folkestone & Hythe | B21: ='F&H'!H$4 -> 46045 | C21: ='F&H'!I$4 -> 53135 | D21: ='F&H'!J$4 -> 53574 | F21: =INDEX($B21:$E21,Index!$B$16) -> 53135 | G21: =INDEX($C21:$E21,Index!$B$19) -> 53574 | H21: 439 | I21: 0.008261974217
A22: Swale | B22: =SWA!H$4 -> 60548 | C22: =SWA!I$4 -> 67152 | D22: =SWA!J$4 -> 75311 | F22: =INDEX($B22:$E22,Index!$B$16) -> 67152 | G22: =INDEX($C22:$E22,Index!$B$19) -> 75311 | H22: 8159 | I22: 0.1215004765
A23: Thanet | B23: =THA!H$4 -> 59952 | C23: =THA!I$4 -> 64555 | D23: =THA!J$4 -> 67657 | F23: =INDEX($B23:$E23,Index!$B$16) -> 64555 | G23: =INDEX($C23:$E23,Index!$B$19) -> 67657 | H23: 3102 | I23: 0.04805204864
A24: Tonbridge & Malling | B24: =TON!H$4 -> 52637 | C24: =TON!I$4 -> 59207 | D24: =TON!J$4 -> 64353 | F24: =INDEX($B24:$E24,Index!$B$16) -> 59207 | G24: =INDEX($C24:$E24,Index!$B$19) -> 64353 | H24: 5146 | I24: 0.08691539852
A25: Tunbridge Wells | B25: =TUN!H$4 -> 50040 | C25: =TUN!I$4 -> 56494 | D25: =TUN!J$4 -> 55949 | F25: =INDEX($B25:$E25,Index!$B$16) -> 56494 | G25: =INDEX($C25:$E25,Index!$B$19) -> 55949 | H25: -545 | I25: -0.009647042164
A26: Kent | B26: =Kent!H$4 -> 643886 | C26: =Kent!I$4 -> 715613 | D26: =Kent!J$4 -> 768391 | F26: =INDEX($B26:$E26,Index!$B$16) -> 715613 | G26: =INDEX($C26:$E26,Index!$B$19) -> 768391 | H26: 52778 | I26: 0.07375215375
A27: Kent + Medway | B27: ='Kent+Med'!H4 -> 766786 | C27: ='Kent+Med'!I4 -> 846438 | D27: ='Kent+Med'!J4 -> 905516 | F27: =INDEX($B27:$E27,Index!$B$16) -> 846438 | G27: =INDEX($C27:$E27,Index!$B$19) -> 905516 | H27: 59078 | I27: 0.06979601577
A28: South East Region | B28: ='South East'!H4 -> 3905155 | C28: ='South East'!I4 -> 4239298 | D28: ='South East'!J4 -> 4738828 | F28: =INDEX($B28:$E28,Index!$B$16) -> 4239298 | G28: =INDEX($C28:$E28,Index!$B$19) -> 4738828 | H28: =G28-F28 -> 499530 | I28: =IF(F28<0,0,H28/F28) -> 0.1178331884
A29: England & Wales | B29: ='England & Wales'!H4 -> 25325926 | C29: ='England & Wales'!I4 -> 27573376 | D29: ='England & Wales'!J4 -> 29177337 | F29: =INDEX($B29:$E29,Index!$B$16) -> 27573376 | G29: =INDEX($C29:$E29,Index!$B$19) -> 29177337 | H29: =G29-F29 -> 1603961 | I29: =IF(F29<0,0,H29/F29) -> 0.05817064258
A31: Females
B32: 2001 | C32: 2011 | D32: 2021 | F32: =Index!$C$16 -> 2011 | G32: =Index!$C$19 -> 2021 | H32: Number change | I32: % change
A33: -
A34: Ashford | B34: =ASH!H$5 -> 52706 | C34: =ASH!I$5 -> 60724 | D34: =ASH!J$5 -> 68159 | F34: =INDEX($B34:$E34,Index!$B$16) -> 60724 | G34: =INDEX($C34:$E34,Index!$B$19) -> 68159 | H34: =G34-F34 -> 7435 | I34: =IF(F34<0,0,H34/F34) -> 0.1224392333
A35: Canterbury | B35: =CAN!H$5 -> 71152 | C35: =CAN!I$5 -> 78507 | D35: =CAN!J$5 -> 81841 | F35: =INDEX($B35:$E35,Index!$B$16) -> 78507 | G35: =INDEX($C35:$E35,Index!$B$19) -> 81841 | H35: =G35-F35 -> 3334 | I35: =IF(F35<0,0,H35/F35) -> 0.04246755066
A36: Dartford | B36: =DAR!H$5 -> 43789 | C36: =DAR!I$5 -> 49304 | D36: =DAR!J$5 -> 59593 | F36: =INDEX($B36:$E36,Index!$B$16) -> 49304 | G36: =INDEX($C36:$E36,Index!$B$19) -> 59593 | H36: 10289 | I36: 0.2086848937
A37: Dover | B37: =DOV!H$5 -> 54244 | C37: =DOV!I$5 -> 56909 | D37: =DOV!J$5 -> 59604 | F37: =INDEX($B37:$E37,Index!$B$16) -> 56909 | G37: =INDEX($C37:$E37,Index!$B$19) -> 59604 | H37: 2695 | I37: 0.04735630568
A38: Gravesham | B38: =GRA!H$5 -> 48822 | C38: =GRA!I$5 -> 51581 | D38: =GRA!J$5 -> 54676 | F38: =INDEX($B38:$E38,Index!$B$16) -> 51581 | G38: =INDEX($C38:$E38,Index!$B$19) -> 54676 | H38: 3095 | I38: 0.06000271418
A39: Maidstone | B39: =MAI!H$5 -> 70595 | C39: =MAI!I$5 -> 78651 | D39: =MAI!J$5 -> 88817 | F39: =INDEX($B39:$E39,Index!$B$16) -> 78651 | G39: =INDEX($C39:$E39,Index!$B$19) -> 88817 | H39: 10166 | I39: 0.1292545549
A40: Medway | B40: =MED!H$5 -> 126588 | C40: =MED!I$5 -> 133100 | D40: =MED!J$5 -> 142647 | F40: =INDEX($B40:$E40,Index!$B$16) -> 133100 | G40: =INDEX($C40:$E40,Index!$B$19) -> 142647 | H40: 9547 | I40: 0.07172802404
A41: Sevenoaks | B41: =SEV!H$5 -> 56435 | C41: =SEV!I$5 -> 59150 | D41: =SEV!J$5 -> 62307 | F41: =INDEX($B41:$E41,Index!$B$16) -> 59150 | G41: =INDEX($C41:$E41,Index!$B$19) -> 62307 | H41: 3157 | I41: 0.05337278107
A42: Folkestone & Hythe | B42: ='F&H'!H$5 -> 50193 | C42: ='F&H'!I$5 -> 54834 | D42: ='F&H'!J$5 -> 56183 | F42: =INDEX($B42:$E42,Index!$B$16) -> 54834 | G42: =INDEX($C42:$E42,Index!$B$19) -> 56183 | H42: 1349 | I42: 0.0246015246
A43: Swale | B43: =SWA!H$5 -> 62260 | C43: =SWA!I$5 -> 68683 | D43: =SWA!J$5 -> 76368 | F43: =INDEX($B43:$E43,Index!$B$16) -> 68683 | G43: =INDEX($C43:$E43,Index!$B$19) -> 76368 | H43: 7685 | I43: 0.1118908609
A44: Thanet | B44: =THA!H$5 -> 66748 | C44: =THA!I$5 -> 69631 | D44: =THA!J$5 -> 72932 | F44: =INDEX($B44:$E44,Index!$B$16) -> 69631 | G44: =INDEX($C44:$E44,Index!$B$19) -> 72932 | H44: 3301 | I44: 0.04740704571
A45: Tonbridge & Malling | B45: =TON!H$5 -> 54929 | C45: =TON!I$5 -> 61598 | D45: =TON!J$5 -> 67852 | F45: =INDEX($B45:$E45,Index!$B$16) -> 61598 | G45: =INDEX($C45:$E45,Index!$B$19) -> 67852 | H45: 6254 | I45: 0.1015292704
A46: Tunbridge Wells | B46: =TUN!H$5 -> 53998 | C46: =TUN!I$5 -> 58555 | D46: =TUN!J$5 -> 59369 | F46: =INDEX($B46:$E46,Index!$B$16) -> 58555 | G46: =INDEX($C46:$E46,Index!$B$19) -> 59369 | H46: 814 | I46: 0.01390146017
A47: Kent | B47: =Kent!H$5 -> 685373 | C47: =Kent!I$5 -> 748127 | D47: =Kent!J$5 -> 807686 | F47: =INDEX($B47:$E47,Index!$B$16) -> 748127 | G47: =INDEX($C47:$E47,Index!$B$19) -> 807686 | H47: 59559 | I47: 0.07961081474
A48: Kent + Medway | B48: ='Kent+Med'!H5 -> 812421 | C48: ='Kent+Med'!I5 -> 881227 | D48: ='Kent+Med'!J5 -> 950333 | F48: =INDEX($B48:$E48,Index!$B$16) -> 881227 | G48: =INDEX($C48:$E48,Index!$B$19) -> 950333 | H48: 69106 | I48: 0.07842020274
A49: South East Region | B49: ='South East'!H5 -> 4095490 | C49: ='South East'!I5 -> 4395452 | D49: ='South East'!J5 -> 4738828 | F49: =INDEX($B49:$E49,Index!$B$16) -> 4395452 | G49: =INDEX($C49:$E49,Index!$B$19) -> 4738828 | H49: =G49-F49 -> 343376 | I49: =IF(F49<0,0,H49/F49) -> 0.07812074845
A50: England & Wales | B50: ='England & Wales'!H5 -> 26715990 | C50: ='England & Wales'!I5 -> 28502536 | D50: ='England & Wales'!J5 -> 30420202 | F50: =INDEX($B50:$E50,Index!$B$16) -> 28502536 | G50: =INDEX($C50:$E50,Index!$B$19) -> 30420202 | H50: =G50-F50 -> 1917666 | I50: =IF(F50<0,0,H50/F50) -> 0.06728053953
A52: Total
B53: 2001 | C53: 2011 | D53: 2020 | F53: =Index!$C$16 -> 2011 | G53: =Index!$C$19 -> 2021 | H53: Number change | I53: % change
A54: -
A55: Ashford | B55: =ASH!H$6 -> 102673 | C55: =ASH!I$6 -> 117956 | D55: =ASH!J$6 -> 132752 | F55: =INDEX($B55:$E55,Index!$B$16) -> 117956 | G55: =INDEX($C55:$E55,Index!$B$19) -> 132752 | H55: =G55-F55 -> 14796 | I55: =IF(F55<0,0,H55/F55) -> 0.1254366035
A56: Canterbury | B56: =CAN!H$6 -> 135277 | C56: =CAN!I$6 -> 151145 | D56: =CAN!J$6 -> 157417 | F56: =INDEX($B56:$E56,Index!$B$16) -> 151145 | G56: =INDEX($C56:$E56,Index!$B$19) -> 157417 | H56: =G56-F56 -> 6272 | I56: =IF(F56<0,0,H56/F56) -> 0.04149657614
A57: Dartford | B57: =DAR!H$6 -> 85906 | C57: =DAR!I$6 -> 97365 | D57: =DAR!J$6 -> 116748 | F57: =INDEX($B57:$E57,Index!$B$16) -> 97365 | G57: =INDEX($C57:$E57,Index!$B$19) -> 116748 | H57: 19383 | I57: 0.1990756432
A58: Dover | B58: =DOV!H$6 -> 104571 | C58: =DOV!I$6 -> 111674 | D58: =DOV!J$6 -> 116400 | F58: =INDEX($B58:$E58,Index!$B$16) -> 111674 | G58: =INDEX($C58:$E58,Index!$B$19) -> 116400 | H58: 4726 | I58: 0.04231960886
A59: Gravesham | B59: =GRA!H$6 -> 95712 | C59: =GRA!I$6 -> 101720 | D59: =GRA!J$6 -> 106905 | F59: =INDEX($B59:$E59,Index!$B$16) -> 101720 | G59: =INDEX($C59:$E59,Index!$B$19) -> 106905 | H59: 5185 | I59: 0.05097325993
A60: Maidstone | B60: =MAI!H$6 -> 138945 | C60: =MAI!I$6 -> 155143 | D60: =MAI!J$6 -> 175781 | F60: =INDEX($B60:$E60,Index!$B$16) -> 155143 | G60: =INDEX($C60:$E60,Index!$B$19) -> 175781 | H60: 20638 | I60: 0.1330256602
A61: Medway | B61: =MED!H$6 -> 249488 | C61: =MED!I$6 -> 263925 | D61: =MED!J$6 -> 279772 | F61: =INDEX($B61:$E61,Index!$B$16) -> 263925 | G61: =INDEX($C61:$E61,Index!$B$19) -> 279772 | H61: 15847 | I61: 0.06004357298
A62: Sevenoaks | B62: =SEV!H$6 -> 109309 | C62: =SEV!I$6 -> 114893 | D62: =SEV!J$6 -> 120519 | F62: =INDEX($B62:$E62,Index!$B$16) -> 114893 | G62: =INDEX($C62:$E62,Index!$B$19) -> 120519 | H62: 5626 | I62: 0.04896730001
A63: Folkestone & Hythe | B63: ='F&H'!H$6 -> 96238 | C63: ='F&H'!I$6 -> 107969 | D63: ='F&H'!J$6 -> 109757 | F63: =INDEX($B63:$E63,Index!$B$16) -> 107969 | G63: =INDEX($C63:$E63,Index!$B$19) -> 109757 | H63: 1788 | I63: 0.01656030898
A64: Swale | B64: =SWA!H$6 -> 122808 | C64: =SWA!I$6 -> 135835 | D64: =SWA!J$6 -> 151679 | F64: =INDEX($B64:$E64,Index!$B$16) -> 135835 | G64: =INDEX($C64:$E64,Index!$B$19) -> 151679 | H64: 15844 | I64: 0.1166415136
A65: Thanet | B65: =THA!H$6 -> 126700 | C65: =THA!I$6 -> 134186 | D65: =THA!J$6 -> 140589 | F65: =INDEX($B65:$E65,Index!$B$16) -> 134186 | G65: =INDEX($C65:$E65,Index!$B$19) -> 140589 | H65: 6403 | I65: 0.04771734756
A66: Tonbridge & Malling | B66: =TON!H$6 -> 107566 | C66: =TON!I$6 -> 120805 | D66: =TON!J$6 -> 132205 | F66: =INDEX($B66:$E66,Index!$B$16) -> 120805 | G66: =INDEX($C66:$E66,Index!$B$19) -> 132205 | H66: 11400 | I66: 0.09436695501
A67: Tunbridge Wells | B67: =TUN!H$6 -> 104038 | C67: =TUN!I$6 -> 115049 | D67: =TUN!J$6 -> 115318 | F67: =INDEX($B67:$E67,Index!$B$16) -> 115049 | G67: =INDEX($C67:$E67,Index!$B$19) -> 115318 | H67: 269 | I67: 0.002338134186
A68: Kent | B68: =Kent!H$6 -> 1329259 | C68: =Kent!I$6 -> 1463740 | D68: =Kent!J$6 -> 1576077 | F68: =INDEX($B68:$E68,Index!$B$16) -> 1463740 | G68: =INDEX($C68:$E68,Index!$B$19) -> 1576077 | H68: 112337 | I68: 0.07674655335
A69: Kent + Medway | B69: ='Kent+Med'!H6 -> 1579207 | C69: ='Kent+Med'!I6 -> 1727665 | D69: ='Kent+Med'!J6 -> 1855849 | F69: =INDEX($B69:$E69,Index!$B$16) -> 1727665 | G69: =INDEX($C69:$E69,Index!$B$19) -> 1855849 | H69: 128184 | I69: 0.07419493941
A70: South East Region | B70: ='South East'!H6 -> 8000645 | C70: ='South East'!I6 -> 8634750 | D70: ='South East'!J6 -> 9477656 | F70: =INDEX($B70:$E70,Index!$B$16) -> 8634750 | G70: =INDEX($C70:$E70,Index!$B$19) -> 9477656 | H70: =G70-F70 -> 842906 | I70: =IF(F70<0,0,H70/F70) -> 0.09761788124
A71: England & Wales | B71: ='England & Wales'!H6 -> 52041916 | C71: ='England & Wales'!I6 -> 56075912 | D71: ='England & Wales'!J6 -> 59597539 | F71: =INDEX($B71:$E71,Index!$B$16) -> 56075912 | G71: =INDEX($C71:$E71,Index!$B$19) -> 59597539 | H71: =G71-F71 -> 3521627 | I71: =IF(F71<0,0,H71/F71) -> 0.0628010651
A75: Population by 5 year
A76: =INDEX(Index!C30:C54,Index!B23) -> 2021 | C76: - | D76: Ashford | E76: Canterbury | F76: Dartford | G76: Dover | H76: Gravesham | I76: Maidstone | J76: Medway | K76: Sevenoaks | L76: Folketone & Hythe | M76: Swale | N76: Thanet | O76: Tonbridge & Malling | P76: Tunbridge Wells | Q76: Kent | R76: Kent + Medway | S76: South East Region | T76: England & Wales
A77: Males | B77: All Ages | C77: - | D77: =ASH!S15 -> 64593 | E77: =CAN!$S$15 -> 75576 | F77: =DAR!$S$15 -> 57155 | G77: =DOV!$S$15 -> 56796 | H77: =GRA!$S$15 -> 52229 | I77: =MAI!$S$15 -> 86964 | J77: =MED!$S$15 -> 137125 | K77: =SEV!$S$15 -> 58212 | L77: ='F&H'!$S$15 -> 53574 | M77: =SWA!$S$15 -> 75311 | N77: =THA!$S$15 -> 67657 | O77: =TON!$S$15 -> 64353 | P77: =TUN!$S$15 -> 55949 | Q77: =Kent!$S$15 -> 768391 | R77: ='Kent+Med'!$S$15 -> 905516 | S77: ='South East'!$S$15 -> 4738828 | T77: ='England & Wales'!$S$15 -> 29177337
A78: Males | B78: 0-4 | C78: - | D78: =ASH!$S$16 -> 3886 | E78: =CAN!$S$16 -> 3529 | F78: =DAR!$S$16 -> 4314 | G78: =DOV!$S$16 -> 2926 | H78: =GRA!$S$16 -> 3367 | I78: =MAI!$S$16 -> 5357 | J78: =MED!$S$16 -> 8852 | K78: =SEV!$S$16 -> 3458 | L78: ='F&H'!$S$16 -> 2654 | M78: =SWA!$S$16 -> 4498 | N78: =THA!$S$16 -> 3857 | O78: =TON!$S$16 -> 3935 | P78: =TUN!$S$16 -> 3171 | Q78: =Kent!$S$16 -> 44946 | R78: ='Kent+Med'!$S$16 -> 53798 | S78: ='South East'!$S$16 -> 241174 | T78: ='England & Wales'!$S$16 -> 1654694
A79: Males | B79: 5-9 | C79: - | D79: =ASH!$S$17 -> 4268 | E79: =CAN!$S$17 -> 4007 | F79: =DAR!$S$17 -> 4208 | G79: =DOV!$S$17 -> 3333 | H79: =GRA!$S$17 -> 3650 | I79: =MAI!$S$17 -> 5681 | J79: =MED!$S$17 -> 9368 | K79: =SEV!$S$17 -> 3834 | L79: ='F&H'!$S$17 -> 2950 | M79: =SWA!$S$17 -> 4874 | N79: =THA!$S$17 -> 4163 | O79: =TON!$S$17 -> 4393 | P79: =TUN!$S$17 -> 3640 | Q79: =Kent!$S$17 -> 49006 | R79: ='Kent+Med'!$S$17 -> 58374 | S79: ='South East'!$S$17 -> 268892 | T79: ='England & Wales'!$S$17 -> 1804190
A80: Males | B80: 10-14 | C80: - | D80: =ASH!$S$18 -> 4304 | E80: =CAN!$S$18 -> 4358 | F80: =DAR!$S$18 -> 4095 | G80: =DOV!$S$18 -> 3460 | H80: =GRA!$S$18 -> 3591 | I80: =MAI!$S$18 -> 5332 | J80: =MED!$S$18 -> 9204 | K80: =SEV!$S$18 -> 4159 | L80: ='F&H'!$S$18 -> 3152 | M80: =SWA!$S$18 -> 4903 | N80: =THA!$S$18 -> 4274 | O80: =TON!$S$18 -> 4511 | P80: =TUN!$S$18 -> 4175 | Q80: =Kent!$S$18 -> 50315 | R80: ='Kent+Med'!$S$18 -> 59519 | S80: ='South East'!$S$18 -> 276998 | T80: ='England & Wales'!$S$18 -> 1842896
A81: Males | B81: 15-19 | C81: - | D81: =ASH!$S$19 -> 3810 | E81: =CAN!$S$19 -> 6255 | F81: =DAR!$S$19 -> 3257 | G81: =DOV!$S$19 -> 3127 | H81: =GRA!$S$19 -> 3211 | I81: =MAI!$S$19 -> 4650 | J81: =MED!$S$19 -> 8298 | K81: =SEV!$S$19 -> 3271 | L81: ='F&H'!$S$19 -> 2773 | M81: =SWA!$S$19 -> 4252 | N81: =THA!$S$19 -> 3812 | O81: =TON!$S$19 -> 4004 | P81: =TUN!$S$19 -> 3244 | Q81: =Kent!$S$19 -> 45665 | R81: ='Kent+Med'!$S$19 -> 53963 | S81: ='South East'!$S$19 -> 253557 | T81: ='England & Wales'!$S$19 -> 1741438
A82: Males | B82: 20-24 | C82: - | D82: =ASH!$S$20 -> 3269 | E82: =CAN!$S$20 -> 7515 | F82: =DAR!$S$20 -> 2781 | G82: =DOV!$S$20 -> 2747 | H82: =GRA!$S$20 -> 2915 | I82: =MAI!$S$20 -> 4532 | J82: =MED!$S$20 -> 8150 | K82: =SEV!$S$20 -> 2546 | L82: ='F&H'!$S$20 -> 2791 | M82: =SWA!$S$20 -> 4101 | N82: =THA!$S$20 -> 3406 | O82: =TON!$S$20 -> 2940 | P82: =TUN!$S$20 -> 2431 | Q82: =Kent!$S$20 -> 41977 | R82: ='Kent+Med'!$S$20 -> 51915 | S82: ='South East'!$S$20 -> 254200 | T82: ='England & Wales'!$S$20 -> 1808793
A83: Males | B83: 25-29 | C83: - | D83: =ASH!$S$21 -> 3864 | E83: =CAN!$S$21 -> 4313 | F83: =DAR!$S$21 -> 3654 | G83: =DOV!$S$21 -> 3158 | H83: =GRA!$S$21 -> 3145 | I83: =MAI!$S$21 -> 5661 | J83: =MED!$S$21 -> 8806 | K83: =SEV!$S$21 -> 2724 | L83: ='F&H'!$S$21 -> 2899 | M83: =SWA!$S$21 -> 4761 | N83: =THA!$S$21 -> 3630 | O83: =TON!$S$21 -> 3348 | P83: =TUN!$S$21 -> 2923 | Q83: =Kent!$S$21 -> 44084 | R83: ='Kent+Med'!$S$21 -> 50601 | S83: ='South East'!$S$21 -> 276988 | T83: ='England & Wales'!$S$21 -> 1909881
A84: Males | B84: 30-34 | C84: - | D84: =ASH!$S$22 -> 4159 | E84: =CAN!$S$22 -> 4096 | F84: =DAR!$S$22 -> 4584 | G84: =DOV!$S$22 -> 3335 | H84: =GRA!$S$22 -> 3607 | I84: =MAI!$S$22 -> 5951 | J84: =MED!$S$22 -> 9652 | K84: =SEV!$S$22 -> 3129 | L84: ='F&H'!$S$22 -> 2934 | M84: =SWA!$S$22 -> 5207 | N84: =THA!$S$22 -> 3938 | O84: =TON!$S$22 -> 3779 | P84: =TUN!$S$22 -> 3265 | Q84: =Kent!$S$22 -> 47979 | R84: ='Kent+Med'!$S$22 -> 57631 | S84: ='South East'!$S$22 -> 312815 | T84: ='England & Wales'!$S$22 -> 2003621
A85: Males | B85: 35-39 | C85: - | D85: =ASH!$S$23 -> 3943 | E85: =CAN!$S$23 -> 3940 | F85: =DAR!$S$23 -> 4536 | G85: =DOV!$S$23 -> 3220 | H85: =GRA!$S$23 -> 3545 | I85: =MAI!$S$23 -> 5935 | J85: =MED!$S$23 -> 9470 | K85: =SEV!$S$23 -> 3425 | L85: ='F&H'!$S$23 -> 2839 | M85: =SWA!$S$23 -> 4943 | N85: =THA!$S$23 -> 3922 | O85: =TON!$S$23 -> 3879 | P85: =TUN!$S$23 -> 3432 | Q85: =Kent!$S$23 -> 47559 | R85: ='Kent+Med'!$S$23 -> 57029 | S85: ='South East'!$S$23 -> 313900 | T85: ='England & Wales'!$S$23 -> 1932223
A86: Males | B86: 40-44 | C86: - | D86: =ASH!$S$24 -> 3955 | E86: =CAN!$S$24 -> 3939 | F86: =DAR!$S$24 -> 4379 | G86: =DOV!$S$24 -> 3101 | H86: =GRA!$S$24 -> 3396 | I86: =MAI!$S$24 -> 5639 | J86: =MED!$S$24 -> 8967 | K86: =SEV!$S$24 -> 3723 | L86: ='F&H'!$S$24 -> 2960 | M86: =SWA!$S$24 -> 4613 | N86: =THA!$S$24 -> 3918 | O86: =TON!$S$24 -> 4108 | P86: =TUN!$S$24 -> 3760 | Q86: =Kent!$S$24 -> 47493 | R86: ='Kent+Med'!$S$24 -> 56460 | S86: ='South East'!$S$24 -> 309476 | T86: ='England & Wales'!$S$24 -> 1839557
A87: Males | B87: 45-49 | C87: - | D87: =ASH!$S$25 -> 4043 | E87: =CAN!$S$25 -> 4287 | F87: =DAR!$S$25 -> 3981 | G87: =DOV!$S$25 -> 3210 | H87: =GRA!$S$25 -> 3373 | I87: =MAI!$S$25 -> 5711 | J87: =MED!$S$25 -> 8768 | K87: =SEV!$S$25 -> 4038 | L87: ='F&H'!$S$25 -> 3209 | M87: =SWA!$S$25 -> 4670 | N87: =THA!$S$25 -> 4027 | O87: =TON!$S$25 -> 4628 | P87: =TUN!$S$25 -> 4099 | Q87: =Kent!$S$25 -> 49284 | R87: ='Kent+Med'!$S$25 -> 58052 | S87: ='South East'!$S$25 -> 312273 | T87: ='England & Wales'!$S$25 -> 1867977
A88: Males | B88: 50-54 | C88: - | D88: =ASH!$S$26 -> 4884 | E88: =CAN!$S$26 -> 4718 | F88: =DAR!$S$26 -> 3778 | G88: =DOV!$S$26 -> 3958 | H88: =GRA!$S$26 -> 3649 | I88: =MAI!$S$26 -> 6360 | J88: =MED!$S$26 -> 9565 | K88: =SEV!$S$26 -> 4250 | L88: ='F&H'!$S$26 -> 3954 | M88: =SWA!$S$26 -> 5236 | N88: =THA!$S$26 -> 4567 | O88: =TON!$S$26 -> 4856 | P88: =TUN!$S$26 -> 4416 | Q88: =Kent!$S$26 -> 54627 | R88: ='Kent+Med'!$S$26 -> 64192 | S88: ='South East'!$S$26 -> 334469 | T88: ='England & Wales'!$S$26 -> 2027569
A89: Males | B89: 55-59 | C89: - | D89: =ASH!$S$27 -> 4602 | E89: =CAN!$S$27 -> 4928 | F89: =DAR!$S$27 -> 3559 | G89: =DOV!$S$27 -> 4316 | H89: =GRA!$S$27 -> 3577 | I89: =MAI!$S$27 -> 5890 | J89: =MED!$S$27 -> 9267 | K89: =SEV!$S$27 -> 4305 | L89: ='F&H'!$S$27 -> 4125 | M89: =SWA!$S$27 -> 5302 | N89: =THA!$S$27 -> 4881 | O89: =TON!$S$27 -> 4584 | P89: =TUN!$S$27 -> 4010 | Q89: =Kent!$S$27 -> 54081 | R89: ='Kent+Med'!$S$27 -> 63348 | S89: ='South East'!$S$27 -> 325214 | T89: ='England & Wales'!$S$27 -> 1978278
A90: Males | B90: 60-64 | C90: - | D90: =ASH!$S$28 -> 3661 | E90: =CAN!$S$28 -> 4375 | F90: =DAR!$S$28 -> 2773 | G90: =DOV!$S$28 -> 3954 | H90: =GRA!$S$28 -> 2864 | I90: =MAI!$S$28 -> 4906 | J90: =MED!$S$28 -> 7714 | K90: =SEV!$S$28 -> 3552 | L90: ='F&H'!$S$28 -> 3702 | M90: =SWA!$S$28 -> 4484 | N90: =THA!$S$28 -> 4329 | O90: =TON!$S$28 -> 3826 | P90: =TUN!$S$28 -> 3292 | Q90: =Kent!$S$28 -> 45719 | R90: ='Kent+Med'!$S$28 -> 53433 | S90: ='South East'!$S$28 -> 275196 | T90: ='England & Wales'!$S$28 -> 1699585
A91: Males | B91: 65-69 | C91: - | D91: =ASH!$S$29 -> 3198 | E91: =CAN!$S$29 -> 4040 | F91: =DAR!$S$29 -> 2131 | G91: =DOV!$S$29 -> 3590 | H91: =GRA!$S$29 -> 2324 | I91: =MAI!$S$29 -> 4058 | J91: =MED!$S$29 -> 6311 | K91: =SEV!$S$29 -> 3129 | L91: ='F&H'!$S$29 -> 3271 | M91: =SWA!$S$29 -> 3773 | N91: =THA!$S$29 -> 3953 | O91: =TON!$S$29 -> 3099 | P91: =TUN!$S$29 -> 2590 | Q91: =Kent!$S$29 -> 39161 | R91: ='Kent+Med'!$S$29 -> 45472 | S91: ='South East'!$S$29 -> 239033 | T91: ='England & Wales'!$S$29 -> 1428180
A92: Males | B92: 70-74 | C92: - | D92: =ASH!$S$30 -> 3387 | E92: =CAN!$S$30 -> 4403 | F92: =DAR!$S$30 -> 1977 | G92: =DOV!$S$30 -> 3683 | H92: =GRA!$S$30 -> 2291 | I92: =MAI!$S$30 -> 4411 | J92: =MED!$S$30 -> 6156 | K92: =SEV!$S$30 -> 3251 | L92: ='F&H'!$S$30 -> 3790 | M92: =SWA!$S$30 -> 3987 | N92: =THA!$S$30 -> 4386 | O92: =TON!$S$30 -> 3216 | P92: =TUN!$S$30 -> 2790 | Q92: =Kent!$S$30 -> 41577 | R92: ='Kent+Med'!$S$30 -> 47733 | S92: ='South East'!$S$30 -> 254120 | T92: ='England & Wales'!$S$30 -> 1419509
A93: Males | B93: 75-79 | C93: - | D93: =ASH!$S$31 -> 2528 | E93: =CAN!$S$31 -> 3110 | F93: =DAR!$S$31 -> 1363 | G93: =DOV!$S$31 -> 2697 | H93: =GRA!$S$31 -> 1658 | I93: =MAI!$S$31 -> 3190 | J93: =MED!$S$31 -> 4135 | K93: =SEV!$S$31 -> 2414 | L93: ='F&H'!$S$31 -> 2595 | M93: =SWA!$S$31 -> 2756 | N93: =THA!$S$31 -> 3109 | O93: =TON!$S$31 -> 2321 | P93: =TUN!$S$31 -> 2060 | Q93: =Kent!$S$31 -> 29802 | R93: ='Kent+Med'!$S$31 -> 33937 | S93: ='South East'!$S$31 -> 192220 | T93: ='England & Wales'!$S$31 -> 1008903
A94: Males | B94: 80-84 | C94: - | D94: =ASH!$S$32 -> 1601 | E94: =CAN!$S$32 -> 2119 | F94: =DAR!$S$32 -> 953 | G94: =DOV!$S$32 -> 1694 | H94: =GRA!$S$32 -> 1116 | I94: =MAI!$S$32 -> 2030 | J94: =MED!$S$32 -> 2633 | K94: =SEV!$S$32 -> 1568 | L94: ='F&H'!$S$32 -> 1674 | M94: =SWA!$S$32 -> 1737 | N94: =THA!$S$32 -> 1958 | O94: =TON!$S$32 -> 1623 | P94: =TUN!$S$32 -> 1389 | Q94: =Kent!$S$32 -> 19458 | R94: ='Kent+Med'!$S$32 -> 22091 | S94: ='South East'!$S$32 -> 139590 | T94: ='England & Wales'!$S$32 -> 667037
A95: Males | B95: 85-89 | C95: - | D95: =ASH!$S$33 -> 866 | E95: =CAN!$S$33 -> 1099 | F95: =DAR!$S$33 -> 559 | G95: =DOV!$S$33 -> 907 | H95: =GRA!$S$33 -> 673 | I95: =MAI!$S$33 -> 1178 | J95: =MED!$S$33 -> 1297 | K95: =SEV!$S$33 -> 980 | L95: ='F&H'!$S$33 -> 898 | M95: =SWA!$S$33 -> 858 | N95: =THA!$S$33 -> 1023 | O95: =TON!$S$33 -> 926 | P95: =TUN!$S$33 -> 834 | Q95: =Kent!$S$33 -> 10800 | R95: ='Kent+Med'!$S$33 -> 12097 | S95: ='South East'!$S$33 -> 93970 | T95: ='England & Wales'!$S$33 -> 372835
A96: Males | B96: 90+ | C96: - | D96: =ASH!$S$34 -> 365 | E96: =CAN!$S$34 -> 545 | F96: =DAR!$S$34 -> 273 | G96: =DOV!$S$34 -> 380 | H96: =GRA!$S$34 -> 277 | I96: =MAI!$S$34 -> 492 | J96: =MED!$S$34 -> 512 | K96: =SEV!$S$34 -> 456 | L96: ='F&H'!$S$34 -> 404 | M96: =SWA!$S$34 -> 356 | N96: =THA!$S$34 -> 504 | O96: =TON!$S$34 -> 377 | P96: =TUN!$S$34 -> 428 | Q96: =Kent!$S$34 -> 4858 | R96: ='Kent+Med'!$S$34 -> 5370 | S96: ='South East'!$S$34 -> 64743 | T96: ='England & Wales'!$S$34 -> 170171
A99: Females | B99: All Ages | C99: - | D99: =ASH!$S$36 -> 68159 | E99: =CAN!$S$36 -> 81841 | F99: =DAR!$S$36 -> 59593 | G99: =DOV!$S$36 -> 59604 | H99: =GRA!$S$36 -> 54676 | I99: =MAI!$S$36 -> 88817 | J99: =MED!$S$36 -> 142647 | K99: =SEV!$S$36 -> 62307 | L99: ='F&H'!$S$36 -> 56183 | M99: =SWA!$S$36 -> 76368 | N99: =THA!$S$36 -> 72932 | O99: =TON!$S$36 -> 67852 | P99: =TUN!$S$36 -> 59369 | Q99: =Kent!$S$36 -> 807686 | R99: ='Kent+Med'!$S$36 -> 950333 | S99: ='South East'!$S$36 -> 4738828 | T99: ='England & Wales'!$S$36 -> 30420202
A100: Females | B100: 0-4 | C100: - | D100: =ASH!$S$37 -> 3722 | E100: =CAN!$S$37 -> 3294 | F100: =DAR!$S$37 -> 3967 | G100: =DOV!$S$37 -> 2743 | H100: =GRA!$S$37 -> 3233 | I100: =MAI!$S$37 -> 5035 | J100: =MED!$S$37 -> 8456 | K100: =SEV!$S$37 -> 3267 | L100: ='F&H'!$S$37 -> 2461 | M100: =SWA!$S$37 -> 4398 | N100: =THA!$S$37 -> 3481 | O100: =TON!$S$37 -> 3748 | P100: =TUN!$S$37 -> 2998 | Q100: =Kent!$S$37 -> 42341 | R100: ='Kent+Med'!$S$37 -> 50797 | S100: ='South East'!$S$37 -> 241174 | T100: ='England & Wales'!$S$37 -> 1577342
A101: Females | B101: 5-9 | C101: - | D101: =ASH!$S$38 -> 4046 | E101: =CAN!$S$38 -> 3738 | F101: =DAR!$S$38 -> 4060 | G101: =DOV!$S$38 -> 3161 | H101: =GRA!$S$38 -> 3507 | I101: =MAI!$S$38 -> 5193 | J101: =MED!$S$38 -> 8968 | K101: =SEV!$S$38 -> 3753 | L101: ='F&H'!$S$38 -> 2832 | M101: =SWA!$S$38 -> 4565 | N101: =THA!$S$38 -> 3806 | O101: =TON!$S$38 -> 4139 | P101: =TUN!$S$38 -> 3458 | Q101: =Kent!$S$38 -> 46254 | R101: ='Kent+Med'!$S$38 -> 55222 | S101: ='South East'!$S$38 -> 268892 | T101: ='England & Wales'!$S$38 -> 1720435
A102: Females | B102: 10-14 | C102: - | D102: =ASH!$S$39 -> 4255 | E102: =CAN!$S$39 -> 4000 | F102: =DAR!$S$39 -> 3936 | G102: =DOV!$S$39 -> 3317 | H102: =GRA!$S$39 -> 3549 | I102: =MAI!$S$39 -> 5067 | J102: =MED!$S$39 -> 8816 | K102: =SEV!$S$39 -> 3901 | L102: ='F&H'!$S$39 -> 3018 | M102: =SWA!$S$39 -> 4641 | N102: =THA!$S$39 -> 4027 | O102: =TON!$S$39 -> 4208 | P102: =TUN!$S$39 -> 3961 | Q102: =Kent!$S$39 -> 47883 | R102: ='Kent+Med'!$S$39 -> 56699 | S102: ='South East'!$S$39 -> 276998 | T102: ='England & Wales'!$S$39 -> 1753133
A103: Females | B103: 15-19 | C103: - | D103: =ASH!$S$40 -> 3496 | E103: =CAN!$S$40 -> 6345 | F103: =DAR!$S$40 -> 2971 | G103: =DOV!$S$40 -> 2841 | H103: =GRA!$S$40 -> 2937 | I103: =MAI!$S$40 -> 4270 | J103: =MED!$S$40 -> 7929 | K103: =SEV!$S$40 -> 3268 | L103: ='F&H'!$S$40 -> 2461 | M103: =SWA!$S$40 -> 3933 | N103: =THA!$S$40 -> 3331 | O103: =TON!$S$40 -> 3543 | P103: =TUN!$S$40 -> 3263 | Q103: =Kent!$S$40 -> 42657 | R103: ='Kent+Med'!$S$40 -> 50586 | S103: ='South East'!$S$40 -> 253557 | T103: ='England & Wales'!$S$40 -> 1653226
A104: Females | B104: 20-24 | C104: - | D104: =ASH!$S$41 -> 3202 | E104: =CAN!$S$41 -> 8273 | F104: =DAR!$S$41 -> 2849 | G104: =DOV!$S$41 -> 2662 | H104: =GRA!$S$41 -> 2751 | I104: =MAI!$S$41 -> 4326 | J104: =MED!$S$41 -> 7785 | K104: =SEV!$S$41 -> 2414 | L104: ='F&H'!$S$41 -> 2461 | M104: =SWA!$S$41 -> 3861 | N104: =THA!$S$41 -> 3338 | O104: =TON!$S$41 -> 2894 | P104: =TUN!$S$41 -> 2400 | Q104: =Kent!$S$41 -> 41431 | R104: ='Kent+Med'!$S$41 -> 49216 | S104: ='South East'!$S$41 -> 254200 | T104: ='England & Wales'!$S$41 -> 1793333
A105: Females | B105: 25-29 | C105: - | D105: =ASH!$S$42 -> 4093 | E105: =CAN!$S$42 -> 4352 | F105: =DAR!$S$42 -> 4268 | G105: =DOV!$S$42 -> 3386 | H105: =GRA!$S$42 -> 3383 | I105: =MAI!$S$42 -> 5544 | J105: =MED!$S$42 -> 9535 | K105: =SEV!$S$42 -> 2982 | L105: ='F&H'!$S$42 -> 2938 | M105: =SWA!$S$42 -> 4656 | N105: =THA!$S$42 -> 4116 | O105: =TON!$S$42 -> 3779 | P105: =TUN!$S$42 -> 3085 | Q105: =Kent!$S$42 -> 46580 | R105: ='Kent+Med'!$S$42 -> 56115 | S105: ='South East'!$S$42 -> 276988 | T105: ='England & Wales'!$S$42 -> 1991859
A106: Females | B106: 30-34 | C106: - | D106: =ASH!$S$43 -> 4693 | E106: =CAN!$S$43 -> 4317 | F106: =DAR!$S$43 -> 5277 | G106: =DOV!$S$43 -> 3541 | H106: =GRA!$S$43 -> 4013 | I106: =MAI!$S$43 -> 6280 | J106: =MED!$S$43 -> 10717 | K106: =SEV!$S$43 -> 3541 | L106: ='F&H'!$S$43 -> 3260 | M106: =SWA!$S$43 -> 5270 | N106: =THA!$S$43 -> 4598 | O106: =TON!$S$43 -> 4285 | P106: =TUN!$S$43 -> 3571 | Q106: =Kent!$S$43 -> 52650 | R106: ='Kent+Med'!$S$43 -> 63367 | S106: ='South East'!$S$43 -> 312815 | T106: ='England & Wales'!$S$43 -> 2145179
A107: Females | B107: 35-39 | C107: - | D107: =ASH!$S$44 -> 4397 | E107: =CAN!$S$44 -> 4395 | F107: =DAR!$S$44 -> 5093 | G107: =DOV!$S$44 -> 3413 | H107: =GRA!$S$44 -> 3990 | I107: =MAI!$S$44 -> 6076 | J107: =MED!$S$44 -> 10008 | K107: =SEV!$S$44 -> 3910 | L107: ='F&H'!$S$44 -> 3090 | M107: =SWA!$S$44 -> 5014 | N107: =THA!$S$44 -> 4329 | O107: =TON!$S$44 -> 4429 | P107: =TUN!$S$44 -> 3834 | Q107: =Kent!$S$44 -> 51968 | R107: ='Kent+Med'!$S$44 -> 61976 | S107: ='South East'!$S$44 -> 313900 | T107: ='England & Wales'!$S$44 -> 2049396
A108: Females | B108: 40-44 | C108: - | D108: =ASH!$S$45 -> 4212 | E108: =CAN!$S$45 -> 4297 | F108: =DAR!$S$45 -> 4364 | G108: =DOV!$S$45 -> 3226 | H108: =GRA!$S$45 -> 3535 | I108: =MAI!$S$45 -> 5689 | J108: =MED!$S$45 -> 9497 | K108: =SEV!$S$45 -> 4099 | L108: ='F&H'!$S$45 -> 3244 | M108: =SWA!$S$45 -> 4640 | N108: =THA!$S$45 -> 4166 | O108: =TON!$S$45 -> 4590 | P108: =TUN!$S$45 -> 4025 | Q108: =Kent!$S$45 -> 50088 | R108: ='Kent+Med'!$S$45 -> 59585 | S108: ='South East'!$S$45 -> 309476 | T108: ='England & Wales'!$S$45 -> 1916205
A109: Females | B109: 45-49 | C109: - | D109: =ASH!$S$46 -> 4444 | E109: =CAN!$S$46 -> 4701 | F109: =DAR!$S$46 -> 3857 | G109: =DOV!$S$46 -> 3523 | H109: =GRA!$S$46 -> 3452 | I109: =MAI!$S$46 -> 5954 | J109: =MED!$S$46 -> 8886 | K109: =SEV!$S$46 -> 4189 | L109: ='F&H'!$S$46 -> 3464 | M109: =SWA!$S$46 -> 4729 | N109: =THA!$S$46 -> 4460 | O109: =TON!$S$46 -> 4817 | P109: =TUN!$S$46 -> 4387 | Q109: =Kent!$S$46 -> 51972 | R109: ='Kent+Med'!$S$46 -> 60858 | S109: ='South East'!$S$46 -> 312273 | T109: ='England & Wales'!$S$46 -> 1920744
A110: Females | B110: 50-54 | C110: - | D110: =ASH!$S$47 -> 5071 | E110: =CAN!$S$47 -> 5161 | F110: =DAR!$S$47 -> 3877 | G110: =DOV!$S$47 -> 4163 | H110: =GRA!$S$47 -> 3811 | I110: =MAI!$S$47 -> 6217 | J110: =MED!$S$47 -> 9583 | K110: =SEV!$S$47 -> 4596 | L110: ='F&H'!$S$47 -> 4058 | M110: =SWA!$S$47 -> 5353 | N110: =THA!$S$47 -> 5195 | O110: =TON!$S$47 -> 5001 | P110: =TUN!$S$47 -> 4568 | Q110: =Kent!$S$47 -> 57074 | R110: ='Kent+Med'!$S$47 -> 66657 | S110: ='South East'!$S$47 -> 334469 | T110: ='England & Wales'!$S$47 -> 2095862
A111: Females | B111: 55-59 | C111: - | D111: =ASH!$S$48 -> 4689 | E111: =CAN!$S$48 -> 5288 | F111: =DAR!$S$48 -> 3502 | G111: =DOV!$S$48 -> 4513 | H111: =GRA!$S$48 -> 3561 | I111: =MAI!$S$48 -> 5987 | J111: =MED!$S$48 -> 9507 | K111: =SEV!$S$48 -> 4449 | L111: ='F&H'!$S$48 -> 4248 | M111: =SWA!$S$48 -> 5401 | N111: =THA!$S$48 -> 5094 | O111: =TON!$S$48 -> 4823 | P111: =TUN!$S$48 -> 4084 | Q111: =Kent!$S$48 -> 55639 | R111: ='Kent+Med'!$S$48 -> 65146 | S111: ='South East'!$S$48 -> 325214 | T111: ='England & Wales'!$S$48 -> 2050761
A112: Females | B112: 60-64 | C112: - | D112: =ASH!$S$49 -> 3788 | E112: =CAN!$S$49 -> 4751 | F112: =DAR!$S$49 -> 2792 | G112: =DOV!$S$49 -> 4168 | H112: =GRA!$S$49 -> 2880 | I112: =MAI!$S$49 -> 5013 | J112: =MED!$S$49 -> 7952 | K112: =SEV!$S$49 -> 3807 | L112: ='F&H'!$S$49 -> 3852 | M112: =SWA!$S$49 -> 4459 | N112: =THA!$S$49 -> 4668 | O112: =TON!$S$49 -> 3847 | P112: =TUN!$S$49 -> 3454 | Q112: =Kent!$S$49 -> 47474 | R112: ='Kent+Med'!$S$49 -> 55426 | S112: ='South East'!$S$49 -> 275196 | T112: ='England & Wales'!$S$49 -> 1756019
A113: Females | B113: 65-69 | C113: - | D113: =ASH!$S$50 -> 3456 | E113: =CAN!$S$50 -> 4491 | F113: =DAR!$S$50 -> 2217 | G113: =DOV!$S$50 -> 3792 | H113: =GRA!$S$50 -> 2506 | I113: =MAI!$S$50 -> 4477 | J113: =MED!$S$50 -> 6616 | K113: =SEV!$S$50 -> 3281 | L113: ='F&H'!$S$50 -> 3649 | M113: =SWA!$S$50 -> 3871 | N113: =THA!$S$50 -> 4520 | O113: =TON!$S$50 -> 3247 | P113: =TUN!$S$50 -> 2859 | Q113: =Kent!$S$50 -> 42368 | R113: ='Kent+Med'!$S$50 -> 48984 | S113: ='South East'!$S$50 -> 239033 | T113: ='England & Wales'!$S$50 -> 1516957
A114: Females | B114: 70-74 | C114: - | D114: =ASH!$S$51 -> 3851 | E114: =CAN!$S$51 -> 4979 | F114: =DAR!$S$51 -> 2272 | G114: =DOV!$S$51 -> 3987 | H114: =GRA!$S$51 -> 2588 | I114: =MAI!$S$51 -> 4888 | J114: =MED!$S$51 -> 6852 | K114: =SEV!$S$51 -> 3681 | L114: ='F&H'!$S$51 -> 3980 | M114: =SWA!$S$51 -> 4344 | N114: =THA!$S$51 -> 4895 | O114: =TON!$S$51 -> 3610 | P114: =TUN!$S$51 -> 3092 | Q114: =Kent!$S$51 -> 46169 | R114: ='Kent+Med'!$S$51 -> 53021 | S114: ='South East'!$S$51 -> 254120 | T114: ='England & Wales'!$S$51 -> 1558474
A115: Females | B115: 75-79 | C115: - | D115: =ASH!$S$52 -> 2873 | E115: =CAN!$S$52 -> 3797 | F115: =DAR!$S$52 -> 1609 | G115: =DOV!$S$52 -> 2976 | H115: =GRA!$S$52 -> 1930 | I115: =MAI!$S$52 -> 3472 | J115: =MED!$S$52 -> 4797 | K115: =SEV!$S$52 -> 2740 | L115: ='F&H'!$S$52 -> 2968 | M115: =SWA!$S$52 -> 3083 | N115: =THA!$S$52 -> 3655 | O115: =TON!$S$52 -> 2807 | P115: =TUN!$S$52 -> 2427 | Q115: =Kent!$S$52 -> 34333 | R115: ='Kent+Med'!$S$52 -> 39130 | S115: ='South East'!$S$52 -> 192220 | T115: ='England & Wales'!$S$52 -> 1161368
A116: Females | B116: 80-84 | C116: - | D116: =ASH!$S$53 -> 1904 | E116: =CAN!$S$53 -> 2612 | F116: =DAR!$S$53 -> 1300 | G116: =DOV!$S$53 -> 2037 | H116: =GRA!$S$53 -> 1512 | I116: =MAI!$S$53 -> 2599 | J116: =MED!$S$53 -> 3390 | K116: =SEV!$S$53 -> 2038 | L116: ='F&H'!$S$53 -> 2026 | M116: =SWA!$S$53 -> 2103 | N116: =THA!$S$53 -> 2513 | O116: =TON!$S$53 -> 2027 | P116: =TUN!$S$53 -> 1769 | Q116: =Kent!$S$53 -> 24436 | R116: ='Kent+Med'!$S$53 -> 27826 | S116: ='South East'!$S$53 -> 139590 | T116: ='England & Wales'!$S$53 -> 848039
A117: Females | B117: 85-89 | C117: - | D117: =ASH!$S$54 -> 1195 | E117: =CAN!$S$54 -> 1726 | F117: =DAR!$S$54 -> 868 | G117: =DOV!$S$54 -> 1285 | H117: =GRA!$S$54 -> 987 | I117: =MAI!$S$54 -> 1672 | J117: =MED!$S$54 -> 2089 | K117: =SEV!$S$54 -> 1386 | L117: ='F&H'!$S$54 -> 1256 | M117: =SWA!$S$54 -> 1246 | N117: =THA!$S$54 -> 1608 | O117: =ASH!$S$54 -> 1195 | P117: =TUN!$S$54 -> 1268 | Q117: =Kent!$S$54 -> 15763 | R117: ='Kent+Med'!$S$54 -> 17852 | S117: ='South East'!$S$54 -> 93970 | T117: ='England & Wales'!$S$54 -> 552511
A118: Females | B118: 90+ | C118: - | D118: =ASH!$S$55 -> 772 | E118: =CAN!$S$55 -> 1324 | F118: =DAR!$S$55 -> 514 | G118: =DOV!$S$55 -> 870 | H118: =GRA!$S$55 -> 551 | I118: =MAI!$S$55 -> 1058 | J118: =MED!$S$55 -> 1264 | K118: =SEV!$S$55 -> 1005 | L118: ='F&H'!$S$55 -> 917 | M118: =SWA!$S$55 -> 801 | N118: =THA!$S$55 -> 1132 | O118: =ASH!$S$55 -> 772 | P118: =TUN!$S$55 -> 866 | Q118: =Kent!$S$55 -> 10606 | R118: ='Kent+Med'!$S$55 -> 11870 | S118: ='South East'!$S$55 -> 64743 | T118: ='England & Wales'!$S$55 -> 359359
A121: Population Pyramid data
A122: Selected district | I122: KCC Area
A123: =INDEX(C76:T76,Index!B11) -> Ashford | B123: Total Pop | C123: =SUM(B125,E125) -> 132752 | H123: KCC | I123: Total Pop | J123: =SUM(I125,L125) -> 1576077
A124: =Index!C22 -> 2021 | B124: Males | E124: Females | I124: Males | L124: Females
A125: All Ages | B125: =INDEX(C77:T77,Index!$B$11) -> 64593 | C125: =B125/C123 -> 0.4865689406 | E125: =INDEX(C99:T99,Index!$B$11) -> 68159 | F125: =E125/C123 -> 0.5134310594 | H125: All Ages | I125: =Kent!S15 -> 768391 | L125: =Kent!S36 -> 807686
A126: 0-4 | B126: =INDEX(C78:T78,Index!$B$11) -> 3886 | C126: =B126/$C$123 -> 0.02927262866 | D126: =C126*-1 -> -0.02927262866 | E126: =INDEX(C100:T100,Index!$B$11) -> 3722 | F126: =E126/$C$123 -> 0.02803724238 | H126: 0-4 | I126: =Kent!S16 -> 44946 | J126: =I126/$J$123 -> 0.02851764222 | K126: =J126*-1 -> -0.02851764222 | L126: =Kent!S37 -> 42341 | M126: =L126/$J$123 -> 0.02686480419
A127: 5-9 | B127: =INDEX(C79:T79,Index!$B$11) -> 4268 | C127: =B127/$C$123 -> 0.03215017476 | D127: =C127*-1 -> -0.03215017476 | E127: =INDEX(C101:T101,Index!$B$11) -> 4046 | F127: =E127/$C$123 -> 0.03047788357 | H127: 5-9 | I127: =Kent!S17 -> 49006 | J127: =I127/$J$123 -> 0.0310936585 | K127: =J127*-1 -> -0.0310936585 | L127: =Kent!S38 -> 46254 | M127: =L127/$J$123 -> 0.02934755091
A128: 10-14 | B128: =INDEX(C80:T80,Index!$B$11) -> 4304 | C128: 0.03242135712 | D128: -0.03242135712 | E128: =INDEX(C102:T102,Index!$B$11) -> 4255 | F128: 0.0320522478 | H128: 10-14 | I128: =Kent!S18 -> 50315 | J128: 0.03192420167 | K128: -0.03192420167 | L128: =Kent!S39 -> 47883 | M128: 0.03038112986
A129: 15-19 | B129: =INDEX(C81:T81,Index!$B$11) -> 3810 | C129: 0.02870013258 | D129: -0.02870013258 | E129: =INDEX(C103:T103,Index!$B$11) -> 3496 | F129: 0.02633481981 | H129: 15-19 | I129: =Kent!S19 -> 45665 | J129: 0.02897383821 | K129: -0.02897383821 | L129: =Kent!S40 -> 42657 | M129: 0.02706530201
A130: 20-24 | B130: =INDEX(C82:T82,Index!$B$11) -> 3269 | C130: 0.02462486441 | D130: -0.02462486441 | E130: =INDEX(C104:T104,Index!$B$11) -> 3202 | F130: 0.02412016391 | H130: 20-24 | I130: =Kent!S20 -> 41977 | J130: 0.02663385101 | K130: -0.02663385101 | L130: =Kent!S41 -> 41431 | M130: 0.02628742124
A131: 25-29 | B131: =INDEX(C83:T83,Index!$B$11) -> 3864 | C131: 0.02910690611 | D131: -0.02910690611 | E131: =INDEX(C105:T105,Index!$B$11) -> 4093 | F131: 0.0308319272 | H131: 25-29 | I131: =Kent!S21 -> 44084 | J131: 0.02797071463 | K131: -0.02797071463 | L131: =Kent!S42 -> 46580 | M131: 0.0295543936
A132: 30-34 | B132: =INDEX(C84:T84,Index!$B$11) -> 4159 | C132: 0.03132909485 | D132: -0.03132909485 | E132: =INDEX(C106:T106,Index!$B$11) -> 4693 | F132: 0.03535163312 | H132: 30-34 | I132: =Kent!S22 -> 47979 | J132: 0.03044204059 | K132: -0.03044204059 | L132: =Kent!S43 -> 52650 | M132: 0.03340572827
A133: 35-39 | B133: =INDEX(C85:T85,Index!$B$11) -> 3943 | C133: 0.02970200072 | D133: -0.02970200072 | E133: =INDEX(C107:T107,Index!$B$11) -> 4397 | F133: 0.03312191153 | H133: 35-39 | I133: =Kent!S23 -> 47559 | J133: 0.03017555614 | K133: -0.03017555614 | L133: =Kent!S44 -> 51968 | M133: 0.0329730083
A134: 40-44 | B134: =INDEX(C86:T86,Index!$B$11) -> 3955 | C134: 0.02979239484 | D134: -0.02979239484 | E134: =INDEX(C108:T108,Index!$B$11) -> 4212 | F134: 0.03172833554 | H134: 40-44 | I134: =Kent!S24 -> 47493 | J134: 0.03013368002 | K134: -0.03013368002 | L134: =Kent!S45 -> 50088 | M134: 0.03178017318
A135: 45-49 | B135: =INDEX(C87:T87,Index!$B$11) -> 4043 | C135: 0.03045528504 | D135: -0.03045528504 | E135: =INDEX(C109:T109,Index!$B$11) -> 4444 | F135: 0.03347595516 | H135: 45-49 | I135: =Kent!S25 -> 49284 | J135: 0.03127004582 | K135: -0.03127004582 | L135: =Kent!S46 -> 51972 | M135: 0.03297554625
A136: 50-54 | B136: =INDEX(C88:T88,Index!$B$11) -> 4884 | C136: 0.03679040617 | D136: -0.03679040617 | E136: =INDEX(C110:T110,Index!$B$11) -> 5071 | F136: 0.03819904785 | H136: 50-54 | I136: =Kent!S26 -> 54627 | J136: 0.03466010861 | K136: -0.03466010861 | L136: =Kent!S47 -> 57074 | M136: 0.03621269773
A137: 55-59 | B137: =INDEX(C89:T89,Index!$B$11) -> 4602 | C137: 0.03466614439 | D137: -0.03466614439 | E137: =INDEX(C111:T111,Index!$B$11) -> 4689 | F137: 0.03532150175 | H137: 55-59 | I137: =Kent!S27 -> 54081 | J137: 0.03431367884 | K137: -0.03431367884 | L137: =Kent!S48 -> 55639 | M137: 0.03530220922
A138: 60-64 | B138: =INDEX(C90:T90,Index!$B$11) -> 3661 | C138: 0.02757773894 | D138: -0.02757773894 | E138: =INDEX(C112:T112,Index!$B$11) -> 3788 | F138: 0.02853441003 | H138: 60-64 | I138: =Kent!S28 -> 45719 | J138: 0.02900810049 | K138: -0.02900810049 | L138: =Kent!S49 -> 47474 | M138: 0.03012162477
A139: 65-69 | B139: =INDEX(C91:T91,Index!$B$11) -> 3198 | C139: 0.02409003254 | D139: -0.02409003254 | E139: =INDEX(C113:T113,Index!$B$11) -> 3456 | F139: 0.02603350609 | H139: 65-69 | I139: =Kent!S29 -> 39161 | J139: 0.02484713628 | K139: -0.02484713628 | L139: =Kent!S50 -> 42368 | M139: 0.02688193534
A140: 70-74 | B140: =INDEX(C92:T92,Index!$B$11) -> 3387 | C140: 0.02551373991 | D140: -0.02551373991 | E140: =INDEX(C114:T114,Index!$B$11) -> 3851 | F140: 0.02900897915 | H140: 70-74 | I140: =Kent!S30 -> 41577 | J140: 0.0263800563 | K140: -0.0263800563 | L140: =Kent!S51 -> 46169 | M140: 0.02929361954
A141: 75-79 | B141: =INDEX(C93:T93,Index!$B$11) -> 2528 | C141: 0.0190430276 | D141: -0.0190430276 | E141: =INDEX(C115:T115,Index!$B$11) -> 2873 | F141: 0.0216418585 | H141: 75-79 | I141: =Kent!S31 -> 29802 | J141: 0.01890897462 | K141: -0.01890897462 | L141: =Kent!S52 -> 34333 | M141: 0.02178383417
A142: 80-84 | B142: =INDEX(C94:T94,Index!$B$11) -> 1601 | C142: 0.01206008196 | D142: -0.01206008196 | E142: =INDEX(C116:T116,Index!$B$11) -> 1904 | F142: 0.01434253345 | H142: 80-84 | I142: =Kent!S32 -> 19458 | J142: 0.01234584351 | K142: -0.01234584351 | L142: =Kent!S53 -> 24436 | M142: 0.01550431863
A143: 85-89 | B143: =INDEX(C95:T95,Index!$B$11) -> 866 | C143: 0.006523442208 | D143: -0.006523442208 | E143: =INDEX(C117:T117,Index!$B$11) -> 1195 | F143: 0.00900174762 | H143: 85-89 | I143: =Kent!S33 -> 10800 | J143: 0.006852457082 | K143: -0.006852457082 | L143: =Kent!S54 -> 15763 | M143: 0.01000141491
A144: 90+ | B144: =INDEX(C96:T96,Index!$B$11) -> 365 | C144: =B144/$C$123 -> 0.002749487767 | D144: =C144*-1 -> -0.002749487767 | E144: =INDEX(C118:T118,Index!$B$11) -> 772 | F144: =E144/$C$123 -> 0.005815354948 | H144: 90+ | I144: =Kent!S34 -> 4858 | J144: =I144/$J$123 -> 0.003082336713 | K144: =J144*-1 -> -0.003082336713 | L144: =Kent!S55 -> 10606 | M144: =L144/$J$123 -> 0.006729366649

Sheet England & Wales (hidden)
A1: Mid Year Population Estimates | K1: Insert column here before extending the table
A2: 2001, 2011, and 2021 Census: The Office forNnational Statistics (ONS) | G2: Selected Ages: | O2: Start year | P2: End Year | Q2: Number change | R2: % Change
H3: =H13 -> 2001 | I3: 2011 | J3: =J13 -> 2021 | O3: =INDEX($H3:$J3,Index!$B$16) -> 2011 | P3: =INDEX($H3:$J3,Index!$B$19) -> 2011
G4: Males | H4: =OFFSET(H16,Index!$B$7-1,0)-IF(Index!$B$4-2=1,0,OFFSET(H16,Index!$B$4-2,0)) -> 25325926 | I4: =OFFSET(I16,Index!$B$7-1,0)-IF(Index!$B$4-2=1,0,OFFSET(I16,Index!$B$4-2,0)) -> 27573376 | J4: =OFFSET(J16,Index!$B$7-1,0)-IF(Index!$B$4-2=1,0,OFFSET(J16,Index!$B$4-2,0)) -> 29177337 | O4: =INDEX($H4:$I4,Index!$B$16) -> 27573376 | P4: =INDEX($H4:$J4,Index!$B$19) -> 27573376 | Q4: =P4-O4 -> 0 | R4: =Q4/O4 -> 0
G5: Females | H5: =OFFSET(H109,Index!$B$7-1,0)-IF(Index!$B$4-2=1,0,OFFSET(H109,Index!$B$4-2,0)) -> 26715990 | I5: =OFFSET(I109,Index!$B$7-1,0)-IF(Index!$B$4-2=1,0,OFFSET(I109,Index!$B$4-2,0)) -> 28502536 | J5: =OFFSET(J109,Index!$B$7-1,0)-IF(Index!$B$4-2=1,0,OFFSET(J109,Index!$B$4-2,0)) -> 30420202 | O5: =INDEX($H5:$I5,Index!$B$16) -> 28502536 | P5: =INDEX($H5:$J5,Index!$B$19) -> 28502536 | Q5: =P5-O5 -> 0 | R5: =Q5/O5 -> 0
G6: Total | H6: =SUM(H4:H5) -> 52041916 | I6: 56075912 | J6: =SUM(J4:J5) -> 59597539 | O6: =INDEX($H6:$I6,Index!$B$16) -> 56075912 | P6: =INDEX($H6:$J6,Index!$B$19) -> 56075912 | Q6: =P6-O6 -> 0 | R6: =Q6/O6 -> 0
G8: Males | H8: =IF(H4<0,"0",H4) -> 25325926 | I8: 27573376 | J8: =IF(J4<0,"0",J4) -> 29177337
G9: Females | H9: 26715990 | I9: 28502536 | J9: 30420202
G10: Total | H10: =SUM(H8:H9) -> 52041916 | I10: 56075912 | J10: =SUM(J8:J9) -> 59597539
A12: England & Wales | L12: Population Pyramid Data
H13: =C14 -> 2001 | I13: =D14 -> 2011 | J13: =E14 -> 2021
A14: Sex | B14: Age | C14: 2001 | D14: 2011 | E14: 2021 | O14: 2001 | P14: 2011 | Q14: 2021 | S14: =INDEX(O14:Q14,Index!$B$23) -> 2021
B15: All persons | C15: =SUM(C107,C200) -> 52041916 | D15: 56075912 | E15: =SUM(E107,E200) -> 59597539 | G15: Males | L15: Males | M15: All Ages | O15: =C107 -> 25325926 | P15: =D107 -> 27573376 | Q15: =E107 -> 29177337 | S15: =INDEX(O15:Q15,Index!$B$23) -> 29177337
A16: male | B16: 0 | C16: 299417 | D16: 364563 | E16: 310633 | G16: 0 | H16: =C16 -> 299417 | I16: =D16 -> 364563 | J16: =E16 -> 310633 | L16: Males | M16: 0-4 | O16: =SUM(C16:C20) -> 1584115 | P16: =SUM(D16:D20) -> 1789744 | Q16: =SUM(E16:E20) -> 1654694 | S16: =INDEX(O16:Q16,Index!$B$23) -> 1654694
A17: male | B17: 1 | C17: 310995 | D17: 360138 | E17: 325410 | G17: 1 | H17: =H16+C17 -> 610412 | I17: =I16+D17 -> 724701 | J17: =J16+E17 -> 636043 | L17: Males | M17: 5-9 | O17: =SUM(C21:C25) -> 1694550 | P17: =SUM(D21:D25) -> 1604914 | Q17: =SUM(E21:E25) -> 1804190 | S17: =INDEX(O17:Q17,Index!$B$23) -> 1804190
A18: male | B18: 2 | C18: 318335 | D18: 356860 | E18: 333514 | G18: 2 | H18: 928747 | I18: 1081561 | J18: 969557 | L18: Males | M18: 10-14 | O18: =SUM(C26:C30) -> 1754009 | P18: =SUM(D26:D30) -> 1668191 | Q18: =SUM(E26:E30) -> 1842896 | S18: =INDEX(O18:Q18,Index!$B$23) -> 1842896
A19: male | B19: 3 | C19: 323036 | D19: 358783 | E19: 336901 | G19: 3 | H19: 1251783 | I19: 1440344 | J19: 1306458 | L19: Males | M19: 15-19 | O19: =SUM(C31:C35) -> 1643975 | P19: =SUM(D31:D35) -> 1808009 | Q19: =SUM(E31:E35) -> 1741438 | S19: =INDEX(O19:Q19,Index!$B$23) -> 1741438
A20: male | B20: 4 | C20: 332332 | D20: 349400 | E20: 348236 | G20: 4 | H20: 1584115 | I20: 1789744 | J20: 1654694 | L20: Males | M20: 20-24 | O20: =SUM(C36:C40) -> 1553228 | P20: =SUM(D36:D40) -> 1919169 | Q20: =SUM(E36:E40) -> 1808793 | S20: =INDEX(O20:Q20,Index!$B$23) -> 1808793
A21: male | B21: 5 | C21: 328020 | D21: 340396 | E21: 355132 | G21: 5 | H21: 1912135 | I21: 2130140 | J21: 2009826 | L21: Males | M21: 25-29 | O21: =SUM(C41:C45) -> 1684729 | P21: =SUM(D41:D45) -> 1914298 | Q21: =SUM(E41:E45) -> 1909881 | S21: =INDEX(O21:Q21,Index!$B$23) -> 1909881
A22: male | B22: 6 | C22: 330603 | D22: 324026 | E22: 350401 | G22: 6 | H22: 2242738 | I22: 2454166 | J22: 2360227 | L22: Males | M22: 30-34 | O22: =SUM(C46:C50) -> 1952606 | P22: =SUM(D46:D50) -> 1842456 | Q22: =SUM(E46:E50) -> 2003621 | S22: =INDEX(O22:Q22,Index!$B$23) -> 2003621
A23: male | B23: 7 | C23: 339286 | D23: 320917 | E23: 354629 | G23: 7 | H23: 2582024 | I23: 2775083 | J23: 2714856 | L23: Males | M23: 35-39 | O23: =SUM(C51:C55) -> 2019630 | P23: =SUM(D51:D55) -> 1855920 | Q23: =SUM(E51:E55) -> 1932223 | S23: =INDEX(O23:Q23,Index!$B$23) -> 1932223
A24: male | B24: 8 | C24: 342356 | D24: 310141 | E24: 370286 | G24: 8 | H24: 2924380 | I24: 3085224 | J24: 3085142 | L24: Males | M24: 40-44 | O24: =SUM(C56:C60) -> 1814937 | P24: =SUM(D56:D60) -> 2027932 | Q24: =SUM(E56:E60) -> 1839557 | S24: =INDEX(O24:Q24,Index!$B$23) -> 1839557
A25: male | B25: 9 | C25: 354285 | D25: 309434 | E25: 373742 | G25: 9 | H25: 3278665 | I25: 3394658 | J25: 3458884 | L25: Males | M25: 45-49 | O25: =SUM(C61:C65) -> 1632780 | P25: =SUM(D61:D65) -> 2028286 | Q25: =SUM(E61:E65) -> 1867977 | S25: =INDEX(O25:Q25,Index!$B$23) -> 1867977
A26: male | B26: 10 | C26: 359226 | D26: 317099 | E26: 375723 | G26: 10 | H26: 3637891 | I26: 3711757 | J26: 3834607 | L26: Males | M26: 50-54 | O26: =SUM(C66:C70) -> 1780556 | P26: =SUM(D66:D70) -> 1786690 | Q26: =SUM(E66:E70) -> 2027569 | S26: =INDEX(O26:Q26,Index!$B$23) -> 2027569
A27: male | B27: 11 | C27: 351317 | D27: 328276 | E27: 370889 | G27: 11 | H27: 3989208 | I27: 4040033 | J27: 4205496 | L27: Males | M27: 55-59 | O27: =SUM(C71:C75) -> 1466976 | P27: =SUM(D71:D75) -> 1573599 | Q27: =SUM(E71:E75) -> 1978278 | S27: =INDEX(O27:Q27,Index!$B$23) -> 1978278
A28: male | B28: 12 | C28: 348190 | D28: 335058 | E28: 369527 | G28: 12 | H28: 4337398 | I28: 4375091 | J28: 4575023 | L28: Males | M28: 60-64 | O28: =SUM(C76:C80) -> 1249632 | P28: =SUM(D76:D80) -> 1658007 | Q28: =SUM(E76:E80) -> 1699585 | S28: =INDEX(O28:Q28,Index!$B$23) -> 1699585
A29: male | B29: 13 | C29: 353609 | D29: 340517 | E29: 369018 | G29: 13 | H29: 4691007 | I29: 4715608 | J29: 4944041 | L29: Males | M29: 65-69 | O29: =SUM(C81:C85) -> 1100967 | P29: =SUM(D81:D85) -> 1299081 | Q29: =SUM(E81:E85) -> 1428180 | S29: =INDEX(O29:Q29,Index!$B$23) -> 1428180
A30: male | B30: 14 | C30: 341667 | D30: 347241 | E30: 357739 | G30: 14 | H30: 5032674 | I30: 5062849 | J30: 5301780 | L30: Males | M30: 70-74 | O30: =SUM(C86:C90) -> 944034 | P30: =SUM(D86:D90) -> 1032457 | Q30: =SUM(E86:E90) -> 1419509 | S30: =INDEX(O30:Q30,Index!$B$23) -> 1419509
A31: male | B31: 15 | C31: 339467 | D31: 354513 | E31: 348218 | G31: 15 | H31: 5372141 | I31: 5417362 | J31: 5649998 | L31: Males | M31: 75-79 | O31: =SUM(C91:C95) -> 733119 | P31: =SUM(D91:D95) -> 804697 | Q31: =SUM(E91:E95) -> 1008903 | S31: =INDEX(O31:Q31,Index!$B$23) -> 1008903
A32: male | B32: 16 | C32: 344464 | D32: 352361 | E32: 352550 | G32: 16 | H32: 5716605 | I32: 5769723 | J32: 6002548 | L32: Males | M32: 80-84 | O32: =SUM(C96:C100) -> 435262 | P32: =SUM(D96:D100) -> 552538 | Q32: =SUM(E96:E100) -> 667037 | S32: =INDEX(O32:Q32,Index!$B$23) -> 667037
A33: male | B33: 17 | C33: 327567 | D33: 361859 | E33: 348431 | G33: 17 | H33: 6044172 | I33: 6131582 | J33: 6350979 | L33: Males | M33: 85-89 | O33: =SUM(C101:C105) -> 205152 | P33: =SUM(D101:D105) -> 292882 | Q33: 372835 | S33: =INDEX(O33:Q33,Index!$B$23) -> 372835
A34: male | B34: 18 | C34: 319728 | D34: 364464 | E34: 342820 | G34: 18 | H34: 6363900 | I34: 6496046 | J34: 6693799 | L34: Males | M34: 90+ | O34: =C106 -> 75669 | P34: =D106 -> 114506 | Q34: 170171 | S34: =INDEX(O34:Q34,Index!$B$23) -> 170171
A35: male | B35: 19 | C35: 312749 | D35: 374812 | E35: 349419 | G35: 19 | H35: 6676649 | I35: 6870858 | J35: 7043218 | S35: =INDEX(O35:Q35,Index!$B$23) -> 0
A36: male | B36: 20 | C36: 327313 | D36: 397052 | E36: 348551 | G36: 20 | H36: 7003962 | I36: 7267910 | J36: 7391769 | L36: Females | M36: All Ages | O36: =C200 -> 26715990 | P36: =D200 -> 28502536 | Q36: =E200 -> 30420202 | S36: =INDEX(O36:Q36,Index!$B$23) -> 30420202
A37: male | B37: 21 | C37: 324902 | D37: 385142 | E37: 357691 | G37: 21 | H37: 7328864 | I37: 7653052 | J37: 7749460 | L37: Females | M37: 0-4 | O37: =SUM(C109:C113) -> 1510026 | P37: =SUM(D109:D113) -> 1707006 | Q37: =SUM(E109:E113) -> 1577342 | S37: =INDEX(O37:Q37,Index!$B$23) -> 1577342
A38: male | B38: 22 | C38: 309619 | D38: 381192 | E38: 364516 | G38: 22 | H38: 7638483 | I38: 8034244 | J38: 8113976 | L38: Females | M38: 5-9 | O38: =SUM(C114:C118) -> 1613304 | P38: =SUM(D114:D118) -> 1530797 | Q38: =SUM(E114:E118) -> 1720435 | S38: =INDEX(O38:Q38,Index!$B$23) -> 1720435
A39: male | B39: 23 | C39: 294038 | D39: 384397 | E39: 366654 | G39: 23 | H39: 7932521 | I39: 8418641 | J39: 8480630 | L39: Females | M39: 10-14 | O39: =SUM(C119:C123) -> 1671014 | P39: =SUM(D119:D123) -> 1590486 | Q39: =SUM(E119:E123) -> 1753133 | S39: =INDEX(O39:Q39,Index!$B$23) -> 1753133
A40: male | B40: 24 | C40: 297356 | D40: 371386 | E40: 371381 | G40: 24 | H40: 8229877 | I40: 8790027 | J40: 8852011 | L40: Females | M40: 15-19 | O40: =SUM(C124:C128) -> 1573333 | P40: =SUM(D124:D128) -> 1731376 | Q40: =SUM(E124:E128) -> 1653226 | S40: =INDEX(O40:Q40,Index!$B$23) -> 1653226
A41: male | B41: 25 | C41: 306536 | D41: 387772 | E41: 370311 | G41: 25 | H41: 8536413 | I41: 9177799 | J41: 9222322 | L41: Females | M41: 20-24 | O41: =SUM(C129:C133) -> 1568984 | P41: =SUM(D129:D133) -> 1888076 | Q41: =SUM(E129:E133) -> 1793333 | S41: =INDEX(O41:Q41,Index!$B$23) -> 1793333
A42: male | B42: 26 | C42: 319687 | D42: 384330 | E42: 375456 | G42: 26 | H42: 8856100 | I42: 9562129 | J42: 9597778 | L42: Females | M42: 25-29 | O42: =SUM(C134:C138) -> 1750279 | P42: =SUM(D134:D138) -> 1922311 | Q42: =SUM(E134:E138) -> 1991859 | S42: =INDEX(O42:Q42,Index!$B$23) -> 1991859
A43: male | B43: 27 | C43: 330390 | D43: 379852 | E43: 381395 | G43: 27 | H43: 9186490 | I43: 9941981 | J43: 9979173 | L43: Females | M43: 30-34 | O43: =SUM(C139:C143) -> 2031315 | P43: =SUM(D139:D143) -> 1841459 | Q43: =SUM(E139:E143) -> 2145179 | S43: =INDEX(O43:Q43,Index!$B$23) -> 2145179
A44: male | B44: 28 | C44: 354733 | D44: 379915 | E44: 386633 | G44: 28 | H44: 9541223 | I44: 10321896 | J44: 10365806 | L44: Females | M44: 35-39 | O44: =SUM(C144:C148) -> 2073554 | P44: =SUM(D144:D148) -> 1876241 | Q44: =SUM(E144:E148) -> 2049396 | S44: =INDEX(O44:Q44,Index!$B$23) -> 2049396
A45: male | B45: 29 | C45: 373383 | D45: 382429 | E45: 396086 | G45: 29 | H45: 9914606 | I45: 10704325 | J45: 10761892 | L45: Females | M45: 40-44 | O45: =SUM(C149:C153) -> 1841431 | P45: =SUM(D149:D153) -> 2071157 | Q45: =SUM(E149:E153) -> 1916205 | S45: =INDEX(O45:Q45,Index!$B$23) -> 1916205
A46: male | B46: 30 | C46: 382801 | D46: 391182 | E46: 407212 | G46: 30 | H46: 10297407 | I46: 11095507 | J46: 11169104 | L46: Females | M46: 45-49 | O46: =SUM(C154:C158) -> 1663273 | P46: =SUM(D154:D158) -> 2072240 | Q46: =SUM(E154:E158) -> 1920744 | S46: =INDEX(O46:Q46,Index!$B$23) -> 1920744
A47: male | B47: 31 | C47: 378586 | D47: 386772 | E47: 400634 | G47: 31 | H47: 10675993 | I47: 11482279 | J47: 11569738 | L47: Females | M47: 50-54 | O47: =SUM(C159:C163) -> 1810487 | P47: =SUM(D159:D163) -> 1815004 | Q47: =SUM(E159:E163) -> 2095862 | S47: =INDEX(O47:Q47,Index!$B$23) -> 2095862
A48: male | B48: 32 | C48: 391524 | D48: 368686 | E48: 400341 | G48: 32 | H48: 11067517 | I48: 11850965 | J48: 11970079 | L48: Females | M48: 55-59 | O48: =SUM(C164:C168) -> 1495297 | P48: =SUM(D164:D168) -> 1610316 | Q48: =SUM(E164:E168) -> 2050761 | S48: =INDEX(O48:Q48,Index!$B$23) -> 2050761
A49: male | B49: 33 | C49: 393583 | D49: 346757 | E49: 404087 | G49: 33 | H49: =H48+C49 -> 11461100 | I49: =I48+D49 -> 12197722 | J49: =J48+E49 -> 12374166 | L49: Females | M49: 60-64 | O49: =SUM(C169:C173) -> 1295122 | P49: =SUM(D169:D173) -> 1719155 | Q49: =SUM(E169:E173) -> 1756019 | S49: =INDEX(O49:Q49,Index!$B$23) -> 1756019
A50: male | B50: 34 | C50: 406112 | D50: 349059 | E50: 391347 | G50: 34 | H50: 11867212 | I50: 12546781 | J50: 12765513 | L50: Females | M50: 65-69 | O50: =SUM(C174:C178) -> 1191515 | P50: =SUM(D174:D178) -> 1375080 | Q50: =SUM(E174:E178) -> 1516957 | S50: =INDEX(O50:Q50,Index!$B$23) -> 1516957
A51: male | B51: 35 | C51: 408224 | D51: 348664 | E51: 394842 | G51: 35 | H51: 12275436 | I51: 12895445 | J51: 13160355 | L51: Females | M51: 70-74 | O51: =SUM(C179:C183) -> 1130516 | P51: =SUM(D179:D183) -> 1146215 | Q51: =SUM(E179:E183) -> 1558474 | S51: =INDEX(O51:Q51,Index!$B$23) -> 1558474
A52: male | B52: 36 | C52: 411532 | D52: 358612 | E52: 389732 | G52: 36 | H52: 12686968 | I52: 13254057 | J52: 13550087 | L52: Females | M52: 75-79 | O52: =SUM(C184:C188) -> 1021904 | P52: =SUM(D184:D188) -> 972850 | Q52: =SUM(E184:E188) -> 1161368 | S52: =INDEX(O52:Q52,Index!$B$23) -> 1161368
A53: male | B53: 37 | C53: 407382 | D53: 365376 | E53: 383237 | G53: 37 | H53: 13094350 | I53: 13619433 | J53: 13933324 | L53: Females | M53: 80-84 | O53: =SUM(C189:C193) -> 743052 | P53: =SUM(D189:D193) -> 785467 | Q53: =SUM(E189:E193) -> 848039 | S53: =INDEX(O53:Q53,Index!$B$23) -> 848039
A54: male | B54: 38 | C54: 401036 | D54: 383130 | E54: 381483 | G54: 38 | H54: 13495386 | I54: 14002563 | J54: 14314807 | L54: Females | M54: 85-89 | O54: =SUM(C194:C198) -> 471526 | P54: =SUM(D194:D198) -> 532789 | Q54: 552511 | S54: =INDEX(O54:Q54,Index!$B$23) -> 552511
A55: male | B55: 39 | C55: 391456 | D55: 400138 | E55: 382929 | G55: 39 | H55: 13886842 | I55: 14402701 | J55: 14697736 | L55: Females | M55: 90+ | O55: =C199 -> 260058 | P55: =D199 -> 314511 | Q55: 359359 | S55: =INDEX(O55:Q55,Index!$B$23) -> 359359
A56: male | B56: 40 | C56: 382095 | D56: 403868 | E56: 390970 | G56: 40 | H56: 14268937 | I56: 14806569 | J56: 15088706
A57: male | B57: 41 | C57: 367789 | D57: 397474 | E57: 386634 | G57: 41 | H57: 14636726 | I57: 15204043 | J57: 15475340
A58: male | B58: 42 | C58: 362289 | D58: 406671 | E58: 367438 | G58: 42 | H58: 14999015 | I58: 15610714 | J58: 15842778
A59: male | B59: 43 | C59: 357831 | D59: 406085 | E59: 346686 | G59: 43 | H59: 15356846 | I59: 16016799 | J59: 16189464
A60: male | B60: 44 | C60: 344933 | D60: 413834 | E60: 347829 | G60: 44 | H60: 15701779 | I60: 16430633 | J60: 16537293
A61: male | B61: 45 | C61: 332595 | D61: 411860 | E61: 353127 | G61: 45 | H61: 16034374 | I61: 16842493 | J61: 16890420
A62: male | B62: 46 | C62: 324918 | D62: 415341 | E62: 362600 | G62: 46 | H62: 16359292 | I62: 17257834 | J62: 17253020
A63: male | B63: 47 | C63: 329149 | D63: 408306 | E63: 368194 | G63: 47 | H63: 16688441 | I63: 17666140 | J63: 17621214
A64: male | B64: 48 | C64: 324653 | D64: 401385 | E64: 384253 | G64: 48 | H64: 17013094 | I64: 18067525 | J64: 18005467
A65: male | B65: 49 | C65: 321465 | D65: 391394 | E65: 399803 | G65: 49 | H65: 17334559 | I65: 18458919 | J65: 18405270
A66: male | B66: 50 | C66: 324588 | D66: 380256 | E66: 406324 | G66: 50 | H66: 17659147 | I66: 18839175 | J66: 18811594
A67: male | B67: 51 | C67: 335927 | D67: 362738 | E67: 399247 | G67: 51 | H67: 17995074 | I67: 19201913 | J67: 19210841
A68: male | B68: 52 | C68: 347417 | D68: 357370 | E68: 407988 | G68: 52 | H68: 18342491 | I68: 19559283 | J68: 19618829
A69: male | B69: 53 | C69: 376816 | D69: 350570 | E69: 404965 | G69: 53 | H69: 18719307 | I69: 19909853 | J69: 20023794
A70: male | B70: 54 | C70: 395808 | D70: 335756 | E70: 409045 | G70: 54 | H70: 19115115 | I70: 20245609 | J70: 20432839
A71: male | B71: 55 | C71: 303622 | D71: 323041 | E71: 406631 | G71: 55 | H71: 19418737 | I71: 20568650 | J71: 20839470
A72: male | B72: 56 | C72: 314139 | D72: 315885 | E72: 407580 | G72: 56 | H72: 19732876 | I72: 20884535 | J72: 21247050
A73: male | B73: 57 | C73: 303779 | D73: 317963 | E73: 397531 | G73: 57 | H73: 20036655 | I73: 21202498 | J73: 21644581
A74: male | B74: 58 | C74: 289098 | D74: 310495 | E74: 389382 | G74: 58 | H74: 20325753 | I74: 21512993 | J74: 22033963
A75: male | B75: 59 | C75: 256338 | D75: 306215 | E75: 377154 | G75: 59 | H75: 20582091 | I75: 21819208 | J75: 22411117
A76: male | B76: 60 | C76: 242738 | D76: 306971 | E76: 367057 | G76: 60 | H76: 20824829 | I76: 22126179 | J76: 22778174
A77: male | B77: 61 | C77: 257174 | D77: 316402 | E77: 348392 | G77: 61 | H77: 21082003 | I77: 22442581 | J77: 23126566
A78: male | B78: 62 | C78: 254224 | D78: 325015 | E78: 340031 | G78: 62 | H78: 21336227 | I78: 22767596 | J78: 23466597
A79: male | B79: 63 | C79: 251727 | D79: 353583 | E79: 330260 | G79: 63 | H79: 21587954 | I79: 23121179 | J79: 23796857
A80: male | B80: 64 | C80: 243769 | D80: 356036 | E80: 313845 | G80: 64 | H80: 21831723 | I80: 23477215 | J80: 24110702
A81: male | B81: 65 | C81: 234957 | D81: 272322 | E81: 299067 | G81: 65 | H81: =H80+C81 -> 22066680 | I81: =I80+D81 -> 23749537 | J81: =J80+E81 -> 24409769
A82: male | B82: 66 | C82: 227054 | D82: 287673 | E82: 289582 | G82: 66 | H82: 22293734 | I82: 24037210 | J82: 24699351
A83: male | B83: 67 | C83: 214843 | D83: 268003 | E83: 289362 | G83: 67 | H83: 22508577 | I83: 24305213 | J83: 24988713
A84: male | B84: 68 | C84: 212775 | D84: 252531 | E84: 278127 | G84: 68 | H84: 22721352 | I84: 24557744 | J84: 25266840
A85: male | B85: 69 | C85: 211338 | D85: 218552 | E85: 272042 | G85: 69 | H85: 22932690 | I85: 24776296 | J85: 25538882
A86: male | B86: 70 | C86: 207411 | D86: 209053 | E86: 270932 | G86: 70 | H86: 23140101 | I86: 24985349 | J86: 25809814
A87: male | B87: 71 | C87: 197717 | D87: 216510 | E87: 274216 | G87: 71 | H87: 23337818 | I87: 25201859 | J87: 26084030
A88: male | B88: 72 | C88: 187679 | D88: 210735 | E88: 278582 | G88: 72 | H88: 23525497 | I88: 25412594 | J88: 26362612
A89: male | B89: 73 | C89: 177786 | D89: 203124 | E89: 300163 | G89: 73 | H89: 23703283 | I89: 25615718 | J89: 26662775
A90: male | B90: 74 | C90: 173441 | D90: 193035 | E90: 295616 | G90: 74 | H90: 23876724 | I90: 25808753 | J90: 26958391
A91: male | B91: 75 | C91: 165399 | D91: 181249 | E91: 221123 | G91: 75 | H91: 24042123 | I91: 25990002 | J91: 27179514
A92: male | B92: 76 | C92: 154132 | D92: 171590 | E92: 229938 | G92: 76 | H92: 24196255 | I92: 26161592 | J92: 27409452
A93: male | B93: 77 | C93: 144835 | D93: 157531 | E93: 208180 | G93: 77 | H93: 24341090 | I93: 26319123 | J93: 27617632
A94: male | B94: 78 | C94: 135975 | D94: 151237 | E94: 190481 | G94: 78 | H94: 24477065 | I94: 26470360 | J94: 27808113
A95: male | B95: 79 | C95: 132778 | D95: 143090 | E95: 159181 | G95: 79 | H95: 24609843 | I95: 26613450 | J95: 27967294
A96: male | B96: 80 | C96: 127561 | D96: 135592 | E96: 146846 | G96: 80 | H96: 24737404 | I96: 26749042 | J96: 28114140
A97: male | B97: 81 | C97: 115528 | D97: 121635 | E97: 146401 | G97: 81 | H97: 24852932 | I97: 26870677 | J97: 28260541
A98: male | B98: 82 | C98: 72307 | D98: 109433 | E98: 136733 | G98: 82 | H98: 24925239 | I98: 26980110 | J98: 28397274
A99: male | B99: 83 | C99: 59310 | D99: 96953 | E99: 124811 | G99: 83 | H99: 24984549 | I99: 27077063 | J99: 28522085
A100: male | B100: 84 | C100: 60556 | D100: 88925 | E100: 112246 | G100: 84 | H100: 25045105 | I100: 27165988 | J100: 28634331
A101: male | B101: 85 | C101: 54038 | D101: 78063 | E101: 97914 | G101: 85 | H101: 25099143 | I101: 27244051 | J101: 28732245
A102: male | B102: 86 | C102: 49658 | D102: 66559 | E102: 85813 | G102: 86 | H102: 25148801 | I102: 27310610 | J102: 28818058
A103: male | B103: 87 | C103: 41018 | D103: 57282 | E103: 72740 | G103: 87 | H103: 25189819 | I103: 27367892 | J103: 28890798
A104: male | B104: 88 | C104: 33733 | D104: 48484 | E104: 63092 | G104: 88 | H104: 25223552 | I104: 27416376 | J104: 28953890
A105: male | B105: 89 | C105: 26705 | D105: 42494 | E105: 53276 | G105: 89 | H105: 25250257 | I105: 27458870 | J105: 29007166
A106: male | B106: 90+ | C106: 75669 | D106: 114506 | E106: 170171 | G106: 90+ | H106: 25325926 | I106: 27573376 | J106: 29177337
B107: All Males | C107: =SUM(C16:C106) -> 25325926 | D107: 27573376 | E107: =SUM(E16:E106) -> 29177337 | G107: Females
A108: Sex | B108: Age
A109: female | B109: 0 | C109: 286823 | D109: 346966 | E109: 296691 | G109: 0 | H109: =C109 -> 286823 | I109: =D109 -> 346966 | J109: =E109 -> 296691
A110: female | B110: 1 | C110: 295543 | D110: 344017 | E110: 310353 | G110: 1 | H110: =H109+C110 -> 582366 | I110: =I109+D110 -> 690983 | J110: =J109+E110 -> 607044
A111: female | B111: 2 | C111: 302794 | D111: 341917 | E111: 316678 | G111: 2 | H111: 885160 | I111: 1032900 | J111: 923722
A112: female | B112: 3 | C112: 308287 | D112: 340616 | E112: 321868 | G112: 3 | H112: 1193447 | I112: 1373516 | J112: 1245590
A113: female | B113: 4 | C113: 316579 | D113: 333490 | E113: 331752 | G113: 4 | H113: 1510026 | I113: 1707006 | J113: 1577342
A114: female | B114: 5 | C114: 312078 | D114: 325924 | E114: 338003 | G114: 5 | H114: 1822104 | I114: 2032930 | J114: 1915345
A115: female | B115: 6 | C115: 313725 | D115: 309589 | E115: 334244 | G115: 6 | H115: 2135829 | I115: 2342519 | J115: 2249589
A116: female | B116: 7 | C116: 323105 | D116: 306187 | E116: 338613 | G116: 7 | H116: 2458934 | I116: 2648706 | J116: 2588202
A117: female | B117: 8 | C117: 326089 | D117: 294251 | E117: 352045 | G117: 8 | H117: 2785023 | I117: 2942957 | J117: 2940247
A118: female | B118: 9 | C118: 338307 | D118: 294846 | E118: 357530 | G118: 9 | H118: 3123330 | I118: 3237803 | J118: 3297777
A119: female | B119: 10 | C119: 341638 | D119: 303349 | E119: 355845 | G119: 10 | H119: 3464968 | I119: 3541152 | J119: 3653622
A120: female | B120: 11 | C120: 334328 | D120: 311883 | E120: 353605 | G120: 11 | H120: 3799296 | I120: 3853035 | J120: 4007227
A121: female | B121: 12 | C121: 331980 | D121: 319527 | E121: 352516 | G121: 12 | H121: 4131276 | I121: 4172562 | J121: 4359743
A122: female | B122: 13 | C122: 336750 | D122: 324707 | E122: 350382 | G122: 13 | H122: 4468026 | I122: 4497269 | J122: 4710125
A123: female | B123: 14 | C123: 326318 | D123: 331020 | E123: 340785 | G123: 14 | H123: 4794344 | I123: 4828289 | J123: 5050910
A124: female | B124: 15 | C124: 322251 | D124: 333481 | E124: 330261 | G124: 15 | H124: 5116595 | I124: 5161770 | J124: 5381171
A125: female | B125: 16 | C125: 324060 | D125: 334360 | E125: 332162 | G125: 16 | H125: 5440655 | I125: 5496130 | J125: 5713333
A126: female | B126: 17 | C126: 310409 | D126: 342655 | E126: 327900 | G126: 17 | H126: 5751064 | I126: 5838785 | J126: 6041233
A127: female | B127: 18 | C127: 306991 | D127: 351196 | E127: 324819 | G127: 18 | H127: 6058055 | I127: 6189981 | J127: 6366052
A128: female | B128: 19 | C128: 309622 | D128: 369684 | E128: 338084 | G128: 19 | H128: 6367677 | I128: 6559665 | J128: 6704136
A129: female | B129: 20 | C129: 325286 | D129: 376657 | E129: 337666 | G129: 20 | H129: 6692963 | I129: 6936322 | J129: 7041802
A130: female | B130: 21 | C130: 324419 | D130: 369796 | E130: 348438 | G130: 21 | H130: 7017382 | I130: 7306118 | J130: 7390240
A131: female | B131: 22 | C131: 312418 | D131: 376483 | E131: 360865 | G131: 22 | H131: 7329800 | I131: 7682601 | J131: 7751105
A132: female | B132: 23 | C132: 300610 | D132: 384632 | E132: 369048 | G132: 23 | H132: 7630410 | I132: 8067233 | J132: 8120153
A133: female | B133: 24 | C133: 306251 | D133: 380508 | E133: 377316 | G133: 24 | H133: 7936661 | I133: 8447741 | J133: 8497469
A134: female | B134: 25 | C134: 316391 | D134: 382049 | E134: 377637 | G134: 25 | H134: 8253052 | I134: 8829790 | J134: 8875106
A135: female | B135: 26 | C135: 331108 | D135: 384425 | E135: 388625 | G135: 26 | H135: 8584160 | I135: 9214215 | J135: 9263731
A136: female | B136: 27 | C136: 344812 | D136: 382134 | E136: 398734 | G136: 27 | H136: 8928972 | I136: 9596349 | J136: 9662465
A137: female | B137: 28 | C137: 367980 | D137: 385018 | E137: 407374 | G137: 28 | H137: 9296952 | I137: 9981367 | J137: 10069839
A138: female | B138: 29 | C138: 389988 | D138: 388685 | E138: 419489 | G138: 29 | H138: 9686940 | I138: 10370052 | J138: 10489328
A139: female | B139: 30 | C139: 399538 | D139: 394014 | E139: 430751 | G139: 30 | H139: 10086478 | I139: 10764066 | J139: 10920079
A140: female | B140: 31 | C140: 393130 | D140: 388387 | E140: 426801 | G140: 31 | H140: 10479608 | I140: 11152453 | J140: 11346880
A141: female | B141: 32 | C141: 408673 | D141: 366414 | E141: 429538 | G141: 32 | H141: 10888281 | I141: 11518867 | J141: 11776418
A142: female | B142: 33 | C142: 409609 | D142: 346131 | E142: 434311 | G142: 33 | H142: =H141+C142 -> 11297890 | I142: =I141+D142 -> 11864998 | J142: =J141+E142 -> 12210729
A143: female | B143: 34 | C143: 420365 | D143: 346513 | E143: 423778 | G143: 34 | H143: 11718255 | I143: 12211511 | J143: 12634507
A144: female | B144: 35 | C144: 420817 | D144: 352692 | E144: 419544 | G144: 35 | H144: 12139072 | I144: 12564203 | J144: 13054051
A145: female | B145: 36 | C145: 423120 | D145: 361657 | E145: 415402 | G145: 36 | H145: 12562192 | I145: 12925860 | J145: 13469453
A146: female | B146: 37 | C146: 418422 | D146: 369692 | E146: 407132 | G146: 37 | H146: 12980614 | I146: 13295552 | J146: 13876585
A147: female | B147: 38 | C147: 410959 | D147: 387192 | E147: 404238 | G147: 38 | H147: 13391573 | I147: 13682744 | J147: 14280823
A148: female | B148: 39 | C148: 400236 | D148: 405008 | E148: 403080 | G148: 39 | H148: 13791809 | I148: 14087752 | J148: 14683903
A149: female | B149: 40 | C149: 389239 | D149: 413543 | E149: 412995 | G149: 40 | H149: 14181048 | I149: 14501295 | J149: 15096898
A150: female | B150: 41 | C150: 372778 | D150: 405726 | E150: 404725 | G150: 41 | H150: 14553826 | I150: 14907021 | J150: 15501623
A151: female | B151: 42 | C151: 367248 | D151: 416966 | E151: 381526 | G151: 42 | H151: 14921074 | I151: 15323987 | J151: 15883149
A152: female | B152: 43 | C152: 362318 | D152: 414504 | E152: 358555 | G152: 43 | H152: 15283392 | I152: 15738491 | J152: 16241704
A153: female | B153: 44 | C153: 349848 | D153: 420418 | E153: 358404 | G153: 44 | H153: 15633240 | I153: 16158909 | J153: 16600108
A154: female | B154: 45 | C154: 338110 | D154: 422792 | E154: 363398 | G154: 45 | H154: 15971350 | I154: 16581701 | J154: 16963506
A155: female | B155: 46 | C155: 331103 | D155: 425032 | E155: 372378 | G155: 46 | H155: 16302453 | I155: 17006733 | J155: 17335884
A156: female | B156: 47 | C156: 335588 | D156: 417820 | E156: 378626 | G156: 47 | H156: 16638041 | I156: 17424553 | J156: 17714510
A157: female | B157: 48 | C157: 330293 | D157: 409522 | E157: 394780 | G157: 48 | H157: 16968334 | I157: 17834075 | J157: 18109290
A158: female | B158: 49 | C158: 328179 | D158: 397074 | E158: 411562 | G158: 49 | H158: 17296513 | I158: 18231149 | J158: 18520852
A159: female | B159: 50 | C159: 330917 | D159: 385951 | E159: 421748 | G159: 50 | H159: 17627430 | I159: 18617100 | J159: 18942600
A160: female | B160: 51 | C160: 343105 | D160: 368440 | E160: 411751 | G160: 51 | H160: 17970535 | I160: 18985540 | J160: 19354351
A161: female | B161: 52 | C161: 352999 | D161: 363330 | E161: 421888 | G161: 52 | H161: 18323534 | I161: 19348870 | J161: 19776239
A162: female | B162: 53 | C162: 383002 | D162: 355176 | E162: 419416 | G162: 53 | H162: 18706536 | I162: 19704046 | J162: 20195655
A163: female | B163: 54 | C163: 400464 | D163: 342107 | E163: 421059 | G163: 54 | H163: 19107000 | I163: 20046153 | J163: 20616714
A164: female | B164: 55 | C164: 309495 | D164: 328283 | E164: 422143 | G164: 55 | H164: 19416495 | I164: 20374436 | J164: 21038857
A165: female | B165: 56 | C165: 319611 | D165: 323464 | E165: 422022 | G165: 56 | H165: 19736106 | I165: 20697900 | J165: 21460879
A166: female | B166: 57 | C166: 308026 | D166: 325505 | E166: 412768 | G166: 57 | H166: 20044132 | I166: 21023405 | J166: 21873647
A167: female | B167: 58 | C167: 294669 | D167: 318535 | E167: 403497 | G167: 58 | H167: 20338801 | I167: 21341940 | J167: 22277144
A168: female | B168: 59 | C168: 263496 | D168: 314529 | E168: 390331 | G168: 59 | H168: 20602297 | I168: 21656469 | J168: 22667475
A169: female | B169: 60 | C169: 250737 | D169: 317659 | E169: 376349 | G169: 60 | H169: 20853034 | I169: 21974128 | J169: 23043824
A170: female | B170: 61 | C170: 265711 | D170: 328532 | E170: 358616 | G170: 61 | H170: 21118745 | I170: 22302660 | J170: 23402440
A171: female | B171: 62 | C171: 263796 | D171: 336288 | E171: 352337 | G171: 62 | H171: 21382541 | I171: 22638948 | J171: 23754777
A172: female | B172: 63 | C172: 260666 | D172: 366643 | E172: 341391 | G172: 63 | H172: 21643207 | I172: 23005591 | J172: 24096168
A173: female | B173: 64 | C173: 254212 | D173: 370033 | E173: 327326 | G173: 64 | H173: 21897419 | I173: 23375624 | J173: 24423494
A174: female | B174: 65 | C174: 248086 | D174: 285382 | E174: 312634 | G174: 65 | H174: =H173+C174 -> 22145505 | I174: =I173+D174 -> 23661006 | J174: =J173+E174 -> 24736128
A175: female | B175: 66 | C175: 240901 | D175: 301721 | E175: 306708 | G175: 66 | H175: 22386406 | I175: 23962727 | J175: 25042836
A176: female | B176: 67 | C176: 232385 | D176: 282561 | E176: 307056 | G176: 67 | H176: 22618791 | I176: 24245288 | J176: 25349892
A177: female | B177: 68 | C177: 234234 | D177: 269186 | E177: 297970 | G177: 68 | H177: 22853025 | I177: 24514474 | J177: 25647862
A178: female | B178: 69 | C178: 235909 | D178: 236230 | E178: 292589 | G178: 69 | H178: 23088934 | I178: 24750704 | J178: 25940451
A179: female | B179: 70 | C179: 238390 | D179: 228278 | E179: 293580 | G179: 70 | H179: 23327324 | I179: 24978982 | J179: 26234031
A180: female | B180: 71 | C180: 233001 | D180: 237886 | E180: 300618 | G180: 71 | H180: 23560325 | I180: 25216868 | J180: 26534649
A181: female | B181: 72 | C181: 225130 | D181: 234077 | E181: 305160 | G181: 72 | H181: 23785455 | I181: 25450945 | J181: 26839809
A182: female | B182: 73 | C182: 216873 | D182: 226822 | E182: 331217 | G182: 73 | H182: 24002328 | I182: 25677767 | J182: 27171026
A183: female | B183: 74 | C183: 217122 | D183: 219152 | E183: 327899 | G183: 74 | H183: 24219450 | I183: 25896919 | J183: 27498925
A184: female | B184: 75 | C184: 213256 | D184: 210211 | E184: 248428 | G184: 75 | H184: 24432706 | I184: 26107130 | J184: 27747353
A185: female | B185: 76 | C185: 206798 | D185: 201669 | E185: 260805 | G185: 76 | H185: 24639504 | I185: 26308799 | J185: 28008158
A186: female | B186: 77 | C186: 202411 | D186: 190307 | E186: 238570 | G186: 77 | H186: 24841915 | I186: 26499106 | J186: 28246728
A187: female | B187: 78 | C187: 197861 | D187: 187600 | E187: 222676 | G187: 78 | H187: 25039776 | I187: 26686706 | J187: 28469404
A188: female | B188: 79 | C188: 201578 | D188: 183063 | E188: 190889 | G188: 79 | H188: 25241354 | I188: 26869769 | J188: 28660293
A189: female | B189: 80 | C189: 203070 | D189: 180365 | E189: 179782 | G189: 80 | H189: 25444424 | I189: 27050134 | J189: 28840075
A190: female | B190: 81 | C190: 188351 | D190: 168388 | E190: 182268 | G190: 81 | H190: 25632775 | I190: 27218522 | J190: 29022343
A191: female | B191: 82 | C191: 125496 | D191: 156468 | E191: 173804 | G191: 82 | H191: 25758271 | I191: 27374990 | J191: 29196147
A192: female | B192: 83 | C192: 109220 | D192: 143694 | E192: 162241 | G192: 83 | H192: 25867491 | I192: 27518684 | J192: 29358388
A193: female | B193: 84 | C193: 116915 | D193: 136552 | E193: 149944 | G193: 84 | H193: 25984406 | I193: 27655236 | J193: 29508332
A194: female | B194: 85 | C194: 111463 | D194: 126067 | E194: 136120 | G194: 85 | H194: 26095869 | I194: 27781303 | J194: 29644452
A195: female | B195: 86 | C195: 109524 | D195: 115499 | E195: 122305 | G195: 86 | H195: 26205393 | I195: 27896802 | J195: 29766757
A196: female | B196: 87 | C196: 96517 | D196: 106022 | E196: 108354 | G196: 87 | H196: 26301910 | I196: 28002824 | J196: 29875111
A197: female | B197: 88 | C197: 83674 | D197: 95972 | E197: 98357 | G197: 88 | H197: 26385584 | I197: 28098796 | J197: 29973468
A198: female | B198: 89 | C198: 70348 | D198: 89229 | E198: 87375 | G198: 89 | H198: 26455932 | I198: 28188025 | J198: 30060843
A199: female | B199: 90+ | C199: 260058 | D199: 314511 | E199: 359359 | G199: 90+ | H199: 26715990 | I199: 28502536 | J199: 30420202
B200: All Females | C200: =SUM(C109:C199) -> 26715990 | D200: 28502536 | E200: =SUM(E109:E199) -> 30420202

Sheet South East (hidden)
A1: Mid Year Population Estimates | K1: Insert column here before extending the table
A2: 2001, 2011, and 2021 Census: The Office forNnational Statistics (ONS) | G2: Selected Ages: | O2: Start year | P2: End Year | Q2: Number change | R2: % Change
H3: =H13 -> 2001 | I3: 2011 | J3: =J13 -> 2021 | O3: =INDEX($H3:$I3,Index!$B$16) -> 2011 | P3: =INDEX($H3:$I3,Index!$B$19) -> 2011
G4: Males | H4: =OFFSET(H16,Index!$B$7-1,0)-IF(Index!$B$4-2=1,0,OFFSET(H16,Index!$B$4-2,0)) -> 3905155 | I4: =OFFSET(I16,Index!$B$7-1,0)-IF(Index!$B$4-2=1,0,OFFSET(I16,Index!$B$4-2,0)) -> 4239298 | J4: =OFFSET(J16,Index!$B$7-1,0)-IF(Index!$B$4-2=1,0,OFFSET(J16,Index!$B$4-2,0)) -> 4738828 | O4: =INDEX($H4:$I4,Index!$B$16) -> 4239298 | P4: =INDEX($H4:$J4,Index!$B$19) -> 4239298 | Q4: =P4-O4 -> 0 | R4: =Q4/O4 -> 0
G5: Females | H5: =OFFSET(H109,Index!$B$7-1,0)-IF(Index!$B$4-2=1,0,OFFSET(H109,Index!$B$4-2,0)) -> 4095490 | I5: =OFFSET(I109,Index!$B$7-1,0)-IF(Index!$B$4-2=1,0,OFFSET(I109,Index!$B$4-2,0)) -> 4395452 | J5: =OFFSET(J109,Index!$B$7-1,0)-IF(Index!$B$4-2=1,0,OFFSET(J109,Index!$B$4-2,0)) -> 4738828 | O5: =INDEX($H5:$I5,Index!$B$16) -> 4395452 | P5: =INDEX($H5:$J5,Index!$B$19) -> 4395452 | Q5: =P5-O5 -> 0 | R5: =Q5/O5 -> 0
G6: Total | H6: =SUM(H4:H5) -> 8000645 | I6: 8634750 | J6: =SUM(J4:J5) -> 9477656 | O6: =INDEX($H6:$I6,Index!$B$16) -> 8634750 | P6: =INDEX($H6:$J6,Index!$B$19) -> 8634750 | Q6: =P6-O6 -> 0 | R6: =Q6/O6 -> 0
G8: Males | H8: =IF(H4<0,"0",H4) -> 3905155 | I8: 4239298 | J8: =IF(J4<0,"0",J4) -> 4738828
G9: Females | H9: 4095490 | I9: 4395452 | J9: 4738828
G10: Total | H10: =SUM(H8:H9) -> 8000645 | I10: 8634750 | J10: =SUM(J8:J9) -> 9477656
A12: South East Region | L12: Population Pyramid Data
H13: =C14 -> 2001 | I13: =D14 -> 2011 | J13: =E14 -> 2021
A14: Sex | B14: Age | C14: 2001 | D14: 2011 | E14: 2021 | O14: 2001 | P14: 2011 | Q14: 2021 | S14: =INDEX(O14:Q14,Index!$B$23) -> 2021
B15: All persons | C15: =SUM(C107,C200) -> 8000645 | D15: 8634750 | E15: =SUM(E107,E200) -> 9477656 | G15: Males | L15: Males | M15: All Ages | O15: =C107 -> 3905155 | P15: =D107 -> 4239298 | Q15: =E107 -> 4738828 | S15: =INDEX(O15:Q15,Index!$B$23) -> 4738828
A16: male | B16: 0 | C16: 45544 | D16: 55124 | E16: 44565 | G16: 0 | H16: =C16 -> 45544 | I16: =D16 -> 55124 | J16: =E16 -> 44565 | L16: Males | M16: 0-4 | O16: =SUM(C16:C20) -> 242276 | P16: =SUM(D16:D20) -> 273825 | Q16: =SUM(E16:E20) -> 241174 | S16: =INDEX(O16:Q16,Index!$B$23) -> 241174
A17: male | B17: 1 | C17: 47887 | D17: 54737 | E17: 46971 | G17: 1 | H17: =H16+C17 -> 93431 | I17: =I16+D17 -> 109861 | J17: =J16+E17 -> 91536 | L17: Males | M17: 5-9 | O17: =SUM(C21:C25) -> 260054 | P17: =SUM(D21:D25) -> 250195 | Q17: =SUM(E21:E25) -> 268892 | S17: =INDEX(O17:Q17,Index!$B$23) -> 268892
A18: male | B18: 2 | C18: 49079 | D18: 54632 | E18: 48703 | G18: 2 | H18: 142510 | I18: 164493 | J18: 140239 | L18: Males | M18: 10-14 | O18: =SUM(C26:C30) -> 265551 | P18: =SUM(D26:D30) -> 263517 | Q18: =SUM(E26:E30) -> 276998 | S18: =INDEX(O18:Q18,Index!$B$23) -> 276998
A19: male | B19: 3 | C19: 49349 | D19: 55064 | E19: 49622 | G19: 3 | H19: 191859 | I19: 219557 | J19: 189861 | L19: Males | M19: 15-19 | O19: =SUM(C31:C35) -> 249391 | P19: =SUM(D31:D35) -> 277823 | Q19: =SUM(E31:E35) -> 253557 | S19: =INDEX(O19:Q19,Index!$B$23) -> 253557
A20: male | B20: 4 | C20: 50417 | D20: 54268 | E20: 51313 | G20: 4 | H20: 242276 | I20: 273825 | J20: 241174 | L20: Males | M20: 20-24 | O20: =SUM(C36:C40) -> 233092 | P20: =SUM(D36:D40) -> 270841 | Q20: =SUM(E36:E40) -> 254200 | S20: =INDEX(O20:Q20,Index!$B$23) -> 254200
A21: male | B21: 5 | C21: 50370 | D21: 52745 | E21: 52914 | G21: 5 | H21: 292646 | I21: 326570 | J21: 294088 | L21: Males | M21: 25-29 | O21: =SUM(C41:C45) -> 248432 | P21: =SUM(D41:D45) -> 263534 | Q21: =SUM(E41:E45) -> 276988 | S21: =INDEX(O21:Q21,Index!$B$23) -> 276988
A22: male | B22: 6 | C22: 50850 | D22: 49990 | E22: 52107 | G22: 6 | H22: 343496 | I22: 376560 | J22: 346195 | L22: Males | M22: 30-34 | O22: =SUM(C46:C50) -> 291692 | P22: =SUM(D46:D50) -> 266024 | Q22: =SUM(E46:E50) -> 312815 | S22: =INDEX(O22:Q22,Index!$B$23) -> 312815
A23: male | B23: 7 | C23: 52564 | D23: 50530 | E23: 52580 | G23: 7 | H23: 396060 | I23: 427090 | J23: 398775 | L23: Males | M23: 35-39 | O23: =SUM(C51:C55) -> 316206 | P23: =SUM(D51:D55) -> 284695 | Q23: =SUM(E51:E55) -> 313900 | S23: =INDEX(O23:Q23,Index!$B$23) -> 313900
A24: male | B24: 8 | C24: 52169 | D24: 48549 | E24: 54996 | G24: 8 | H24: 448229 | I24: 475639 | J24: 453771 | L24: Males | M24: 40-44 | O24: =SUM(C56:C60) -> 288282 | P24: =SUM(D56:D60) -> 318221 | Q24: =SUM(E56:E60) -> 309476 | S24: =INDEX(O24:Q24,Index!$B$23) -> 309476
A25: male | B25: 9 | C25: 54101 | D25: 48381 | E25: 56295 | G25: 9 | H25: 502330 | I25: 524020 | J25: 510066 | L25: Males | M25: 45-49 | O25: =SUM(C61:C65) -> 258162 | P25: =SUM(D61:D65) -> 324463 | Q25: =SUM(E61:E65) -> 312273 | S25: =INDEX(O25:Q25,Index!$B$23) -> 312273
A26: male | B26: 10 | C26: 54332 | D26: 50141 | E26: 56215 | G26: 10 | H26: 556662 | I26: 574161 | J26: 566281 | L26: Males | M26: 50-54 | O26: =SUM(C66:C70) -> 282527 | P26: =SUM(D66:D70) -> 282878 | Q26: =SUM(E66:E70) -> 334469 | S26: =INDEX(O26:Q26,Index!$B$23) -> 334469
A27: male | B27: 11 | C27: 53205 | D27: 52278 | E27: 55872 | G27: 11 | H27: 609867 | I27: 626439 | J27: 622153 | L27: Males | M27: 55-59 | O27: =SUM(C71:C75) -> 232444 | P27: =SUM(D71:D75) -> 245086 | Q27: =SUM(E71:E75) -> 325214 | S27: =INDEX(O27:Q27,Index!$B$23) -> 325214
A28: male | B28: 12 | C28: 53197 | D28: 53400 | E28: 55362 | G28: 12 | H28: 663064 | I28: 679839 | J28: 677515 | L28: Males | M28: 60-64 | O28: =SUM(C76:C80) -> 189970 | P28: =SUM(D76:D80) -> 261924 | Q28: =SUM(E76:E80) -> 275196 | S28: =INDEX(O28:Q28,Index!$B$23) -> 275196
A29: male | B29: 13 | C29: 53500 | D29: 53720 | E29: 55477 | G29: 13 | H29: 716564 | I29: 733559 | J29: 732992 | L29: Males | M29: 65-69 | O29: =SUM(C81:C85) -> 168084 | P29: =SUM(D81:D85) -> 205415 | Q29: =SUM(E81:E85) -> 239033 | S29: =INDEX(O29:Q29,Index!$B$23) -> 239033
A30: male | B30: 14 | C30: 51317 | D30: 53978 | E30: 54072 | G30: 14 | H30: 767881 | I30: 787537 | J30: 787064 | L30: Males | M30: 70-74 | O30: =SUM(C86:C90) -> 144856 | P30: =SUM(D86:D90) -> 160646 | Q30: =SUM(E86:E90) -> 254120 | S30: =INDEX(O30:Q30,Index!$B$23) -> 254120
A31: male | B31: 15 | C31: 50958 | D31: 55295 | E31: 51850 | G31: 15 | H31: 818839 | I31: 842832 | J31: 838914 | L31: Males | M31: 75-79 | O31: =SUM(C91:C95) -> 113219 | P31: =SUM(D91:D95) -> 128445 | Q31: =SUM(E91:E95) -> 192220 | S31: =INDEX(O31:Q31,Index!$B$23) -> 192220
A32: male | B32: 16 | C32: 52407 | D32: 55394 | E32: 52328 | G32: 16 | H32: 871246 | I32: 898226 | J32: 891242 | L32: Males | M32: 80-84 | O32: =SUM(C96:C100) -> 71413 | P32: =SUM(D96:D100) -> 91069 | Q32: =SUM(E96:E100) -> 139590 | S32: =INDEX(O32:Q32,Index!$B$23) -> 139590
A33: male | B33: 17 | C33: 50191 | D33: 56309 | E33: 51527 | G33: 17 | H33: 921437 | I33: 954535 | J33: 942769 | L33: Males | M33: 85-89 | O33: =SUM(C101:C105) -> 35632 | P33: =SUM(D101:D105) -> 49636 | Q33: 93970 | S33: =INDEX(O33:Q33,Index!$B$23) -> 93970
A34: male | B34: 18 | C34: 49230 | D34: 55708 | E34: 49187 | G34: 18 | H34: 970667 | I34: 1010243 | J34: 991956 | L34: Males | M34: 90+ | O34: =C106 -> 13872 | P34: =D106 -> 21061 | Q34: 64743 | S34: =INDEX(O34:Q34,Index!$B$23) -> 64743
A35: male | B35: 19 | C35: 46605 | D35: 55117 | E35: 48665 | G35: 19 | H35: 1017272 | I35: 1065360 | J35: 1040621
A36: male | B36: 20 | C36: 48780 | D36: 56396 | E36: 47907 | G36: 20 | H36: 1066052 | I36: 1121756 | J36: 1088528 | L36: Females | M36: All Ages | O36: =C200 -> 4095490 | P36: =D200 -> 4395452 | Q36: =E200 -> 4738828 | S36: =INDEX(O36:Q36,Index!$B$23) -> 4738828
A37: male | B37: 21 | C37: 48814 | D37: 54850 | E37: 49719 | G37: 21 | H37: 1114866 | I37: 1176606 | J37: 1138247 | L37: Females | M37: 0-4 | O37: =SUM(C109:C113) -> 230225 | P37: =SUM(D109:D113) -> 260410 | Q37: =SUM(E109:E113) -> 241174 | S37: =INDEX(O37:Q37,Index!$B$23) -> 241174
A38: male | B38: 22 | C38: 46497 | D38: 53704 | E38: 51943 | G38: 22 | H38: 1161363 | I38: 1230310 | J38: 1190190 | L38: Females | M38: 5-9 | O38: =SUM(C114:C118) -> 245842 | P38: =SUM(D114:D118) -> 237863 | Q38: =SUM(E114:E118) -> 268892 | S38: =INDEX(O38:Q38,Index!$B$23) -> 268892
A39: male | B39: 23 | C39: 44368 | D39: 54369 | E39: 52529 | G39: 23 | H39: 1205731 | I39: 1284679 | J39: 1242719 | L39: Females | M39: 10-14 | O39: =SUM(C119:C123) -> 250956 | P39: =SUM(D119:D123) -> 249358 | Q39: =SUM(E119:E123) -> 276998 | S39: =INDEX(O39:Q39,Index!$B$23) -> 276998
A40: male | B40: 24 | C40: 44633 | D40: 51522 | E40: 52102 | G40: 24 | H40: 1250364 | I40: 1336201 | J40: 1294821 | L40: Females | M40: 15-19 | O40: =SUM(C124:C128) -> 234628 | P40: =SUM(D124:D128) -> 263861 | Q40: =SUM(E124:E128) -> 253557 | S40: =INDEX(O40:Q40,Index!$B$23) -> 253557
A41: male | B41: 25 | C41: 45211 | D41: 53278 | E41: 52245 | G41: 25 | H41: 1295575 | I41: 1389479 | J41: 1347066 | L41: Females | M41: 20-24 | O41: =SUM(C129:C133) -> 228743 | P41: =SUM(D129:D133) -> 263446 | Q41: =SUM(E129:E133) -> 254200 | S41: =INDEX(O41:Q41,Index!$B$23) -> 254200
A42: male | B42: 26 | C42: 47022 | D42: 52598 | E42: 53562 | G42: 26 | H42: 1342597 | I42: 1442077 | J42: 1400628 | L42: Females | M42: 25-29 | O42: =SUM(C134:C138) -> 251676 | P42: =SUM(D134:D138) -> 264523 | Q42: =SUM(E134:E138) -> 276988 | S42: =INDEX(O42:Q42,Index!$B$23) -> 276988
A43: male | B43: 27 | C43: 48898 | D43: 51976 | E43: 55175 | G43: 27 | H43: 1391495 | I43: 1494053 | J43: 1455803 | L43: Females | M43: 30-34 | O43: =SUM(C139:C143) -> 302430 | P43: =SUM(D139:D143) -> 272447 | Q43: =SUM(E139:E143) -> 312815 | S43: =INDEX(O43:Q43,Index!$B$23) -> 312815
A44: male | B44: 28 | C44: 52204 | D44: 52539 | E44: 57085 | G44: 28 | H44: 1443699 | I44: 1546592 | J44: 1512888 | L44: Females | M44: 35-39 | O44: =SUM(C144:C148) -> 321331 | P44: =SUM(D144:D148) -> 293316 | Q44: =SUM(E144:E148) -> 313900 | S44: =INDEX(O44:Q44,Index!$B$23) -> 313900
A45: male | B45: 29 | C45: 55097 | D45: 53143 | E45: 58921 | G45: 29 | H45: 1498796 | I45: 1599735 | J45: 1571809 | L45: Females | M45: 40-44 | O45: =SUM(C149:C153) -> 287916 | P45: =SUM(D149:D153) -> 326575 | Q45: =SUM(E149:E153) -> 309476 | S45: =INDEX(O45:Q45,Index!$B$23) -> 309476
A46: male | B46: 30 | C46: 55726 | D46: 54858 | E46: 61653 | G46: 30 | H46: 1554522 | I46: 1654593 | J46: 1633462 | L46: Females | M46: 45-49 | O46: =SUM(C154:C158) -> 260667 | P46: =SUM(D154:D158) -> 328795 | Q46: =SUM(E154:E158) -> 312273 | S46: =INDEX(O46:Q46,Index!$B$23) -> 312273
A47: male | B47: 31 | C47: 55604 | D47: 55065 | E47: 61705 | G47: 31 | H47: 1610126 | I47: 1709658 | J47: 1695167 | L47: Females | M47: 50-54 | O47: =SUM(C159:C163) -> 287746 | P47: =SUM(D159:D163) -> 284956 | Q47: =SUM(E159:E163) -> 334469 | S47: =INDEX(O47:Q47,Index!$B$23) -> 334469
A48: male | B48: 32 | C48: 58212 | D48: 53178 | E48: 62830 | G48: 32 | H48: 1668338 | I48: 1762836 | J48: 1757997 | L48: Females | M48: 55-59 | O48: =SUM(C164:C168) -> 235752 | P48: =SUM(D164:D168) -> 250679 | Q48: =SUM(E164:E168) -> 325214 | S48: =INDEX(O48:Q48,Index!$B$23) -> 325214
A49: male | B49: 33 | C49: 59596 | D49: 51020 | E49: 63576 | G49: 33 | H49: =H48+C49 -> 1727934 | I49: =I48+D49 -> 1813856 | J49: =J48+E49 -> 1821573 | L49: Females | M49: 60-64 | O49: =SUM(C169:C173) -> 196032 | P49: =SUM(D169:D173) -> 273475 | Q49: =SUM(E169:E173) -> 275196 | S49: =INDEX(O49:Q49,Index!$B$23) -> 275196
A50: male | B50: 34 | C50: 62554 | D50: 51903 | E50: 63051 | G50: 34 | H50: 1790488 | I50: 1865759 | J50: 1884624 | L50: Females | M50: 65-69 | O50: =SUM(C174:C178) -> 182219 | P50: =SUM(D174:D178) -> 218875 | Q50: =SUM(E174:E178) -> 239033 | S50: =INDEX(O50:Q50,Index!$B$23) -> 239033
A51: male | B51: 35 | C51: 63458 | D51: 52447 | E51: 63022 | G51: 35 | H51: 1853946 | I51: 1918206 | J51: 1947646 | L51: Females | M51: 70-74 | O51: =SUM(C179:C183) -> 173344 | P51: =SUM(D179:D183) -> 178759 | Q51: =SUM(E179:E183) -> 254120 | S51: =INDEX(O51:Q51,Index!$B$23) -> 254120
A52: male | B52: 36 | C52: 64360 | D52: 54695 | E52: 62601 | G52: 36 | H52: 1918306 | I52: 1972901 | J52: 2010247 | L52: Females | M52: 75-79 | O52: =SUM(C184:C188) -> 159155 | P52: =SUM(D184:D188) -> 153946 | Q52: =SUM(E184:E188) -> 192220 | S52: =INDEX(O52:Q52,Index!$B$23) -> 192220
A53: male | B53: 37 | C53: 64388 | D53: 56309 | E53: 62413 | G53: 37 | H53: 1982694 | I53: 2029210 | J53: 2072660 | L53: Females | M53: 80-84 | O53: =SUM(C189:C193) -> 120542 | P53: =SUM(D189:D193) -> 127658 | Q53: =SUM(E189:E193) -> 139590 | S53: =INDEX(O53:Q53,Index!$B$23) -> 139590
A54: male | B54: 38 | C54: 63067 | D54: 59549 | E54: 62591 | G54: 38 | H54: 2045761 | I54: 2088759 | J54: 2135251 | L54: Females | M54: 85-89 | O54: =SUM(C194:C198) -> 79966 | P54: =SUM(D194:D198) -> 89940 | Q54: 93970 | S54: =INDEX(O54:Q54,Index!$B$23) -> 93970
A55: male | B55: 39 | C55: 60933 | D55: 61695 | E55: 63273 | G55: 39 | H55: 2106694 | I55: 2150454 | J55: 2198524 | L55: Females | M55: 90+ | O55: =C199 -> 46320 | P55: =D199 -> 56570 | Q55: 64743 | S55: =INDEX(O55:Q55,Index!$B$23) -> 64743
A56: male | B56: 40 | C56: 60560 | D56: 62822 | E56: 65505 | G56: 40 | H56: 2167254 | I56: 2213276 | J56: 2264029
A57: male | B57: 41 | C57: 58298 | D57: 61984 | E57: 64736 | G57: 41 | H57: 2225552 | I57: 2275260 | J57: 2328765
A58: male | B58: 42 | C58: 57797 | D58: 63436 | E58: 61518 | G58: 42 | H58: 2283349 | I58: 2338696 | J58: 2390283
A59: male | B59: 43 | C59: 56710 | D59: 64142 | E59: 58778 | G59: 43 | H59: 2340059 | I59: 2402838 | J59: 2449061
A60: male | B60: 44 | C60: 54917 | D60: 65837 | E60: 58939 | G60: 44 | H60: 2394976 | I60: 2468675 | J60: 2508000
A61: male | B61: 45 | C61: 52600 | D61: 65997 | E61: 59283 | G61: 45 | H61: 2447576 | I61: 2534672 | J61: 2567283
A62: male | B62: 46 | C62: 51890 | D62: 66625 | E62: 60889 | G62: 46 | H62: 2499466 | I62: 2601297 | J62: 2628172
A63: male | B63: 47 | C63: 52094 | D63: 65675 | E63: 61840 | G63: 47 | H63: 2551560 | I63: 2666972 | J63: 2690012
A64: male | B64: 48 | C64: 51016 | D64: 63951 | E64: 64148 | G64: 48 | H64: 2602576 | I64: 2730923 | J64: 2754160
A65: male | B65: 49 | C65: 50562 | D65: 62215 | E65: 66113 | G65: 49 | H65: 2653138 | I65: 2793138 | J65: 2820273
A66: male | B66: 50 | C66: 50670 | D66: 60429 | E66: 67375 | G66: 50 | H66: 2703808 | I66: 2853567 | J66: 2887648
A67: male | B67: 51 | C67: 52571 | D67: 57456 | E67: 64977 | G67: 51 | H67: 2756379 | I67: 2911023 | J67: 2952625
A68: male | B68: 52 | C68: 54727 | D68: 56751 | E68: 67088 | G68: 52 | H68: 2811106 | I68: 2967774 | J68: 3019713
A69: male | B69: 53 | C69: 60576 | D69: 55309 | E69: 67273 | G69: 53 | H69: 2871682 | I69: 3023083 | J69: 3086986
A70: male | B70: 54 | C70: 63983 | D70: 52933 | E70: 67756 | G70: 54 | H70: 2935665 | I70: 3076016 | J70: 3154742
A71: male | B71: 55 | C71: 48988 | D71: 50744 | E71: 67109 | G71: 55 | H71: 2984653 | I71: 3126760 | J71: 3221851
A72: male | B72: 56 | C72: 50121 | D72: 49634 | E72: 67273 | G72: 56 | H72: 3034774 | I72: 3176394 | J72: 3289124
A73: male | B73: 57 | C73: 48258 | D73: 49168 | E73: 65770 | G73: 57 | H73: 3083032 | I73: 3225562 | J73: 3354894
A74: male | B74: 58 | C74: 45335 | D74: 48318 | E74: 63811 | G74: 58 | H74: 3128367 | I74: 3273880 | J74: 3418705
A75: male | B75: 59 | C75: 39742 | D75: 47222 | E75: 61251 | G75: 59 | H75: 3168109 | I75: 3321102 | J75: 3479956
A76: male | B76: 60 | C76: 36618 | D76: 47661 | E76: 59078 | G76: 60 | H76: 3204727 | I76: 3368763 | J76: 3539034
A77: male | B77: 61 | C77: 39497 | D77: 49010 | E77: 56216 | G77: 61 | H77: 3244224 | I77: 3417773 | J77: 3595250
A78: male | B78: 62 | C78: 38662 | D78: 51163 | E78: 55678 | G78: 62 | H78: 3282886 | I78: 3468936 | J78: 3650928
A79: male | B79: 63 | C79: 38172 | D79: 56643 | E79: 53252 | G79: 63 | H79: 3321058 | I79: 3525579 | J79: 3704180
A80: male | B80: 64 | C80: 37021 | D80: 57447 | E80: 50972 | G80: 64 | H80: 3358079 | I80: 3583026 | J80: 3755152
A81: male | B81: 65 | C81: 35756 | D81: 43415 | E81: 48871 | G81: 65 | H81: =H80+C81 -> 3393835 | I81: =I80+D81 -> 3626441 | J81: =J80+E81 -> 3804023
A82: male | B82: 66 | C82: 34717 | D82: 45871 | E82: 48625 | G82: 66 | H82: 3428552 | I82: 3672312 | J82: 3852648
A83: male | B83: 67 | C83: 32680 | D83: 42351 | E83: 47917 | G83: 67 | H83: 3461232 | I83: 3714663 | J83: 3900565
A84: male | B84: 68 | C84: 32359 | D84: 39678 | E84: 46833 | G84: 68 | H84: 3493591 | I84: 3754341 | J84: 3947398
A85: male | B85: 69 | C85: 32572 | D85: 34100 | E85: 46787 | G85: 69 | H85: 3526163 | I85: 3788441 | J85: 3994185
A86: male | B86: 70 | C86: 31863 | D86: 32455 | E86: 46630 | G86: 70 | H86: 3558026 | I86: 3820896 | J86: 4040815
A87: male | B87: 71 | C87: 30369 | D87: 33747 | E87: 48258 | G87: 71 | H87: 3588395 | I87: 3854643 | J87: 4089073
A88: male | B88: 72 | C88: 28858 | D88: 32621 | E88: 49756 | G88: 72 | H88: 3617253 | I88: 3887264 | J88: 4138829
A89: male | B89: 73 | C89: 27274 | D89: 31631 | E89: 54410 | G89: 73 | H89: 3644527 | I89: 3918895 | J89: 4193239
A90: male | B90: 74 | C90: 26492 | D90: 30192 | E90: 55066 | G90: 74 | H90: 3671019 | I90: 3949087 | J90: 4248305
A91: male | B91: 75 | C91: 25093 | D91: 28749 | E91: 41257 | G91: 75 | H91: 3696112 | I91: 3977836 | J91: 4289562
A92: male | B92: 76 | C92: 23773 | D92: 27054 | E92: 43197 | G92: 76 | H92: 3719885 | I92: 4004890 | J92: 4332759
A93: male | B93: 77 | C93: 22286 | D93: 25056 | E93: 39731 | G93: 77 | H93: 3742171 | I93: 4029946 | J93: 4372490
A94: male | B94: 78 | C94: 21281 | D94: 24111 | E94: 36985 | G94: 78 | H94: 3763452 | I94: 4054057 | J94: 4409475
A95: male | B95: 79 | C95: 20786 | D95: 23475 | E95: 31050 | G95: 79 | H95: 3784238 | I95: 4077532 | J95: 4440525
A96: male | B96: 80 | C96: 20610 | D96: 22094 | E96: 29111 | G96: 80 | H96: 3804848 | I96: 4099626 | J96: 4469636
A97: male | B97: 81 | C97: 18960 | D97: 19994 | E97: 30267 | G97: 81 | H97: 3823808 | I97: 4119620 | J97: 4499903
A98: male | B98: 82 | C98: 11582 | D98: 18025 | E98: 28710 | G98: 82 | H98: 3835390 | I98: 4137645 | J98: 4528613
A99: male | B99: 83 | C99: 9847 | D99: 16119 | E99: 26847 | G99: 83 | H99: 3845237 | I99: 4153764 | J99: 4555460
A100: male | B100: 84 | C100: 10414 | D100: 14837 | E100: 24655 | G100: 84 | H100: 3855651 | I100: 4168601 | J100: 4580115
A101: male | B101: 85 | C101: 9399 | D101: 12897 | E101: 22575 | G101: 85 | H101: 3865050 | I101: 4181498 | J101: 4602690
A102: male | B102: 86 | C102: 8355 | D102: 11332 | E102: 20709 | G102: 86 | H102: 3873405 | I102: 4192830 | J102: 4623399
A103: male | B103: 87 | C103: 7088 | D103: 9764 | E103: 18446 | G103: 87 | H103: 3880493 | I103: 4202594 | J103: 4641845
A104: male | B104: 88 | C104: 6058 | D104: 8242 | E104: 17039 | G104: 88 | H104: 3886551 | I104: 4210836 | J104: 4658884
A105: male | B105: 89 | C105: 4732 | D105: 7401 | E105: 15201 | G105: 89 | H105: 3891283 | I105: 4218237 | J105: 4674085
A106: male | B106: 90+ | C106: 13872 | D106: 21061 | E106: 64743 | G106: 90+ | H106: 3905155 | I106: 4239298 | J106: 4738828
B107: All Males | C107: =SUM(C16:C106) -> 3905155 | D107: 4239298 | E107: =SUM(E16:E106) -> 4738828 | G107: Females
A108: Sex | B108: Age
A109: female | B109: 0 | C109: 43630 | D109: 52431 | E109: 44565 | G109: 0 | H109: =C109 -> 43630 | I109: =D109 -> 52431 | J109: =E109 -> 44565
A110: female | B110: 1 | C110: 44711 | D110: 52176 | E110: 46971 | G110: 1 | H110: =H109+C110 -> 88341 | I110: =I109+D110 -> 104607 | J110: =J109+E110 -> 91536
A111: female | B111: 2 | C111: 46875 | D111: 51791 | E111: 48703 | G111: 2 | H111: 135216 | I111: 156398 | J111: 140239
A112: female | B112: 3 | C112: 47257 | D112: 52482 | E112: 49622 | G112: 3 | H112: 182473 | I112: 208880 | J112: 189861
A113: female | B113: 4 | C113: 47752 | D113: 51530 | E113: 51313 | G113: 4 | H113: 230225 | I113: 260410 | J113: 241174
A114: female | B114: 5 | C114: 47468 | D114: 50119 | E114: 52914 | G114: 5 | H114: 277693 | I114: 310529 | J114: 294088
A115: female | B115: 6 | C115: 48128 | D115: 47851 | E115: 52107 | G115: 6 | H115: 325821 | I115: 358380 | J115: 346195
A116: female | B116: 7 | C116: 49292 | D116: 48092 | E116: 52580 | G116: 7 | H116: 375113 | I116: 406472 | J116: 398775
A117: female | B117: 8 | C117: 49887 | D117: 45710 | E117: 54996 | G117: 8 | H117: 425000 | I117: 452182 | J117: 453771
A118: female | B118: 9 | C118: 51067 | D118: 46091 | E118: 56295 | G118: 9 | H118: 476067 | I118: 498273 | J118: 510066
A119: female | B119: 10 | C119: 51514 | D119: 47753 | E119: 56215 | G119: 10 | H119: 527581 | I119: 546026 | J119: 566281
A120: female | B120: 11 | C120: 50505 | D120: 48739 | E120: 55872 | G120: 11 | H120: 578086 | I120: 594765 | J120: 622153
A121: female | B121: 12 | C121: 50280 | D121: 50398 | E121: 55362 | G121: 12 | H121: 628366 | I121: 645163 | J121: 677515
A122: female | B122: 13 | C122: 50221 | D122: 51360 | E122: 55477 | G122: 13 | H122: 678587 | I122: 696523 | J122: 732992
A123: female | B123: 14 | C123: 48436 | D123: 51108 | E123: 54072 | G123: 14 | H123: 727023 | I123: 747631 | J123: 787064
A124: female | B124: 15 | C124: 48357 | D124: 51621 | E124: 51850 | G124: 15 | H124: 775380 | I124: 799252 | J124: 838914
A125: female | B125: 16 | C125: 48302 | D125: 52650 | E125: 52328 | G125: 16 | H125: 823682 | I125: 851902 | J125: 891242
A126: female | B126: 17 | C126: 46826 | D126: 53259 | E126: 51527 | G126: 17 | H126: 870508 | I126: 905161 | J126: 942769
A127: female | B127: 18 | C127: 46149 | D127: 52970 | E127: 49187 | G127: 18 | H127: 916657 | I127: 958131 | J127: 991956
A128: female | B128: 19 | C128: 44994 | D128: 53361 | E128: 48665 | G128: 19 | H128: 961651 | I128: 1011492 | J128: 1040621
A129: female | B129: 20 | C129: 47285 | D129: 53641 | E129: 47907 | G129: 20 | H129: 1008936 | I129: 1065133 | J129: 1088528
A130: female | B130: 21 | C130: 47315 | D130: 52395 | E130: 49719 | G130: 21 | H130: 1056251 | I130: 1117528 | J130: 1138247
A131: female | B131: 22 | C131: 45666 | D131: 52515 | E131: 51943 | G131: 22 | H131: 1101917 | I131: 1170043 | J131: 1190190
A132: female | B132: 23 | C132: 43973 | D132: 52997 | E132: 52529 | G132: 23 | H132: 1145890 | I132: 1223040 | J132: 1242719
A133: female | B133: 24 | C133: 44504 | D133: 51898 | E133: 52102 | G133: 24 | H133: 1190394 | I133: 1274938 | J133: 1294821
A134: female | B134: 25 | C134: 45150 | D134: 52168 | E134: 52245 | G134: 25 | H134: 1235544 | I134: 1327106 | J134: 1347066
A135: female | B135: 26 | C135: 47465 | D135: 52320 | E135: 53562 | G135: 26 | H135: 1283009 | I135: 1379426 | J135: 1400628
A136: female | B136: 27 | C136: 49231 | D136: 52247 | E136: 55175 | G136: 27 | H136: 1332240 | I136: 1431673 | J136: 1455803
A137: female | B137: 28 | C137: 53514 | D137: 52922 | E137: 57085 | G137: 28 | H137: 1385754 | I137: 1484595 | J137: 1512888
A138: female | B138: 29 | C138: 56316 | D138: 54866 | E138: 58921 | G138: 29 | H138: 1442070 | I138: 1539461 | J138: 1571809
A139: female | B139: 30 | C139: 58741 | D139: 56389 | E139: 61653 | G139: 30 | H139: 1500811 | I139: 1595850 | J139: 1633462
A140: female | B140: 31 | C140: 57290 | D140: 56337 | E140: 61705 | G140: 31 | H140: 1558101 | I140: 1652187 | J140: 1695167
A141: female | B141: 32 | C141: 60804 | D141: 53855 | E141: 62830 | G141: 32 | H141: 1618905 | I141: 1706042 | J141: 1757997
A142: female | B142: 33 | C142: 61996 | D142: 52591 | E142: 63576 | G142: 33 | H142: =H141+C142 -> 1680901 | I142: =I141+D142 -> 1758633 | J142: =J141+E142 -> 1821573
A143: female | B143: 34 | C143: 63599 | D143: 53275 | E143: 63051 | G143: 34 | H143: 1744500 | I143: 1811908 | J143: 1884624
A144: female | B144: 35 | C144: 64814 | D144: 54272 | E144: 63022 | G144: 35 | H144: 1809314 | I144: 1866180 | J144: 1947646
A145: female | B145: 36 | C145: 65441 | D145: 56298 | E145: 62601 | G145: 36 | H145: 1874755 | I145: 1922478 | J145: 2010247
A146: female | B146: 37 | C146: 64869 | D146: 58286 | E146: 62413 | G146: 37 | H146: 1939624 | I146: 1980764 | J146: 2072660
A147: female | B147: 38 | C147: 64025 | D147: 61243 | E147: 62591 | G147: 38 | H147: 2003649 | I147: 2042007 | J147: 2135251
A148: female | B148: 39 | C148: 62182 | D148: 63217 | E148: 63273 | G148: 39 | H148: 2065831 | I148: 2105224 | J148: 2198524
A149: female | B149: 40 | C149: 60545 | D149: 64899 | E149: 65505 | G149: 40 | H149: 2126376 | I149: 2170123 | J149: 2264029
A150: female | B150: 41 | C150: 58021 | D150: 63148 | E150: 64736 | G150: 41 | H150: 2184397 | I150: 2233271 | J150: 2328765
A151: female | B151: 42 | C151: 58124 | D151: 65473 | E151: 61518 | G151: 42 | H151: 2242521 | I151: 2298744 | J151: 2390283
A152: female | B152: 43 | C152: 56527 | D152: 65995 | E152: 58778 | G152: 43 | H152: 2299048 | I152: 2364739 | J152: 2449061
A153: female | B153: 44 | C153: 54699 | D153: 67060 | E153: 58939 | G153: 44 | H153: 2353747 | I153: 2431799 | J153: 2508000
A154: female | B154: 45 | C154: 52560 | D154: 67206 | E154: 59283 | G154: 45 | H154: 2406307 | I154: 2499005 | J154: 2567283
A155: female | B155: 46 | C155: 52446 | D155: 67645 | E155: 60889 | G155: 46 | H155: 2458753 | I155: 2566650 | J155: 2628172
A156: female | B156: 47 | C156: 52346 | D156: 66587 | E156: 61840 | G156: 47 | H156: 2511099 | I156: 2633237 | J156: 2690012
A157: female | B157: 48 | C157: 51790 | D157: 64883 | E157: 64148 | G157: 48 | H157: 2562889 | I157: 2698120 | J157: 2754160
A158: female | B158: 49 | C158: 51525 | D158: 62474 | E158: 66113 | G158: 49 | H158: 2614414 | I158: 2760594 | J158: 2820273
A159: female | B159: 50 | C159: 51551 | D159: 60673 | E159: 67375 | G159: 50 | H159: 2665965 | I159: 2821267 | J159: 2887648
A160: female | B160: 51 | C160: 54178 | D160: 57837 | E160: 64977 | G160: 51 | H160: 2720143 | I160: 2879104 | J160: 2952625
A161: female | B161: 52 | C161: 55773 | D161: 57544 | E161: 67088 | G161: 52 | H161: 2775916 | I161: 2936648 | J161: 3019713
A162: female | B162: 53 | C162: 61178 | D162: 55547 | E162: 67273 | G162: 53 | H162: 2837094 | I162: 2992195 | J162: 3086986
A163: female | B163: 54 | C163: 65066 | D163: 53355 | E163: 67756 | G163: 54 | H163: 2902160 | I163: 3045550 | J163: 3154742
A164: female | B164: 55 | C164: 49589 | D164: 51005 | E164: 67109 | G164: 55 | H164: 2951749 | I164: 3096555 | J164: 3221851
A165: female | B165: 56 | C165: 50623 | D165: 50936 | E165: 67273 | G165: 56 | H165: 3002372 | I165: 3147491 | J165: 3289124
A166: female | B166: 57 | C166: 48502 | D166: 50176 | E166: 65770 | G166: 57 | H166: 3050874 | I166: 3197667 | J166: 3354894
A167: female | B167: 58 | C167: 46359 | D167: 49478 | E167: 63811 | G167: 58 | H167: 3097233 | I167: 3247145 | J167: 3418705
A168: female | B168: 59 | C168: 40679 | D168: 49084 | E168: 61251 | G168: 59 | H168: 3137912 | I168: 3296229 | J168: 3479956
A169: female | B169: 60 | C169: 37602 | D169: 49410 | E169: 59078 | G169: 60 | H169: 3175514 | I169: 3345639 | J169: 3539034
A170: female | B170: 61 | C170: 40783 | D170: 51651 | E170: 56216 | G170: 61 | H170: 3216297 | I170: 3397290 | J170: 3595250
A171: female | B171: 62 | C171: 39988 | D171: 53469 | E171: 55678 | G171: 62 | H171: 3256285 | I171: 3450759 | J171: 3650928
A172: female | B172: 63 | C172: 39465 | D172: 58685 | E172: 53252 | G172: 63 | H172: 3295750 | I172: 3509444 | J172: 3704180
A173: female | B173: 64 | C173: 38194 | D173: 60260 | E173: 50972 | G173: 64 | H173: 3333944 | I173: 3569704 | J173: 3755152
A174: female | B174: 65 | C174: 37883 | D174: 45906 | E174: 48871 | G174: 65 | H174: =H173+C174 -> 3371827 | I174: =I173+D174 -> 3615610 | J174: =J173+E174 -> 3804023
A175: female | B175: 66 | C175: 36872 | D175: 48294 | E175: 48625 | G175: 66 | H175: 3408699 | I175: 3663904 | J175: 3852648
A176: female | B176: 67 | C176: 35328 | D176: 44915 | E176: 47917 | G176: 67 | H176: 3444027 | I176: 3708819 | J176: 3900565
A177: female | B177: 68 | C177: 35810 | D177: 42912 | E177: 46833 | G177: 68 | H177: 3479837 | I177: 3751731 | J177: 3947398
A178: female | B178: 69 | C178: 36326 | D178: 36848 | E178: 46787 | G178: 69 | H178: 3516163 | I178: 3788579 | J178: 3994185
A179: female | B179: 70 | C179: 36652 | D179: 35133 | E179: 46630 | G179: 70 | H179: 3552815 | I179: 3823712 | J179: 4040815
A180: female | B180: 71 | C180: 35548 | D180: 37326 | E180: 48258 | G180: 71 | H180: 3588363 | I180: 3861038 | J180: 4089073
A181: female | B181: 72 | C181: 34723 | D181: 36677 | E181: 49756 | G181: 72 | H181: 3623086 | I181: 3897715 | J181: 4138829
A182: female | B182: 73 | C182: 33118 | D182: 35594 | E182: 54410 | G182: 73 | H182: 3656204 | I182: 3933309 | J182: 4193239
A183: female | B183: 74 | C183: 33303 | D183: 34029 | E183: 55066 | G183: 74 | H183: 3689507 | I183: 3967338 | J183: 4248305
A184: female | B184: 75 | C184: 32621 | D184: 32909 | E184: 41257 | G184: 75 | H184: 3722128 | I184: 4000247 | J184: 4289562
A185: female | B185: 76 | C185: 31564 | D185: 31724 | E185: 43197 | G185: 76 | H185: 3753692 | I185: 4031971 | J185: 4332759
A186: female | B186: 77 | C186: 31505 | D186: 30030 | E186: 39731 | G186: 77 | H186: 3785197 | I186: 4062001 | J186: 4372490
A187: female | B187: 78 | C187: 31472 | D187: 29865 | E187: 36985 | G187: 78 | H187: 3816669 | I187: 4091866 | J187: 4409475
A188: female | B188: 79 | C188: 31993 | D188: 29418 | E188: 31050 | G188: 79 | H188: 3848662 | I188: 4121284 | J188: 4440525
A189: female | B189: 80 | C189: 33099 | D189: 29114 | E189: 29111 | G189: 80 | H189: 3881761 | I189: 4150398 | J189: 4469636
A190: female | B190: 81 | C190: 30554 | D190: 27238 | E190: 30267 | G190: 81 | H190: 3912315 | I190: 4177636 | J190: 4499903
A191: female | B191: 82 | C191: 20049 | D191: 25552 | E191: 28710 | G191: 82 | H191: 3932364 | I191: 4203188 | J191: 4528613
A192: female | B192: 83 | C192: 17457 | D192: 23415 | E192: 26847 | G192: 83 | H192: 3949821 | I192: 4226603 | J192: 4555460
A193: female | B193: 84 | C193: 19383 | D193: 22339 | E193: 24655 | G193: 84 | H193: 3969204 | I193: 4248942 | J193: 4580115
A194: female | B194: 85 | C194: 18741 | D194: 20806 | E194: 22575 | G194: 85 | H194: 3987945 | I194: 4269748 | J194: 4602690
A195: female | B195: 86 | C195: 18510 | D195: 18986 | E195: 20709 | G195: 86 | H195: 4006455 | I195: 4288734 | J195: 4623399
A196: female | B196: 87 | C196: 16294 | D196: 18171 | E196: 18446 | G196: 87 | H196: 4022749 | I196: 4306905 | J196: 4641845
A197: female | B197: 88 | C197: 14228 | D197: 16662 | E197: 17039 | G197: 88 | H197: 4036977 | I197: 4323567 | J197: 4658884
A198: female | B198: 89 | C198: 12193 | D198: 15315 | E198: 15201 | G198: 89 | H198: 4049170 | I198: 4338882 | J198: 4674085
A199: female | B199: 90+ | C199: 46320 | D199: 56570 | E199: 64743 | G199: 90+ | H199: 4095490 | I199: 4395452 | J199: 4738828
B200: All Females | C200: =SUM(C109:C199) -> 4095490 | D200: 4395452 | E200: =SUM(E109:E199) -> 4738828

Sheet Kent+Med (hidden)
A1: Mid Year Population Estimates | K1: Insert column here before extending the table
A2: 2001, 2011, and 2021 Census: The Office for National Statistics (ONS) | G2: Selected Ages: | O2: Start year | P2: End Year | Q2: Number change | R2: % Change
H3: =H13 -> 2001 | I3: 2011 | J3: =J13 -> 2021 | O3: =INDEX($H3:$I3,Index!$B$16) -> 2011 | P3: =INDEX($H3:$J3,Index!$B$19) -> 2011
G4: Males | H4: =OFFSET(H16,Index!$B$7-1,0)-IF(Index!$B$4-2=1,0,OFFSET(H16,Index!$B$4-2,0)) -> 766786 | I4: =OFFSET(I16,Index!$B$7-1,0)-IF(Index!$B$4-2=1,0,OFFSET(I16,Index!$B$4-2,0)) -> 846438 | J4: =OFFSET(J16,Index!$B$7-1,0)-IF(Index!$B$4-2=1,0,OFFSET(J16,Index!$B$4-2,0)) -> 905516 | O4: =INDEX($H4:$I4,Index!$B$16) -> 846438 | P4: =INDEX($H4:$J4,Index!$B$19) -> 846438 | Q4: =P4-O4 -> 0 | R4: =Q4/O4 -> 0
G5: Females | H5: =OFFSET(H109,Index!$B$7-1,0)-IF(Index!$B$4-2=1,0,OFFSET(H109,Index!$B$4-2,0)) -> 812421 | I5: =OFFSET(I109,Index!$B$7-1,0)-IF(Index!$B$4-2=1,0,OFFSET(I109,Index!$B$4-2,0)) -> 881227 | J5: =OFFSET(J109,Index!$B$7-1,0)-IF(Index!$B$4-2=1,0,OFFSET(J109,Index!$B$4-2,0)) -> 950333 | O5: =INDEX($H5:$I5,Index!$B$16) -> 881227 | P5: =INDEX($H5:$J5,Index!$B$19) -> 881227 | Q5: =P5-O5 -> 0 | R5: =Q5/O5 -> 0
G6: Total | H6: =SUM(H4:H5) -> 1579207 | I6: 1727665 | J6: =SUM(J4:J5) -> 1855849 | O6: =INDEX($H6:$I6,Index!$B$16) -> 1727665 | P6: =INDEX($H6:$J6,Index!$B$19) -> 1727665 | Q6: =P6-O6 -> 0 | R6: =Q6/O6 -> 0
G8: Males | H8: =IF(H4<0,"0",H4) -> 766786 | I8: 846438 | J8: =IF(J4<0,"0",J4) -> 905516
G9: Females | H9: 812421 | I9: 881227 | J9: 950333
G10: Total | H10: =SUM(H8:H9) -> 1579207 | I10: 1727665 | J10: =SUM(J8:J9) -> 1855849
A12: Kent + Medway | L12: Population Pyramid Data
H13: =C14 -> 2001 | I13: =D14 -> 2011 | J13: =E14 -> 2021
A14: Sex | B14: Age | C14: 2001 | D14: 2011 | E14: 2021 | O14: 2001 | P14: 2011 | Q14: 2021 | S14: =INDEX(O14:Q14,Index!$B$23) -> 2021
B15: All persons | C15: =SUM(C107,C200) -> 1579207 | D15: 1727665 | E15: =SUM(E107,E200) -> 1855849 | G15: Males | L15: Males | M15: All Ages | O15: =C107 -> 766786 | P15: =D107 -> 846438 | Q15: =E107 -> 905516 | S15: =INDEX(O15:Q15,Index!$B$23) -> 905516
A16: male | B16: 0 | C16: =MED!C16+Kent!C16 -> 8680 | D16: =MED!D16+Kent!D16 -> 10935 | E16: =MED!E16+Kent!E16 -> 10009 | G16: 0 | H16: =C16 -> 8680 | I16: =D16 -> 10935 | J16: =E16 -> 10009 | L16: Males | M16: 0-4 | O16: =SUM(C16:C20) -> 48532 | P16: =SUM(D16:D20) -> 54490 | Q16: =SUM(E16:E20) -> 53798 | S16: =INDEX(O16:Q16,Index!$B$23) -> 53798
A17: male | B17: 1 | C17: =MED!C17+Kent!C17 -> 9603 | D17: =MED!D17+Kent!D17 -> 10816 | E17: =MED!E17+Kent!E17 -> 10439 | G17: 1 | H17: =H16+C17 -> 18283 | I17: 21751 | J17: 20448 | L17: Males | M17: 5-9 | O17: =SUM(C21:C25) -> 53722 | P17: =SUM(D21:D25) -> 51373 | Q17: =SUM(E21:E25) -> 58374 | S17: =INDEX(O17:Q17,Index!$B$23) -> 58374
A18: male | B18: 2 | C18: =MED!C18+Kent!C18 -> 10004 | D18: =MED!D18+Kent!D18 -> 10902 | E18: =MED!E18+Kent!E18 -> 10942 | G18: 2 | H18: 28287 | I18: 32653 | J18: 31390 | L18: Males | M18: 10-14 | O18: =SUM(C26:C30) -> 55073 | P18: =SUM(D26:D30) -> 55156 | Q18: =SUM(E26:E30) -> 59519 | S18: =INDEX(O18:Q18,Index!$B$23) -> 59519
A19: male | B19: 3 | C19: =MED!C19+Kent!C19 -> 9904 | D19: =MED!D19+Kent!D19 -> 10808 | E19: =MED!E19+Kent!E19 -> 11228 | G19: 3 | H19: 38191 | I19: 43461 | J19: 42618 | L19: Males | M19: 15-19 | O19: =SUM(C31:C35) -> 49936 | P19: =SUM(D31:D35) -> 58997 | Q19: =SUM(E31:E35) -> 53963 | S19: =INDEX(O19:Q19,Index!$B$23) -> 53963
A20: male | B20: 4 | C20: =MED!C20+Kent!C20 -> 10341 | D20: =MED!D20+Kent!D20 -> 11029 | E20: =MED!E20+Kent!E20 -> 11180 | G20: 4 | H20: 48532 | I20: 54490 | J20: 53798 | L20: Males | M20: 20-24 | O20: =SUM(C36:C40) -> 42441 | P20: =SUM(D36:D40) -> 53821 | Q20: =SUM(E32:E36) -> 51915 | S20: =INDEX(O20:Q20,Index!$B$23) -> 51915
A21: male | B21: 5 | C21: =MED!C21+Kent!C21 -> 10287 | D21: =MED!D21+Kent!D21 -> 10771 | E21: =MED!E21+Kent!E21 -> 11470 | G21: 5 | H21: 58819 | I21: 65261 | J21: 65268 | L21: Males | M21: 25-29 | O21: =SUM(C41:C45) -> 45049 | P21: =SUM(D41:D45) -> 49733 | Q21: 50601 | S21: =INDEX(O21:Q21,Index!$B$23) -> 50601
A22: male | B22: 6 | C22: =MED!C22+Kent!C22 -> 10257 | D22: =MED!D22+Kent!D22 -> 10192 | E22: =MED!E22+Kent!E22 -> 11179 | G22: 6 | H22: 69076 | I22: 75453 | J22: 76447 | L22: Males | M22: 30-34 | O22: =SUM(C46:C50) -> 55301 | P22: =SUM(D46:D50) -> 48966 | Q22: =SUM(E46:E50) -> 57631 | S22: =INDEX(O22:Q22,Index!$B$23) -> 57631
A23: male | B23: 7 | C23: =MED!C23+Kent!C23 -> 10943 | D23: =MED!D23+Kent!D23 -> 10285 | E23: =MED!E23+Kent!E23 -> 11417 | G23: 7 | H23: 80019 | I23: 85738 | J23: 87864 | L23: Males | M23: 35-39 | O23: =SUM(C51:C55) -> 60565 | P23: =SUM(D51:D55) -> 53332 | Q23: =SUM(E51:E55) -> 57029 | S23: =INDEX(O23:Q23,Index!$B$23) -> 57029
A24: male | B24: 8 | C24: =MED!C24+Kent!C24 -> 10937 | D24: =MED!D24+Kent!D24 -> 9982 | E24: =MED!E24+Kent!E24 -> 12059 | G24: 8 | H24: 90956 | I24: 95720 | J24: 99923 | L24: Males | M24: 40-44 | O24: =SUM(C56:C60) -> 54834 | P24: =SUM(D56:D60) -> 63333 | Q24: =SUM(E56:E60) -> 56460 | S24: =INDEX(O24:Q24,Index!$B$23) -> 56460
A25: male | B25: 9 | C25: =MED!C25+Kent!C25 -> 11298 | D25: =MED!D25+Kent!D25 -> 10143 | E25: =MED!E25+Kent!E25 -> 12249 | G25: 9 | H25: 102254 | I25: 105863 | J25: 112172 | L25: Males | M25: 45-49 | O25: =SUM(C61:C65) -> 49533 | P25: =SUM(D61:D65) -> 64212 | Q25: =SUM(E61:E65) -> 58052 | S25: =INDEX(O25:Q25,Index!$B$23) -> 58052
A26: male | B26: 10 | C26: =MED!C26+Kent!C26 -> 11171 | D26: =MED!D26+Kent!D26 -> 10307 | E26: =MED!E26+Kent!E26 -> 12094 | G26: 10 | H26: 113425 | I26: 116170 | J26: 124266 | L26: Males | M26: 50-54 | O26: =SUM(C66:C70) -> 56876 | P26: =SUM(D66:D70) -> 55916 | Q26: =SUM(E66:E70) -> 64192 | S26: =INDEX(O26:Q26,Index!$B$23) -> 64192
A27: male | B27: 11 | C27: =MED!C27+Kent!C27 -> 10964 | D27: =MED!D27+Kent!D27 -> 10786 | E27: =MED!E27+Kent!E27 -> 12007 | G27: 11 | H27: 124389 | I27: 126956 | J27: 136273 | L27: Males | M27: 55-59 | O27: =SUM(C71:C75) -> 47163 | P27: =SUM(D71:D75) -> 49425 | Q27: =SUM(E71:E75) -> 63348 | S27: =INDEX(O27:Q27,Index!$B$23) -> 63348
A28: male | B28: 12 | C28: =MED!C28+Kent!C28 -> 11012 | D28: =MED!D28+Kent!D28 -> 11279 | E28: =MED!E28+Kent!E28 -> 12023 | G28: 12 | H28: 135401 | I28: 138235 | J28: 148296 | L28: Males | M28: 60-64 | O28: =SUM(C76:C80) -> 39250 | P28: =SUM(D76:D80) -> 54735 | Q28: =SUM(E76:E80) -> 53433 | S28: =INDEX(O28:Q28,Index!$B$23) -> 53433
A29: male | B29: 13 | C29: =MED!C29+Kent!C29 -> 11139 | D29: =MED!D29+Kent!D29 -> 11421 | E29: =MED!E29+Kent!E29 -> 11731 | G29: 13 | H29: 146540 | I29: 149656 | J29: 160027 | L29: Males | M29: 65-69 | O29: =SUM(C81:C85) -> 34306 | P29: =SUM(D81:D85) -> 42983 | Q29: =SUM(E81:E85) -> 45472 | S29: =INDEX(O29:Q29,Index!$B$23) -> 45472
A30: male | B30: 14 | C30: =MED!C30+Kent!C30 -> 10787 | D30: =MED!D30+Kent!D30 -> 11363 | E30: =MED!E30+Kent!E30 -> 11664 | G30: 14 | H30: 157327 | I30: 161019 | J30: 171691 | L30: Males | M30: 70-74 | O30: =SUM(C86:C90) -> 29017 | P30: =SUM(D86:D90) -> 33257 | Q30: =SUM(E86:E90) -> 47733 | S30: =INDEX(O30:Q30,Index!$B$23) -> 47733
A31: male | B31: 15 | C31: =MED!C31+Kent!C31 -> 10726 | D31: =MED!D31+Kent!D31 -> 11658 | E31: =MED!E31+Kent!E31 -> 11388 | G31: 15 | H31: 168053 | I31: 172677 | J31: 183079 | L31: Males | M31: 75-79 | O31: =SUM(C91:C95) -> 22096 | P31: =SUM(D91:D95) -> 25710 | Q31: =SUM(E91:E95) -> 33937 | S31: =INDEX(O31:Q31,Index!$B$23) -> 33937
A32: male | B32: 16 | C32: =MED!C32+Kent!C32 -> 10996 | D32: =MED!D32+Kent!D32 -> 11829 | E32: =MED!E32+Kent!E32 -> 11281 | G32: 16 | H32: 179049 | I32: 184506 | J32: 194360 | L32: Males | M32: 80-84 | O32: =SUM(C96:C100) -> 14242 | P32: =SUM(D96:D100) -> 17834 | Q32: =SUM(E96:E100) -> 22091 | S32: =INDEX(O32:Q32,Index!$B$23) -> 22091
A33: male | B33: 17 | C33: =MED!C33+Kent!C33 -> 10153 | D33: =MED!D33+Kent!D33 -> 12099 | E33: =MED!E33+Kent!E33 -> 11339 | G33: 17 | H33: 189202 | I33: 196605 | J33: 205699 | L33: Males | M33: 85-89 | O33: =SUM(C101:C105) -> 6488 | P33: =SUM(D101:D105) -> 9206 | Q33: 12097 | S33: =INDEX(O33:Q33,Index!$B$23) -> 12097
A34: male | B34: 18 | C34: =MED!C34+Kent!C34 -> 9456 | D34: =MED!D34+Kent!D34 -> 11874 | E34: =MED!E34+Kent!E34 -> 10387 | G34: 18 | H34: 198658 | I34: 208479 | J34: 216086 | L34: Males | M34: 90+ | O34: =C106 -> 2362 | P34: =D106 -> 3959 | Q34: 5370 | S34: =INDEX(O34:Q34,Index!$B$23) -> 5370
A35: male | B35: 19 | C35: =MED!C35+Kent!C35 -> 8605 | D35: =MED!D35+Kent!D35 -> 11537 | E35: =MED!E35+Kent!E35 -> 9568 | G35: 19 | H35: 207263 | I35: 220016 | J35: 225654
A36: male | B36: 20 | C36: =MED!C36+Kent!C36 -> 9022 | D36: =MED!D36+Kent!D36 -> 11219 | E36: =MED!E36+Kent!E36 -> 9340 | G36: 20 | H36: 216285 | I36: 231235 | J36: 234994 | L36: Females | M36: All Ages | O36: =C200 -> 812421 | P36: =D200 -> 881227 | Q36: =E200 -> 950333 | S36: =INDEX(O36:Q36,Index!$B$23) -> 950333
A37: male | B37: 21 | C37: =MED!C37+Kent!C37 -> 8688 | D37: =MED!D37+Kent!D37 -> 10840 | E37: =MED!E37+Kent!E37 -> 9967 | G37: 21 | H37: 224973 | I37: 242075 | J37: 244961 | L37: Females | M37: 0-4 | O37: =SUM(C109:C113) -> 45905 | P37: =SUM(D109:D113) -> 51810 | Q37: =SUM(E109:E113) -> 50797 | S37: =INDEX(O37:Q37,Index!$B$23) -> 50797
A38: male | B38: 22 | C38: =MED!C38+Kent!C38 -> 8613 | D38: =MED!D38+Kent!D38 -> 10704 | E38: =MED!E38+Kent!E38 -> 10364 | G38: 22 | H38: 233586 | I38: 252779 | J38: 255325 | L38: Females | M38: 5-9 | O38: =SUM(C114:C118) -> 51252 | P38: =SUM(D114:D118) -> 48741 | Q38: =SUM(E114:E118) -> 55222 | S38: =INDEX(O38:Q38,Index!$B$23) -> 55222
A39: male | B39: 23 | C39: =MED!C39+Kent!C39 -> 8011 | D39: =MED!D39+Kent!D39 -> 10655 | E39: =MED!E39+Kent!E39 -> 10311 | G39: 23 | H39: 241597 | I39: 263434 | J39: 265636 | L39: Females | M39: 10-14 | O39: =SUM(C119:C123) -> 52474 | P39: =SUM(D119:D123) -> 53005 | Q39: =SUM(E119:E123) -> 56699 | S39: =INDEX(O39:Q39,Index!$B$23) -> 56699
A40: male | B40: 24 | C40: =MED!C40+Kent!C40 -> 8107 | D40: =MED!D40+Kent!D40 -> 10403 | E40: =MED!E40+Kent!E40 -> 10145 | G40: 24 | H40: 249704 | I40: 273837 | J40: 275781 | L40: Females | M40: 15-19 | O40: =SUM(C124:C128) -> 48117 | P40: =SUM(D124:D128) -> 56020 | Q40: =SUM(E124:E128) -> 50586 | S40: =INDEX(O40:Q40,Index!$B$23) -> 50586
A41: male | B41: 25 | C41: =MED!C41+Kent!C41 -> 8180 | D41: =MED!D41+Kent!D41 -> 10476 | E41: =MED!E41+Kent!E41 -> 10039 | G41: 25 | H41: 257884 | I41: 284313 | J41: 285820 | L41: Females | M41: 20-24 | O41: =SUM(C129:C133) -> 42205 | P41: =SUM(D129:D133) -> 52899 | Q41: =SUM(E129:E133) -> 49216 | S41: =INDEX(O41:Q41,Index!$B$23) -> 49216
A42: male | B42: 26 | C42: =MED!C42+Kent!C42 -> 8449 | D42: =MED!D42+Kent!D42 -> 10159 | E42: =MED!E42+Kent!E42 -> 10319 | G42: 26 | H42: 266333 | I42: 294472 | J42: 296139 | L42: Females | M42: 25-29 | O42: =SUM(C134:C138) -> 47450 | P42: =SUM(D134:D138) -> 51145 | Q42: =SUM(E134:E138) -> 56115 | S42: =INDEX(O42:Q42,Index!$B$23) -> 56115
A43: male | B43: 27 | C43: =MED!C43+Kent!C43 -> 8740 | D43: =MED!D43+Kent!D43 -> 9803 | E43: =MED!E43+Kent!E43 -> 10560 | G43: 27 | H43: 275073 | I43: 304275 | J43: 306699 | L43: Females | M43: 30-34 | O43: =SUM(C139:C143) -> 58098 | P43: =SUM(D139:D143) -> 50914 | Q43: =SUM(E139:E143) -> 63367 | S43: =INDEX(O43:Q43,Index!$B$23) -> 63367
A44: male | B44: 28 | C44: =MED!C44+Kent!C44 -> 9487 | D44: =MED!D44+Kent!D44 -> 9459 | E44: =MED!E44+Kent!E44 -> 10874 | G44: 28 | H44: 284560 | I44: 313734 | J44: 317573 | L44: Females | M44: 35-39 | O44: =SUM(C144:C148) -> 62274 | P44: =SUM(D144:D148) -> 55676 | Q44: =SUM(E144:E148) -> 61976 | S44: =INDEX(O44:Q44,Index!$B$23) -> 61976
A45: male | B45: 29 | C45: =MED!C45+Kent!C45 -> 10193 | D45: =MED!D45+Kent!D45 -> 9836 | E45: =MED!E45+Kent!E45 -> 11098 | G45: 29 | H45: 294753 | I45: 323570 | J45: 328671 | L45: Females | M45: 40-44 | O45: =SUM(C149:C153) -> 55200 | P45: =SUM(D149:D153) -> 64986 | Q45: =SUM(E149:E153) -> 59585 | S45: =INDEX(O45:Q45,Index!$B$23) -> 59585
A46: male | B46: 30 | C46: =MED!C46+Kent!C46 -> 10467 | D46: =MED!D46+Kent!D46 -> 10344 | E46: =MED!E46+Kent!E46 -> 11358 | G46: 30 | H46: 305220 | I46: 333914 | J46: 340029 | L46: Females | M46: 45-49 | O46: =SUM(C154:C158) -> 51238 | P46: =SUM(D154:D158) -> 65045 | Q46: =SUM(E154:E158) -> 60858 | S46: =INDEX(O46:Q46,Index!$B$23) -> 60858
A47: male | B47: 31 | C47: =MED!C47+Kent!C47 -> 10494 | D47: =MED!D47+Kent!D47 -> 10233 | E47: =MED!E47+Kent!E47 -> 11341 | G47: 31 | H47: 315714 | I47: 344147 | J47: 351370 | L47: Females | M47: 50-54 | O47: =SUM(C159:C163) -> 58594 | P47: =SUM(D159:D163) -> 56725 | Q47: =SUM(E159:E163) -> 66657 | S47: =INDEX(O47:Q47,Index!$B$23) -> 66657
A48: male | B48: 32 | C48: =MED!C48+Kent!C48 -> 10960 | D48: =MED!D48+Kent!D48 -> 9797 | E48: =MED!E48+Kent!E48 -> 11574 | G48: 32 | H48: 326674 | I48: 353944 | J48: 362944 | L48: Females | M48: 55-59 | O48: =SUM(C164:C168) -> 47947 | P48: =SUM(D164:D168) -> 50696 | Q48: =SUM(E164:E168) -> 65146 | S48: =INDEX(O48:Q48,Index!$B$23) -> 65146
A49: male | B49: 33 | C49: =MED!C49+Kent!C49 -> 11460 | D49: =MED!D49+Kent!D49 -> 9188 | E49: =MED!E49+Kent!E49 -> 11835 | G49: 33 | H49: =H48+C49 -> 338134 | I49: 363132 | J49: 374779 | L49: Females | M49: 60-64 | O49: =SUM(C169:C173) -> 40584 | P49: =SUM(D169:D173) -> 57203 | Q49: =SUM(E169:E173) -> 55426 | S49: =INDEX(O49:Q49,Index!$B$23) -> 55426
A50: male | B50: 34 | C50: =MED!C50+Kent!C50 -> 11920 | D50: =MED!D50+Kent!D50 -> 9404 | E50: =MED!E50+Kent!E50 -> 11523 | G50: 34 | H50: 350054 | I50: 372536 | J50: 386302 | L50: Females | M50: 65-69 | O50: =SUM(C174:C178) -> 36868 | P50: =SUM(D174:D178) -> 45401 | Q50: =SUM(E174:E178) -> 48984 | S50: =INDEX(O50:Q50,Index!$B$23) -> 48984
A51: male | B51: 35 | C51: =MED!C51+Kent!C51 -> 12194 | D51: =MED!D51+Kent!D51 -> 9650 | E51: =MED!E51+Kent!E51 -> 11672 | G51: 35 | H51: 362248 | I51: 382186 | J51: 397974 | L51: Females | M51: 70-74 | O51: =SUM(C179:C183) -> 35010 | P51: =SUM(D179:D183) -> 36528 | Q51: =SUM(E179:E183) -> 53021 | S51: =INDEX(O51:Q51,Index!$B$23) -> 53021
A52: male | B52: 36 | C52: =MED!C52+Kent!C52 -> 12329 | D52: =MED!D52+Kent!D52 -> 10170 | E52: =MED!E52+Kent!E52 -> 11480 | G52: 36 | H52: 374577 | I52: 392356 | J52: 409454 | L52: Females | M52: 75-79 | O52: =SUM(C184:C188) -> 31981 | P52: =SUM(D184:D188) -> 30819 | Q52: =SUM(E184:E188) -> 39130 | S52: =INDEX(O52:Q52,Index!$B$23) -> 39130
A53: male | B53: 37 | C53: =MED!C53+Kent!C53 -> 12385 | D53: =MED!D53+Kent!D53 -> 10513 | E53: =MED!E53+Kent!E53 -> 11301 | G53: 37 | H53: 386962 | I53: 402869 | J53: 420755 | L53: Females | M53: 80-84 | O53: =SUM(C189:C193) -> 23584 | P53: =SUM(D189:D193) -> 25531 | Q53: =SUM(E189:E193) -> 27826 | S53: =INDEX(O53:Q53,Index!$B$23) -> 27826
A54: male | B54: 38 | C54: =MED!C54+Kent!C54 -> 11989 | D54: =MED!D54+Kent!D54 -> 11136 | E54: =MED!E54+Kent!E54 -> 11135 | G54: 38 | H54: 398951 | I54: 414005 | J54: 431890 | L54: Females | M54: 85-89 | O54: =SUM(C194:C198) -> 15052 | P54: =SUM(D194:D198) -> 17392 | Q54: 17852 | S54: =INDEX(O54:Q54,Index!$B$23) -> 17852
A55: male | B55: 39 | C55: =MED!C55+Kent!C55 -> 11668 | D55: =MED!D55+Kent!D55 -> 11863 | E55: =MED!E55+Kent!E55 -> 11441 | G55: 39 | H55: 410619 | I55: 425868 | J55: 443331 | L55: Females | M55: 90+ | O55: =C199 -> 8588 | P55: =D199 -> 10691 | Q55: 11870 | S55: =INDEX(O55:Q55,Index!$B$23) -> 11870
A56: male | B56: 40 | C56: =MED!C56+Kent!C56 -> 11303 | D56: =MED!D56+Kent!D56 -> 12356 | E56: =MED!E56+Kent!E56 -> 11933 | G56: 40 | H56: 421922 | I56: 438224 | J56: 455264
A57: male | B57: 41 | C57: =MED!C57+Kent!C57 -> 11059 | D57: =MED!D57+Kent!D57 -> 12295 | E57: =MED!E57+Kent!E57 -> 11842 | G57: 41 | H57: 432981 | I57: 450519 | J57: 467106
A58: male | B58: 42 | C58: =MED!C58+Kent!C58 -> 11020 | D58: =MED!D58+Kent!D58 -> 12619 | E58: =MED!E58+Kent!E58 -> 11281 | G58: 42 | H58: 444001 | I58: 463138 | J58: 478387
A59: male | B59: 43 | C59: =MED!C59+Kent!C59 -> 10901 | D59: =MED!D59+Kent!D59 -> 12780 | E59: =MED!E59+Kent!E59 -> 10734 | G59: 43 | H59: 454902 | I59: 475918 | J59: 489121
A60: male | B60: 44 | C60: =MED!C60+Kent!C60 -> 10551 | D60: =MED!D60+Kent!D60 -> 13283 | E60: =MED!E60+Kent!E60 -> 10670 | G60: 44 | H60: 465453 | I60: 489201 | J60: 499791
A61: male | B61: 45 | C61: =MED!C61+Kent!C61 -> 9831 | D61: =MED!D61+Kent!D61 -> 13206 | E61: =MED!E61+Kent!E61 -> 10891 | G61: 45 | H61: 475284 | I61: 502407 | J61: 510682
A62: male | B62: 46 | C62: =MED!C62+Kent!C62 -> 9988 | D62: =MED!D62+Kent!D62 -> 13139 | E62: =MED!E62+Kent!E62 -> 11457 | G62: 46 | H62: 485272 | I62: 515546 | J62: 522139
A63: male | B63: 47 | C63: =MED!C63+Kent!C63 -> 10134 | D63: =MED!D63+Kent!D63 -> 12943 | E63: =MED!E63+Kent!E63 -> 11329 | G63: 47 | H63: 495406 | I63: 528489 | J63: 533468
A64: male | B64: 48 | C64: =MED!C64+Kent!C64 -> 9853 | D64: =MED!D64+Kent!D64 -> 12647 | E64: =MED!E64+Kent!E64 -> 11996 | G64: 48 | H64: 505259 | I64: 541136 | J64: 545464
A65: male | B65: 49 | C65: =MED!C65+Kent!C65 -> 9727 | D65: =MED!D65+Kent!D65 -> 12277 | E65: =MED!E65+Kent!E65 -> 12379 | G65: 49 | H65: 514986 | I65: 553413 | J65: 557843
A66: male | B66: 50 | C66: =MED!C66+Kent!C66 -> 10008 | D66: =MED!D66+Kent!D66 -> 11828 | E66: =MED!E66+Kent!E66 -> 12740 | G66: 50 | H66: 524994 | I66: 565241 | J66: 570583
A67: male | B67: 51 | C67: =MED!C67+Kent!C67 -> 10406 | D67: =MED!D67+Kent!D67 -> 11266 | E67: =MED!E67+Kent!E67 -> 12613 | G67: 51 | H67: 535400 | I67: 576507 | J67: 583196
A68: male | B68: 52 | C68: =MED!C68+Kent!C68 -> 10969 | D68: =MED!D68+Kent!D68 -> 11280 | E68: =MED!E68+Kent!E68 -> 12833 | G68: 52 | H68: 546369 | I68: 587787 | J68: 596029
A69: male | B69: 53 | C69: =MED!C69+Kent!C69 -> 12321 | D69: =MED!D69+Kent!D69 -> 10981 | E69: =MED!E69+Kent!E69 -> 12870 | G69: 53 | H69: 558690 | I69: 598768 | J69: 608899
A70: male | B70: 54 | C70: =MED!C70+Kent!C70 -> 13172 | D70: =MED!D70+Kent!D70 -> 10561 | E70: =MED!E70+Kent!E70 -> 13136 | G70: 54 | H70: 571862 | I70: 609329 | J70: 622035
A71: male | B71: 55 | C71: =MED!C71+Kent!C71 -> 9996 | D71: =MED!D71+Kent!D71 -> 9990 | E71: =MED!E71+Kent!E71 -> 13257 | G71: 55 | H71: 581858 | I71: 619319 | J71: 635292
A72: male | B72: 56 | C72: =MED!C72+Kent!C72 -> 10128 | D72: =MED!D72+Kent!D72 -> 9992 | E72: =MED!E72+Kent!E72 -> 13050 | G72: 56 | H72: 591986 | I72: 629311 | J72: 648342
A73: male | B73: 57 | C73: =MED!C73+Kent!C73 -> 9727 | D73: =MED!D73+Kent!D73 -> 10101 | E73: =MED!E73+Kent!E73 -> 12715 | G73: 57 | H73: 601713 | I73: 639412 | J73: 661057
A74: male | B74: 58 | C74: =MED!C74+Kent!C74 -> 9131 | D74: =MED!D74+Kent!D74 -> 9835 | E74: =MED!E74+Kent!E74 -> 12448 | G74: 58 | H74: 610844 | I74: 649247 | J74: 673505
A75: male | B75: 59 | C75: =MED!C75+Kent!C75 -> 8181 | D75: =MED!D75+Kent!D75 -> 9507 | E75: =MED!E75+Kent!E75 -> 11878 | G75: 59 | H75: 619025 | I75: 658754 | J75: 685383
A76: male | B76: 60 | C76: =MED!C76+Kent!C76 -> 7497 | D76: =MED!D76+Kent!D76 -> 9803 | E76: =MED!E76+Kent!E76 -> 11491 | G76: 60 | H76: 626522 | I76: 668557 | J76: 696874
A77: male | B77: 61 | C77: =MED!C77+Kent!C77 -> 8171 | D77: =MED!D77+Kent!D77 -> 10064 | E77: =MED!E77+Kent!E77 -> 10909 | G77: 61 | H77: 634693 | I77: 678621 | J77: 707783
A78: male | B78: 62 | C78: =MED!C78+Kent!C78 -> 8134 | D78: =MED!D78+Kent!D78 -> 10675 | E78: =MED!E78+Kent!E78 -> 10774 | G78: 62 | H78: 642827 | I78: 689296 | J78: 718557
A79: male | B79: 63 | C79: =MED!C79+Kent!C79 -> 7859 | D79: =MED!D79+Kent!D79 -> 11999 | E79: =MED!E79+Kent!E79 -> 10378 | G79: 63 | H79: 650686 | I79: 701295 | J79: 728935
A80: male | B80: 64 | C80: =MED!C80+Kent!C80 -> 7589 | D80: =MED!D80+Kent!D80 -> 12194 | E80: =MED!E80+Kent!E80 -> 9881 | G80: 64 | H80: 658275 | I80: 713489 | J80: 738816
A81: male | B81: 65 | C81: =MED!C81+Kent!C81 -> 7313 | D81: =MED!D81+Kent!D81 -> 9102 | E81: =MED!E81+Kent!E81 -> 9396 | G81: 65 | H81: =H80+C81 -> 665588 | I81: 722591 | J81: 748212
A82: male | B82: 66 | C82: =MED!C82+Kent!C82 -> 7129 | D82: =MED!D82+Kent!D82 -> 9683 | E82: =MED!E82+Kent!E82 -> 9328 | G82: 66 | H82: 672717 | I82: 732274 | J82: 757540
A83: male | B83: 67 | C83: =MED!C83+Kent!C83 -> 6596 | D83: =MED!D83+Kent!D83 -> 8817 | E83: =MED!E83+Kent!E83 -> 9198 | G83: 67 | H83: 679313 | I83: 741091 | J83: 766738
A84: male | B84: 68 | C84: =MED!C84+Kent!C84 -> 6582 | D84: =MED!D84+Kent!D84 -> 8178 | E84: =MED!E84+Kent!E84 -> 8928 | G84: 68 | H84: 685895 | I84: 749269 | J84: 775666
A85: male | B85: 69 | C85: =MED!C85+Kent!C85 -> 6686 | D85: =MED!D85+Kent!D85 -> 7203 | E85: =MED!E85+Kent!E85 -> 8622 | G85: 69 | H85: 692581 | I85: 756472 | J85: 784288
A86: male | B86: 70 | C86: =MED!C86+Kent!C86 -> 6435 | D86: =MED!D86+Kent!D86 -> 6716 | E86: =MED!E86+Kent!E86 -> 8780 | G86: 70 | H86: 699016 | I86: 763188 | J86: 793068
A87: male | B87: 71 | C87: =MED!C87+Kent!C87 -> 6139 | D87: =MED!D87+Kent!D87 -> 7027 | E87: =MED!E87+Kent!E87 -> 8986 | G87: 71 | H87: 705155 | I87: 770215 | J87: 802054
A88: male | B88: 72 | C88: =MED!C88+Kent!C88 -> 5732 | D88: =MED!D88+Kent!D88 -> 6809 | E88: =MED!E88+Kent!E88 -> 9232 | G88: 72 | H88: 710887 | I88: 777024 | J88: 811286
A89: male | B89: 73 | C89: =MED!C89+Kent!C89 -> 5412 | D89: =MED!D89+Kent!D89 -> 6496 | E89: =MED!E89+Kent!E89 -> 10483 | G89: 73 | H89: 716299 | I89: 783520 | J89: 821769
A90: male | B90: 74 | C90: =MED!C90+Kent!C90 -> 5299 | D90: =MED!D90+Kent!D90 -> 6209 | E90: =MED!E90+Kent!E90 -> 10252 | G90: 74 | H90: 721598 | I90: 789729 | J90: 832021
A91: male | B91: 75 | C91: =MED!C91+Kent!C91 -> 4891 | D91: =MED!D91+Kent!D91 -> 5778 | E91: =MED!E91+Kent!E91 -> 7514 | G91: 75 | H91: 726489 | I91: 795507 | J91: 839535
A92: male | B92: 76 | C92: =MED!C92+Kent!C92 -> 4624 | D92: =MED!D92+Kent!D92 -> 5458 | E92: =MED!E92+Kent!E92 -> 7898 | G92: 76 | H92: 731113 | I92: 800965 | J92: 847433
A93: male | B93: 77 | C93: =MED!C93+Kent!C93 -> 4272 | D93: =MED!D93+Kent!D93 -> 4988 | E93: =MED!E93+Kent!E93 -> 6917 | G93: 77 | H93: 735385 | I93: 805953 | J93: 854350
A94: male | B94: 78 | C94: =MED!C94+Kent!C94 -> 4151 | D94: =MED!D94+Kent!D94 -> 4801 | E94: =MED!E94+Kent!E94 -> 6306 | G94: 78 | H94: 739536 | I94: 810754 | J94: 860656
A95: male | B95: 79 | C95: =MED!C95+Kent!C95 -> 4158 | D95: =MED!D95+Kent!D95 -> 4685 | E95: =MED!E95+Kent!E95 -> 5302 | G95: 79 | H95: 743694 | I95: 815439 | J95: 865958
A96: male | B96: 80 | C96: =MED!C96+Kent!C96 -> 4095 | D96: =MED!D96+Kent!D96 -> 4347 | E96: =MED!E96+Kent!E96 -> 5006 | G96: 80 | H96: 747789 | I96: 819786 | J96: 870964
A97: male | B97: 81 | C97: =MED!C97+Kent!C97 -> 3861 | D97: =MED!D97+Kent!D97 -> 3980 | E97: =MED!E97+Kent!E97 -> 4864 | G97: 81 | H97: 751650 | I97: 823766 | J97: 875828
A98: male | B98: 82 | C98: =MED!C98+Kent!C98 -> 2332 | D98: =MED!D98+Kent!D98 -> 3499 | E98: =MED!E98+Kent!E98 -> 4491 | G98: 82 | H98: 753982 | I98: 827265 | J98: 880319
A99: male | B99: 83 | C99: =MED!C99+Kent!C99 -> 1896 | D99: =MED!D99+Kent!D99 -> 3144 | E99: =MED!E99+Kent!E99 -> 4071 | G99: 83 | H99: 755878 | I99: 830409 | J99: 884390
A100: male | B100: 84 | C100: =MED!C100+Kent!C100 -> 2058 | D100: =MED!D100+Kent!D100 -> 2864 | E100: =MED!E100+Kent!E100 -> 3659 | G100: 84 | H100: 757936 | I100: 833273 | J100: 888049
A101: male | B101: 85 | C101: =MED!C101+Kent!C101 -> 1722 | D101: =MED!D101+Kent!D101 -> 2389 | E101: =MED!E101+Kent!E101 -> 3225 | G101: 85 | H101: 759658 | I101: 835662 | J101: 891274
A102: male | B102: 86 | C102: =MED!C102+Kent!C102 -> 1492 | D102: =MED!D102+Kent!D102 -> 2170 | E102: =MED!E102+Kent!E102 -> 2796 | G102: 86 | H102: 761150 | I102: 837832 | J102: 894070
A103: male | B103: 87 | C103: =MED!C103+Kent!C103 -> 1321 | D103: =MED!D103+Kent!D103 -> 1741 | E103: =MED!E103+Kent!E103 -> 2328 | G103: 87 | H103: 762471 | I103: 839573 | J103: 896398
A104: male | B104: 88 | C104: =MED!C104+Kent!C104 -> 1088 | D104: =MED!D104+Kent!D104 -> 1538 | E104: =MED!E104+Kent!E104 -> 1993 | G104: 88 | H104: 763559 | I104: 841111 | J104: 898391
A105: male | B105: 89 | C105: =MED!C105+Kent!C105 -> 865 | D105: =MED!D105+Kent!D105 -> 1368 | E105: =MED!E105+Kent!E105 -> 1755 | G105: 89 | H105: 764424 | I105: 842479 | J105: 900146
A106: male | B106: 90+ | C106: =MED!C106+Kent!C106 -> 2362 | D106: =MED!D106+Kent!D106 -> 3959 | E106: =MED!E106+Kent!E106 -> 5370 | G106: 90+ | H106: 766786 | I106: 846438 | J106: 905516
B107: All Males | C107: =SUM(C16:C106) -> 766786 | D107: =SUM(D16:D106) -> 846438 | E107: 905516 | G107: Females
A108: Sex | B108: Age
A109: female | B109: 0 | C109: =MED!C109+Kent!C109 -> 8377 | D109: =MED!D109+Kent!D109 -> 10271 | E109: =MED!E109+Kent!E109 -> 9431 | G109: 0 | H109: =C109 -> 8377 | I109: =D109 -> 10271 | J109: =E109 -> 9431
A110: female | B110: 1 | C110: =MED!C110+Kent!C110 -> 8873 | D110: =MED!D110+Kent!D110 -> 10497 | E110: =MED!E110+Kent!E110 -> 9851 | G110: 1 | H110: =H109+C110 -> 17250 | I110: =I109+D110 -> 20768 | J110: =J109+E110 -> 19282
A111: female | B111: 2 | C111: =MED!C111+Kent!C111 -> 9257 | D111: =MED!D111+Kent!D111 -> 10330 | E111: =MED!E111+Kent!E111 -> 10241 | G111: 2 | H111: 26507 | I111: 31098 | J111: 29523
A112: female | B112: 3 | C112: =MED!C112+Kent!C112 -> 9658 | D112: =MED!D112+Kent!D112 -> 10442 | E112: =MED!E112+Kent!E112 -> 10579 | G112: 3 | H112: 36165 | I112: 41540 | J112: 40102
A113: female | B113: 4 | C113: =MED!C113+Kent!C113 -> 9740 | D113: =MED!D113+Kent!D113 -> 10270 | E113: =MED!E113+Kent!E113 -> 10695 | G113: 4 | H113: 45905 | I113: 51810 | J113: 50797
A114: female | B114: 5 | C114: =MED!C114+Kent!C114 -> 9831 | D114: =MED!D114+Kent!D114 -> 10273 | E114: =MED!E114+Kent!E114 -> 10992 | G114: 5 | H114: 55736 | I114: 62083 | J114: 61789
A115: female | B115: 6 | C115: =MED!C115+Kent!C115 -> 10035 | D115: =MED!D115+Kent!D115 -> 9572 | E115: =MED!E115+Kent!E115 -> 10813 | G115: 6 | H115: 65771 | I115: 71655 | J115: 72602
A116: female | B116: 7 | C116: =MED!C116+Kent!C116 -> 10344 | D116: =MED!D116+Kent!D116 -> 9867 | E116: =MED!E116+Kent!E116 -> 10727 | G116: 7 | H116: 76115 | I116: 81522 | J116: 83329
A117: female | B117: 8 | C117: =MED!C117+Kent!C117 -> 10411 | D117: =MED!D117+Kent!D117 -> 9440 | E117: =MED!E117+Kent!E117 -> 11278 | G117: 8 | H117: 86526 | I117: 90962 | J117: 94607
A118: female | B118: 9 | C118: =MED!C118+Kent!C118 -> 10631 | D118: =MED!D118+Kent!D118 -> 9589 | E118: =MED!E118+Kent!E118 -> 11412 | G118: 9 | H118: 97157 | I118: 100551 | J118: 106019
A119: female | B119: 10 | C119: =MED!C119+Kent!C119 -> 10757 | D119: =MED!D119+Kent!D119 -> 9956 | E119: =MED!E119+Kent!E119 -> 11473 | G119: 10 | H119: 107914 | I119: 110507 | J119: 117492
A120: female | B120: 11 | C120: =MED!C120+Kent!C120 -> 10605 | D120: =MED!D120+Kent!D120 -> 10197 | E120: =MED!E120+Kent!E120 -> 11461 | G120: 11 | H120: 118519 | I120: 120704 | J120: 128953
A121: female | B121: 12 | C121: =MED!C121+Kent!C121 -> 10537 | D121: =MED!D121+Kent!D121 -> 10616 | E121: =MED!E121+Kent!E121 -> 11393 | G121: 12 | H121: 129056 | I121: 131320 | J121: 140346
A122: female | B122: 13 | C122: =MED!C122+Kent!C122 -> 10449 | D122: =MED!D122+Kent!D122 -> 11167 | E122: =MED!E122+Kent!E122 -> 11363 | G122: 13 | H122: 139505 | I122: 142487 | J122: 151709
A123: female | B123: 14 | C123: =MED!C123+Kent!C123 -> 10126 | D123: =MED!D123+Kent!D123 -> 11069 | E123: =MED!E123+Kent!E123 -> 11009 | G123: 14 | H123: 149631 | I123: 153556 | J123: 162718
A124: female | B124: 15 | C124: =MED!C124+Kent!C124 -> 9980 | D124: =MED!D124+Kent!D124 -> 10735 | E124: =MED!E124+Kent!E124 -> 10724 | G124: 15 | H124: 159611 | I124: 164291 | J124: 173442
A125: female | B125: 16 | C125: =MED!C125+Kent!C125 -> 10241 | D125: =MED!D125+Kent!D125 -> 11326 | E125: =MED!E125+Kent!E125 -> 10553 | G125: 16 | H125: 169852 | I125: 175617 | J125: 183995
A126: female | B126: 17 | C126: =MED!C126+Kent!C126 -> 10004 | D126: =MED!D126+Kent!D126 -> 11468 | E126: =MED!E126+Kent!E126 -> 10452 | G126: 17 | H126: 179856 | I126: 187085 | J126: 194447
A127: female | B127: 18 | C127: =MED!C127+Kent!C127 -> 9364 | D127: =MED!D127+Kent!D127 -> 11219 | E127: =MED!E127+Kent!E127 -> 9765 | G127: 18 | H127: 189220 | I127: 198304 | J127: 204212
A128: female | B128: 19 | C128: =MED!C128+Kent!C128 -> 8528 | D128: =MED!D128+Kent!D128 -> 11272 | E128: =MED!E128+Kent!E128 -> 9092 | G128: 19 | H128: 197748 | I128: 209576 | J128: 213304
A129: female | B129: 20 | C129: =MED!C129+Kent!C129 -> 8712 | D129: =MED!D129+Kent!D129 -> 11066 | E129: =MED!E129+Kent!E129 -> 8874 | G129: 20 | H129: 206460 | I129: 220642 | J129: 222178
A130: female | B130: 21 | C130: =MED!C130+Kent!C130 -> 8658 | D130: =MED!D130+Kent!D130 -> 10579 | E130: =MED!E130+Kent!E130 -> 9565 | G130: 21 | H130: 215118 | I130: 231221 | J130: 231743
A131: female | B131: 22 | C131: =MED!C131+Kent!C131 -> 8436 | D131: =MED!D131+Kent!D131 -> 10575 | E131: =MED!E131+Kent!E131 -> 9957 | G131: 22 | H131: 223554 | I131: 241796 | J131: 241700
A132: female | B132: 23 | C132: =MED!C132+Kent!C132 -> 8119 | D132: =MED!D132+Kent!D132 -> 10444 | E132: =MED!E132+Kent!E132 -> 10512 | G132: 23 | H132: 231673 | I132: 252240 | J132: 252212
A133: female | B133: 24 | C133: =MED!C133+Kent!C133 -> 8280 | D133: =MED!D133+Kent!D133 -> 10235 | E133: =MED!E133+Kent!E133 -> 10308 | G133: 24 | H133: 239953 | I133: 262475 | J133: 262520
A134: female | B134: 25 | C134: =MED!C134+Kent!C134 -> 8487 | D134: =MED!D134+Kent!D134 -> 10284 | E134: =MED!E134+Kent!E134 -> 10298 | G134: 25 | H134: 248440 | I134: 272759 | J134: 272818
A135: female | B135: 26 | C135: =MED!C135+Kent!C135 -> 8857 | D135: =MED!D135+Kent!D135 -> 10221 | E135: =MED!E135+Kent!E135 -> 10877 | G135: 26 | H135: 257297 | I135: 282980 | J135: 283695
A136: female | B136: 27 | C136: =MED!C136+Kent!C136 -> 9214 | D136: =MED!D136+Kent!D136 -> 10082 | E136: =MED!E136+Kent!E136 -> 11254 | G136: 27 | H136: 266511 | I136: 293062 | J136: 294949
A137: female | B137: 28 | C137: =MED!C137+Kent!C137 -> 10148 | D137: =MED!D137+Kent!D137 -> 10118 | E137: =MED!E137+Kent!E137 -> 11771 | G137: 28 | H137: 276659 | I137: 303180 | J137: 306720
A138: female | B138: 29 | C138: =MED!C138+Kent!C138 -> 10744 | D138: =MED!D138+Kent!D138 -> 10440 | E138: =MED!E138+Kent!E138 -> 11915 | G138: 29 | H138: 287403 | I138: 313620 | J138: 318635
A139: female | B139: 30 | C139: =MED!C139+Kent!C139 -> 11294 | D139: =MED!D139+Kent!D139 -> 10694 | E139: =MED!E139+Kent!E139 -> 12583 | G139: 30 | H139: 298697 | I139: 324314 | J139: 331218
A140: female | B140: 31 | C140: =MED!C140+Kent!C140 -> 11008 | D140: =MED!D140+Kent!D140 -> 10549 | E140: =MED!E140+Kent!E140 -> 12703 | G140: 31 | H140: 309705 | I140: 334863 | J140: 343921
A141: female | B141: 32 | C141: =MED!C141+Kent!C141 -> 11726 | D141: =MED!D141+Kent!D141 -> 10124 | E141: =MED!E141+Kent!E141 -> 12825 | G141: 32 | H141: 321431 | I141: 344987 | J141: 356746
A142: female | B142: 33 | C142: =MED!C142+Kent!C142 -> 11848 | D142: =MED!D142+Kent!D142 -> 9665 | E142: =MED!E142+Kent!E142 -> 12654 | G142: 33 | H142: =H141+C142 -> 333279 | I142: =I141+D142 -> 354652 | J142: =J141+E142 -> 369400
A143: female | B143: 34 | C143: =MED!C143+Kent!C143 -> 12222 | D143: =MED!D143+Kent!D143 -> 9882 | E143: =MED!E143+Kent!E143 -> 12602 | G143: 34 | H143: 345501 | I143: 364534 | J143: 382002
A144: female | B144: 35 | C144: =MED!C144+Kent!C144 -> 12701 | D144: =MED!D144+Kent!D144 -> 10195 | E144: =MED!E144+Kent!E144 -> 12548 | G144: 35 | H144: 358202 | I144: 374729 | J144: 394550
A145: female | B145: 36 | C145: =MED!C145+Kent!C145 -> 12639 | D145: =MED!D145+Kent!D145 -> 10559 | E145: =MED!E145+Kent!E145 -> 12469 | G145: 36 | H145: 370841 | I145: 385288 | J145: 407019
A146: female | B146: 37 | C146: =MED!C146+Kent!C146 -> 12347 | D146: =MED!D146+Kent!D146 -> 11100 | E146: =MED!E146+Kent!E146 -> 12226 | G146: 37 | H146: 383188 | I146: 396388 | J146: 419245
A147: female | B147: 38 | C147: =MED!C147+Kent!C147 -> 12326 | D147: =MED!D147+Kent!D147 -> 11623 | E147: =MED!E147+Kent!E147 -> 12300 | G147: 38 | H147: 395514 | I147: 408011 | J147: 431545
A148: female | B148: 39 | C148: =MED!C148+Kent!C148 -> 12261 | D148: =MED!D148+Kent!D148 -> 12199 | E148: =MED!E148+Kent!E148 -> 12433 | G148: 39 | H148: 407775 | I148: 420210 | J148: 443978
A149: female | B149: 40 | C149: =MED!C149+Kent!C149 -> 11510 | D149: =MED!D149+Kent!D149 -> 12738 | E149: =MED!E149+Kent!E149 -> 12634 | G149: 40 | H149: 419285 | I149: 432948 | J149: 456612
A150: female | B150: 41 | C150: =MED!C150+Kent!C150 -> 11222 | D150: =MED!D150+Kent!D150 -> 12670 | E150: =MED!E150+Kent!E150 -> 12520 | G150: 41 | H150: 430507 | I150: 445618 | J150: 469132
A151: female | B151: 42 | C151: =MED!C151+Kent!C151 -> 11140 | D151: =MED!D151+Kent!D151 -> 13149 | E151: =MED!E151+Kent!E151 -> 11956 | G151: 42 | H151: 441647 | I151: 458767 | J151: 481088
A152: female | B152: 43 | C152: =MED!C152+Kent!C152 -> 10819 | D152: =MED!D152+Kent!D152 -> 13009 | E152: =MED!E152+Kent!E152 -> 11144 | G152: 43 | H152: 452466 | I152: 471776 | J152: 492232
A153: female | B153: 44 | C153: =MED!C153+Kent!C153 -> 10509 | D153: =MED!D153+Kent!D153 -> 13420 | E153: =MED!E153+Kent!E153 -> 11331 | G153: 44 | H153: 462975 | I153: 485196 | J153: 503563
A154: female | B154: 45 | C154: =MED!C154+Kent!C154 -> 10299 | D154: =MED!D154+Kent!D154 -> 13403 | E154: =MED!E154+Kent!E154 -> 11503 | G154: 45 | H154: 473274 | I154: 498599 | J154: 515066
A155: female | B155: 46 | C155: =MED!C155+Kent!C155 -> 10186 | D155: =MED!D155+Kent!D155 -> 13415 | E155: =MED!E155+Kent!E155 -> 11767 | G155: 46 | H155: 483460 | I155: 512014 | J155: 526833
A156: female | B156: 47 | C156: =MED!C156+Kent!C156 -> 10381 | D156: =MED!D156+Kent!D156 -> 12948 | E156: =MED!E156+Kent!E156 -> 12048 | G156: 47 | H156: 493841 | I156: 524962 | J156: 538881
A157: female | B157: 48 | C157: =MED!C157+Kent!C157 -> 10145 | D157: =MED!D157+Kent!D157 -> 12843 | E157: =MED!E157+Kent!E157 -> 12546 | G157: 48 | H157: 503986 | I157: 537805 | J157: 551427
A158: female | B158: 49 | C158: =MED!C158+Kent!C158 -> 10227 | D158: =MED!D158+Kent!D158 -> 12436 | E158: =MED!E158+Kent!E158 -> 12994 | G158: 49 | H158: 514213 | I158: 550241 | J158: 564421
A159: female | B159: 50 | C159: =MED!C159+Kent!C159 -> 10280 | D159: =MED!D159+Kent!D159 -> 11948 | E159: =MED!E159+Kent!E159 -> 13248 | G159: 50 | H159: 524493 | I159: 562189 | J159: 577669
A160: female | B160: 51 | C160: =MED!C160+Kent!C160 -> 10670 | D160: =MED!D160+Kent!D160 -> 11635 | E160: =MED!E160+Kent!E160 -> 13125 | G160: 51 | H160: 535163 | I160: 573824 | J160: 590794
A161: female | B161: 52 | C161: =MED!C161+Kent!C161 -> 11315 | D161: =MED!D161+Kent!D161 -> 11413 | E161: =MED!E161+Kent!E161 -> 13431 | G161: 52 | H161: 546478 | I161: 585237 | J161: 604225
A162: female | B162: 53 | C162: =MED!C162+Kent!C162 -> 12661 | D162: =MED!D162+Kent!D162 -> 11084 | E162: =MED!E162+Kent!E162 -> 13357 | G162: 53 | H162: 559139 | I162: 596321 | J162: 617582
A163: female | B163: 54 | C163: =MED!C163+Kent!C163 -> 13668 | D163: =MED!D163+Kent!D163 -> 10645 | E163: =MED!E163+Kent!E163 -> 13496 | G163: 54 | H163: 572807 | I163: 606966 | J163: 631078
A164: female | B164: 55 | C164: =MED!C164+Kent!C164 -> 10249 | D164: =MED!D164+Kent!D164 -> 10281 | E164: =MED!E164+Kent!E164 -> 13555 | G164: 55 | H164: 583056 | I164: 617247 | J164: 644633
A165: female | B165: 56 | C165: =MED!C165+Kent!C165 -> 10237 | D165: =MED!D165+Kent!D165 -> 10236 | E165: =MED!E165+Kent!E165 -> 13493 | G165: 56 | H165: 593293 | I165: 627483 | J165: 658126
A166: female | B166: 57 | C166: =MED!C166+Kent!C166 -> 9854 | D166: =MED!D166+Kent!D166 -> 10139 | E166: =MED!E166+Kent!E166 -> 12954 | G166: 57 | H166: 603147 | I166: 637622 | J166: 671080
A167: female | B167: 58 | C167: =MED!C167+Kent!C167 -> 9428 | D167: =MED!D167+Kent!D167 -> 9998 | E167: =MED!E167+Kent!E167 -> 12834 | G167: 58 | H167: 612575 | I167: 647620 | J167: 683914
A168: female | B168: 59 | C168: =MED!C168+Kent!C168 -> 8179 | D168: =MED!D168+Kent!D168 -> 10042 | E168: =MED!E168+Kent!E168 -> 12310 | G168: 59 | H168: 620754 | I168: 657662 | J168: 696224
A169: female | B169: 60 | C169: =MED!C169+Kent!C169 -> 7781 | D169: =MED!D169+Kent!D169 -> 10019 | E169: =MED!E169+Kent!E169 -> 11807 | G169: 60 | H169: 628535 | I169: 667681 | J169: 708031
A170: female | B170: 61 | C170: =MED!C170+Kent!C170 -> 8395 | D170: =MED!D170+Kent!D170 -> 10585 | E170: =MED!E170+Kent!E170 -> 11357 | G170: 61 | H170: 636930 | I170: 678266 | J170: 719388
A171: female | B171: 62 | C171: =MED!C171+Kent!C171 -> 8287 | D171: =MED!D171+Kent!D171 -> 11134 | E171: =MED!E171+Kent!E171 -> 11210 | G171: 62 | H171: 645217 | I171: 689400 | J171: 730598
A172: female | B172: 63 | C172: =MED!C172+Kent!C172 -> 8136 | D172: =MED!D172+Kent!D172 -> 12461 | E172: =MED!E172+Kent!E172 -> 10722 | G172: 63 | H172: 653353 | I172: 701861 | J172: 741320
A173: female | B173: 64 | C173: =MED!C173+Kent!C173 -> 7985 | D173: =MED!D173+Kent!D173 -> 13004 | E173: =MED!E173+Kent!E173 -> 10330 | G173: 64 | H173: 661338 | I173: 714865 | J173: 751650
A174: female | B174: 65 | C174: =MED!C174+Kent!C174 -> 7638 | D174: =MED!D174+Kent!D174 -> 9506 | E174: =MED!E174+Kent!E174 -> 9977 | G174: 65 | H174: =H173+C174 -> 668976 | I174: =I173+D174 -> 724371 | J174: =J173+E174 -> 761627
A175: female | B175: 66 | C175: =MED!C175+Kent!C175 -> 7493 | D175: =MED!D175+Kent!D175 -> 10067 | E175: =MED!E175+Kent!E175 -> 9976 | G175: 66 | H175: 676469 | I175: 734438 | J175: 771603
A176: female | B176: 67 | C176: =MED!C176+Kent!C176 -> 7107 | D176: =MED!D176+Kent!D176 -> 9333 | E176: =MED!E176+Kent!E176 -> 9800 | G176: 67 | H176: 683576 | I176: 743771 | J176: 781403
A177: female | B177: 68 | C177: =MED!C177+Kent!C177 -> 7315 | D177: =MED!D177+Kent!D177 -> 8915 | E177: =MED!E177+Kent!E177 -> 9549 | G177: 68 | H177: 690891 | I177: 752686 | J177: 790952
A178: female | B178: 69 | C178: =MED!C178+Kent!C178 -> 7315 | D178: =MED!D178+Kent!D178 -> 7580 | E178: =MED!E178+Kent!E178 -> 9682 | G178: 69 | H178: 698206 | I178: 760266 | J178: 800634
A179: female | B179: 70 | C179: =MED!C179+Kent!C179 -> 7388 | D179: =MED!D179+Kent!D179 -> 7156 | E179: =MED!E179+Kent!E179 -> 9528 | G179: 70 | H179: 705594 | I179: 767422 | J179: 810162
A180: female | B180: 71 | C180: =MED!C180+Kent!C180 -> 7242 | D180: =MED!D180+Kent!D180 -> 7599 | E180: =MED!E180+Kent!E180 -> 9922 | G180: 71 | H180: 712836 | I180: 775021 | J180: 820084
A181: female | B181: 72 | C181: =MED!C181+Kent!C181 -> 6898 | D181: =MED!D181+Kent!D181 -> 7533 | E181: =MED!E181+Kent!E181 -> 10357 | G181: 72 | H181: 719734 | I181: 782554 | J181: 830441
A182: female | B182: 73 | C182: =MED!C182+Kent!C182 -> 6655 | D182: =MED!D182+Kent!D182 -> 7241 | E182: =MED!E182+Kent!E182 -> 11510 | G182: 73 | H182: 726389 | I182: 789795 | J182: 841951
A183: female | B183: 74 | C183: =MED!C183+Kent!C183 -> 6827 | D183: =MED!D183+Kent!D183 -> 6999 | E183: =MED!E183+Kent!E183 -> 11704 | G183: 74 | H183: 733216 | I183: 796794 | J183: 853655
A184: female | B184: 75 | C184: =MED!C184+Kent!C184 -> 6632 | D184: =MED!D184+Kent!D184 -> 6595 | E184: =MED!E184+Kent!E184 -> 8443 | G184: 75 | H184: 739848 | I184: 803389 | J184: 862098
A185: female | B185: 76 | C185: =MED!C185+Kent!C185 -> 6355 | D185: =MED!D185+Kent!D185 -> 6447 | E185: =MED!E185+Kent!E185 -> 8884 | G185: 76 | H185: 746203 | I185: 809836 | J185: 870982
A186: female | B186: 77 | C186: =MED!C186+Kent!C186 -> 6270 | D186: =MED!D186+Kent!D186 -> 5980 | E186: =MED!E186+Kent!E186 -> 8067 | G186: 77 | H186: 752473 | I186: 815816 | J186: 879049
A187: female | B187: 78 | C187: =MED!C187+Kent!C187 -> 6291 | D187: =MED!D187+Kent!D187 -> 6047 | E187: =MED!E187+Kent!E187 -> 7394 | G187: 78 | H187: 758764 | I187: 821863 | J187: 886443
A188: female | B188: 79 | C188: =MED!C188+Kent!C188 -> 6433 | D188: =MED!D188+Kent!D188 -> 5750 | E188: =MED!E188+Kent!E188 -> 6342 | G188: 79 | H188: 765197 | I188: 827613 | J188: 892785
A189: female | B189: 80 | C189: =MED!C189+Kent!C189 -> 6539 | D189: =MED!D189+Kent!D189 -> 5835 | E189: =MED!E189+Kent!E189 -> 5857 | G189: 80 | H189: 771736 | I189: 833448 | J189: 898642
A190: female | B190: 81 | C190: =MED!C190+Kent!C190 -> 6021 | D190: =MED!D190+Kent!D190 -> 5527 | E190: =MED!E190+Kent!E190 -> 6016 | G190: 81 | H190: 777757 | I190: 838975 | J190: 904658
A191: female | B191: 82 | C191: =MED!C191+Kent!C191 -> 3967 | D191: =MED!D191+Kent!D191 -> 5052 | E191: =MED!E191+Kent!E191 -> 5707 | G191: 82 | H191: 781724 | I191: 844027 | J191: 910365
A192: female | B192: 83 | C192: =MED!C192+Kent!C192 -> 3296 | D192: =MED!D192+Kent!D192 -> 4688 | E192: =MED!E192+Kent!E192 -> 5358 | G192: 83 | H192: 785020 | I192: 848715 | J192: 915723
A193: female | B193: 84 | C193: =MED!C193+Kent!C193 -> 3761 | D193: =MED!D193+Kent!D193 -> 4429 | E193: =MED!E193+Kent!E193 -> 4888 | G193: 84 | H193: 788781 | I193: 853144 | J193: 920611
A194: female | B194: 85 | C194: =MED!C194+Kent!C194 -> 3548 | D194: =MED!D194+Kent!D194 -> 4070 | E194: =MED!E194+Kent!E194 -> 4373 | G194: 85 | H194: 792329 | I194: 857214 | J194: 924984
A195: female | B195: 86 | C195: =MED!C195+Kent!C195 -> 3473 | D195: =MED!D195+Kent!D195 -> 3676 | E195: =MED!E195+Kent!E195 -> 3882 | G195: 86 | H195: 795802 | I195: 860890 | J195: 928866
A196: female | B196: 87 | C196: =MED!C196+Kent!C196 -> 3012 | D196: =MED!D196+Kent!D196 -> 3531 | E196: =MED!E196+Kent!E196 -> 3537 | G196: 87 | H196: 798814 | I196: 864421 | J196: 932403
A197: female | B197: 88 | C197: =MED!C197+Kent!C197 -> 2689 | D197: =MED!D197+Kent!D197 -> 3083 | E197: =MED!E197+Kent!E197 -> 3250 | G197: 88 | H197: 801503 | I197: 867504 | J197: 935653
A198: female | B198: 89 | C198: =MED!C198+Kent!C198 -> 2330 | D198: =MED!D198+Kent!D198 -> 3032 | E198: =MED!E198+Kent!E198 -> 2810 | G198: 89 | H198: 803833 | I198: 870536 | J198: 938463
A199: female | B199: 90+ | C199: =MED!C199+Kent!C199 -> 8588 | D199: =MED!D199+Kent!D199 -> 10691 | E199: =MED!E199+Kent!E199 -> 11870 | G199: 90+ | H199: 812421 | I199: 881227 | J199: 950333
B200: All Females | C200: =SUM(C109:C199) -> 812421 | D200: 881227 | E200: 950333

Sheet ASH (hidden)
A1: Mid Year Population Estimates | K1: Insert column here before extending the table
A2: 2001, 2011, and 2021 Census: The Office forNnational Statistics (ONS) | G2: Selected Ages: | O2: Start year | P2: End Year | Q2: Number change | R2: % Change
H3: =H13 -> 2001 | I3: 2011 | J3: =J13 -> 2021 | O3: =INDEX($H3:$I3,Index!$B$16) -> 2011 | P3: =INDEX($H3:$J3,Index!$B$19) -> 2011
G4: Males | H4: =OFFSET(H16,Index!$B$7-1,0)-IF(Index!$B$4-2=1,0,OFFSET(H16,Index!$B$4-2,0)) -> 49967 | I4: =OFFSET(I16,Index!$B$7-1,0)-IF(Index!$B$4-2=1,0,OFFSET(I16,Index!$B$4-2,0)) -> 57232 | J4: =OFFSET(J16,Index!$B$7-1,0)-IF(Index!$B$4-2=1,0,OFFSET(J16,Index!$B$4-2,0)) -> 64593 | O4: =INDEX($H4:$I4,Index!$B$16) -> 57232 | P4: =INDEX($H4:$J4,Index!$B$19) -> 57232 | Q4: =P4-O4 -> 0 | R4: =Q4/O4 -> 0
G5: Females | H5: =OFFSET(H109,Index!$B$7-1,0)-IF(Index!$B$4-2=1,0,OFFSET(H109,Index!$B$4-2,0)) -> 52706 | I5: =OFFSET(I109,Index!$B$7-1,0)-IF(Index!$B$4-2=1,0,OFFSET(I109,Index!$B$4-2,0)) -> 60724 | J5: =OFFSET(J109,Index!$B$7-1,0)-IF(Index!$B$4-2=1,0,OFFSET(J109,Index!$B$4-2,0)) -> 68159 | O5: =INDEX($H5:$I5,Index!$B$16) -> 60724 | P5: =INDEX($H5:$J5,Index!$B$19) -> 60724 | Q5: =P5-O5 -> 0 | R5: =Q5/O5 -> 0
G6: Total | H6: =SUM(H4:H5) -> 102673 | I6: 117956 | J6: =SUM(J4:J5) -> 132752 | O6: =INDEX($H6:$I6,Index!$B$16) -> 117956 | P6: =INDEX($H6:$J6,Index!$B$19) -> 117956 | Q6: =P6-O6 -> 0 | R6: =Q6/O6 -> 0
G8: Males | H8: =IF(H4<0,"0",H4) -> 49967 | I8: 57232 | J8: =IF(J4<0,"0",J4) -> 64593
G9: Females | H9: =IF(H5<0,"0",H5) -> 52706 | I9: 60724 | J9: 68159
G10: Total | H10: =SUM(H8:H9) -> 102673 | I10: 117956 | J10: =SUM(J8:J9) -> 132752
C11: 10 | D11: 20 | E11: 29
A12: Ashford | L12: Population Pyramid
H13: =C14 -> 2001 | I13: =D14 -> 2011 | J13: =E14 -> 2021
A14: Sex | B14: Age | C14: 2001 | D14: 2011 | E14: 2021 | O14: 2001 | P14: 2011 | Q14: 2021 | S14: =INDEX(O14:Q14,Index!$B$23) -> 2021
B15: All persons | C15: =SUM(C107,C200) -> 102673 | D15: 117956 | E15: =SUM(E107,E200) -> 132752 | G15: Males | L15: Males | M15: All Ages | O15: =C107 -> 49967 | P15: =D107 -> 57232 | Q15: =E107 -> 64593 | S15: =INDEX(O15:Q15,Index!$B$23) -> 64593
A16: male | B16: 0 | C16: 621 | D16: 761 | E16: 727 | G16: 0 | H16: =C16 -> 621 | I16: =D16 -> 761 | J16: =E16 -> 727 | L16: Males | M16: 0-4 | O16: =SUM(C16:C20) -> 3339 | P16: =SUM(D16:D20) -> 3928 | Q16: =SUM(E16:E20) -> 3886 | S16: =INDEX(O16:Q16,Index!$B$23) -> 3886
A17: male | B17: 1 | C17: 629 | D17: 757 | E17: 726 | G17: 1 | H17: =H16+C17 -> 1250 | I17: =I16+D17 -> 1518 | J17: =J16+E17 -> 1453 | L17: Males | M17: 5-9 | O17: =SUM(C21:C25) -> 3571 | P17: =SUM(D21:D25) -> 3751 | Q17: =SUM(E21:E25) -> 4268 | S17: =INDEX(O17:Q17,Index!$B$23) -> 4268
A18: male | B18: 2 | C18: 686 | D18: 783 | E18: 755 | G18: 2 | H18: 1936 | I18: 2301 | J18: 2208 | L18: Males | M18: 10-14 | O18: =SUM(C26:C30) -> 3462 | P18: =SUM(D26:D30) -> 3954 | Q18: =SUM(E26:E30) -> 4304 | S18: =INDEX(O18:Q18,Index!$B$23) -> 4304
A19: male | B19: 3 | C19: 669 | D19: 808 | E19: 870 | G19: 3 | H19: 2605 | I19: 3109 | J19: 3078 | L19: Males | M19: 15-19 | O19: =SUM(C31:C35) -> 3003 | P19: =SUM(D31:D35) -> 4011 | Q19: =SUM(E31:E35) -> 3810 | S19: =INDEX(O19:Q19,Index!$B$23) -> 3810
A20: male | B20: 4 | C20: 734 | D20: 819 | E20: 808 | G20: 4 | H20: 3339 | I20: 3928 | J20: 3886 | L20: Males | M20: 20-24 | O20: =SUM(C36:C40) -> 2518 | P20: =SUM(D36:D40) -> 3098 | Q20: =SUM(E36:E40) -> 3269 | S20: =INDEX(O20:Q20,Index!$B$23) -> 3269
A21: male | B21: 5 | C21: 703 | D21: 719 | E21: 820 | G21: 5 | H21: 4042 | I21: 4647 | J21: 4706 | L21: Males | M21: 25-29 | O21: =SUM(C41:C45) -> 2818 | P21: =SUM(D41:D45) -> 2986 | Q21: =SUM(E41:E45) -> 3864 | S21: =INDEX(O21:Q21,Index!$B$23) -> 3864
A22: male | B22: 6 | C22: 694 | D22: 734 | E22: 831 | G22: 6 | H22: 4736 | I22: 5381 | J22: 5537 | L22: Males | M22: 30-34 | O22: =SUM(C46:C50) -> 3745 | P22: =SUM(D46:D50) -> 3083 | Q22: =SUM(E46:E50) -> 4159 | S22: =INDEX(O22:Q22,Index!$B$23) -> 4159
A23: male | B23: 7 | C23: 689 | D23: 770 | E23: 856 | G23: 7 | H23: 5425 | I23: 6151 | J23: 6393 | L23: Males | M23: 35-39 | O23: =SUM(C51:C55) -> 3968 | P23: =SUM(D51:D55) -> 3628 | Q23: =SUM(E51:E55) -> 3943 | S23: =INDEX(O23:Q23,Index!$B$23) -> 3943
A24: male | B24: 8 | C24: 770 | D24: 751 | E24: 894 | G24: 8 | H24: 6195 | I24: 6902 | J24: 7287 | L24: Males | M24: 40-44 | O24: =SUM(C56:C60) -> 3702 | P24: =SUM(D56:D60) -> 4618 | Q24: =SUM(E56:E60) -> 3955 | S24: =INDEX(O24:Q24,Index!$B$23) -> 3955
A25: male | B25: 9 | C25: 715 | D25: 777 | E25: 867 | G25: 9 | H25: 6910 | I25: 7679 | J25: 8154 | L25: Males | M25: 45-49 | O25: =SUM(C61:C65) -> 3200 | P25: =SUM(D61:D65) -> 4601 | Q25: =SUM(E61:E65) -> 4043 | S25: =INDEX(O25:Q25,Index!$B$23) -> 4043
A26: male | B26: 10 | C26: 735 | D26: 781 | E26: 838 | G26: 10 | H26: 7645 | I26: 8460 | J26: 8992 | L26: Males | M26: 50-54 | O26: =SUM(C66:C70) -> 3822 | P26: =SUM(D66:D70) -> 3682 | Q26: =SUM(E66:E70) -> 4884 | S26: =INDEX(O26:Q26,Index!$B$23) -> 4884
A27: male | B27: 11 | C27: 731 | D27: 785 | E27: 893 | G27: 11 | H27: 8376 | I27: 9245 | J27: 9885 | L27: Males | M27: 55-59 | O27: =SUM(C71:C75) -> 3119 | P27: =SUM(D71:D75) -> 3309 | Q27: =SUM(E71:E75) -> 4602 | S27: =INDEX(O27:Q27,Index!$B$23) -> 4602
A28: male | B28: 12 | C28: 680 | D28: 826 | E28: 871 | G28: 12 | H28: 9056 | I28: 10071 | J28: 10756 | L28: Males | M28: 60-64 | O28: =SUM(C76:C80) -> 2573 | P28: =SUM(D76:D80) -> 3691 | Q28: =SUM(E76:E80) -> 3661 | S28: =INDEX(O28:Q28,Index!$B$23) -> 3661
A29: male | B29: 13 | C29: 666 | D29: 768 | E29: 845 | G29: 13 | H29: 9722 | I29: 10839 | J29: 11601 | L29: Males | M29: 65-69 | O29: =SUM(C81:C85) -> 2258 | P29: =SUM(D81:D85) -> 2953 | Q29: =SUM(E81:E85) -> 3198 | S29: =INDEX(O29:Q29,Index!$B$23) -> 3198
A30: male | B30: 14 | C30: 650 | D30: 794 | E30: 857 | G30: 14 | H30: 10372 | I30: 11633 | J30: 12458 | L30: Males | M30: 70-74 | O30: =SUM(C86:C90) -> 1801 | P30: =SUM(D86:D90) -> 2221 | Q30: =SUM(E86:E90) -> 3387 | S30: =INDEX(O30:Q30,Index!$B$23) -> 3387
A31: male | B31: 15 | C31: 693 | D31: 837 | E31: 785 | G31: 15 | H31: 11065 | I31: 12470 | J31: 13243 | L31: Males | M31: 75-79 | O31: =SUM(C91:C95) -> 1484 | P31: =SUM(D91:D95) -> 1684 | Q31: =SUM(E91:E95) -> 2528 | S31: =INDEX(O31:Q31,Index!$B$23) -> 2528
A32: male | B32: 16 | C32: 680 | D32: 848 | E32: 836 | G32: 16 | H32: 11745 | I32: 13318 | J32: 14079 | L32: Males | M32: 80-84 | O32: =SUM(C96:C100) -> 982 | P32: =SUM(D96:D100) -> 1125 | Q32: =SUM(E96:E100) -> 1601 | S32: =INDEX(O32:Q32,Index!$B$23) -> 1601
A33: male | B33: 17 | C33: 641 | D33: 806 | E33: 868 | G33: 17 | H33: 12386 | I33: 14124 | J33: 14947 | L33: Males | M33: 85-89 | O33: =SUM(C101:C105) -> 458 | P33: =SUM(D101:D105) -> 676 | Q33: 866 | S33: =INDEX(O33:Q33,Index!$B$23) -> 866
A34: male | B34: 18 | C34: 543 | D34: 829 | E34: 727 | G34: 18 | H34: 12929 | I34: 14953 | J34: 15674 | L34: Males | M34: 90+ | O34: =C106 -> 144 | P34: =D106 -> 233 | Q34: 365 | S34: =INDEX(O34:Q34,Index!$B$23) -> 365
A35: male | B35: 19 | C35: 446 | D35: 691 | E35: 594 | G35: 19 | H35: 13375 | I35: 15644 | J35: 16268
A36: male | B36: 20 | C36: 545 | D36: 610 | E36: 582 | G36: 20 | H36: 13920 | I36: 16254 | J36: 16850 | L36: Males | M36: All Ages | O36: =C200 -> 52706 | P36: =D200 -> 60724 | Q36: =E200 -> 68159 | S36: =INDEX(O36:Q36,Index!$B$23) -> 68159
A37: male | B37: 21 | C37: 499 | D37: 624 | E37: 588 | G37: 21 | H37: 14419 | I37: 16878 | J37: 17438 | L37: Females | M37: 0-4 | O37: =SUM(C109:C113) -> 3114 | P37: =SUM(D109:D113) -> 3843 | Q37: =SUM(E109:E113) -> 3722 | S37: =INDEX(O37:Q37,Index!$B$23) -> 3722
A38: male | B38: 22 | C38: 486 | D38: 571 | E38: 688 | G38: 22 | H38: 14905 | I38: 17449 | J38: 18126 | L38: Females | M38: 5-9 | O38: =SUM(C114:C118) -> 3461 | P38: =SUM(D114:D118) -> 3607 | Q38: =SUM(E114:E118) -> 4046 | S38: =INDEX(O38:Q38,Index!$B$23) -> 4046
A39: male | B39: 23 | C39: 530 | D39: 644 | E39: 683 | G39: 23 | H39: 15435 | I39: 18093 | J39: 18809 | L39: Females | M39: 10-14 | O39: =SUM(C119:C123) -> 3426 | P39: =SUM(D119:D123) -> 3884 | Q39: =SUM(E119:E123) -> 4255 | S39: =INDEX(O39:Q39,Index!$B$23) -> 4255
A40: male | B40: 24 | C40: 458 | D40: 649 | E40: 728 | G40: 24 | H40: 15893 | I40: 18742 | J40: 19537 | L40: Females | M40: 15-19 | O40: =SUM(C124:C128) -> 2975 | P40: =SUM(D124:D128) -> 3610 | Q40: =SUM(E124:E128) -> 3496 | S40: =INDEX(O40:Q40,Index!$B$23) -> 3496
A41: male | B41: 25 | C41: 489 | D41: 617 | E41: 755 | G41: 25 | H41: 16382 | I41: 19359 | J41: 20292 | L41: Females | M41: 20-24 | O41: =SUM(C129:C133) -> 2441 | P41: =SUM(D129:D133) -> 3147 | Q41: =SUM(E129:E133) -> 3202 | S41: =INDEX(O41:Q41,Index!$B$23) -> 3202
A42: male | B42: 26 | C42: 541 | D42: 593 | E42: 768 | G42: 26 | H42: 16923 | I42: 19952 | J42: 21060 | L42: Females | M42: 25-29 | O42: =SUM(C134:C138) -> 3038 | P42: =SUM(D134:D138) -> 3484 | Q42: =SUM(E134:E138) -> 4093 | S42: =INDEX(O42:Q42,Index!$B$23) -> 4093
A43: male | B43: 27 | C43: 562 | D43: 605 | E43: 728 | G43: 27 | H43: 17485 | I43: 20557 | J43: 21788 | L43: Females | M43: 30-34 | O43: =SUM(C139:C143) -> 4020 | P43: =SUM(D139:D143) -> 3465 | Q43: =SUM(E139:E143) -> 4693 | S43: =INDEX(O43:Q43,Index!$B$23) -> 4693
A44: male | B44: 28 | C44: 564 | D44: 619 | E44: 791 | G44: 28 | H44: 18049 | I44: 21176 | J44: 22579 | L44: Females | M44: 35-39 | O44: =SUM(C144:C148) -> 4227 | P44: =SUM(D144:D148) -> 3931 | Q44: =SUM(E144:E148) -> 4397 | S44: =INDEX(O44:Q44,Index!$B$23) -> 4397
A45: male | B45: 29 | C45: 662 | D45: 552 | E45: 822 | G45: 29 | H45: 18711 | I45: 21728 | J45: 23401 | L45: Females | M45: 40-44 | O45: =SUM(C149:C153) -> 3510 | P45: =SUM(D149:D153) -> 4865 | Q45: =SUM(E149:E153) -> 4212 | S45: =INDEX(O45:Q45,Index!$B$23) -> 4212
A46: male | B46: 30 | C46: 677 | D46: 629 | E46: 834 | G46: 30 | H46: 19388 | I46: 22357 | J46: 24235 | L46: Females | M46: 45-49 | O46: =SUM(C154:C158) -> 3435 | P46: =SUM(D154:D158) -> 4595 | Q46: =SUM(E154:E158) -> 4444 | S46: =INDEX(O46:Q46,Index!$B$23) -> 4444
A47: male | B47: 31 | C47: 699 | D47: 635 | E47: 831 | G47: 31 | H47: 20087 | I47: 22992 | J47: 25066 | L47: Females | M47: 50-54 | O47: =SUM(C159:C163) -> 3781 | P47: =SUM(D159:D163) -> 3789 | Q47: =SUM(E159:E163) -> 5071 | S47: =INDEX(O47:Q47,Index!$B$23) -> 5071
A48: male | B48: 32 | C48: 751 | D48: 622 | E48: 801 | G48: 32 | H48: 20838 | I48: 23614 | J48: 25867 | L48: Females | M48: 55-59 | O48: =SUM(C164:C168) -> 3242 | P48: =SUM(D164:D168) -> 3440 | Q48: =SUM(E164:E168) -> 4689 | S48: =INDEX(O48:Q48,Index!$B$23) -> 4689
A49: male | B49: 33 | C49: 808 | D49: 604 | E49: 863 | G49: 33 | H49: =H48+C49 -> 21646 | I49: =I48+D49 -> 24218 | J49: =J48+E49 -> 26730 | L49: Females | M49: 60-64 | O49: =SUM(C169:C173) -> 2540 | P49: =SUM(D169:D173) -> 3988 | Q49: =SUM(E169:E173) -> 3788 | S49: =INDEX(O49:Q49,Index!$B$23) -> 3788
A50: male | B50: 34 | C50: 810 | D50: 593 | E50: 830 | G50: 34 | H50: 22456 | I50: 24811 | J50: 27560 | L50: Females | M50: 65-69 | O50: =SUM(C174:C178) -> 2393 | P50: =SUM(D174:D178) -> 3242 | Q50: =SUM(E174:E178) -> 3456 | S50: =INDEX(O50:Q50,Index!$B$23) -> 3456
A51: male | B51: 35 | C51: 800 | D51: 658 | E51: 805 | G51: 35 | H51: 23256 | I51: 25469 | J51: 28365 | L51: Females | M51: 70-74 | O51: =SUM(C179:C183) -> 2237 | P51: =SUM(D179:D183) -> 2393 | Q51: =SUM(E179:E183) -> 3851 | S51: =INDEX(O51:Q51,Index!$B$23) -> 3851
A52: male | B52: 36 | C52: 813 | D52: 704 | E52: 783 | G52: 36 | H52: 24069 | I52: 26173 | J52: 29148 | L52: Females | M52: 75-79 | O52: =SUM(C184:C188) -> 2025 | P52: =SUM(D184:D188) -> 2013 | Q52: =SUM(E184:E188) -> 2873 | S52: =INDEX(O52:Q52,Index!$B$23) -> 2873
A53: male | B53: 37 | C53: 802 | D53: 712 | E53: 830 | G53: 37 | H53: 24871 | I53: 26885 | J53: 29978 | L53: Females | M53: 80-84 | O53: =SUM(C189:C193) -> 1472 | P53: =SUM(D189:D193) -> 1604 | Q53: =SUM(E189:E193) -> 1904 | S53: =INDEX(O53:Q53,Index!$B$23) -> 1904
A54: male | B54: 38 | C54: 798 | D54: 786 | E54: 791 | G54: 38 | H54: 25669 | I54: 27671 | J54: 30769 | L54: Females | M54: 85-89 | O54: =SUM(C194:C198) -> 903 | P54: =SUM(D194:D198) -> 1116 | Q54: 1195 | S54: =INDEX(O54:Q54,Index!$B$23) -> 1195
A55: male | B55: 39 | C55: 755 | D55: 768 | E55: 734 | G55: 39 | H55: 26424 | I55: 28439 | J55: 31503 | L55: Females | M55: 90+ | O55: =C199 -> 466 | P55: =D199 -> 708 | Q55: 772 | S55: =INDEX(O55:Q55,Index!$B$23) -> 772
A56: male | B56: 40 | C56: 775 | D56: 863 | E56: 801 | G56: 40 | H56: 27199 | I56: 29302 | J56: 32304
A57: male | B57: 41 | C57: 771 | D57: 909 | E57: 812 | G57: 41 | H57: 27970 | I57: 30211 | J57: 33116
A58: male | B58: 42 | C58: 720 | D58: 954 | E58: 768 | G58: 42 | H58: 28690 | I58: 31165 | J58: 33884
A59: male | B59: 43 | C59: 722 | D59: 980 | E59: 772 | G59: 43 | H59: 29412 | I59: 32145 | J59: 34656
A60: male | B60: 44 | C60: 714 | D60: 912 | E60: 802 | G60: 44 | H60: 30126 | I60: 33057 | J60: 35458
A61: male | B61: 45 | C61: 657 | D61: 969 | E61: 768 | G61: 45 | H61: 30783 | I61: 34026 | J61: 36226
A62: male | B62: 46 | C62: 633 | D62: 909 | E62: 804 | G62: 46 | H62: 31416 | I62: 34935 | J62: 37030
A63: male | B63: 47 | C63: 635 | D63: 953 | E63: 804 | G63: 47 | H63: 32051 | I63: 35888 | J63: 37834
A64: male | B64: 48 | C64: 651 | D64: 881 | E64: 824 | G64: 48 | H64: 32702 | I64: 36769 | J64: 38658
A65: male | B65: 49 | C65: 624 | D65: 889 | E65: 843 | G65: 49 | H65: 33326 | I65: 37658 | J65: 39501
A66: male | B66: 50 | C66: 662 | D66: 812 | E66: 929 | G66: 50 | H66: 33988 | I66: 38470 | J66: 40430
A67: male | B67: 51 | C67: 707 | D67: 751 | E67: 991 | G67: 51 | H67: 34695 | I67: 39221 | J67: 41421
A68: male | B68: 52 | C68: 738 | D68: 741 | E68: 1024 | G68: 52 | H68: 35433 | I68: 39962 | J68: 42445
A69: male | B69: 53 | C69: 808 | D69: 696 | E69: 984 | G69: 53 | H69: 36241 | I69: 40658 | J69: 43429
A70: male | B70: 54 | C70: 907 | D70: 682 | E70: 956 | G70: 54 | H70: 37148 | I70: 41340 | J70: 44385
A71: male | B71: 55 | C71: 642 | D71: 664 | E71: 946 | G71: 55 | H71: 37790 | I71: 42004 | J71: 45331
A72: male | B72: 56 | C72: 705 | D72: 659 | E72: 954 | G72: 56 | H72: 38495 | I72: 42663 | J72: 46285
A73: male | B73: 57 | C73: 632 | D73: 645 | E73: 954 | G73: 57 | H73: 39127 | I73: 43308 | J73: 47239
A74: male | B74: 58 | C74: 611 | D74: 669 | E74: 852 | G74: 58 | H74: 39738 | I74: 43977 | J74: 48091
A75: male | B75: 59 | C75: 529 | D75: 672 | E75: 896 | G75: 59 | H75: 40267 | I75: 44649 | J75: 48987
A76: male | B76: 60 | C76: 496 | D76: 639 | E76: 839 | G76: 60 | H76: 40763 | I76: 45288 | J76: 49826
A77: male | B77: 61 | C77: 554 | D77: 686 | E77: 782 | G77: 61 | H77: 41317 | I77: 45974 | J77: 50608
A78: male | B78: 62 | C78: 531 | D78: 710 | E78: 710 | G78: 62 | H78: 41848 | I78: 46684 | J78: 51318
A79: male | B79: 63 | C79: 498 | D79: 825 | E79: 677 | G79: 63 | H79: 42346 | I79: 47509 | J79: 51995
A80: male | B80: 64 | C80: 494 | D80: 831 | E80: 653 | G80: 64 | H80: 42840 | I80: 48340 | J80: 52648
A81: male | B81: 65 | C81: 510 | D81: 611 | E81: 690 | G81: 65 | H81: =H80+C81 -> 43350 | I81: =I80+D81 -> 48951 | J81: =J80+E81 -> 53338
A82: male | B82: 66 | C82: 437 | D82: 716 | E82: 636 | G82: 66 | H82: 43787 | I82: 49667 | J82: 53974
A83: male | B83: 67 | C83: 432 | D83: 599 | E83: 609 | G83: 67 | H83: 44219 | I83: 50266 | J83: 54583
A84: male | B84: 68 | C84: 420 | D84: 569 | E84: 629 | G84: 68 | H84: 44639 | I84: 50835 | J84: 55212
A85: male | B85: 69 | C85: 459 | D85: 458 | E85: 634 | G85: 69 | H85: 45098 | I85: 51293 | J85: 55846
A86: male | B86: 70 | C86: 406 | D86: 447 | E86: 584 | G86: 70 | H86: 45504 | I86: 51740 | J86: 56430
A87: male | B87: 71 | C87: 374 | D87: 482 | E87: 670 | G87: 71 | H87: 45878 | I87: 52222 | J87: 57100
A88: male | B88: 72 | C88: 368 | D88: 449 | E88: 658 | G88: 72 | H88: 46246 | I88: 52671 | J88: 57758
A89: male | B89: 73 | C89: 323 | D89: 414 | E89: 732 | G89: 73 | H89: 46569 | I89: 53085 | J89: 58490
A90: male | B90: 74 | C90: 330 | D90: 429 | E90: 743 | G90: 74 | H90: 46899 | I90: 53514 | J90: 59233
A91: male | B91: 75 | C91: 322 | D91: 380 | E91: 561 | G91: 75 | H91: 47221 | I91: 53894 | J91: 59794
A92: male | B92: 76 | C92: 313 | D92: 326 | E92: 594 | G92: 76 | H92: 47534 | I92: 54220 | J92: 60388
A93: male | B93: 77 | C93: 315 | D93: 349 | E93: 526 | G93: 77 | H93: 47849 | I93: 54569 | J93: 60914
A94: male | B94: 78 | C94: 274 | D94: 303 | E94: 461 | G94: 78 | H94: 48123 | I94: 54872 | J94: 61375
A95: male | B95: 79 | C95: 260 | D95: 326 | E95: 386 | G95: 79 | H95: 48383 | I95: 55198 | J95: 61761
A96: male | B96: 80 | C96: 262 | D96: 285 | E96: 362 | G96: 80 | H96: 48645 | I96: 55483 | J96: 62123
A97: male | B97: 81 | C97: 293 | D97: 251 | E97: 372 | G97: 81 | H97: 48938 | I97: 55734 | J97: 62495
A98: male | B98: 82 | C98: 151 | D98: 233 | E98: 319 | G98: 82 | H98: 49089 | I98: 55967 | J98: 62814
A99: male | B99: 83 | C99: 129 | D99: 185 | E99: 292 | G99: 83 | H99: 49218 | I99: 56152 | J99: 63106
A100: male | B100: 84 | C100: 147 | D100: 171 | E100: 256 | G100: 84 | H100: 49365 | I100: 56323 | J100: 63362
A101: male | B101: 85 | C101: 123 | D101: 166 | E101: 236 | G101: 85 | H101: 49488 | I101: 56489 | J101: 63598
A102: male | B102: 86 | C102: 115 | D102: 166 | E102: 213 | G102: 86 | H102: 49603 | I102: 56655 | J102: 63811
A103: male | B103: 87 | C103: 73 | D103: 145 | E103: 147 | G103: 87 | H103: 49676 | I103: 56800 | J103: 63958
A104: male | B104: 88 | C104: 74 | D104: 99 | E104: 138 | G104: 88 | H104: 49750 | I104: 56899 | J104: 64096
A105: male | B105: 89 | C105: 73 | D105: 100 | E105: 132 | G105: 89 | H105: 49823 | I105: 56999 | J105: 64228
A106: male | B106: 90+ | C106: 144 | D106: 233 | E106: 365 | G106: 90+ | H106: 49967 | I106: 57232 | J106: 64593
B107: All Males | C107: =SUM(C16:C106) -> 49967 | D107: 57232 | E107: =SUM(E16:E106) -> 64593 | G107: Females
A108: Sex | B108: Age
A109: female | B109: 0 | C109: 603 | D109: 736 | E109: 681 | G109: 0 | H109: =C109 -> 603 | I109: =D109 -> 736 | J109: =E109 -> 681
A110: female | B110: 1 | C110: 594 | D110: 764 | E110: 738 | G110: 1 | H110: =H109+C110 -> 1197 | I110: =I109+D110 -> 1500 | J110: =J109+E110 -> 1419
A111: female | B111: 2 | C111: 618 | D111: 802 | E111: 746 | G111: 2 | H111: 1815 | I111: 2302 | J111: 2165
A112: female | B112: 3 | C112: 644 | D112: 761 | E112: 784 | G112: 3 | H112: 2459 | I112: 3063 | J112: 2949
A113: female | B113: 4 | C113: 655 | D113: 780 | E113: 773 | G113: 4 | H113: 3114 | I113: 3843 | J113: 3722
A114: female | B114: 5 | C114: 686 | D114: 692 | E114: 809 | G114: 5 | H114: 3800 | I114: 4535 | J114: 4531
A115: female | B115: 6 | C115: 645 | D115: 715 | E115: 808 | G115: 6 | H115: 4445 | I115: 5250 | J115: 5339
A116: female | B116: 7 | C116: 708 | D116: 731 | E116: 741 | G116: 7 | H116: 5153 | I116: 5981 | J116: 6080
A117: female | B117: 8 | C117: 716 | D117: 733 | E117: 850 | G117: 8 | H117: 5869 | I117: 6714 | J117: 6930
A118: female | B118: 9 | C118: 706 | D118: 736 | E118: 838 | G118: 9 | H118: 6575 | I118: 7450 | J118: 7768
A119: female | B119: 10 | C119: 705 | D119: 719 | E119: 845 | G119: 10 | H119: 7280 | I119: 8169 | J119: 8613
A120: female | B120: 11 | C120: 715 | D120: 754 | E120: 881 | G120: 11 | H120: 7995 | I120: 8923 | J120: 9494
A121: female | B121: 12 | C121: 677 | D121: 781 | E121: 855 | G121: 12 | H121: 8672 | I121: 9704 | J121: 10349
A122: female | B122: 13 | C122: 655 | D122: 826 | E122: 840 | G122: 13 | H122: 9327 | I122: 10530 | J122: 11189
A123: female | B123: 14 | C123: 674 | D123: 804 | E123: 834 | G123: 14 | H123: 10001 | I123: 11334 | J123: 12023
A124: female | B124: 15 | C124: 651 | D124: 741 | E124: 710 | G124: 15 | H124: 10652 | I124: 12075 | J124: 12733
A125: female | B125: 16 | C125: 664 | D125: 740 | E125: 753 | G125: 16 | H125: 11316 | I125: 12815 | J125: 13486
A126: female | B126: 17 | C126: 624 | D126: 770 | E126: 807 | G126: 17 | H126: 11940 | I126: 13585 | J126: 14293
A127: female | B127: 18 | C127: 568 | D127: 738 | E127: 687 | G127: 18 | H127: 12508 | I127: 14323 | J127: 14980
A128: female | B128: 19 | C128: 468 | D128: 621 | E128: 539 | G128: 19 | H128: 12976 | I128: 14944 | J128: 15519
A129: female | B129: 20 | C129: 533 | D129: 560 | E129: 449 | G129: 20 | H129: 13509 | I129: 15504 | J129: 15968
A130: female | B130: 21 | C130: 442 | D130: 600 | E130: 582 | G130: 21 | H130: 13951 | I130: 16104 | J130: 16550
A131: female | B131: 22 | C131: 504 | D131: 648 | E131: 659 | G131: 22 | H131: 14455 | I131: 16752 | J131: 17209
A132: female | B132: 23 | C132: 481 | D132: 653 | E132: 749 | G132: 23 | H132: 14936 | I132: 17405 | J132: 17958
A133: female | B133: 24 | C133: 481 | D133: 686 | E133: 763 | G133: 24 | H133: 15417 | I133: 18091 | J133: 18721
A134: female | B134: 25 | C134: 505 | D134: 751 | E134: 688 | G134: 25 | H134: 15922 | I134: 18842 | J134: 19409
A135: female | B135: 26 | C135: 572 | D135: 672 | E135: 838 | G135: 26 | H135: 16494 | I135: 19514 | J135: 20247
A136: female | B136: 27 | C136: 569 | D136: 666 | E136: 856 | G136: 27 | H136: 17063 | I136: 20180 | J136: 21103
A137: female | B137: 28 | C137: 670 | D137: 716 | E137: 855 | G137: 28 | H137: 17733 | I137: 20896 | J137: 21958
A138: female | B138: 29 | C138: 722 | D138: 679 | E138: 856 | G138: 29 | H138: 18455 | I138: 21575 | J138: 22814
A139: female | B139: 30 | C139: 762 | D139: 695 | E139: 924 | G139: 30 | H139: 19217 | I139: 22270 | J139: 23738
A140: female | B140: 31 | C140: 779 | D140: 674 | E140: 940 | G140: 31 | H140: 19996 | I140: 22944 | J140: 24678
A141: female | B141: 32 | C141: 807 | D141: 735 | E141: 968 | G141: 32 | H141: 20803 | I141: 23679 | J141: 25646
A142: female | B142: 33 | C142: 843 | D142: 665 | E142: 942 | G142: 33 | H142: =H141+C142 -> 21646 | I142: =I141+D142 -> 24344 | J142: =J141+E142 -> 26588
A143: female | B143: 34 | C143: 829 | D143: 696 | E143: 919 | G143: 34 | H143: 22475 | I143: 25040 | J143: 27507
A144: female | B144: 35 | C144: 880 | D144: 694 | E144: 919 | G144: 35 | H144: 23355 | I144: 25734 | J144: 28426
A145: female | B145: 36 | C145: 864 | D145: 753 | E145: 885 | G145: 36 | H145: 24219 | I145: 26487 | J145: 29311
A146: female | B146: 37 | C146: 825 | D146: 788 | E146: 862 | G146: 37 | H146: 25044 | I146: 27275 | J146: 30173
A147: female | B147: 38 | C147: 824 | D147: 804 | E147: 872 | G147: 38 | H147: 25868 | I147: 28079 | J147: 31045
A148: female | B148: 39 | C148: 834 | D148: 892 | E148: 859 | G148: 39 | H148: 26702 | I148: 28971 | J148: 31904
A149: female | B149: 40 | C149: 728 | D149: 951 | E149: 850 | G149: 40 | H149: 27430 | I149: 29922 | J149: 32754
A150: female | B150: 41 | C150: 707 | D150: 970 | E150: 806 | G150: 41 | H150: 28137 | I150: 30892 | J150: 33560
A151: female | B151: 42 | C151: 729 | D151: 984 | E151: 887 | G151: 42 | H151: 28866 | I151: 31876 | J151: 34447
A152: female | B152: 43 | C152: 696 | D152: 1005 | E152: 819 | G152: 43 | H152: 29562 | I152: 32881 | J152: 35266
A153: female | B153: 44 | C153: 650 | D153: 955 | E153: 850 | G153: 44 | H153: 30212 | I153: 33836 | J153: 36116
A154: female | B154: 45 | C154: 751 | D154: 973 | E154: 806 | G154: 45 | H154: 30963 | I154: 34809 | J154: 36922
A155: female | B155: 46 | C155: 687 | D155: 949 | E155: 892 | G155: 46 | H155: 31650 | I155: 35758 | J155: 37814
A156: female | B156: 47 | C156: 666 | D156: 884 | E156: 851 | G156: 47 | H156: 32316 | I156: 36642 | J156: 38665
A157: female | B157: 48 | C157: 658 | D157: 935 | E157: 889 | G157: 48 | H157: 32974 | I157: 37577 | J157: 39554
A158: female | B158: 49 | C158: 673 | D158: 854 | E158: 1006 | G158: 49 | H158: 33647 | I158: 38431 | J158: 40560
A159: female | B159: 50 | C159: 644 | D159: 812 | E159: 1002 | G159: 50 | H159: 34291 | I159: 39243 | J159: 41562
A160: female | B160: 51 | C160: 731 | D160: 740 | E160: 1046 | G160: 51 | H160: 35022 | I160: 39983 | J160: 42608
A161: female | B161: 52 | C161: 713 | D161: 759 | E161: 992 | G161: 52 | H161: 35735 | I161: 40742 | J161: 43600
A162: female | B162: 53 | C162: 827 | D162: 769 | E162: 1050 | G162: 53 | H162: 36562 | I162: 41511 | J162: 44650
A163: female | B163: 54 | C163: 866 | D163: 709 | E163: 981 | G163: 54 | H163: 37428 | I163: 42220 | J163: 45631
A164: female | B164: 55 | C164: 682 | D164: 726 | E164: 975 | G164: 55 | H164: 38110 | I164: 42946 | J164: 46606
A165: female | B165: 56 | C165: 709 | D165: 708 | E165: 998 | G165: 56 | H165: 38819 | I165: 43654 | J165: 47604
A166: female | B166: 57 | C166: 701 | D166: 659 | E166: 906 | G166: 57 | H166: 39520 | I166: 44313 | J166: 48510
A167: female | B167: 58 | C167: 637 | D167: 656 | E167: 949 | G167: 58 | H167: 40157 | I167: 44969 | J167: 49459
A168: female | B168: 59 | C168: 513 | D168: 691 | E168: 861 | G168: 59 | H168: 40670 | I168: 45660 | J168: 50320
A169: female | B169: 60 | C169: 545 | D169: 687 | E169: 821 | G169: 60 | H169: 41215 | I169: 46347 | J169: 51141
A170: female | B170: 61 | C170: 520 | D170: 741 | E170: 752 | G170: 61 | H170: 41735 | I170: 47088 | J170: 51893
A171: female | B171: 62 | C171: 516 | D171: 774 | E171: 751 | G171: 62 | H171: 42251 | I171: 47862 | J171: 52644
A172: female | B172: 63 | C172: 493 | D172: 888 | E172: 755 | G172: 63 | H172: 42744 | I172: 48750 | J172: 53399
A173: female | B173: 64 | C173: 466 | D173: 898 | E173: 709 | G173: 64 | H173: 43210 | I173: 49648 | J173: 54108
A174: female | B174: 65 | C174: 482 | D174: 654 | E174: 710 | G174: 65 | H174: =H173+C174 -> 43692 | I174: =I173+D174 -> 50302 | J174: =J173+E174 -> 54818
A175: female | B175: 66 | C175: 479 | D175: 752 | E175: 739 | G175: 66 | H175: 44171 | I175: 51054 | J175: 55557
A176: female | B176: 67 | C176: 461 | D176: 674 | E176: 682 | G176: 67 | H176: 44632 | I176: 51728 | J176: 56239
A177: female | B177: 68 | C177: 466 | D177: 643 | E177: 657 | G177: 68 | H177: 45098 | I177: 52371 | J177: 56896
A178: female | B178: 69 | C178: 505 | D178: 519 | E178: 668 | G178: 69 | H178: 45603 | I178: 52890 | J178: 57564
A179: female | B179: 70 | C179: 479 | D179: 496 | E179: 690 | G179: 70 | H179: 46082 | I179: 53386 | J179: 58254
A180: female | B180: 71 | C180: 476 | D180: 476 | E180: 700 | G180: 71 | H180: 46558 | I180: 53862 | J180: 58954
A181: female | B181: 72 | C181: 421 | D181: 515 | E181: 765 | G181: 72 | H181: 46979 | I181: 54377 | J181: 59719
A182: female | B182: 73 | C182: 404 | D182: 461 | E182: 840 | G182: 73 | H182: 47383 | I182: 54838 | J182: 60559
A183: female | B183: 74 | C183: 457 | D183: 445 | E183: 856 | G183: 74 | H183: 47840 | I183: 55283 | J183: 61415
A184: female | B184: 75 | C184: 441 | D184: 431 | E184: 614 | G184: 75 | H184: 48281 | I184: 55714 | J184: 62029
A185: female | B185: 76 | C185: 402 | D185: 398 | E185: 661 | G185: 76 | H185: 48683 | I185: 56112 | J185: 62690
A186: female | B186: 77 | C186: 371 | D186: 394 | E186: 591 | G186: 77 | H186: 49054 | I186: 56506 | J186: 63281
A187: female | B187: 78 | C187: 402 | D187: 389 | E187: 549 | G187: 78 | H187: 49456 | I187: 56895 | J187: 63830
A188: female | B188: 79 | C188: 409 | D188: 401 | E188: 458 | G188: 79 | H188: 49865 | I188: 57296 | J188: 64288
A189: female | B189: 80 | C189: 423 | D189: 377 | E189: 412 | G189: 80 | H189: 50288 | I189: 57673 | J189: 64700
A190: female | B190: 81 | C190: 367 | D190: 346 | E190: 415 | G190: 81 | H190: 50655 | I190: 58019 | J190: 65115
A191: female | B191: 82 | C191: 244 | D191: 309 | E191: 402 | G191: 82 | H191: 50899 | I191: 58328 | J191: 65517
A192: female | B192: 83 | C192: 197 | D192: 283 | E192: 333 | G192: 83 | H192: 51096 | I192: 58611 | J192: 65850
A193: female | B193: 84 | C193: 241 | D193: 289 | E193: 342 | G193: 84 | H193: 51337 | I193: 58900 | J193: 66192
A194: female | B194: 85 | C194: 205 | D194: 274 | E194: 291 | G194: 85 | H194: 51542 | I194: 59174 | J194: 66483
A195: female | B195: 86 | C195: 208 | D195: 226 | E195: 254 | G195: 86 | H195: 51750 | I195: 59400 | J195: 66737
A196: female | B196: 87 | C196: 185 | D196: 222 | E196: 232 | G196: 87 | H196: 51935 | I196: 59622 | J196: 66969
A197: female | B197: 88 | C197: 168 | D197: 205 | E197: 220 | G197: 88 | H197: 52103 | I197: 59827 | J197: 67189
A198: female | B198: 89 | C198: 137 | D198: 189 | E198: 198 | G198: 89 | H198: 52240 | I198: 60016 | J198: 67387
A199: female | B199: 90+ | C199: 466 | D199: 708 | E199: 772 | G199: 90+ | H199: 52706 | I199: 60724 | J199: 68159
B200: All Females | C200: =SUM(C109:C199) -> 52706 | D200: 60724 | E200: =SUM(E109:E199) -> 68159

Sheet CAN (hidden)
A1: Mid Year Population Estimates | K1: Insert column here before extending the table
A2: 2001, 2011, and 2021 Census: The Office forNnational Statistics (ONS) | G2: Selected Ages: | O2: Start year | P2: End Year | Q2: Number change | R2: % Change
H3: =H13 -> 2001 | I3: 2011 | J3: =J13 -> 2021 | O3: =INDEX($H3:$I3,Index!$B$16) -> 2011 | P3: =INDEX($H3:$J3,Index!$B$19) -> 2011
G4: Males | H4: =OFFSET(H16,Index!$B$7-1,0)-IF(Index!$B$4-2=1,0,OFFSET(H16,Index!$B$4-2,0)) -> 64125 | I4: =OFFSET(I16,Index!$B$7-1,0)-IF(Index!$B$4-2=1,0,OFFSET(I16,Index!$B$4-2,0)) -> 72638 | J4: =OFFSET(J16,Index!$B$7-1,0)-IF(Index!$B$4-2=1,0,OFFSET(J16,Index!$B$4-2,0)) -> 75576 | O4: =INDEX($H4:$I4,Index!$B$16) -> 72638 | P4: =INDEX($H4:$J4,Index!$B$19) -> 72638 | Q4: =P4-O4 -> 0 | R4: =Q4/O4 -> 0
G5: Females | H5: =OFFSET(H109,Index!$B$7-1,0)-IF(Index!$B$4-2=1,0,OFFSET(H109,Index!$B$4-2,0)) -> 71152 | I5: =OFFSET(I109,Index!$B$7-1,0)-IF(Index!$B$4-2=1,0,OFFSET(I109,Index!$B$4-2,0)) -> 78507 | J5: =OFFSET(J109,Index!$B$7-1,0)-IF(Index!$B$4-2=1,0,OFFSET(J109,Index!$B$4-2,0)) -> 81841 | O5: =INDEX($H5:$I5,Index!$B$16) -> 78507 | P5: =INDEX($H5:$J5,Index!$B$19) -> 78507 | Q5: =P5-O5 -> 0 | R5: =Q5/O5 -> 0
G6: Total | H6: =SUM(H4:H5) -> 135277 | I6: 151145 | J6: =SUM(J4:J5) -> 157417 | O6: =INDEX($H6:$I6,Index!$B$16) -> 151145 | P6: =INDEX($H6:$J6,Index!$B$19) -> 151145 | Q6: =P6-O6 -> 0 | R6: =Q6/O6 -> 0
G8: Males | H8: =IF(H4<0,"0",H4) -> 64125 | I8: 72638 | J8: =IF(J4<0,"0",J4) -> 75576
G9: Females | H9: 71152 | I9: 78507 | J9: 81841
G10: Total | H10: =SUM(H8:H9) -> 135277 | I10: 151145 | J10: =SUM(J8:J9) -> 157417
A12: Canterbury | L12: Population Pyramid
H13: =C14 -> 2001 | I13: =D14 -> 2011 | J13: =E14 -> 2021
A14: Sex | B14: Age | C14: 2001 | D14: 2011 | E14: 2021 | O14: 2001 | P14: 2011 | Q14: 2021 | S14: =INDEX(O14:Q14,Index!$B$23) -> 2021
B15: All persons | C15: =SUM(C107,C200) -> 135277 | D15: 151145 | E15: =SUM(E107,E200) -> 157417 | G15: Males | L15: Males | M15: All Ages | O15: =C107 -> 64125 | P15: =D107 -> 72638 | Q15: =E107 -> 75576 | S15: =INDEX(O15:Q15,Index!$B$23) -> 75576
A16: male | B16: 0 | C16: 637 | D16: 809 | E16: 665 | G16: 0 | H16: =C16 -> 637 | I16: =D16 -> 809 | J16: =E16 -> 665 | L16: Males | M16: 0-4 | O16: =SUM(C16:C20) -> 3511 | P16: =SUM(D16:D20) -> 3864 | Q16: =SUM(E16:E20) -> 3529 | S16: =INDEX(O16:Q16,Index!$B$23) -> 3529
A17: male | B17: 1 | C17: 704 | D17: 752 | E17: 669 | G17: 1 | H17: =H16+C17 -> 1341 | I17: =I16+D17 -> 1561 | J17: =J16+E17 -> 1334 | L17: Males | M17: 5-9 | O17: =SUM(C21:C25) -> 3965 | P17: =SUM(D21:D25) -> 3870 | Q17: =SUM(E21:E25) -> 4007 | S17: =INDEX(O17:Q17,Index!$B$23) -> 4007
A18: male | B18: 2 | C18: 725 | D18: 765 | E18: 714 | G18: 2 | H18: 2066 | I18: 2326 | J18: 2048 | L18: Males | M18: 10-14 | O18: =SUM(C26:C30) -> 4391 | P18: =SUM(D26:D30) -> 4309 | Q18: =SUM(E26:E30) -> 4358 | S18: =INDEX(O18:Q18,Index!$B$23) -> 4358
A19: male | B19: 3 | C19: 698 | D19: 719 | E19: 729 | G19: 3 | H19: 2764 | I19: 3045 | J19: 2777 | L19: Males | M19: 15-19 | O19: =SUM(C31:C35) -> 4888 | P19: =SUM(D31:D35) -> 6504 | Q19: =SUM(E31:E35) -> 6255 | S19: =INDEX(O19:Q19,Index!$B$23) -> 6255
A20: male | B20: 4 | C20: 747 | D20: 819 | E20: 752 | G20: 4 | H20: 3511 | I20: 3864 | J20: 3529 | L20: Males | M20: 20-24 | O20: =SUM(C36:C40) -> 5343 | P20: =SUM(D36:D40) -> 7907 | Q20: =SUM(E36:E40) -> 7515 | S20: =INDEX(O20:Q20,Index!$B$23) -> 7515
A21: male | B21: 5 | C21: 754 | D21: 818 | E21: 804 | G21: 5 | H21: 4265 | I21: 4682 | J21: 4333 | L21: Males | M21: 25-29 | O21: =SUM(C41:C45) -> 3602 | P21: =SUM(D41:D45) -> 4380 | Q21: =SUM(E41:E45) -> 4313 | S21: =INDEX(O21:Q21,Index!$B$23) -> 4313
A22: male | B22: 6 | C22: 773 | D22: 734 | E22: 762 | G22: 6 | H22: 5038 | I22: 5416 | J22: 5095 | L22: Males | M22: 30-34 | O22: =SUM(C46:C50) -> 4157 | P22: =SUM(D46:D50) -> 3532 | Q22: =SUM(E46:E50) -> 4096 | S22: =INDEX(O22:Q22,Index!$B$23) -> 4096
A23: male | B23: 7 | C23: 804 | D23: 786 | E23: 784 | G23: 7 | H23: 5842 | I23: 6202 | J23: 5879 | L23: Males | M23: 35-39 | O23: =SUM(C51:C55) -> 4282 | P23: =SUM(D51:D55) -> 3705 | Q23: =SUM(E51:E55) -> 3940 | S23: =INDEX(O23:Q23,Index!$B$23) -> 3940
A24: male | B24: 8 | C24: 820 | D24: 779 | E24: 788 | G24: 8 | H24: 6662 | I24: 6981 | J24: 6667 | L24: Males | M24: 40-44 | O24: =SUM(C56:C60) -> 4047 | P24: =SUM(D56:D60) -> 4613 | Q24: =SUM(E56:E60) -> 3939 | S24: =INDEX(O24:Q24,Index!$B$23) -> 3939
A25: male | B25: 9 | C25: 814 | D25: 753 | E25: 869 | G25: 9 | H25: 7476 | I25: 7734 | J25: 7536 | L25: Males | M25: 45-49 | O25: =SUM(C61:C65) -> 3804 | P25: =SUM(D61:D65) -> 4762 | Q25: =SUM(E61:E65) -> 4287 | S25: =INDEX(O25:Q25,Index!$B$23) -> 4287
A26: male | B26: 10 | C26: 861 | D26: 790 | E26: 851 | G26: 10 | H26: 8337 | I26: 8524 | J26: 8387 | L26: Males | M26: 50-54 | O26: =SUM(C66:C70) -> 4394 | P26: =SUM(D66:D70) -> 4232 | Q26: =SUM(E66:E70) -> 4718 | S26: =INDEX(O26:Q26,Index!$B$23) -> 4718
A27: male | B27: 11 | C27: 841 | D27: 838 | E27: 872 | G27: 11 | H27: 9178 | I27: 9362 | J27: 9259 | L27: Males | M27: 55-59 | O27: =SUM(C71:C75) -> 3807 | P27: =SUM(D71:D75) -> 4056 | Q27: =SUM(E71:E75) -> 4928 | S27: =INDEX(O27:Q27,Index!$B$23) -> 4928
A28: male | B28: 12 | C28: 898 | D28: 873 | E28: 862 | G28: 12 | H28: 10076 | I28: 10235 | J28: 10121 | L28: Males | M28: 60-64 | O28: =SUM(C76:C80) -> 3355 | P28: =SUM(D76:D80) -> 4651 | Q28: =SUM(E76:E80) -> 4375 | S28: =INDEX(O28:Q28,Index!$B$23) -> 4375
A29: male | B29: 13 | C29: 894 | D29: 880 | E29: 829 | G29: 13 | H29: 10970 | I29: 11115 | J29: 10950 | L29: Males | M29: 65-69 | O29: =SUM(C81:C85) -> 2950 | P29: =SUM(D81:D85) -> 3719 | Q29: =SUM(E81:E85) -> 4040 | S29: =INDEX(O29:Q29,Index!$B$23) -> 4040
A30: male | B30: 14 | C30: 897 | D30: 928 | E30: 944 | G30: 14 | H30: 11867 | I30: 12043 | J30: 11894 | L30: Males | M30: 70-74 | O30: =SUM(C86:C90) -> 2708 | P30: =SUM(D86:D90) -> 3052 | Q30: =SUM(E86:E90) -> 4403 | S30: =INDEX(O30:Q30,Index!$B$23) -> 4403
A31: male | B31: 15 | C31: 908 | D31: 941 | E31: 924 | G31: 15 | H31: 12775 | I31: 12984 | J31: 12818 | L31: Males | M31: 75-79 | O31: =SUM(C91:C95) -> 2315 | P31: =SUM(D91:D95) -> 2296 | Q31: =SUM(E91:E95) -> 3110 | S31: =INDEX(O31:Q31,Index!$B$23) -> 3110
A32: male | B32: 16 | C32: 890 | D32: 910 | E32: 898 | G32: 16 | H32: 13665 | I32: 13894 | J32: 13716 | L32: Males | M32: 80-84 | O32: =SUM(C96:C100) -> 1566 | P32: =SUM(D96:D100) -> 1742 | Q32: =SUM(E96:E100) -> 2119 | S32: =INDEX(O32:Q32,Index!$B$23) -> 2119
A33: male | B33: 17 | C33: 829 | D33: 980 | E33: 972 | G33: 17 | H33: 14494 | I33: 14874 | J33: 14688 | L33: Males | M33: 85-89 | O33: =SUM(C101:C105) -> 755 | P33: =SUM(D101:D105) -> 1010 | Q33: 1099 | S33: =INDEX(O33:Q33,Index!$B$23) -> 1099
A34: male | B34: 18 | C34: 939 | D34: 1462 | E34: 1389 | G34: 18 | H34: 15433 | I34: 16336 | J34: 16077 | L34: Males | M34: 90+ | O34: =C106 -> 285 | P34: =D106 -> 434 | Q34: 545 | S34: =INDEX(O34:Q34,Index!$B$23) -> 545
A35: male | B35: 19 | C35: 1322 | D35: 2211 | E35: 2072 | G35: 19 | H35: 16755 | I35: 18547 | J35: 18149
A36: male | B36: 20 | C36: 1422 | D36: 2375 | E36: 1946 | G36: 20 | H36: 18177 | I36: 20922 | J36: 20095 | L36: Males | M36: All Ages | O36: =C200 -> 71152 | P36: =D200 -> 78507 | Q36: =E200 -> 81841 | S36: =INDEX(O36:Q36,Index!$B$23) -> 81841
A37: male | B37: 21 | C37: 1258 | D37: 1898 | E37: 1928 | G37: 21 | H37: 19435 | I37: 22820 | J37: 22023 | L37: Females | M37: 0-4 | O37: =SUM(C109:C113) -> 3383 | P37: =SUM(D109:D113) -> 3650 | Q37: =SUM(E109:E113) -> 3294 | S37: =INDEX(O37:Q37,Index!$B$23) -> 3294
A38: male | B38: 22 | C38: 1069 | D38: 1471 | E38: 1506 | G38: 22 | H38: 20504 | I38: 24291 | J38: 23529 | L38: Females | M38: 5-9 | O38: =SUM(C114:C118) -> 3727 | P38: =SUM(D114:D118) -> 3636 | Q38: =SUM(E114:E118) -> 3738 | S38: =INDEX(O38:Q38,Index!$B$23) -> 3738
A39: male | B39: 23 | C39: 840 | D39: 1172 | E39: 1120 | G39: 23 | H39: 21344 | I39: 25463 | J39: 24649 | L39: Females | M39: 10-14 | O39: =SUM(C119:C123) -> 4199 | P39: =SUM(D119:D123) -> 4084 | Q39: =SUM(E119:E123) -> 4000 | S39: =INDEX(O39:Q39,Index!$B$23) -> 4000
A40: male | B40: 24 | C40: 754 | D40: 991 | E40: 1015 | G40: 24 | H40: 22098 | I40: 26454 | J40: 25664 | L40: Females | M40: 15-19 | O40: =SUM(C124:C128) -> 5022 | P40: =SUM(D124:D128) -> 6805 | Q40: =SUM(E124:E128) -> 6345 | S40: =INDEX(O40:Q40,Index!$B$23) -> 6345
A41: male | B41: 25 | C41: 708 | D41: 977 | E41: 884 | G41: 25 | H41: 22806 | I41: 27431 | J41: 26548 | L41: Females | M41: 20-24 | O41: =SUM(C129:C133) -> 5836 | P41: =SUM(D129:D133) -> 8315 | Q41: =SUM(E129:E133) -> 8273 | S41: =INDEX(O41:Q41,Index!$B$23) -> 8273
A42: male | B42: 26 | C42: 677 | D42: 981 | E42: 896 | G42: 26 | H42: 23483 | I42: 28412 | J42: 27444 | L42: Females | M42: 25-29 | O42: =SUM(C134:C138) -> 3903 | P42: =SUM(D134:D138) -> 4278 | Q42: =SUM(E134:E138) -> 4352 | S42: =INDEX(O42:Q42,Index!$B$23) -> 4352
A43: male | B43: 27 | C43: 689 | D43: 841 | E43: 861 | G43: 27 | H43: 24172 | I43: 29253 | J43: 28305 | L43: Females | M43: 30-34 | O43: =SUM(C139:C143) -> 4200 | P43: =SUM(D139:D143) -> 3726 | Q43: =SUM(E139:E143) -> 4317 | S43: =INDEX(O43:Q43,Index!$B$23) -> 4317
A44: male | B44: 28 | C44: 743 | D44: 804 | E44: 860 | G44: 28 | H44: 24915 | I44: 30057 | J44: 29165 | L44: Females | M44: 35-39 | O44: =SUM(C144:C148) -> 4524 | P44: =SUM(D144:D148) -> 4173 | Q44: =SUM(E144:E148) -> 4395 | S44: =INDEX(O44:Q44,Index!$B$23) -> 4395
A45: male | B45: 29 | C45: 785 | D45: 777 | E45: 812 | G45: 29 | H45: 25700 | I45: 30834 | J45: 29977 | L45: Females | M45: 40-44 | O45: =SUM(C149:C153) -> 4254 | P45: =SUM(D149:D153) -> 4893 | Q45: =SUM(E149:E153) -> 4297 | S45: =INDEX(O45:Q45,Index!$B$23) -> 4297
A46: male | B46: 30 | C46: 864 | D46: 802 | E46: 811 | G46: 30 | H46: 26564 | I46: 31636 | J46: 30788 | L46: Females | M46: 45-49 | O46: =SUM(C154:C158) -> 4147 | P46: =SUM(D154:D158) -> 4924 | Q46: =SUM(E154:E158) -> 4701 | S46: =INDEX(O46:Q46,Index!$B$23) -> 4701
A47: male | B47: 31 | C47: 734 | D47: 726 | E47: 835 | G47: 31 | H47: 27298 | I47: 32362 | J47: 31623 | L47: Females | M47: 50-54 | O47: =SUM(C159:C163) -> 4749 | P47: =SUM(D159:D163) -> 4495 | Q47: =SUM(E159:E163) -> 5161 | S47: =INDEX(O47:Q47,Index!$B$23) -> 5161
A48: male | B48: 32 | C48: 810 | D48: 666 | E48: 803 | G48: 32 | H48: 28108 | I48: 33028 | J48: 32426 | L48: Females | M48: 55-59 | O48: =SUM(C164:C168) -> 4225 | P48: =SUM(D164:D168) -> 4331 | Q48: =SUM(E164:E168) -> 5288 | S48: =INDEX(O48:Q48,Index!$B$23) -> 5288
A49: male | B49: 33 | C49: 837 | D49: 684 | E49: 838 | G49: 33 | H49: =H48+C49 -> 28945 | I49: =I48+D49 -> 33712 | J49: =J48+E49 -> 33264 | L49: Females | M49: 60-64 | O49: =SUM(C169:C173) -> 3557 | P49: =SUM(D169:D173) -> 5005 | Q49: =SUM(E169:E173) -> 4751 | S49: =INDEX(O49:Q49,Index!$B$23) -> 4751
A50: male | B50: 34 | C50: 912 | D50: 654 | E50: 809 | G50: 34 | H50: 29857 | I50: 34366 | J50: 34073 | L50: Females | M50: 65-69 | O50: =SUM(C174:C178) -> 3251 | P50: =SUM(D174:D178) -> 4231 | Q50: =SUM(E174:E178) -> 4491 | S50: =INDEX(O50:Q50,Index!$B$23) -> 4491
A51: male | B51: 35 | C51: 885 | D51: 698 | E51: 799 | G51: 35 | H51: 30742 | I51: 35064 | J51: 34872 | L51: Females | M51: 70-74 | O51: =SUM(C179:C183) -> 3499 | P51: =SUM(D179:D183) -> 3339 | Q51: =SUM(E179:E183) -> 4979 | S51: =INDEX(O51:Q51,Index!$B$23) -> 4979
A52: male | B52: 36 | C52: 918 | D52: 706 | E52: 839 | G52: 36 | H52: 31660 | I52: 35770 | J52: 35711 | L52: Females | M52: 75-79 | O52: =SUM(C184:C188) -> 3351 | P52: =SUM(D184:D188) -> 2902 | Q52: =SUM(E184:E188) -> 3797 | S52: =INDEX(O52:Q52,Index!$B$23) -> 3797
A53: male | B53: 37 | C53: 828 | D53: 693 | E53: 758 | G53: 37 | H53: 32488 | I53: 36463 | J53: 36469 | L53: Females | M53: 80-84 | O53: =SUM(C189:C193) -> 2575 | P53: =SUM(D189:D193) -> 2600 | Q53: =SUM(E189:E193) -> 2612 | S53: =INDEX(O53:Q53,Index!$B$23) -> 2612
A54: male | B54: 38 | C54: 838 | D54: 756 | E54: 769 | G54: 38 | H54: 33326 | I54: 37219 | J54: 37238 | L54: Females | M54: 85-89 | O54: =SUM(C194:C198) -> 1763 | P54: =SUM(D194:D198) -> 1911 | Q54: 1726 | S54: =INDEX(O54:Q54,Index!$B$23) -> 1726
A55: male | B55: 39 | C55: 813 | D55: 852 | E55: 775 | G55: 39 | H55: 34139 | I55: 38071 | J55: 38013 | L55: Females | M55: 90+ | O55: =C199 -> 987 | P55: =D199 -> 1209 | Q55: 1324 | S55: =INDEX(O55:Q55,Index!$B$23) -> 1324
A56: male | B56: 40 | C56: 808 | D56: 906 | E56: 869 | G56: 40 | H56: 34947 | I56: 38977 | J56: 38882
A57: male | B57: 41 | C57: 809 | D57: 859 | E57: 826 | G57: 41 | H57: 35756 | I57: 39836 | J57: 39708
A58: male | B58: 42 | C58: 808 | D58: 916 | E58: 757 | G58: 42 | H58: 36564 | I58: 40752 | J58: 40465
A59: male | B59: 43 | C59: 838 | D59: 927 | E59: 751 | G59: 43 | H59: 37402 | I59: 41679 | J59: 41216
A60: male | B60: 44 | C60: 784 | D60: 1005 | E60: 736 | G60: 44 | H60: 38186 | I60: 42684 | J60: 41952
A61: male | B61: 45 | C61: 731 | D61: 950 | E61: 780 | G61: 45 | H61: 38917 | I61: 43634 | J61: 42732
A62: male | B62: 46 | C62: 781 | D62: 1010 | E62: 844 | G62: 46 | H62: 39698 | I62: 44644 | J62: 43576
A63: male | B63: 47 | C63: 773 | D63: 935 | E63: 830 | G63: 47 | H63: 40471 | I63: 45579 | J63: 44406
A64: male | B64: 48 | C64: 765 | D64: 923 | E64: 902 | G64: 48 | H64: 41236 | I64: 46502 | J64: 45308
A65: male | B65: 49 | C65: 754 | D65: 944 | E65: 931 | G65: 49 | H65: 41990 | I65: 47446 | J65: 46239
A66: male | B66: 50 | C66: 768 | D66: 887 | E66: 936 | G66: 50 | H66: 42758 | I66: 48333 | J66: 47175
A67: male | B67: 51 | C67: 806 | D67: 824 | E67: 896 | G67: 51 | H67: 43564 | I67: 49157 | J67: 48071
A68: male | B68: 52 | C68: 875 | D68: 837 | E68: 966 | G68: 52 | H68: 44439 | I68: 49994 | J68: 49037
A69: male | B69: 53 | C69: 945 | D69: 858 | E69: 919 | G69: 53 | H69: 45384 | I69: 50852 | J69: 49956
A70: male | B70: 54 | C70: 1000 | D70: 826 | E70: 1001 | G70: 54 | H70: 46384 | I70: 51678 | J70: 50957
A71: male | B71: 55 | C71: 820 | D71: 832 | E71: 1023 | G71: 55 | H71: 47204 | I71: 52510 | J71: 51980
A72: male | B72: 56 | C72: 790 | D72: 811 | E72: 1067 | G72: 56 | H72: 47994 | I72: 53321 | J72: 53047
A73: male | B73: 57 | C73: 769 | D73: 776 | E73: 936 | G73: 57 | H73: 48763 | I73: 54097 | J73: 53983
A74: male | B74: 58 | C74: 761 | D74: 852 | E74: 957 | G74: 58 | H74: 49524 | I74: 54949 | J74: 54940
A75: male | B75: 59 | C75: 667 | D75: 785 | E75: 945 | G75: 59 | H75: 50191 | I75: 55734 | J75: 55885
A76: male | B76: 60 | C76: 619 | D76: 814 | E76: 923 | G76: 60 | H76: 50810 | I76: 56548 | J76: 56808
A77: male | B77: 61 | C77: 729 | D77: 863 | E77: 862 | G77: 61 | H77: 51539 | I77: 57411 | J77: 57670
A78: male | B78: 62 | C78: 694 | D78: 922 | E78: 881 | G78: 62 | H78: 52233 | I78: 58333 | J78: 58551
A79: male | B79: 63 | C79: 660 | D79: 989 | E79: 858 | G79: 63 | H79: 52893 | I79: 59322 | J79: 59409
A80: male | B80: 64 | C80: 653 | D80: 1063 | E80: 851 | G80: 64 | H80: 53546 | I80: 60385 | J80: 60260
A81: male | B81: 65 | C81: 644 | D81: 826 | E81: 844 | G81: 65 | H81: =H80+C81 -> 54190 | I81: =I80+D81 -> 61211 | J81: =J80+E81 -> 61104
A82: male | B82: 66 | C82: 611 | D82: 796 | E82: 820 | G82: 66 | H82: 54801 | I82: 62007 | J82: 61924
A83: male | B83: 67 | C83: 566 | D83: 729 | E83: 779 | G83: 67 | H83: 55367 | I83: 62736 | J83: 62703
A84: male | B84: 68 | C84: 535 | D84: 736 | E84: 835 | G84: 68 | H84: 55902 | I84: 63472 | J84: 63538
A85: male | B85: 69 | C85: 594 | D85: 632 | E85: 762 | G85: 69 | H85: 56496 | I85: 64104 | J85: 64300
A86: male | B86: 70 | C86: 606 | D86: 602 | E86: 807 | G86: 70 | H86: 57102 | I86: 64706 | J86: 65107
A87: male | B87: 71 | C87: 534 | D87: 693 | E87: 853 | G87: 71 | H87: 57636 | I87: 65399 | J87: 65960
A88: male | B88: 72 | C88: 543 | D88: 592 | E88: 871 | G88: 72 | H88: 58179 | I88: 65991 | J88: 66831
A89: male | B89: 73 | C89: 522 | D89: 607 | E89: 940 | G89: 73 | H89: 58701 | I89: 66598 | J89: 67771
A90: male | B90: 74 | C90: 503 | D90: 558 | E90: 932 | G90: 74 | H90: 59204 | I90: 67156 | J90: 68703
A91: male | B91: 75 | C91: 518 | D91: 537 | E91: 706 | G91: 75 | H91: 59722 | I91: 67693 | J91: 69409
A92: male | B92: 76 | C92: 474 | D92: 483 | E92: 702 | G92: 76 | H92: 60196 | I92: 68176 | J92: 70111
A93: male | B93: 77 | C93: 452 | D93: 444 | E93: 588 | G93: 77 | H93: 60648 | I93: 68620 | J93: 70699
A94: male | B94: 78 | C94: 441 | D94: 410 | E94: 628 | G94: 78 | H94: 61089 | I94: 69030 | J94: 71327
A95: male | B95: 79 | C95: 430 | D95: 422 | E95: 486 | G95: 79 | H95: 61519 | I95: 69452 | J95: 71813
A96: male | B96: 80 | C96: 439 | D96: 431 | E96: 452 | G96: 80 | H96: 61958 | I96: 69883 | J96: 72265
A97: male | B97: 81 | C97: 419 | D97: 353 | E97: 504 | G97: 81 | H97: 62377 | I97: 70236 | J97: 72769
A98: male | B98: 82 | C98: 221 | D98: 360 | E98: 427 | G98: 82 | H98: 62598 | I98: 70596 | J98: 73196
A99: male | B99: 83 | C99: 245 | D99: 324 | E99: 391 | G99: 83 | H99: 62843 | I99: 70920 | J99: 73587
A100: male | B100: 84 | C100: 242 | D100: 274 | E100: 345 | G100: 84 | H100: 63085 | I100: 71194 | J100: 73932
A101: male | B101: 85 | C101: 207 | D101: 270 | E101: 293 | G101: 85 | H101: 63292 | I101: 71464 | J101: 74225
A102: male | B102: 86 | C102: 168 | D102: 229 | E102: 269 | G102: 86 | H102: 63460 | I102: 71693 | J102: 74494
A103: male | B103: 87 | C103: 152 | D103: 184 | E103: 203 | G103: 87 | H103: 63612 | I103: 71877 | J103: 74697
A104: male | B104: 88 | C104: 125 | D104: 173 | E104: 180 | G104: 88 | H104: 63737 | I104: 72050 | J104: 74877
A105: male | B105: 89 | C105: 103 | D105: 154 | E105: 154 | G105: 89 | H105: 63840 | I105: 72204 | J105: 75031
A106: male | B106: 90+ | C106: 285 | D106: 434 | E106: 545 | G106: 90+ | H106: 64125 | I106: 72638 | J106: 75576
B107: All Males | C107: =SUM(C16:C106) -> 64125 | D107: 72638 | E107: =SUM(E16:E106) -> 75576 | G107: Females
A108: Sex | B108: Age
A109: female | B109: 0 | C109: 596 | D109: 738 | E109: 572 | G109: 0 | H109: =C109 -> 596 | I109: =D109 -> 738 | J109: =E109 -> 572
A110: female | B110: 1 | C110: 655 | D110: 740 | E110: 666 | G110: 1 | H110: =H109+C110 -> 1251 | I110: =I109+D110 -> 1478 | J110: =J109+E110 -> 1238
A111: female | B111: 2 | C111: 667 | D111: 740 | E111: 685 | G111: 2 | H111: 1918 | I111: 2218 | J111: 1923
A112: female | B112: 3 | C112: 764 | D112: 725 | E112: 690 | G112: 3 | H112: 2682 | I112: 2943 | J112: 2613
A113: female | B113: 4 | C113: 701 | D113: 707 | E113: 681 | G113: 4 | H113: 3383 | I113: 3650 | J113: 3294
A114: female | B114: 5 | C114: 695 | D114: 767 | E114: 713 | G114: 5 | H114: 4078 | I114: 4417 | J114: 4007
A115: female | B115: 6 | C115: 740 | D115: 728 | E115: 735 | G115: 6 | H115: 4818 | I115: 5145 | J115: 4742
A116: female | B116: 7 | C116: 726 | D116: 700 | E116: 706 | G116: 7 | H116: 5544 | I116: 5845 | J116: 5448
A117: female | B117: 8 | C117: 772 | D117: 726 | E117: 747 | G117: 8 | H117: 6316 | I117: 6571 | J117: 6195
A118: female | B118: 9 | C118: 794 | D118: 715 | E118: 837 | G118: 9 | H118: 7110 | I118: 7286 | J118: 7032
A119: female | B119: 10 | C119: 833 | D119: 747 | E119: 797 | G119: 10 | H119: 7943 | I119: 8033 | J119: 7829
A120: female | B120: 11 | C120: 786 | D120: 773 | E120: 784 | G120: 11 | H120: 8729 | I120: 8806 | J120: 8613
A121: female | B121: 12 | C121: 865 | D121: 793 | E121: 851 | G121: 12 | H121: 9594 | I121: 9599 | J121: 9464
A122: female | B122: 13 | C122: 842 | D122: 895 | E122: 813 | G122: 13 | H122: 10436 | I122: 10494 | J122: 10277
A123: female | B123: 14 | C123: 873 | D123: 876 | E123: 755 | G123: 14 | H123: 11309 | I123: 11370 | J123: 11032
A124: female | B124: 15 | C124: 829 | D124: 820 | E124: 801 | G124: 15 | H124: 12138 | I124: 12190 | J124: 11833
A125: female | B125: 16 | C125: 887 | D125: 905 | E125: 852 | G125: 16 | H125: 13025 | I125: 13095 | J125: 12685
A126: female | B126: 17 | C126: 838 | D126: 861 | E126: 828 | G126: 17 | H126: 13863 | I126: 13956 | J126: 13513
A127: female | B127: 18 | C127: 1029 | D127: 1604 | E127: 1486 | G127: 18 | H127: 14892 | I127: 15560 | J127: 14999
A128: female | B128: 19 | C128: 1439 | D128: 2615 | E128: 2378 | G128: 19 | H128: 16331 | I128: 18175 | J128: 17377
A129: female | B129: 20 | C129: 1598 | D129: 2693 | E129: 2417 | G129: 20 | H129: 17929 | I129: 20868 | J129: 19794
A130: female | B130: 21 | C130: 1481 | D130: 2094 | E130: 2182 | G130: 21 | H130: 19410 | I130: 22962 | J130: 21976
A131: female | B131: 22 | C131: 1111 | D131: 1484 | E131: 1520 | G131: 22 | H131: 20521 | I131: 24446 | J131: 23496
A132: female | B132: 23 | C132: 878 | D132: 1108 | E132: 1158 | G132: 23 | H132: 21399 | I132: 25554 | J132: 24654
A133: female | B133: 24 | C133: 768 | D133: 936 | E133: 996 | G133: 24 | H133: 22167 | I133: 26490 | J133: 25650
A134: female | B134: 25 | C134: 752 | D134: 898 | E134: 880 | G134: 25 | H134: 22919 | I134: 27388 | J134: 26530
A135: female | B135: 26 | C135: 756 | D135: 918 | E135: 914 | G135: 26 | H135: 23675 | I135: 28306 | J135: 27444
A136: female | B136: 27 | C136: 795 | D136: 855 | E136: 854 | G136: 27 | H136: 24470 | I136: 29161 | J136: 28298
A137: female | B137: 28 | C137: 796 | D137: 844 | E137: 880 | G137: 28 | H137: 25266 | I137: 30005 | J137: 29178
A138: female | B138: 29 | C138: 804 | D138: 763 | E138: 824 | G138: 29 | H138: 26070 | I138: 30768 | J138: 30002
A139: female | B139: 30 | C139: 862 | D139: 743 | E139: 837 | G139: 30 | H139: 26932 | I139: 31511 | J139: 30839
A140: female | B140: 31 | C140: 804 | D140: 800 | E140: 843 | G140: 31 | H140: 27736 | I140: 32311 | J140: 31682
A141: female | B141: 32 | C141: 842 | D141: 776 | E141: 911 | G141: 32 | H141: 28578 | I141: 33087 | J141: 32593
A142: female | B142: 33 | C142: 864 | D142: 703 | E142: 847 | G142: 33 | H142: =H141+C142 -> 29442 | I142: =I141+D142 -> 33790 | J142: =J141+E142 -> 33440
A143: female | B143: 34 | C143: 828 | D143: 704 | E143: 879 | G143: 34 | H143: 30270 | I143: 34494 | J143: 34319
A144: female | B144: 35 | C144: 931 | D144: 763 | E144: 864 | G144: 35 | H144: 31201 | I144: 35257 | J144: 35183
A145: female | B145: 36 | C145: 898 | D145: 788 | E145: 882 | G145: 36 | H145: 32099 | I145: 36045 | J145: 36065
A146: female | B146: 37 | C146: 887 | D146: 878 | E146: 879 | G146: 37 | H146: 32986 | I146: 36923 | J146: 36944
A147: female | B147: 38 | C147: 930 | D147: 864 | E147: 917 | G147: 38 | H147: 33916 | I147: 37787 | J147: 37861
A148: female | B148: 39 | C148: 878 | D148: 880 | E148: 853 | G148: 39 | H148: 34794 | I148: 38667 | J148: 38714
A149: female | B149: 40 | C149: 899 | D149: 966 | E149: 872 | G149: 40 | H149: 35693 | I149: 39633 | J149: 39586
A150: female | B150: 41 | C150: 891 | D150: 968 | E150: 922 | G150: 41 | H150: 36584 | I150: 40601 | J150: 40508
A151: female | B151: 42 | C151: 881 | D151: 1009 | E151: 875 | G151: 42 | H151: 37465 | I151: 41610 | J151: 41383
A152: female | B152: 43 | C152: 786 | D152: 963 | E152: 804 | G152: 43 | H152: 38251 | I152: 42573 | J152: 42187
A153: female | B153: 44 | C153: 797 | D153: 987 | E153: 824 | G153: 44 | H153: 39048 | I153: 43560 | J153: 43011
A154: female | B154: 45 | C154: 851 | D154: 1018 | E154: 887 | G154: 45 | H154: 39899 | I154: 44578 | J154: 43898
A155: female | B155: 46 | C155: 817 | D155: 996 | E155: 862 | G155: 46 | H155: 40716 | I155: 45574 | J155: 44760
A156: female | B156: 47 | C156: 842 | D156: 994 | E156: 967 | G156: 47 | H156: 41558 | I156: 46568 | J156: 45727
A157: female | B157: 48 | C157: 788 | D157: 980 | E157: 998 | G157: 48 | H157: 42346 | I157: 47548 | J157: 46725
A158: female | B158: 49 | C158: 849 | D158: 936 | E158: 987 | G158: 49 | H158: 43195 | I158: 48484 | J158: 47712
A159: female | B159: 50 | C159: 873 | D159: 890 | E159: 989 | G159: 50 | H159: 44068 | I159: 49374 | J159: 48701
A160: female | B160: 51 | C160: 828 | D160: 942 | E160: 1087 | G160: 51 | H160: 44896 | I160: 50316 | J160: 49788
A161: female | B161: 52 | C161: 873 | D161: 993 | E161: 1028 | G161: 52 | H161: 45769 | I161: 51309 | J161: 50816
A162: female | B162: 53 | C162: 1059 | D162: 835 | E162: 1011 | G162: 53 | H162: 46828 | I162: 52144 | J162: 51827
A163: female | B163: 54 | C163: 1116 | D163: 835 | E163: 1046 | G163: 54 | H163: 47944 | I163: 52979 | J163: 52873
A164: female | B164: 55 | C164: 900 | D164: 903 | E164: 1077 | G164: 55 | H164: 48844 | I164: 53882 | J164: 53950
A165: female | B165: 56 | C165: 902 | D165: 873 | E165: 1063 | G165: 56 | H165: 49746 | I165: 54755 | J165: 55013
A166: female | B166: 57 | C166: 868 | D166: 840 | E166: 1044 | G166: 57 | H166: 50614 | I166: 55595 | J166: 56057
A167: female | B167: 58 | C167: 845 | D167: 855 | E167: 1091 | G167: 58 | H167: 51459 | I167: 56450 | J167: 57148
A168: female | B168: 59 | C168: 710 | D168: 860 | E168: 1013 | G168: 59 | H168: 52169 | I168: 57310 | J168: 58161
A169: female | B169: 60 | C169: 643 | D169: 891 | E169: 973 | G169: 60 | H169: 52812 | I169: 58201 | J169: 59134
A170: female | B170: 61 | C170: 737 | D170: 909 | E170: 989 | G170: 61 | H170: 53549 | I170: 59110 | J170: 60123
A171: female | B171: 62 | C171: 771 | D171: 965 | E171: 974 | G171: 62 | H171: 54320 | I171: 60075 | J171: 61097
A172: female | B172: 63 | C172: 709 | D172: 1084 | E172: 912 | G172: 63 | H172: 55029 | I172: 61159 | J172: 62009
A173: female | B173: 64 | C173: 697 | D173: 1156 | E173: 903 | G173: 64 | H173: 55726 | I173: 62315 | J173: 62912
A174: female | B174: 65 | C174: 655 | D174: 890 | E174: 938 | G174: 65 | H174: =H173+C174 -> 56381 | I174: =I173+D174 -> 63205 | J174: =J173+E174 -> 63850
A175: female | B175: 66 | C175: 625 | D175: 931 | E175: 918 | G175: 66 | H175: 57006 | I175: 64136 | J175: 64768
A176: female | B176: 67 | C176: 669 | D176: 870 | E176: 894 | G176: 67 | H176: 57675 | I176: 65006 | J176: 65662
A177: female | B177: 68 | C177: 664 | D177: 834 | E177: 867 | G177: 68 | H177: 58339 | I177: 65840 | J177: 66529
A178: female | B178: 69 | C178: 638 | D178: 706 | E178: 874 | G178: 69 | H178: 58977 | I178: 66546 | J178: 67403
A179: female | B179: 70 | C179: 700 | D179: 633 | E179: 899 | G179: 70 | H179: 59677 | I179: 67179 | J179: 68302
A180: female | B180: 71 | C180: 741 | D180: 702 | E180: 936 | G180: 71 | H180: 60418 | I180: 67881 | J180: 69238
A181: female | B181: 72 | C181: 694 | D181: 686 | E181: 966 | G181: 72 | H181: 61112 | I181: 68567 | J181: 70204
A182: female | B182: 73 | C182: 655 | D182: 686 | E182: 1077 | G182: 73 | H182: 61767 | I182: 69253 | J182: 71281
A183: female | B183: 74 | C183: 709 | D183: 632 | E183: 1101 | G183: 74 | H183: 62476 | I183: 69885 | J183: 72382
A184: female | B184: 75 | C184: 664 | D184: 615 | E184: 843 | G184: 75 | H184: 63140 | I184: 70500 | J184: 73225
A185: female | B185: 76 | C185: 679 | D185: 612 | E185: 866 | G185: 76 | H185: 63819 | I185: 71112 | J185: 74091
A186: female | B186: 77 | C186: 665 | D186: 566 | E186: 744 | G186: 77 | H186: 64484 | I186: 71678 | J186: 74835
A187: female | B187: 78 | C187: 677 | D187: 578 | E187: 701 | G187: 78 | H187: 65161 | I187: 72256 | J187: 75536
A188: female | B188: 79 | C188: 666 | D188: 531 | E188: 643 | G188: 79 | H188: 65827 | I188: 72787 | J188: 76179
A189: female | B189: 80 | C189: 728 | D189: 570 | E189: 541 | G189: 80 | H189: 66555 | I189: 73357 | J189: 76720
A190: female | B190: 81 | C190: 617 | D190: 583 | E190: 575 | G190: 81 | H190: 67172 | I190: 73940 | J190: 77295
A191: female | B191: 82 | C191: 415 | D191: 522 | E191: 539 | G191: 82 | H191: 67587 | I191: 74462 | J191: 77834
A192: female | B192: 83 | C192: 374 | D192: 467 | E192: 508 | G192: 83 | H192: 67961 | I192: 74929 | J192: 78342
A193: female | B193: 84 | C193: 441 | D193: 458 | E193: 449 | G193: 84 | H193: 68402 | I193: 75387 | J193: 78791
A194: female | B194: 85 | C194: 417 | D194: 433 | E194: 427 | G194: 85 | H194: 68819 | I194: 75820 | J194: 79218
A195: female | B195: 86 | C195: 412 | D195: 414 | E195: 371 | G195: 86 | H195: 69231 | I195: 76234 | J195: 79589
A196: female | B196: 87 | C196: 339 | D196: 406 | E196: 338 | G196: 87 | H196: 69570 | I196: 76640 | J196: 79927
A197: female | B197: 88 | C197: 325 | D197: 345 | E197: 315 | G197: 88 | H197: 69895 | I197: 76985 | J197: 80242
A198: female | B198: 89 | C198: 270 | D198: 313 | E198: 275 | G198: 89 | H198: 70165 | I198: 77298 | J198: 80517
A199: female | B199: 90+ | C199: 987 | D199: 1209 | E199: 1324 | G199: 90+ | H199: 71152 | I199: 78507 | J199: 81841
B200: All Females | C200: =SUM(C109:C199) -> 71152 | D200: 78507 | E200: =SUM(E109:E199) -> 81841

Sheet DAR (hidden)
A1: Mid Year Population Estimates | K1: Insert column here before extending the table
A2: 2001, 2011, and 2021 Census: The Office forNnational Statistics (ONS) | G2: Selected Ages: | O2: Start year | P2: End Year | Q2: Number change | R2: % Change
H3: =H13 -> 2001 | I3: 2011 | J3: =J13 -> 2021 | O3: =INDEX($H3:$I3,Index!$B$16) -> 2011 | P3: =INDEX($H3:$J3,Index!$B$19) -> 2011
G4: Males | H4: =OFFSET(H16,Index!$B$7-1,0)-IF(Index!$B$4-2=1,0,OFFSET(H16,Index!$B$4-2,0)) -> 42117 | I4: =OFFSET(I16,Index!$B$7-1,0)-IF(Index!$B$4-2=1,0,OFFSET(I16,Index!$B$4-2,0)) -> 48061 | J4: =OFFSET(J16,Index!$B$7-1,0)-IF(Index!$B$4-2=1,0,OFFSET(J16,Index!$B$4-2,0)) -> 57155 | O4: =INDEX($H4:$I4,Index!$B$16) -> 48061 | P4: =INDEX($H4:$J4,Index!$B$19) -> 48061 | Q4: =P4-O4 -> 0 | R4: =Q4/O4 -> 0
G5: Females | H5: =OFFSET(H109,Index!$B$7-1,0)-IF(Index!$B$4-2=1,0,OFFSET(H109,Index!$B$4-2,0)) -> 43789 | I5: =OFFSET(I109,Index!$B$7-1,0)-IF(Index!$B$4-2=1,0,OFFSET(I109,Index!$B$4-2,0)) -> 49304 | J5: =OFFSET(J109,Index!$B$7-1,0)-IF(Index!$B$4-2=1,0,OFFSET(J109,Index!$B$4-2,0)) -> 59593 | O5: =INDEX($H5:$I5,Index!$B$16) -> 49304 | P5: =INDEX($H5:$J5,Index!$B$19) -> 49304 | Q5: =P5-O5 -> 0 | R5: =Q5/O5 -> 0
G6: Total | H6: =SUM(H4:H5) -> 85906 | I6: 97365 | J6: =SUM(J4:J5) -> 116748 | O6: =INDEX($H6:$I6,Index!$B$16) -> 97365 | P6: =INDEX($H6:$J6,Index!$B$19) -> 97365 | Q6: =P6-O6 -> 0 | R6: =Q6/O6 -> 0
G8: Males | H8: =IF(H4<0,"0",H4) -> 42117 | I8: 48061 | J8: =IF(J4<0,"0",J4) -> 57155
G9: Females | H9: 43789 | I9: 49304 | J9: 59593
G10: Total | H10: =SUM(H8:H9) -> 85906 | I10: 97365 | J10: =SUM(J8:J9) -> 116748
A12: Dartford | L12: Population Pyramid
H13: =C14 -> 2001 | I13: =D14 -> 2011 | J13: =E14 -> 2021
A14: Sex | B14: Age | C14: 2001 | D14: 2011 | E14: 2021 | O14: 2001 | P14: 2011 | Q14: 2021 | S14: =INDEX(O14:Q14,Index!$B$23) -> 2021
B15: All persons | C15: =SUM(C107,C200) -> 85906 | D15: 97365 | E15: =SUM(E107,E200) -> 116748 | G15: Males | L15: Males | M15: All Ages | O15: =C107 -> 42117 | P15: =D107 -> 48061 | Q15: =E107 -> 57155 | S15: =INDEX(O15:Q15,Index!$B$23) -> 57155
A16: male | B16: 0 | C16: 541 | D16: 694 | E16: 805 | G16: 0 | H16: =C16 -> 541 | I16: =D16 -> 694 | J16: =E16 -> 805 | L16: Males | M16: 0-4 | O16: =SUM(C16:C20) -> 2866 | P16: =SUM(D16:D20) -> 3377 | Q16: =SUM(E16:E20) -> 4314 | S16: =INDEX(O16:Q16,Index!$B$23) -> 4314
A17: male | B17: 1 | C17: 569 | D17: 702 | E17: 858 | G17: 1 | H17: =H16+C17 -> 1110 | I17: =I16+D17 -> 1396 | J17: =J16+E17 -> 1663 | L17: Males | M17: 5-9 | O17: =SUM(C21:C25) -> 3077 | P17: =SUM(D21:D25) -> 3111 | Q17: =SUM(E21:E25) -> 4208 | S17: =INDEX(O17:Q17,Index!$B$23) -> 4208
A18: male | B18: 2 | C18: 647 | D18: 673 | E18: 908 | G18: 2 | H18: 1757 | I18: 2069 | J18: 2571 | L18: Males | M18: 10-14 | O18: =SUM(C26:C30) -> 2905 | P18: =SUM(D26:D30) -> 3014 | Q18: =SUM(E26:E30) -> 4095 | S18: =INDEX(O18:Q18,Index!$B$23) -> 4095
A19: male | B19: 3 | C19: 551 | D19: 674 | E19: 876 | G19: 3 | H19: 2308 | I19: 2743 | J19: 3447 | L19: Males | M19: 15-19 | O19: =SUM(C31:C35) -> 2488 | P19: =SUM(D31:D35) -> 3068 | Q19: =SUM(E31:E35) -> 3257 | S19: =INDEX(O19:Q19,Index!$B$23) -> 3257
A20: male | B20: 4 | C20: 558 | D20: 634 | E20: 867 | G20: 4 | H20: 2866 | I20: 3377 | J20: 4314 | L20: Males | M20: 20-24 | O20: =SUM(C36:C40) -> 2491 | P20: =SUM(D36:D40) -> 3014 | Q20: =SUM(E36:E40) -> 2781 | S20: =INDEX(O20:Q20,Index!$B$23) -> 2781
A21: male | B21: 5 | C21: 626 | D21: 682 | E21: 815 | G21: 5 | H21: 3492 | I21: 4059 | J21: 5129 | L21: Males | M21: 25-29 | O21: =SUM(C41:C45) -> 2985 | P21: =SUM(D41:D45) -> 3440 | Q21: =SUM(E41:E45) -> 3654 | S21: =INDEX(O21:Q21,Index!$B$23) -> 3654
A22: male | B22: 6 | C22: 604 | D22: 663 | E22: 830 | G22: 6 | H22: 4096 | I22: 4722 | J22: 5959 | L22: Males | M22: 30-34 | O22: =SUM(C46:C50) -> 3629 | P22: =SUM(D46:D50) -> 3567 | Q22: =SUM(E46:E50) -> 4584 | S22: =INDEX(O22:Q22,Index!$B$23) -> 4584
A23: male | B23: 7 | C23: 606 | D23: 594 | E23: 816 | G23: 7 | H23: 4702 | I23: 5316 | J23: 6775 | L23: Males | M23: 35-39 | O23: =SUM(C51:C55) -> 3714 | P23: =SUM(D51:D55) -> 3545 | Q23: =SUM(E51:E55) -> 4536 | S23: =INDEX(O23:Q23,Index!$B$23) -> 4536
A24: male | B24: 8 | C24: 611 | D24: 616 | E24: 863 | G24: 8 | H24: 5313 | I24: 5932 | J24: 7638 | L24: Males | M24: 40-44 | O24: =SUM(C56:C60) -> 2998 | P24: =SUM(D56:D60) -> 3758 | Q24: =SUM(E56:E60) -> 4379 | S24: =INDEX(O24:Q24,Index!$B$23) -> 4379
A25: male | B25: 9 | C25: 630 | D25: 556 | E25: 884 | G25: 9 | H25: 5943 | I25: 6488 | J25: 8522 | L25: Males | M25: 45-49 | O25: =SUM(C61:C65) -> 2641 | P25: =SUM(D61:D65) -> 3679 | Q25: =SUM(E61:E65) -> 3981 | S25: =INDEX(O25:Q25,Index!$B$23) -> 3981
A26: male | B26: 10 | C26: 579 | D26: 595 | E26: 859 | G26: 10 | H26: 6522 | I26: 7083 | J26: 9381 | L26: Males | M26: 50-54 | O26: =SUM(C66:C70) -> 2805 | P26: =SUM(D66:D70) -> 3129 | Q26: =SUM(E66:E70) -> 3778 | S26: =INDEX(O26:Q26,Index!$B$23) -> 3778
A27: male | B27: 11 | C27: 574 | D27: 583 | E27: 873 | G27: 11 | H27: 7096 | I27: 7666 | J27: 10254 | L27: Males | M27: 55-59 | O27: =SUM(C71:C75) -> 2280 | P27: =SUM(D71:D75) -> 2549 | Q27: =SUM(E71:E75) -> 3559 | S27: =INDEX(O27:Q27,Index!$B$23) -> 3559
A28: male | B28: 12 | C28: 587 | D28: 630 | E28: 825 | G28: 12 | H28: 7683 | I28: 8296 | J28: 11079 | L28: Males | M28: 60-64 | O28: =SUM(C76:C80) -> 1980 | P28: =SUM(D76:D80) -> 2546 | Q28: =SUM(E76:E80) -> 2773 | S28: =INDEX(O28:Q28,Index!$B$23) -> 2773
A29: male | B29: 13 | C29: 584 | D29: 591 | E29: 799 | G29: 13 | H29: 8267 | I29: 8887 | J29: 11878 | L29: Males | M29: 65-69 | O29: =SUM(C81:C85) -> 1707 | P29: =SUM(D81:D85) -> 1914 | Q29: =SUM(E81:E85) -> 2131 | S29: =INDEX(O29:Q29,Index!$B$23) -> 2131
A30: male | B30: 14 | C30: 581 | D30: 615 | E30: 739 | G30: 14 | H30: 8848 | I30: 9502 | J30: 12617 | L30: Males | M30: 70-74 | O30: =SUM(C86:C90) -> 1523 | P30: =SUM(D86:D90) -> 1510 | Q30: =SUM(E86:E90) -> 1977 | S30: =INDEX(O30:Q30,Index!$B$23) -> 1977
A31: male | B31: 15 | C31: 554 | D31: 710 | E31: 768 | G31: 15 | H31: 9402 | I31: 10212 | J31: 13385 | L31: Males | M31: 75-79 | O31: =SUM(C91:C95) -> 1057 | P31: =SUM(D91:D95) -> 1288 | Q31: =SUM(E91:E95) -> 1363 | S31: =INDEX(O31:Q31,Index!$B$23) -> 1363
A32: male | B32: 16 | C32: 636 | D32: 639 | E32: 747 | G32: 16 | H32: 10038 | I32: 10851 | J32: 14132 | L32: Males | M32: 80-84 | O32: =SUM(C96:C100) -> 605 | P32: =SUM(D96:D100) -> 903 | Q32: =SUM(E96:E100) -> 953 | S32: =INDEX(O32:Q32,Index!$B$23) -> 953
A33: male | B33: 17 | C33: 469 | D33: 627 | E33: 660 | G33: 17 | H33: 10507 | I33: 11478 | J33: 14792 | L33: Males | M33: 85-89 | O33: =SUM(C101:C105) -> 279 | P33: =SUM(D101:D105) -> 462 | Q33: 559 | S33: =INDEX(O33:Q33,Index!$B$23) -> 559
A34: male | B34: 18 | C34: 416 | D34: 592 | E34: 613 | G34: 18 | H34: 10923 | I34: 12070 | J34: 15405 | L34: Males | M34: 90+ | O34: =C106 -> 87 | P34: =D106 -> 187 | Q34: 273 | S34: =INDEX(O34:Q34,Index!$B$23) -> 273
A35: male | B35: 19 | C35: 413 | D35: 500 | E35: 469 | G35: 19 | H35: 11336 | I35: 12570 | J35: 15874
A36: male | B36: 20 | C36: 445 | D36: 495 | E36: 465 | G36: 20 | H36: 11781 | I36: 13065 | J36: 16339 | L36: Males | M36: All Ages | O36: =C200 -> 43789 | P36: =D200 -> 49304 | Q36: =E200 -> 59593 | S36: =INDEX(O36:Q36,Index!$B$23) -> 59593
A37: male | B37: 21 | C37: 503 | D37: 596 | E37: 516 | G37: 21 | H37: 12284 | I37: 13661 | J37: 16855 | L37: Females | M37: 0-4 | O37: =SUM(C109:C113) -> 2688 | P37: =SUM(D109:D113) -> 3388 | Q37: =SUM(E109:E113) -> 3967 | S37: =INDEX(O37:Q37,Index!$B$23) -> 3967
A38: male | B38: 22 | C38: 494 | D38: 566 | E38: 574 | G38: 22 | H38: 12778 | I38: 14227 | J38: 17429 | L38: Females | M38: 5-9 | O38: =SUM(C114:C118) -> 2897 | P38: =SUM(D114:D118) -> 2868 | Q38: =SUM(E114:E118) -> 4060 | S38: =INDEX(O38:Q38,Index!$B$23) -> 4060
A39: male | B39: 23 | C39: 507 | D39: 668 | E39: 620 | G39: 23 | H39: 13285 | I39: 14895 | J39: 18049 | L39: Females | M39: 10-14 | O39: =SUM(C119:C123) -> 2755 | P39: =SUM(D119:D123) -> 2908 | Q39: =SUM(E119:E123) -> 3936 | S39: =INDEX(O39:Q39,Index!$B$23) -> 3936
A40: male | B40: 24 | C40: 542 | D40: 689 | E40: 606 | G40: 24 | H40: 13827 | I40: 15584 | J40: 18655 | L40: Females | M40: 15-19 | O40: =SUM(C124:C128) -> 2461 | P40: =SUM(D124:D128) -> 2937 | Q40: =SUM(E124:E128) -> 2971 | S40: =INDEX(O40:Q40,Index!$B$23) -> 2971
A41: male | B41: 25 | C41: 552 | D41: 701 | E41: 653 | G41: 25 | H41: 14379 | I41: 16285 | J41: 19308 | L41: Females | M41: 20-24 | O41: =SUM(C129:C133) -> 2515 | P41: =SUM(D129:D133) -> 3185 | Q41: =SUM(E129:E133) -> 2849 | S41: =INDEX(O41:Q41,Index!$B$23) -> 2849
A42: male | B42: 26 | C42: 578 | D42: 703 | E42: 715 | G42: 26 | H42: 14957 | I42: 16988 | J42: 20023 | L42: Females | M42: 25-29 | O42: =SUM(C134:C138) -> 3181 | P42: =SUM(D134:D138) -> 3641 | Q42: =SUM(E134:E138) -> 4268 | S42: =INDEX(O42:Q42,Index!$B$23) -> 4268
A43: male | B43: 27 | C43: 593 | D43: 627 | E43: 695 | G43: 27 | H43: 15550 | I43: 17615 | J43: 20718 | L43: Females | M43: 30-34 | O43: =SUM(C139:C143) -> 3745 | P43: =SUM(D139:D143) -> 3556 | Q43: =SUM(E139:E143) -> 5277 | S43: =INDEX(O43:Q43,Index!$B$23) -> 5277
A44: male | B44: 28 | C44: 602 | D44: 703 | E44: 794 | G44: 28 | H44: 16152 | I44: 18318 | J44: 21512 | L44: Females | M44: 35-39 | O44: =SUM(C144:C148) -> 3665 | P44: =SUM(D144:D148) -> 3522 | Q44: =SUM(E144:E148) -> 5093 | S44: =INDEX(O44:Q44,Index!$B$23) -> 5093
A45: male | B45: 29 | C45: 660 | D45: 706 | E45: 797 | G45: 29 | H45: 16812 | I45: 19024 | J45: 22309 | L45: Females | M45: 40-44 | O45: =SUM(C149:C153) -> 2985 | P45: =SUM(D149:D153) -> 3893 | Q45: =SUM(E149:E153) -> 4364 | S45: =INDEX(O45:Q45,Index!$B$23) -> 4364
A46: male | B46: 30 | C46: 729 | D46: 741 | E46: 894 | G46: 30 | H46: 17541 | I46: 19765 | J46: 23203 | L46: Females | M46: 45-49 | O46: =SUM(C154:C158) -> 2603 | P46: =SUM(D154:D158) -> 3653 | Q46: =SUM(E154:E158) -> 3857 | S46: =INDEX(O46:Q46,Index!$B$23) -> 3857
A47: male | B47: 31 | C47: 694 | D47: 753 | E47: 900 | G47: 31 | H47: 18235 | I47: 20518 | J47: 24103 | L47: Females | M47: 50-54 | O47: =SUM(C159:C163) -> 2856 | P47: =SUM(D159:D163) -> 3003 | Q47: =SUM(E159:E163) -> 3877 | S47: =INDEX(O47:Q47,Index!$B$23) -> 3877
A48: male | B48: 32 | C48: 742 | D48: 724 | E48: 926 | G48: 32 | H48: 18977 | I48: 21242 | J48: 25029 | L48: Females | M48: 55-59 | O48: =SUM(C164:C168) -> 2252 | P48: =SUM(D164:D168) -> 2515 | Q48: =SUM(E164:E168) -> 3502 | S48: =INDEX(O48:Q48,Index!$B$23) -> 3502
A49: male | B49: 33 | C49: 669 | D49: 677 | E49: 918 | G49: 33 | H49: =H48+C49 -> 19646 | I49: =I48+D49 -> 21919 | J49: =J48+E49 -> 25947 | L49: Females | M49: 60-64 | O49: =SUM(C169:C173) -> 2040 | P49: =SUM(D169:D173) -> 2547 | Q49: =SUM(E169:E173) -> 2792 | S49: =INDEX(O49:Q49,Index!$B$23) -> 2792
A50: male | B50: 34 | C50: 795 | D50: 672 | E50: 946 | G50: 34 | H50: 20441 | I50: 22591 | J50: 26893 | L50: Females | M50: 65-69 | O50: =SUM(C174:C178) -> 1891 | P50: =SUM(D174:D178) -> 1976 | Q50: =SUM(E174:E178) -> 2217 | S50: =INDEX(O50:Q50,Index!$B$23) -> 2217
A51: male | B51: 35 | C51: 784 | D51: 675 | E51: 913 | G51: 35 | H51: 21225 | I51: 23266 | J51: 27806 | L51: Females | M51: 70-74 | O51: =SUM(C179:C183) -> 1727 | P51: =SUM(D179:D183) -> 1698 | Q51: =SUM(E179:E183) -> 2272 | S51: =INDEX(O51:Q51,Index!$B$23) -> 2272
A52: male | B52: 36 | C52: 776 | D52: 694 | E52: 947 | G52: 36 | H52: 22001 | I52: 23960 | J52: 28753 | L52: Females | M52: 75-79 | O52: =SUM(C184:C188) -> 1486 | P52: =SUM(D184:D188) -> 1555 | Q52: =SUM(E184:E188) -> 1609 | S52: =INDEX(O52:Q52,Index!$B$23) -> 1609
A53: male | B53: 37 | C53: 722 | D53: 717 | E53: 917 | G53: 37 | H53: 22723 | I53: 24677 | J53: 29670 | L53: Females | M53: 80-84 | O53: =SUM(C189:C193) -> 1009 | P53: =SUM(D189:D193) -> 1231 | Q53: =SUM(E189:E193) -> 1300 | S53: =INDEX(O53:Q53,Index!$B$23) -> 1300
A54: male | B54: 38 | C54: 750 | D54: 683 | E54: 858 | G54: 38 | H54: 23473 | I54: 25360 | J54: 30528 | L54: Females | M54: 85-89 | O54: =SUM(C194:C198) -> 637 | P54: =SUM(D194:D198) -> 778 | Q54: 868 | S54: =INDEX(O54:Q54,Index!$B$23) -> 868
A55: male | B55: 39 | C55: 682 | D55: 776 | E55: 901 | G55: 39 | H55: 24155 | I55: 26136 | J55: 31429 | L55: Females | M55: 90+ | O55: =C199 -> 396 | P55: =D199 -> 450 | Q55: 514 | S55: =INDEX(O55:Q55,Index!$B$23) -> 514
A56: male | B56: 40 | C56: 619 | D56: 762 | E56: 957 | G56: 40 | H56: 24774 | I56: 26898 | J56: 32386
A57: male | B57: 41 | C57: 635 | D57: 740 | E57: 911 | G57: 41 | H57: 25409 | I57: 27638 | J57: 33297
A58: male | B58: 42 | C58: 616 | D58: 776 | E58: 890 | G58: 42 | H58: 26025 | I58: 28414 | J58: 34187
A59: male | B59: 43 | C59: 557 | D59: 734 | E59: 822 | G59: 43 | H59: 26582 | I59: 29148 | J59: 35009
A60: male | B60: 44 | C60: 571 | D60: 746 | E60: 799 | G60: 44 | H60: 27153 | I60: 29894 | J60: 35808
A61: male | B61: 45 | C61: 549 | D61: 773 | E61: 839 | G61: 45 | H61: 27702 | I61: 30667 | J61: 36647
A62: male | B62: 46 | C62: 581 | D62: 747 | E62: 797 | G62: 46 | H62: 28283 | I62: 31414 | J62: 37444
A63: male | B63: 47 | C63: 516 | D63: 750 | E63: 813 | G63: 47 | H63: 28799 | I63: 32164 | J63: 38257
A64: male | B64: 48 | C64: 492 | D64: 719 | E64: 746 | G64: 48 | H64: 29291 | I64: 32883 | J64: 39003
A65: male | B65: 49 | C65: 503 | D65: 690 | E65: 786 | G65: 49 | H65: 29794 | I65: 33573 | J65: 39789
A66: male | B66: 50 | C66: 537 | D66: 662 | E66: 761 | G66: 50 | H66: 30331 | I66: 34235 | J66: 40550
A67: male | B67: 51 | C67: 528 | D67: 683 | E67: 732 | G67: 51 | H67: 30859 | I67: 34918 | J67: 41282
A68: male | B68: 52 | C68: 554 | D68: 617 | E68: 752 | G68: 52 | H68: 31413 | I68: 35535 | J68: 42034
A69: male | B69: 53 | C69: 595 | D69: 593 | E69: 781 | G69: 53 | H69: 32008 | I69: 36128 | J69: 42815
A70: male | B70: 54 | C70: 591 | D70: 574 | E70: 752 | G70: 54 | H70: 32599 | I70: 36702 | J70: 43567
A71: male | B71: 55 | C71: 519 | D71: 566 | E71: 795 | G71: 55 | H71: 33118 | I71: 37268 | J71: 44362
A72: male | B72: 56 | C72: 424 | D72: 558 | E72: 758 | G72: 56 | H72: 33542 | I72: 37826 | J72: 45120
A73: male | B73: 57 | C73: 484 | D73: 505 | E73: 677 | G73: 57 | H73: 34026 | I73: 38331 | J73: 45797
A74: male | B74: 58 | C74: 461 | D74: 470 | E74: 704 | G74: 58 | H74: 34487 | I74: 38801 | J74: 46501
A75: male | B75: 59 | C75: 392 | D75: 450 | E75: 625 | G75: 59 | H75: 34879 | I75: 39251 | J75: 47126
A76: male | B76: 60 | C76: 381 | D76: 510 | E76: 589 | G76: 60 | H76: 35260 | I76: 39761 | J76: 47715
A77: male | B77: 61 | C77: 385 | D77: 479 | E77: 616 | G77: 61 | H77: 35645 | I77: 40240 | J77: 48331
A78: male | B78: 62 | C78: 406 | D78: 481 | E78: 538 | G78: 62 | H78: 36051 | I78: 40721 | J78: 48869
A79: male | B79: 63 | C79: 397 | D79: 555 | E79: 504 | G79: 63 | H79: 36448 | I79: 41276 | J79: 49373
A80: male | B80: 64 | C80: 411 | D80: 521 | E80: 526 | G80: 64 | H80: 36859 | I80: 41797 | J80: 49899
A81: male | B81: 65 | C81: 336 | D81: 421 | E81: 455 | G81: 65 | H81: =H80+C81 -> 37195 | I81: =I80+D81 -> 42218 | J81: =J80+E81 -> 50354
A82: male | B82: 66 | C82: 355 | D82: 393 | E82: 452 | G82: 66 | H82: 37550 | I82: 42611 | J82: 50806
A83: male | B83: 67 | C83: 328 | D83: 375 | E83: 450 | G83: 67 | H83: 37878 | I83: 42986 | J83: 51256
A84: male | B84: 68 | C84: 339 | D84: 383 | E84: 386 | G84: 68 | H84: 38217 | I84: 43369 | J84: 51642
A85: male | B85: 69 | C85: 349 | D85: 342 | E85: 388 | G85: 69 | H85: 38566 | I85: 43711 | J85: 52030
A86: male | B86: 70 | C86: 335 | D86: 307 | E86: 412 | G86: 70 | H86: 38901 | I86: 44018 | J86: 52442
A87: male | B87: 71 | C87: 315 | D87: 290 | E87: 361 | G87: 71 | H87: 39216 | I87: 44308 | J87: 52803
A88: male | B88: 72 | C88: 302 | D88: 307 | E88: 373 | G88: 72 | H88: 39518 | I88: 44615 | J88: 53176
A89: male | B89: 73 | C89: 278 | D89: 320 | E89: 437 | G89: 73 | H89: 39796 | I89: 44935 | J89: 53613
A90: male | B90: 74 | C90: 293 | D90: 286 | E90: 394 | G90: 74 | H90: 40089 | I90: 45221 | J90: 54007
A91: male | B91: 75 | C91: 242 | D91: 263 | E91: 299 | G91: 75 | H91: 40331 | I91: 45484 | J91: 54306
A92: male | B92: 76 | C92: 235 | D92: 267 | E92: 313 | G92: 76 | H92: 40566 | I92: 45751 | J92: 54619
A93: male | B93: 77 | C93: 184 | D93: 261 | E93: 265 | G93: 77 | H93: 40750 | I93: 46012 | J93: 54884
A94: male | B94: 78 | C94: 206 | D94: 248 | E94: 250 | G94: 78 | H94: 40956 | I94: 46260 | J94: 55134
A95: male | B95: 79 | C95: 190 | D95: 249 | E95: 236 | G95: 79 | H95: 41146 | I95: 46509 | J95: 55370
A96: male | B96: 80 | C96: 173 | D96: 219 | E96: 218 | G96: 80 | H96: 41319 | I96: 46728 | J96: 55588
A97: male | B97: 81 | C97: 164 | D97: 208 | E97: 200 | G97: 81 | H97: 41483 | I97: 46936 | J97: 55788
A98: male | B98: 82 | C98: 99 | D98: 176 | E98: 174 | G98: 82 | H98: 41582 | I98: 47112 | J98: 55962
A99: male | B99: 83 | C99: 89 | D99: 152 | E99: 184 | G99: 83 | H99: 41671 | I99: 47264 | J99: 56146
A100: male | B100: 84 | C100: 80 | D100: 148 | E100: 177 | G100: 84 | H100: 41751 | I100: 47412 | J100: 56323
A101: male | B101: 85 | C101: 68 | D101: 120 | E101: 146 | G101: 85 | H101: 41819 | I101: 47532 | J101: 56469
A102: male | B102: 86 | C102: 73 | D102: 124 | E102: 122 | G102: 86 | H102: 41892 | I102: 47656 | J102: 56591
A103: male | B103: 87 | C103: 61 | D103: 82 | E103: 119 | G103: 87 | H103: 41953 | I103: 47738 | J103: 56710
A104: male | B104: 88 | C104: 46 | D104: 81 | E104: 94 | G104: 88 | H104: 41999 | I104: 47819 | J104: 56804
A105: male | B105: 89 | C105: 31 | D105: 55 | E105: 78 | G105: 89 | H105: 42030 | I105: 47874 | J105: 56882
A106: male | B106: 90+ | C106: 87 | D106: 187 | E106: 273 | G106: 90+ | H106: 42117 | I106: 48061 | J106: 57155
B107: All Males | C107: =SUM(C16:C106) -> 42117 | D107: 48061 | E107: =SUM(E16:E106) -> 57155 | G107: Females
A108: Sex | B108: Age
A109: female | B109: 0 | C109: 521 | D109: 734 | E109: 794 | G109: 0 | H109: =C109 -> 521 | I109: =D109 -> 734 | J109: =E109 -> 794
A110: female | B110: 1 | C110: 500 | D110: 720 | E110: 789 | G110: 1 | H110: =H109+C110 -> 1021 | I110: =I109+D110 -> 1454 | J110: =J109+E110 -> 1583
A111: female | B111: 2 | C111: 514 | D111: 644 | E111: 777 | G111: 2 | H111: 1535 | I111: 2098 | J111: 2360
A112: female | B112: 3 | C112: 556 | D112: 652 | E112: 827 | G112: 3 | H112: 2091 | I112: 2750 | J112: 3187
A113: female | B113: 4 | C113: 597 | D113: 638 | E113: 780 | G113: 4 | H113: 2688 | I113: 3388 | J113: 3967
A114: female | B114: 5 | C114: 586 | D114: 605 | E114: 797 | G114: 5 | H114: 3274 | I114: 3993 | J114: 4764
A115: female | B115: 6 | C115: 561 | D115: 571 | E115: 830 | G115: 6 | H115: 3835 | I115: 4564 | J115: 5594
A116: female | B116: 7 | C116: 550 | D116: 616 | E116: 836 | G116: 7 | H116: 4385 | I116: 5180 | J116: 6430
A117: female | B117: 8 | C117: 565 | D117: 543 | E117: 818 | G117: 8 | H117: 4950 | I117: 5723 | J117: 7248
A118: female | B118: 9 | C118: 635 | D118: 533 | E118: 779 | G118: 9 | H118: 5585 | I118: 6256 | J118: 8027
A119: female | B119: 10 | C119: 577 | D119: 548 | E119: 838 | G119: 10 | H119: 6162 | I119: 6804 | J119: 8865
A120: female | B120: 11 | C120: 590 | D120: 590 | E120: 827 | G120: 11 | H120: 6752 | I120: 7394 | J120: 9692
A121: female | B121: 12 | C121: 520 | D121: 550 | E121: 778 | G121: 12 | H121: 7272 | I121: 7944 | J121: 10470
A122: female | B122: 13 | C122: 579 | D122: 596 | E122: 742 | G122: 13 | H122: 7851 | I122: 8540 | J122: 11212
A123: female | B123: 14 | C123: 489 | D123: 624 | E123: 751 | G123: 14 | H123: 8340 | I123: 9164 | J123: 11963
A124: female | B124: 15 | C124: 513 | D124: 647 | E124: 706 | G124: 15 | H124: 8853 | I124: 9811 | J124: 12669
A125: female | B125: 16 | C125: 497 | D125: 598 | E125: 675 | G125: 16 | H125: 9350 | I125: 10409 | J125: 13344
A126: female | B126: 17 | C126: 490 | D126: 597 | E126: 674 | G126: 17 | H126: 9840 | I126: 11006 | J126: 14018
A127: female | B127: 18 | C127: 472 | D127: 542 | E127: 529 | G127: 18 | H127: 10312 | I127: 11548 | J127: 14547
A128: female | B128: 19 | C128: 489 | D128: 553 | E128: 387 | G128: 19 | H128: 10801 | I128: 12101 | J128: 14934
A129: female | B129: 20 | C129: 471 | D129: 500 | E129: 445 | G129: 20 | H129: 11272 | I129: 12601 | J129: 15379
A130: female | B130: 21 | C130: 454 | D130: 607 | E130: 474 | G130: 21 | H130: 11726 | I130: 13208 | J130: 15853
A131: female | B131: 22 | C131: 527 | D131: 617 | E131: 575 | G131: 22 | H131: 12253 | I131: 13825 | J131: 16428
A132: female | B132: 23 | C132: 511 | D132: 739 | E132: 663 | G132: 23 | H132: 12764 | I132: 14564 | J132: 17091
A133: female | B133: 24 | C133: 552 | D133: 722 | E133: 692 | G133: 24 | H133: 13316 | I133: 15286 | J133: 17783
A134: female | B134: 25 | C134: 552 | D134: 734 | E134: 794 | G134: 25 | H134: 13868 | I134: 16020 | J134: 18577
A135: female | B135: 26 | C135: 600 | D135: 701 | E135: 759 | G135: 26 | H135: 14468 | I135: 16721 | J135: 19336
A136: female | B136: 27 | C136: 647 | D136: 709 | E136: 817 | G136: 27 | H136: 15115 | I136: 17430 | J136: 20153
A137: female | B137: 28 | C137: 689 | D137: 691 | E137: 918 | G137: 28 | H137: 15804 | I137: 18121 | J137: 21071
A138: female | B138: 29 | C138: 693 | D138: 806 | E138: 980 | G138: 29 | H138: 16497 | I138: 18927 | J138: 22051
A139: female | B139: 30 | C139: 737 | D139: 815 | E139: 1005 | G139: 30 | H139: 17234 | I139: 19742 | J139: 23056
A140: female | B140: 31 | C140: 699 | D140: 716 | E140: 1070 | G140: 31 | H140: 17933 | I140: 20458 | J140: 24126
A141: female | B141: 32 | C141: 789 | D141: 690 | E141: 1077 | G141: 32 | H141: 18722 | I141: 21148 | J141: 25203
A142: female | B142: 33 | C142: 747 | D142: 674 | E142: 1048 | G142: 33 | H142: =H141+C142 -> 19469 | I142: =I141+D142 -> 21822 | J142: =J141+E142 -> 26251
A143: female | B143: 34 | C143: 773 | D143: 661 | E143: 1077 | G143: 34 | H143: 20242 | I143: 22483 | J143: 27328
A144: female | B144: 35 | C144: 812 | D144: 649 | E144: 1095 | G144: 35 | H144: 21054 | I144: 23132 | J144: 28423
A145: female | B145: 36 | C145: 781 | D145: 685 | E145: 1003 | G145: 36 | H145: 21835 | I145: 23817 | J145: 29426
A146: female | B146: 37 | C146: 682 | D146: 702 | E146: 984 | G146: 37 | H146: 22517 | I146: 24519 | J146: 30410
A147: female | B147: 38 | C147: 663 | D147: 735 | E147: 980 | G147: 38 | H147: 23180 | I147: 25254 | J147: 31390
A148: female | B148: 39 | C148: 727 | D148: 751 | E148: 1031 | G148: 39 | H148: 23907 | I148: 26005 | J148: 32421
A149: female | B149: 40 | C149: 636 | D149: 733 | E149: 1034 | G149: 40 | H149: 24543 | I149: 26738 | J149: 33455
A150: female | B150: 41 | C150: 615 | D150: 806 | E150: 885 | G150: 41 | H150: 25158 | I150: 27544 | J150: 34340
A151: female | B151: 42 | C151: 578 | D151: 814 | E151: 859 | G151: 42 | H151: 25736 | I151: 28358 | J151: 35199
A152: female | B152: 43 | C152: 569 | D152: 755 | E152: 824 | G152: 43 | H152: 26305 | I152: 29113 | J152: 36023
A153: female | B153: 44 | C153: 587 | D153: 785 | E153: 762 | G153: 44 | H153: 26892 | I153: 29898 | J153: 36785
A154: female | B154: 45 | C154: 544 | D154: 755 | E154: 750 | G154: 45 | H154: 27436 | I154: 30653 | J154: 37535
A155: female | B155: 46 | C155: 505 | D155: 796 | E155: 790 | G155: 46 | H155: 27941 | I155: 31449 | J155: 38325
A156: female | B156: 47 | C156: 563 | D156: 703 | E156: 779 | G156: 47 | H156: 28504 | I156: 32152 | J156: 39104
A157: female | B157: 48 | C157: 477 | D157: 691 | E157: 751 | G157: 48 | H157: 28981 | I157: 32843 | J157: 39855
A158: female | B158: 49 | C158: 514 | D158: 708 | E158: 787 | G158: 49 | H158: 29495 | I158: 33551 | J158: 40642
A159: female | B159: 50 | C159: 501 | D159: 645 | E159: 719 | G159: 50 | H159: 29996 | I159: 34196 | J159: 41361
A160: female | B160: 51 | C160: 532 | D160: 630 | E160: 793 | G160: 51 | H160: 30528 | I160: 34826 | J160: 42154
A161: female | B161: 52 | C161: 549 | D161: 579 | E161: 777 | G161: 52 | H161: 31077 | I161: 35405 | J161: 42931
A162: female | B162: 53 | C162: 618 | D162: 596 | E162: 818 | G162: 53 | H162: 31695 | I162: 36001 | J162: 43749
A163: female | B163: 54 | C163: 656 | D163: 553 | E163: 770 | G163: 54 | H163: 32351 | I163: 36554 | J163: 44519
A164: female | B164: 55 | C164: 461 | D164: 517 | E164: 739 | G164: 55 | H164: 32812 | I164: 37071 | J164: 45258
A165: female | B165: 56 | C165: 485 | D165: 508 | E165: 793 | G165: 56 | H165: 33297 | I165: 37579 | J165: 46051
A166: female | B166: 57 | C166: 467 | D166: 537 | E166: 655 | G166: 57 | H166: 33764 | I166: 38116 | J166: 46706
A167: female | B167: 58 | C167: 458 | D167: 466 | E167: 657 | G167: 58 | H167: 34222 | I167: 38582 | J167: 47363
A168: female | B168: 59 | C168: 381 | D168: 487 | E168: 658 | G168: 59 | H168: 34603 | I168: 39069 | J168: 48021
A169: female | B169: 60 | C169: 366 | D169: 450 | E169: 616 | G169: 60 | H169: 34969 | I169: 39519 | J169: 48637
A170: female | B170: 61 | C170: 433 | D170: 472 | E170: 582 | G170: 61 | H170: 35402 | I170: 39991 | J170: 49219
A171: female | B171: 62 | C171: 424 | D171: 491 | E171: 566 | G171: 62 | H171: 35826 | I171: 40482 | J171: 49785
A172: female | B172: 63 | C172: 438 | D172: 555 | E172: 543 | G172: 63 | H172: 36264 | I172: 41037 | J172: 50328
A173: female | B173: 64 | C173: 379 | D173: 579 | E173: 485 | G173: 64 | H173: 36643 | I173: 41616 | J173: 50813
A174: female | B174: 65 | C174: 361 | D174: 379 | E174: 460 | G174: 65 | H174: =H173+C174 -> 37004 | I174: =I173+D174 -> 41995 | J174: =J173+E174 -> 51273
A175: female | B175: 66 | C175: 392 | D175: 451 | E175: 450 | G175: 66 | H175: 37396 | I175: 42446 | J175: 51723
A176: female | B176: 67 | C176: 373 | D176: 408 | E176: 456 | G176: 67 | H176: 37769 | I176: 42854 | J176: 52179
A177: female | B177: 68 | C177: 382 | D177: 416 | E177: 422 | G177: 68 | H177: 38151 | I177: 43270 | J177: 52601
A178: female | B178: 69 | C178: 383 | D178: 322 | E178: 429 | G178: 69 | H178: 38534 | I178: 43592 | J178: 53030
A179: female | B179: 70 | C179: 372 | D179: 320 | E179: 408 | G179: 70 | H179: 38906 | I179: 43912 | J179: 53438
A180: female | B180: 71 | C180: 357 | D180: 355 | E180: 426 | G180: 71 | H180: 39263 | I180: 44267 | J180: 53864
A181: female | B181: 72 | C181: 326 | D181: 351 | E181: 435 | G181: 72 | H181: 39589 | I181: 44618 | J181: 54299
A182: female | B182: 73 | C182: 357 | D182: 363 | E182: 508 | G182: 73 | H182: 39946 | I182: 44981 | J182: 54807
A183: female | B183: 74 | C183: 315 | D183: 309 | E183: 495 | G183: 74 | H183: 40261 | I183: 45290 | J183: 55302
A184: female | B184: 75 | C184: 320 | D184: 313 | E184: 315 | G184: 75 | H184: 40581 | I184: 45603 | J184: 55617
A185: female | B185: 76 | C185: 287 | D185: 320 | E185: 383 | G185: 76 | H185: 40868 | I185: 45923 | J185: 56000
A186: female | B186: 77 | C186: 281 | D186: 307 | E186: 349 | G186: 77 | H186: 41149 | I186: 46230 | J186: 56349
A187: female | B187: 78 | C187: 295 | D187: 295 | E187: 309 | G187: 78 | H187: 41444 | I187: 46525 | J187: 56658
A188: female | B188: 79 | C188: 303 | D188: 320 | E188: 253 | G188: 79 | H188: 41747 | I188: 46845 | J188: 56911
A189: female | B189: 80 | C189: 257 | D189: 278 | E189: 269 | G189: 80 | H189: 42004 | I189: 47123 | J189: 57180
A190: female | B190: 81 | C190: 283 | D190: 268 | E190: 282 | G190: 81 | H190: 42287 | I190: 47391 | J190: 57462
A191: female | B191: 82 | C191: 178 | D191: 236 | E191: 266 | G191: 82 | H191: 42465 | I191: 47627 | J191: 57728
A192: female | B192: 83 | C192: 123 | D192: 222 | E192: 260 | G192: 83 | H192: 42588 | I192: 47849 | J192: 57988
A193: female | B193: 84 | C193: 168 | D193: 227 | E193: 223 | G193: 84 | H193: 42756 | I193: 48076 | J193: 58211
A194: female | B194: 85 | C194: 145 | D194: 195 | E194: 207 | G194: 85 | H194: 42901 | I194: 48271 | J194: 58418
A195: female | B195: 86 | C195: 147 | D195: 153 | E195: 178 | G195: 86 | H195: 43048 | I195: 48424 | J195: 58596
A196: female | B196: 87 | C196: 129 | D196: 148 | E196: 173 | G196: 87 | H196: 43177 | I196: 48572 | J196: 58769
A197: female | B197: 88 | C197: 122 | D197: 132 | E197: 161 | G197: 88 | H197: 43299 | I197: 48704 | J197: 58930
A198: female | B198: 89 | C198: 94 | D198: 150 | E198: 149 | G198: 89 | H198: 43393 | I198: 48854 | J198: 59079
A199: female | B199: 90+ | C199: 396 | D199: 450 | E199: 514 | G199: 90+ | H199: 43789 | I199: 49304 | J199: 59593
B200: All Females | C200: =SUM(C109:C199) -> 43789 | D200: 49304 | E200: =SUM(E109:E199) -> 59593

Sheet DOV (hidden)
A1: Mid Year Population Estimates | K1: Insert column here before extending the table
A2: 2001, 2011, and 2021 Census: The Office forNnational Statistics (ONS) | G2: Selected Ages: | O2: Start year | P2: End Year | Q2: Number change | R2: % Change
H3: =H13 -> 2001 | I3: 2011 | J3: =J13 -> 2021 | O3: =INDEX($H3:$I3,Index!$B$16) -> 2011 | P3: =INDEX($H3:$J3,Index!$B$19) -> 2011
G4: Males | H4: =OFFSET(H16,Index!$B$7-1,0)-IF(Index!$B$4-2=1,0,OFFSET(H16,Index!$B$4-2,0)) -> 50327 | I4: =OFFSET(I16,Index!$B$7-1,0)-IF(Index!$B$4-2=1,0,OFFSET(I16,Index!$B$4-2,0)) -> 54765 | J4: =OFFSET(J16,Index!$B$7-1,0)-IF(Index!$B$4-2=1,0,OFFSET(J16,Index!$B$4-2,0)) -> 56796 | O4: =INDEX($H4:$I4,Index!$B$16) -> 54765 | P4: =INDEX($H4:$J4,Index!$B$19) -> 54765 | Q4: =P4-O4 -> 0 | R4: =Q4/O4 -> 0
G5: Females | H5: =OFFSET(H109,Index!$B$7-1,0)-IF(Index!$B$4-2=1,0,OFFSET(H109,Index!$B$4-2,0)) -> 54244 | I5: =OFFSET(I109,Index!$B$7-1,0)-IF(Index!$B$4-2=1,0,OFFSET(I109,Index!$B$4-2,0)) -> 56909 | J5: =OFFSET(J109,Index!$B$7-1,0)-IF(Index!$B$4-2=1,0,OFFSET(J109,Index!$B$4-2,0)) -> 59604 | O5: =INDEX($H5:$I5,Index!$B$16) -> 56909 | P5: =INDEX($H5:$J5,Index!$B$19) -> 56909 | Q5: =P5-O5 -> 0 | R5: =Q5/O5 -> 0
G6: Total | H6: =SUM(H4:H5) -> 104571 | I6: 111674 | J6: =SUM(J4:J5) -> 116400 | O6: =INDEX($H6:$I6,Index!$B$16) -> 111674 | P6: =INDEX($H6:$J6,Index!$B$19) -> 111674 | Q6: =P6-O6 -> 0 | R6: =Q6/O6 -> 0
G8: Males | H8: =IF(H4<0,"0",H4) -> 50327 | I8: 54765 | J8: =IF(J4<0,"0",J4) -> 56796
G9: Females | H9: 54244 | I9: 56909 | J9: 59604
G10: Total | H10: =SUM(H8:H9) -> 104571 | I10: 111674 | J10: =SUM(J8:J9) -> 116400
A12: Dover | L12: Population Pyramid
H13: =C14 -> 2001 | I13: =D14 -> 2011 | J13: =E14 -> 2021
A14: Sex | B14: Age | C14: 2001 | D14: 2011 | E14: 2021 | O14: 2001 | P14: 2011 | Q14: 2021 | S14: =INDEX(O14:Q14,Index!$B$23) -> 2021
B15: All persons | C15: =SUM(C107,C200) -> 104571 | D15: 111674 | E15: =SUM(E107,E200) -> 116400 | G15: Males | L15: Males | M15: All Ages | O15: =C107 -> 50327 | P15: =D107 -> 54765 | Q15: =E107 -> 56796 | S15: =INDEX(O15:Q15,Index!$B$23) -> 56796
A16: male | B16: 0 | C16: 488 | D16: 694 | E16: 555 | G16: 0 | H16: =C16 -> 488 | I16: =D16 -> 694 | J16: =E16 -> 555 | L16: Males | M16: 0-4 | O16: =SUM(C16:C20) -> 2975 | P16: =SUM(D16:D20) -> 3215 | Q16: =SUM(E16:E20) -> 2926 | S16: =INDEX(O16:Q16,Index!$B$23) -> 2926
A17: male | B17: 1 | C17: 566 | D17: 626 | E17: 567 | G17: 1 | H17: =H16+C17 -> 1054 | I17: =I16+D17 -> 1320 | J17: =J16+E17 -> 1122 | L17: Males | M17: 5-9 | O17: =SUM(C21:C25) -> 3414 | P17: =SUM(D21:D25) -> 2983 | Q17: =SUM(E21:E25) -> 3333 | S17: =INDEX(O17:Q17,Index!$B$23) -> 3333
A18: male | B18: 2 | C18: 629 | D18: 656 | E18: 572 | G18: 2 | H18: 1683 | I18: 1976 | J18: 1694 | L18: Males | M18: 10-14 | O18: =SUM(C26:C30) -> 3658 | P18: =SUM(D26:D30) -> 3392 | Q18: =SUM(E26:E30) -> 3460 | S18: =INDEX(O18:Q18,Index!$B$23) -> 3460
A19: male | B19: 3 | C19: 641 | D19: 616 | E19: 624 | G19: 3 | H19: 2324 | I19: 2592 | J19: 2318 | L19: Males | M19: 15-19 | O19: =SUM(C31:C35) -> 3382 | P19: =SUM(D31:D35) -> 3631 | Q19: =SUM(E31:E35) -> 3127 | S19: =INDEX(O19:Q19,Index!$B$23) -> 3127
A20: male | B20: 4 | C20: 651 | D20: 623 | E20: 608 | G20: 4 | H20: 2975 | I20: 3215 | J20: 2926 | L20: Males | M20: 20-24 | O20: =SUM(C36:C40) -> 2639 | P20: =SUM(D36:D40) -> 3008 | Q20: =SUM(E36:E40) -> 2747 | S20: =INDEX(O20:Q20,Index!$B$23) -> 2747
A21: male | B21: 5 | C21: 622 | D21: 634 | E21: 657 | G21: 5 | H21: 3597 | I21: 3849 | J21: 3583 | L21: Males | M21: 25-29 | O21: =SUM(C41:C45) -> 2517 | P21: =SUM(D41:D45) -> 2914 | Q21: =SUM(E41:E45) -> 3158 | S21: =INDEX(O21:Q21,Index!$B$23) -> 3158
A22: male | B22: 6 | C22: 629 | D22: 562 | E22: 634 | G22: 6 | H22: 4226 | I22: 4411 | J22: 4217 | L22: Males | M22: 30-34 | O22: =SUM(C46:C50) -> 3156 | P22: =SUM(D46:D50) -> 2894 | Q22: =SUM(E46:E50) -> 3335 | S22: =INDEX(O22:Q22,Index!$B$23) -> 3335
A23: male | B23: 7 | C23: 710 | D23: 581 | E23: 688 | G23: 7 | H23: 4936 | I23: 4992 | J23: 4905 | L23: Males | M23: 35-39 | O23: =SUM(C51:C55) -> 3740 | P23: =SUM(D51:D55) -> 3077 | Q23: =SUM(E51:E55) -> 3220 | S23: =INDEX(O23:Q23,Index!$B$23) -> 3220
A24: male | B24: 8 | C24: 692 | D24: 594 | E24: 677 | G24: 8 | H24: 5628 | I24: 5586 | J24: 5582 | L24: Males | M24: 40-44 | O24: =SUM(C56:C60) -> 3578 | P24: =SUM(D56:D60) -> 3929 | Q24: =SUM(E56:E60) -> 3101 | S24: =INDEX(O24:Q24,Index!$B$23) -> 3101
A25: male | B25: 9 | C25: 761 | D25: 612 | E25: 677 | G25: 9 | H25: 6389 | I25: 6198 | J25: 6259 | L25: Males | M25: 45-49 | O25: =SUM(C61:C65) -> 3283 | P25: =SUM(D61:D65) -> 4150 | Q25: =SUM(E61:E65) -> 3210 | S25: =INDEX(O25:Q25,Index!$B$23) -> 3210
A26: male | B26: 10 | C26: 687 | D26: 568 | E26: 736 | G26: 10 | H26: 7076 | I26: 6766 | J26: 6995 | L26: Males | M26: 50-54 | O26: =SUM(C66:C70) -> 3769 | P26: =SUM(D66:D70) -> 3849 | Q26: =SUM(E66:E70) -> 3958 | S26: =INDEX(O26:Q26,Index!$B$23) -> 3958
A27: male | B27: 11 | C27: 687 | D27: 595 | E27: 696 | G27: 11 | H27: 7763 | I27: 7361 | J27: 7691 | L27: Males | M27: 55-59 | O27: =SUM(C71:C75) -> 3332 | P27: =SUM(D71:D75) -> 3603 | Q27: =SUM(E71:E75) -> 4316 | S27: =INDEX(O27:Q27,Index!$B$23) -> 4316
A28: male | B28: 12 | C28: 768 | D28: 701 | E28: 723 | G28: 12 | H28: 8531 | I28: 8062 | J28: 8414 | L28: Males | M28: 60-64 | O28: =SUM(C76:C80) -> 2787 | P28: =SUM(D76:D80) -> 3993 | Q28: =SUM(E76:E80) -> 3954 | S28: =INDEX(O28:Q28,Index!$B$23) -> 3954
A29: male | B29: 13 | C29: 765 | D29: 741 | E29: 655 | G29: 13 | H29: 9296 | I29: 8803 | J29: 9069 | L29: Males | M29: 65-69 | O29: =SUM(C81:C85) -> 2447 | P29: =SUM(D81:D85) -> 3354 | Q29: =SUM(E81:E85) -> 3590 | S29: =INDEX(O29:Q29,Index!$B$23) -> 3590
A30: male | B30: 14 | C30: 751 | D30: 787 | E30: 650 | G30: 14 | H30: 10047 | I30: 9590 | J30: 9719 | L30: Males | M30: 70-74 | O30: =SUM(C86:C90) -> 2106 | P30: =SUM(D86:D90) -> 2535 | Q30: =SUM(E86:E90) -> 3683 | S30: =INDEX(O30:Q30,Index!$B$23) -> 3683
A31: male | B31: 15 | C31: 742 | D31: 804 | E31: 701 | G31: 15 | H31: 10789 | I31: 10394 | J31: 10420 | L31: Males | M31: 75-79 | O31: =SUM(C91:C95) -> 1674 | P31: =SUM(D91:D95) -> 1897 | Q31: =SUM(E91:E95) -> 2697 | S31: =INDEX(O31:Q31,Index!$B$23) -> 2697
A32: male | B32: 16 | C32: 725 | D32: 721 | E32: 648 | G32: 16 | H32: 11514 | I32: 11115 | J32: 11068 | L32: Males | M32: 80-84 | O32: =SUM(C96:C100) -> 1146 | P32: =SUM(D96:D100) -> 1321 | Q32: =SUM(E96:E100) -> 1694 | S32: =INDEX(O32:Q32,Index!$B$23) -> 1694
A33: male | B33: 17 | C33: 684 | D33: 787 | E33: 669 | G33: 17 | H33: 12198 | I33: 11902 | J33: 11737 | L33: Males | M33: 85-89 | O33: =SUM(C101:C105) -> 524 | P33: =SUM(D101:D105) -> 697 | Q33: 907 | S33: =INDEX(O33:Q33,Index!$B$23) -> 907
A34: male | B34: 18 | C34: 639 | D34: 699 | E34: 580 | G34: 18 | H34: 12837 | I34: 12601 | J34: 12317 | L34: Males | M34: 90+ | O34: =C106 -> 200 | P34: =D106 -> 323 | Q34: 380 | S34: =INDEX(O34:Q34,Index!$B$23) -> 380
A35: male | B35: 19 | C35: 592 | D35: 620 | E35: 529 | G35: 19 | H35: 13429 | I35: 13221 | J35: 12846
A36: male | B36: 20 | C36: 649 | D36: 556 | E36: 482 | G36: 20 | H36: 14078 | I36: 13777 | J36: 13328 | L36: Males | M36: All Ages | O36: =C200 -> 54244 | P36: =D200 -> 56909 | Q36: =E200 -> 59604 | S36: =INDEX(O36:Q36,Index!$B$23) -> 59604
A37: male | B37: 21 | C37: 521 | D37: 596 | E37: 517 | G37: 21 | H37: 14599 | I37: 14373 | J37: 13845 | L37: Females | M37: 0-4 | O37: =SUM(C109:C113) -> 2834 | P37: =SUM(D109:D113) -> 3044 | Q37: =SUM(E109:E113) -> 2743 | S37: =INDEX(O37:Q37,Index!$B$23) -> 2743
A38: male | B38: 22 | C38: 508 | D38: 635 | E38: 564 | G38: 22 | H38: 15107 | I38: 15008 | J38: 14409 | L38: Females | M38: 5-9 | O38: =SUM(C114:C118) -> 3301 | P38: =SUM(D114:D118) -> 2896 | Q38: =SUM(E114:E118) -> 3161 | S38: =INDEX(O38:Q38,Index!$B$23) -> 3161
A39: male | B39: 23 | C39: 489 | D39: 613 | E39: 583 | G39: 23 | H39: 15596 | I39: 15621 | J39: 14992 | L39: Females | M39: 10-14 | O39: =SUM(C119:C123) -> 3502 | P39: =SUM(D119:D123) -> 3265 | Q39: =SUM(E119:E123) -> 3317 | S39: =INDEX(O39:Q39,Index!$B$23) -> 3317
A40: male | B40: 24 | C40: 472 | D40: 608 | E40: 601 | G40: 24 | H40: 16068 | I40: 16229 | J40: 15593 | L40: Females | M40: 15-19 | O40: =SUM(C124:C128) -> 3075 | P40: =SUM(D124:D128) -> 3374 | Q40: =SUM(E124:E128) -> 2841 | S40: =INDEX(O40:Q40,Index!$B$23) -> 2841
A41: male | B41: 25 | C41: 490 | D41: 631 | E41: 585 | G41: 25 | H41: 16558 | I41: 16860 | J41: 16178 | L41: Females | M41: 20-24 | O41: =SUM(C129:C133) -> 2498 | P41: =SUM(D129:D133) -> 2836 | Q41: =SUM(E129:E133) -> 2662 | S41: =INDEX(O41:Q41,Index!$B$23) -> 2662
A42: male | B42: 26 | C42: 439 | D42: 606 | E42: 620 | G42: 26 | H42: 16997 | I42: 17466 | J42: 16798 | L42: Females | M42: 25-29 | O42: =SUM(C134:C138) -> 2805 | P42: =SUM(D134:D138) -> 2977 | Q42: =SUM(E134:E138) -> 3386 | S42: =INDEX(O42:Q42,Index!$B$23) -> 3386
A43: male | B43: 27 | C43: 506 | D43: 579 | E43: 609 | G43: 27 | H43: 17503 | I43: 18045 | J43: 17407 | L43: Females | M43: 30-34 | O43: =SUM(C139:C143) -> 3532 | P43: =SUM(D139:D143) -> 2835 | Q43: =SUM(E139:E143) -> 3541 | S43: =INDEX(O43:Q43,Index!$B$23) -> 3541
A44: male | B44: 28 | C44: 507 | D44: 575 | E44: 655 | G44: 28 | H44: 18010 | I44: 18620 | J44: 18062 | L44: Females | M44: 35-39 | O44: =SUM(C144:C148) -> 3957 | P44: =SUM(D144:D148) -> 3251 | Q44: =SUM(E144:E148) -> 3413 | S44: =INDEX(O44:Q44,Index!$B$23) -> 3413
A45: male | B45: 29 | C45: 575 | D45: 523 | E45: 689 | G45: 29 | H45: 18585 | I45: 19143 | J45: 18751 | L45: Females | M45: 40-44 | O45: =SUM(C149:C153) -> 3643 | P45: =SUM(D149:D153) -> 3949 | Q45: =SUM(E149:E153) -> 3226 | S45: =INDEX(O45:Q45,Index!$B$23) -> 3226
A46: male | B46: 30 | C46: 605 | D46: 624 | E46: 636 | G46: 30 | H46: 19190 | I46: 19767 | J46: 19387 | L46: Females | M46: 45-49 | O46: =SUM(C154:C158) -> 3449 | P46: =SUM(D154:D158) -> 4272 | Q46: =SUM(E154:E158) -> 3523 | S46: =INDEX(O46:Q46,Index!$B$23) -> 3523
A47: male | B47: 31 | C47: 628 | D47: 589 | E47: 613 | G47: 31 | H47: 19818 | I47: 20356 | J47: 20000 | L47: Females | M47: 50-54 | O47: =SUM(C159:C163) -> 3977 | P47: =SUM(D159:D163) -> 3902 | Q47: =SUM(E159:E163) -> 4163 | S47: =INDEX(O47:Q47,Index!$B$23) -> 4163
A48: male | B48: 32 | C48: 599 | D48: 576 | E48: 722 | G48: 32 | H48: 20417 | I48: 20932 | J48: 20722 | L48: Females | M48: 55-59 | O48: =SUM(C164:C168) -> 3278 | P48: =SUM(D164:D168) -> 3687 | Q48: =SUM(E164:E168) -> 4513 | S48: =INDEX(O48:Q48,Index!$B$23) -> 4513
A49: male | B49: 33 | C49: 623 | D49: 529 | E49: 677 | G49: 33 | H49: =H48+C49 -> 21040 | I49: =I48+D49 -> 21461 | J49: =J48+E49 -> 21399 | L49: Females | M49: 60-64 | O49: =SUM(C169:C173) -> 2837 | P49: =SUM(D169:D173) -> 4231 | Q49: =SUM(E169:E173) -> 4168 | S49: =INDEX(O49:Q49,Index!$B$23) -> 4168
A50: male | B50: 34 | C50: 701 | D50: 576 | E50: 687 | G50: 34 | H50: 21741 | I50: 22037 | J50: 22086 | L50: Females | M50: 65-69 | O50: =SUM(C174:C178) -> 2820 | P50: =SUM(D174:D178) -> 3371 | Q50: =SUM(E174:E178) -> 3792 | S50: =INDEX(O50:Q50,Index!$B$23) -> 3792
A51: male | B51: 35 | C51: 770 | D51: 554 | E51: 689 | G51: 35 | H51: 22511 | I51: 22591 | J51: 22775 | L51: Females | M51: 70-74 | O51: =SUM(C179:C183) -> 2626 | P51: =SUM(D179:D183) -> 2661 | Q51: =SUM(E179:E183) -> 3987 | S51: =INDEX(O51:Q51,Index!$B$23) -> 3987
A52: male | B52: 36 | C52: 760 | D52: 541 | E52: 647 | G52: 36 | H52: 23271 | I52: 23132 | J52: 23422 | L52: Females | M52: 75-79 | O52: =SUM(C184:C188) -> 2456 | P52: =SUM(D184:D188) -> 2252 | Q52: =SUM(E184:E188) -> 2976 | S52: =INDEX(O52:Q52,Index!$B$23) -> 2976
A53: male | B53: 37 | C53: 765 | D53: 611 | E53: 655 | G53: 37 | H53: 24036 | I53: 23743 | J53: 24077 | L53: Females | M53: 80-84 | O53: =SUM(C189:C193) -> 1862 | P53: =SUM(D189:D193) -> 1933 | Q53: =SUM(E189:E193) -> 2037 | S53: =INDEX(O53:Q53,Index!$B$23) -> 2037
A54: male | B54: 38 | C54: 734 | D54: 653 | E54: 615 | G54: 38 | H54: 24770 | I54: 24396 | J54: 24692 | L54: Females | M54: 85-89 | O54: =SUM(C194:C198) -> 1139 | P54: =SUM(D194:D198) -> 1325 | Q54: 1285 | S54: =INDEX(O54:Q54,Index!$B$23) -> 1285
A55: male | B55: 39 | C55: 711 | D55: 718 | E55: 614 | G55: 39 | H55: 25481 | I55: 25114 | J55: 25306 | L55: Females | M55: 90+ | O55: =C199 -> 653 | P55: =D199 -> 848 | Q55: 870 | S55: =INDEX(O55:Q55,Index!$B$23) -> 870
A56: male | B56: 40 | C56: 746 | D56: 773 | E56: 683 | G56: 40 | H56: 26227 | I56: 25887 | J56: 25989
A57: male | B57: 41 | C57: 656 | D57: 794 | E57: 603 | G57: 41 | H57: 26883 | I57: 26681 | J57: 26592
A58: male | B58: 42 | C58: 729 | D58: 756 | E58: 622 | G58: 42 | H58: 27612 | I58: 27437 | J58: 27214
A59: male | B59: 43 | C59: 725 | D59: 757 | E59: 607 | G59: 43 | H59: 28337 | I59: 28194 | J59: 27821
A60: male | B60: 44 | C60: 722 | D60: 849 | E60: 586 | G60: 44 | H60: 29059 | I60: 29043 | J60: 28407
A61: male | B61: 45 | C61: 640 | D61: 888 | E61: 603 | G61: 45 | H61: 29699 | I61: 29931 | J61: 29010
A62: male | B62: 46 | C62: 638 | D62: 877 | E62: 581 | G62: 46 | H62: 30337 | I62: 30808 | J62: 29591
A63: male | B63: 47 | C63: 719 | D63: 794 | E63: 637 | G63: 47 | H63: 31056 | I63: 31602 | J63: 30228
A64: male | B64: 48 | C64: 618 | D64: 836 | E64: 690 | G64: 48 | H64: 31674 | I64: 32438 | J64: 30918
A65: male | B65: 49 | C65: 668 | D65: 755 | E65: 699 | G65: 49 | H65: 32342 | I65: 33193 | J65: 31617
A66: male | B66: 50 | C66: 649 | D66: 786 | E66: 812 | G66: 50 | H66: 32991 | I66: 33979 | J66: 32429
A67: male | B67: 51 | C67: 670 | D67: 726 | E67: 739 | G67: 51 | H67: 33661 | I67: 34705 | J67: 33168
A68: male | B68: 52 | C68: 769 | D68: 802 | E68: 749 | G68: 52 | H68: 34430 | I68: 35507 | J68: 33917
A69: male | B69: 53 | C69: 816 | D69: 766 | E69: 794 | G69: 53 | H69: 35246 | I69: 36273 | J69: 34711
A70: male | B70: 54 | C70: 865 | D70: 769 | E70: 864 | G70: 54 | H70: 36111 | I70: 37042 | J70: 35575
A71: male | B71: 55 | C71: 722 | D71: 695 | E71: 880 | G71: 55 | H71: 36833 | I71: 37737 | J71: 36455
A72: male | B72: 56 | C72: 693 | D72: 723 | E72: 900 | G72: 56 | H72: 37526 | I72: 38460 | J72: 37355
A73: male | B73: 57 | C73: 693 | D73: 783 | E73: 864 | G73: 57 | H73: 38219 | I73: 39243 | J73: 38219
A74: male | B74: 58 | C74: 624 | D74: 680 | E74: 863 | G74: 58 | H74: 38843 | I74: 39923 | J74: 39082
A75: male | B75: 59 | C75: 600 | D75: 722 | E75: 809 | G75: 59 | H75: 39443 | I75: 40645 | J75: 39891
A76: male | B76: 60 | C76: 526 | D76: 685 | E76: 819 | G76: 60 | H76: 39969 | I76: 41330 | J76: 40710
A77: male | B77: 61 | C77: 569 | D77: 694 | E77: 761 | G77: 61 | H77: 40538 | I77: 42024 | J77: 41471
A78: male | B78: 62 | C78: 564 | D78: 823 | E78: 818 | G78: 62 | H78: 41102 | I78: 42847 | J78: 42289
A79: male | B79: 63 | C79: 581 | D79: 869 | E79: 786 | G79: 63 | H79: 41683 | I79: 43716 | J79: 43075
A80: male | B80: 64 | C80: 547 | D80: 922 | E80: 770 | G80: 64 | H80: 42230 | I80: 44638 | J80: 43845
A81: male | B81: 65 | C81: 513 | D81: 703 | E81: 707 | G81: 65 | H81: =H80+C81 -> 42743 | I81: =I80+D81 -> 45341 | J81: =J80+E81 -> 44552
A82: male | B82: 66 | C82: 499 | D82: 757 | E82: 744 | G82: 66 | H82: 43242 | I82: 46098 | J82: 45296
A83: male | B83: 67 | C83: 446 | D83: 686 | E83: 778 | G83: 67 | H83: 43688 | I83: 46784 | J83: 46074
A84: male | B84: 68 | C84: 501 | D84: 622 | E84: 677 | G84: 68 | H84: 44189 | I84: 47406 | J84: 46751
A85: male | B85: 69 | C85: 488 | D85: 586 | E85: 684 | G85: 69 | H85: 44677 | I85: 47992 | J85: 47435
A86: male | B86: 70 | C86: 469 | D86: 495 | E86: 674 | G86: 70 | H86: 45146 | I86: 48487 | J86: 48109
A87: male | B87: 71 | C87: 441 | D87: 530 | E87: 638 | G87: 71 | H87: 45587 | I87: 49017 | J87: 48747
A88: male | B88: 72 | C88: 429 | D88: 527 | E88: 745 | G88: 72 | H88: 46016 | I88: 49544 | J88: 49492
A89: male | B89: 73 | C89: 390 | D89: 512 | E89: 816 | G89: 73 | H89: 46406 | I89: 50056 | J89: 50308
A90: male | B90: 74 | C90: 377 | D90: 471 | E90: 810 | G90: 74 | H90: 46783 | I90: 50527 | J90: 51118
A91: male | B91: 75 | C91: 347 | D91: 455 | E91: 617 | G91: 75 | H91: 47130 | I91: 50982 | J91: 51735
A92: male | B92: 76 | C92: 343 | D92: 408 | E92: 634 | G92: 76 | H92: 47473 | I92: 51390 | J92: 52369
A93: male | B93: 77 | C93: 339 | D93: 334 | E93: 529 | G93: 77 | H93: 47812 | I93: 51724 | J93: 52898
A94: male | B94: 78 | C94: 323 | D94: 360 | E94: 477 | G94: 78 | H94: 48135 | I94: 52084 | J94: 53375
A95: male | B95: 79 | C95: 322 | D95: 340 | E95: 440 | G95: 79 | H95: 48457 | I95: 52424 | J95: 53815
A96: male | B96: 80 | C96: 328 | D96: 306 | E96: 388 | G96: 80 | H96: 48785 | I96: 52730 | J96: 54203
A97: male | B97: 81 | C97: 323 | D97: 296 | E97: 376 | G97: 81 | H97: 49108 | I97: 53026 | J97: 54579
A98: male | B98: 82 | C98: 186 | D98: 281 | E98: 357 | G98: 82 | H98: 49294 | I98: 53307 | J98: 54936
A99: male | B99: 83 | C99: 160 | D99: 240 | E99: 304 | G99: 83 | H99: 49454 | I99: 53547 | J99: 55240
A100: male | B100: 84 | C100: 149 | D100: 198 | E100: 269 | G100: 84 | H100: 49603 | I100: 53745 | J100: 55509
A101: male | B101: 85 | C101: 123 | D101: 174 | E101: 252 | G101: 85 | H101: 49726 | I101: 53919 | J101: 55761
A102: male | B102: 86 | C102: 114 | D102: 165 | E102: 204 | G102: 86 | H102: 49840 | I102: 54084 | J102: 55965
A103: male | B103: 87 | C103: 117 | D103: 133 | E103: 150 | G103: 87 | H103: 49957 | I103: 54217 | J103: 56115
A104: male | B104: 88 | C104: 96 | D104: 115 | E104: 163 | G104: 88 | H104: 50053 | I104: 54332 | J104: 56278
A105: male | B105: 89 | C105: 74 | D105: 110 | E105: 138 | G105: 89 | H105: 50127 | I105: 54442 | J105: 56416
A106: male | B106: 90+ | C106: 200 | D106: 323 | E106: 380 | G106: 90+ | H106: 50327 | I106: 54765 | J106: 56796
B107: All Males | C107: =SUM(C16:C106) -> 50327 | D107: 54765 | E107: =SUM(E16:E106) -> 56796 | G107: Females
A108: Sex | B108: Age
A109: female | B109: 0 | C109: 486 | D109: 549 | E109: 505 | G109: 0 | H109: =C109 -> 486 | I109: =D109 -> 549 | J109: =E109 -> 505
A110: female | B110: 1 | C110: 591 | D110: 606 | E110: 521 | G110: 1 | H110: =H109+C110 -> 1077 | I110: =I109+D110 -> 1155 | J110: =J109+E110 -> 1026
A111: female | B111: 2 | C111: 572 | D111: 611 | E111: 564 | G111: 2 | H111: 1649 | I111: 1766 | J111: 1590
A112: female | B112: 3 | C112: 585 | D112: 657 | E112: 571 | G112: 3 | H112: 2234 | I112: 2423 | J112: 2161
A113: female | B113: 4 | C113: 600 | D113: 621 | E113: 582 | G113: 4 | H113: 2834 | I113: 3044 | J113: 2743
A114: female | B114: 5 | C114: 617 | D114: 622 | E114: 641 | G114: 5 | H114: 3451 | I114: 3666 | J114: 3384
A115: female | B115: 6 | C115: 593 | D115: 572 | E115: 605 | G115: 6 | H115: 4044 | I115: 4238 | J115: 3989
A116: female | B116: 7 | C116: 695 | D116: 596 | E116: 589 | G116: 7 | H116: 4739 | I116: 4834 | J116: 4578
A117: female | B117: 8 | C117: 694 | D117: 569 | E117: 662 | G117: 8 | H117: 5433 | I117: 5403 | J117: 5240
A118: female | B118: 9 | C118: 702 | D118: 537 | E118: 664 | G118: 9 | H118: 6135 | I118: 5940 | J118: 5904
A119: female | B119: 10 | C119: 699 | D119: 599 | E119: 652 | G119: 10 | H119: 6834 | I119: 6539 | J119: 6556
A120: female | B120: 11 | C120: 692 | D120: 631 | E120: 657 | G120: 11 | H120: 7526 | I120: 7170 | J120: 7213
A121: female | B121: 12 | C121: 710 | D121: 691 | E121: 651 | G121: 12 | H121: 8236 | I121: 7861 | J121: 7864
A122: female | B122: 13 | C122: 744 | D122: 671 | E122: 724 | G122: 13 | H122: 8980 | I122: 8532 | J122: 8588
A123: female | B123: 14 | C123: 657 | D123: 673 | E123: 633 | G123: 14 | H123: 9637 | I123: 9205 | J123: 9221
A124: female | B124: 15 | C124: 697 | D124: 693 | E124: 636 | G124: 15 | H124: 10334 | I124: 9898 | J124: 9857
A125: female | B125: 16 | C125: 665 | D125: 721 | E125: 652 | G125: 16 | H125: 10999 | I125: 10619 | J125: 10509
A126: female | B126: 17 | C126: 644 | D126: 730 | E126: 580 | G126: 17 | H126: 11643 | I126: 11349 | J126: 11089
A127: female | B127: 18 | C127: 578 | D127: 675 | E127: 539 | G127: 18 | H127: 12221 | I127: 12024 | J127: 11628
A128: female | B128: 19 | C128: 491 | D128: 555 | E128: 434 | G128: 19 | H128: 12712 | I128: 12579 | J128: 12062
A129: female | B129: 20 | C129: 512 | D129: 612 | E129: 413 | G129: 20 | H129: 13224 | I129: 13191 | J129: 12475
A130: female | B130: 21 | C130: 501 | D130: 539 | E130: 469 | G130: 21 | H130: 13725 | I130: 13730 | J130: 12944
A131: female | B131: 22 | C131: 540 | D131: 549 | E131: 595 | G131: 22 | H131: 14265 | I131: 14279 | J131: 13539
A132: female | B132: 23 | C132: 463 | D132: 589 | E132: 594 | G132: 23 | H132: 14728 | I132: 14868 | J132: 14133
A133: female | B133: 24 | C133: 482 | D133: 547 | E133: 591 | G133: 24 | H133: 15210 | I133: 15415 | J133: 14724
A134: female | B134: 25 | C134: 549 | D134: 604 | E134: 602 | G134: 25 | H134: 15759 | I134: 16019 | J134: 15326
A135: female | B135: 26 | C135: 469 | D135: 608 | E135: 638 | G135: 26 | H135: 16228 | I135: 16627 | J135: 15964
A136: female | B136: 27 | C136: 531 | D136: 603 | E136: 680 | G136: 27 | H136: 16759 | I136: 17230 | J136: 16644
A137: female | B137: 28 | C137: 605 | D137: 563 | E137: 710 | G137: 28 | H137: 17364 | I137: 17793 | J137: 17354
A138: female | B138: 29 | C138: 651 | D138: 599 | E138: 756 | G138: 29 | H138: 18015 | I138: 18392 | J138: 18110
A139: female | B139: 30 | C139: 711 | D139: 615 | E139: 762 | G139: 30 | H139: 18726 | I139: 19007 | J139: 18872
A140: female | B140: 31 | C140: 629 | D140: 618 | E140: 691 | G140: 31 | H140: 19355 | I140: 19625 | J140: 19563
A141: female | B141: 32 | C141: 706 | D141: 565 | E141: 691 | G141: 32 | H141: 20061 | I141: 20190 | J141: 20254
A142: female | B142: 33 | C142: 716 | D142: 492 | E142: 720 | G142: 33 | H142: =H141+C142 -> 20777 | I142: =I141+D142 -> 20682 | J142: =J141+E142 -> 20974
A143: female | B143: 34 | C143: 770 | D143: 545 | E143: 677 | G143: 34 | H143: 21547 | I143: 21227 | J143: 21651
A144: female | B144: 35 | C144: 793 | D144: 616 | E144: 721 | G144: 35 | H144: 22340 | I144: 21843 | J144: 22372
A145: female | B145: 36 | C145: 774 | D145: 578 | E145: 680 | G145: 36 | H145: 23114 | I145: 22421 | J145: 23052
A146: female | B146: 37 | C146: 805 | D146: 638 | E146: 660 | G146: 37 | H146: 23919 | I146: 23059 | J146: 23712
A147: female | B147: 38 | C147: 768 | D147: 701 | E147: 657 | G147: 38 | H147: 24687 | I147: 23760 | J147: 24369
A148: female | B148: 39 | C148: 817 | D148: 718 | E148: 695 | G148: 39 | H148: 25504 | I148: 24478 | J148: 25064
A149: female | B149: 40 | C149: 729 | D149: 797 | E149: 674 | G149: 40 | H149: 26233 | I149: 25275 | J149: 25738
A150: female | B150: 41 | C150: 739 | D150: 721 | E150: 665 | G150: 41 | H150: 26972 | I150: 25996 | J150: 26403
A151: female | B151: 42 | C151: 774 | D151: 781 | E151: 660 | G151: 42 | H151: 27746 | I151: 26777 | J151: 27063
A152: female | B152: 43 | C152: 696 | D152: 813 | E152: 591 | G152: 43 | H152: 28442 | I152: 27590 | J152: 27654
A153: female | B153: 44 | C153: 705 | D153: 837 | E153: 636 | G153: 44 | H153: 29147 | I153: 28427 | J153: 28290
A154: female | B154: 45 | C154: 699 | D154: 859 | E154: 653 | G154: 45 | H154: 29846 | I154: 29286 | J154: 28943
A155: female | B155: 46 | C155: 703 | D155: 834 | E155: 623 | G155: 46 | H155: 30549 | I155: 30120 | J155: 29566
A156: female | B156: 47 | C156: 712 | D156: 866 | E156: 688 | G156: 47 | H156: 31261 | I156: 30986 | J156: 30254
A157: female | B157: 48 | C157: 681 | D157: 800 | E157: 769 | G157: 48 | H157: 31942 | I157: 31786 | J157: 31023
A158: female | B158: 49 | C158: 654 | D158: 913 | E158: 790 | G158: 49 | H158: 32596 | I158: 32699 | J158: 31813
A159: female | B159: 50 | C159: 726 | D159: 805 | E159: 849 | G159: 50 | H159: 33322 | I159: 33504 | J159: 32662
A160: female | B160: 51 | C160: 706 | D160: 770 | E160: 747 | G160: 51 | H160: 34028 | I160: 34274 | J160: 33409
A161: female | B161: 52 | C161: 754 | D161: 807 | E161: 798 | G161: 52 | H161: 34782 | I161: 35081 | J161: 34207
A162: female | B162: 53 | C162: 863 | D162: 786 | E162: 884 | G162: 53 | H162: 35645 | I162: 35867 | J162: 35091
A163: female | B163: 54 | C163: 928 | D163: 734 | E163: 885 | G163: 54 | H163: 36573 | I163: 36601 | J163: 35976
A164: female | B164: 55 | C164: 686 | D164: 755 | E164: 932 | G164: 55 | H164: 37259 | I164: 37356 | J164: 36908
A165: female | B165: 56 | C165: 732 | D165: 773 | E165: 885 | G165: 56 | H165: 37991 | I165: 38129 | J165: 37793
A166: female | B166: 57 | C166: 675 | D166: 722 | E166: 927 | G166: 57 | H166: 38666 | I166: 38851 | J166: 38720
A167: female | B167: 58 | C167: 612 | D167: 735 | E167: 862 | G167: 58 | H167: 39278 | I167: 39586 | J167: 39582
A168: female | B168: 59 | C168: 573 | D168: 702 | E168: 907 | G168: 59 | H168: 39851 | I168: 40288 | J168: 40489
A169: female | B169: 60 | C169: 526 | D169: 769 | E169: 901 | G169: 60 | H169: 40377 | I169: 41057 | J169: 41390
A170: female | B170: 61 | C170: 602 | D170: 752 | E170: 812 | G170: 61 | H170: 40979 | I170: 41809 | J170: 42202
A171: female | B171: 62 | C171: 550 | D171: 832 | E171: 848 | G171: 62 | H171: 41529 | I171: 42641 | J171: 43050
A172: female | B172: 63 | C172: 590 | D172: 935 | E172: 824 | G172: 63 | H172: 42119 | I172: 43576 | J172: 43874
A173: female | B173: 64 | C173: 569 | D173: 943 | E173: 783 | G173: 64 | H173: 42688 | I173: 44519 | J173: 44657
A174: female | B174: 65 | C174: 565 | D174: 706 | E174: 806 | G174: 65 | H174: =H173+C174 -> 43253 | I174: =I173+D174 -> 45225 | J174: =J173+E174 -> 45463
A175: female | B175: 66 | C175: 579 | D175: 780 | E175: 764 | G175: 66 | H175: 43832 | I175: 46005 | J175: 46227
A176: female | B176: 67 | C176: 519 | D176: 709 | E176: 743 | G176: 67 | H176: 44351 | I176: 46714 | J176: 46970
A177: female | B177: 68 | C177: 582 | D177: 636 | E177: 752 | G177: 68 | H177: 44933 | I177: 47350 | J177: 47722
A178: female | B178: 69 | C178: 575 | D178: 540 | E178: 727 | G178: 69 | H178: 45508 | I178: 47890 | J178: 48449
A179: female | B179: 70 | C179: 523 | D179: 508 | E179: 754 | G179: 70 | H179: 46031 | I179: 48398 | J179: 49203
A180: female | B180: 71 | C180: 534 | D180: 560 | E180: 726 | G180: 71 | H180: 46565 | I180: 48958 | J180: 49929
A181: female | B181: 72 | C181: 515 | D181: 540 | E181: 773 | G181: 72 | H181: 47080 | I181: 49498 | J181: 50702
A182: female | B182: 73 | C182: 533 | D182: 546 | E182: 869 | G182: 73 | H182: 47613 | I182: 50044 | J182: 51571
A183: female | B183: 74 | C183: 521 | D183: 507 | E183: 865 | G183: 74 | H183: 48134 | I183: 50551 | J183: 52436
A184: female | B184: 75 | C184: 475 | D184: 499 | E184: 634 | G184: 75 | H184: 48609 | I184: 51050 | J184: 53070
A185: female | B185: 76 | C185: 546 | D185: 461 | E185: 719 | G185: 76 | H185: 49155 | I185: 51511 | J185: 53789
A186: female | B186: 77 | C186: 461 | D186: 417 | E186: 626 | G186: 77 | H186: 49616 | I186: 51928 | J186: 54415
A187: female | B187: 78 | C187: 486 | D187: 457 | E187: 512 | G187: 78 | H187: 50102 | I187: 52385 | J187: 54927
A188: female | B188: 79 | C188: 488 | D188: 418 | E188: 485 | G188: 79 | H188: 50590 | I188: 52803 | J188: 55412
A189: female | B189: 80 | C189: 514 | D189: 434 | E189: 436 | G189: 80 | H189: 51104 | I189: 53237 | J189: 55848
A190: female | B190: 81 | C190: 484 | D190: 414 | E190: 449 | G190: 81 | H190: 51588 | I190: 53651 | J190: 56297
A191: female | B191: 82 | C191: 323 | D191: 371 | E191: 392 | G191: 82 | H191: 51911 | I191: 54022 | J191: 56689
A192: female | B192: 83 | C192: 263 | D192: 387 | E192: 415 | G192: 83 | H192: 52174 | I192: 54409 | J192: 57104
A193: female | B193: 84 | C193: 278 | D193: 327 | E193: 345 | G193: 84 | H193: 52452 | I193: 54736 | J193: 57449
A194: female | B194: 85 | C194: 273 | D194: 290 | E194: 301 | G194: 85 | H194: 52725 | I194: 55026 | J194: 57750
A195: female | B195: 86 | C195: 288 | D195: 316 | E195: 267 | G195: 86 | H195: 53013 | I195: 55342 | J195: 58017
A196: female | B196: 87 | C196: 227 | D196: 268 | E196: 282 | G196: 87 | H196: 53240 | I196: 55610 | J196: 58299
A197: female | B197: 88 | C197: 179 | D197: 240 | E197: 233 | G197: 88 | H197: 53419 | I197: 55850 | J197: 58532
A198: female | B198: 89 | C198: 172 | D198: 211 | E198: 202 | G198: 89 | H198: 53591 | I198: 56061 | J198: 58734
A199: female | B199: 90+ | C199: 653 | D199: 848 | E199: 870 | G199: 90+ | H199: 54244 | I199: 56909 | J199: 59604
B200: All Females | C200: =SUM(C109:C199) -> 54244 | D200: 56909 | E200: =SUM(E109:E199) -> 59604

Sheet F&H (hidden)
A1: Mid Year Population Estimates | K1: Insert column here before extending the table
A2: 2001, 2011, and 2021 Census: The Office forNnational Statistics (ONS) | G2: Selected Ages: | O2: Start year | P2: End Year | Q2: Number change | R2: % Change
H3: =H13 -> 2001 | I3: 2011 | J3: =J13 -> 2021 | O3: =INDEX($H3:$I3,Index!$B$16) -> 2011 | P3: =INDEX($H3:$J3,Index!$B$19) -> 2011
G4: Males | H4: =OFFSET(H16,Index!$B$7-1,0)-IF(Index!$B$4-2=1,0,OFFSET(H16,Index!$B$4-2,0)) -> 46045 | I4: =OFFSET(I16,Index!$B$7-1,0)-IF(Index!$B$4-2=1,0,OFFSET(I16,Index!$B$4-2,0)) -> 53135 | J4: =OFFSET(J16,Index!$B$7-1,0)-IF(Index!$B$4-2=1,0,OFFSET(J16,Index!$B$4-2,0)) -> 53574 | O4: =INDEX($H4:$I4,Index!$B$16) -> 53135 | P4: =INDEX($H4:$J4,Index!$B$19) -> 53135 | Q4: =P4-O4 -> 0 | R4: =Q4/O4 -> 0
G5: Females | H5: =OFFSET(H109,Index!$B$7-1,0)-IF(Index!$B$4-2=1,0,OFFSET(H109,Index!$B$4-2,0)) -> 50193 | I5: =OFFSET(I109,Index!$B$7-1,0)-IF(Index!$B$4-2=1,0,OFFSET(I109,Index!$B$4-2,0)) -> 54834 | J5: =OFFSET(J109,Index!$B$7-1,0)-IF(Index!$B$4-2=1,0,OFFSET(J109,Index!$B$4-2,0)) -> 56183 | O5: =INDEX($H5:$I5,Index!$B$16) -> 54834 | P5: =INDEX($H5:$J5,Index!$B$19) -> 54834 | Q5: =P5-O5 -> 0 | R5: =Q5/O5 -> 0
G6: Total | H6: =SUM(H4:H5) -> 96238 | I6: 107969 | J6: =SUM(J4:J5) -> 109757 | O6: =INDEX($H6:$I6,Index!$B$16) -> 107969 | P6: =INDEX($H6:$J6,Index!$B$19) -> 107969 | Q6: =P6-O6 -> 0 | R6: =Q6/O6 -> 0
G8: Males | H8: =IF(H4<0,"0",H4) -> 46045 | I8: 53135 | J8: =IF(J4<0,"0",J4) -> 53574
G9: Females | H9: 50193 | I9: 54834 | J9: 56183
G10: Total | H10: =SUM(H8:H9) -> 96238 | I10: 107969 | J10: =SUM(J8:J9) -> 109757
A12: Folkestone & Hythe | L12: Population Pyramid
H13: =C14 -> 2001 | I13: =D14 -> 2011 | J13: =E14 -> 2021
A14: Sex | B14: Age | C14: 2001 | D14: 2011 | E14: 2021 | O14: 2001 | P14: 2011 | Q14: 2021 | S14: =INDEX(O14:Q14,Index!$B$23) -> 2021
B15: All persons | C15: =SUM(C107,C200) -> 96238 | D15: 107969 | E15: =SUM(E107,E200) -> 109757 | G15: Males | L15: Males | M15: All Ages | O15: =C107 -> 46045 | P15: =D107 -> 53135 | Q15: =E107 -> 53574 | S15: =INDEX(O15:Q15,Index!$B$23) -> 53574
A16: male | B16: 0 | C16: 428 | D16: 587 | E16: 518 | G16: 0 | H16: =C16 -> 428 | I16: =D16 -> 587 | J16: =E16 -> 518 | L16: Males | M16: 0-4 | O16: =SUM(C16:C20) -> 2701 | P16: =SUM(D16:D20) -> 3004 | Q16: =SUM(E16:E20) -> 2654 | S16: =INDEX(O16:Q16,Index!$B$23) -> 2654
A17: male | B17: 1 | C17: 568 | D17: 610 | E17: 508 | G17: 1 | H17: =H16+C17 -> 996 | I17: =I16+D17 -> 1197 | J17: =J16+E17 -> 1026 | L17: Males | M17: 5-9 | O17: =SUM(C21:C25) -> 3203 | P17: =SUM(D21:D25) -> 2930 | Q17: =SUM(E21:E25) -> 2950 | S17: =INDEX(O17:Q17,Index!$B$23) -> 2950
A18: male | B18: 2 | C18: 545 | D18: 626 | E18: 541 | G18: 2 | H18: 1541 | I18: 1823 | J18: 1567 | L18: Males | M18: 10-14 | O18: =SUM(C26:C30) -> 3061 | P18: =SUM(D26:D30) -> 3243 | Q18: =SUM(E26:E30) -> 3152 | S18: =INDEX(O18:Q18,Index!$B$23) -> 3152
A19: male | B19: 3 | C19: 587 | D19: 573 | E19: 523 | G19: 3 | H19: 2128 | I19: 2396 | J19: 2090 | L19: Males | M19: 15-19 | O19: =SUM(C31:C35) -> 2687 | P19: =SUM(D31:D35) -> 3436 | Q19: =SUM(E31:E35) -> 2773 | S19: =INDEX(O19:Q19,Index!$B$23) -> 2773
A20: male | B20: 4 | C20: 573 | D20: 608 | E20: 564 | G20: 4 | H20: 2701 | I20: 3004 | J20: 2654 | L20: Males | M20: 20-24 | O20: =SUM(C36:C40) -> 2312 | P20: =SUM(D36:D40) -> 3194 | Q20: =SUM(E36:E40) -> 2791 | S20: =INDEX(O20:Q20,Index!$B$23) -> 2791
A21: male | B21: 5 | C21: 640 | D21: 616 | E21: 575 | G21: 5 | H21: 3341 | I21: 3620 | J21: 3229 | L21: Males | M21: 25-29 | O21: =SUM(C41:C45) -> 2438 | P21: =SUM(D41:D45) -> 2840 | Q21: =SUM(E41:E45) -> 2899 | S21: =INDEX(O21:Q21,Index!$B$23) -> 2899
A22: male | B22: 6 | C22: 573 | D22: 577 | E22: 557 | G22: 6 | H22: 3914 | I22: 4197 | J22: 3786 | L22: Males | M22: 30-34 | O22: =SUM(C46:C50) -> 3224 | P22: =SUM(D46:D50) -> 2822 | Q22: =SUM(E46:E50) -> 2934 | S22: =INDEX(O22:Q22,Index!$B$23) -> 2934
A23: male | B23: 7 | C23: 633 | D23: 577 | E23: 548 | G23: 7 | H23: 4547 | I23: 4774 | J23: 4334 | L23: Males | M23: 35-39 | O23: =SUM(C51:C55) -> 3425 | P23: =SUM(D51:D55) -> 3093 | Q23: =SUM(E51:E55) -> 2839 | S23: =INDEX(O23:Q23,Index!$B$23) -> 2839
A24: male | B24: 8 | C24: 669 | D24: 548 | E24: 645 | G24: 8 | H24: 5216 | I24: 5322 | J24: 4979 | L24: Males | M24: 40-44 | O24: =SUM(C56:C60) -> 3138 | P24: =SUM(D56:D60) -> 3897 | Q24: =SUM(E56:E60) -> 2960 | S24: =INDEX(O24:Q24,Index!$B$23) -> 2960
A25: male | B25: 9 | C25: 688 | D25: 612 | E25: 625 | G25: 9 | H25: 5904 | I25: 5934 | J25: 5604 | L25: Males | M25: 45-49 | O25: =SUM(C61:C65) -> 2839 | P25: =SUM(D61:D65) -> 3915 | Q25: =SUM(E61:E65) -> 3209 | S25: =INDEX(O25:Q25,Index!$B$23) -> 3209
A26: male | B26: 10 | C26: 619 | D26: 593 | E26: 638 | G26: 10 | H26: 6523 | I26: 6527 | J26: 6242 | L26: Males | M26: 50-54 | O26: =SUM(C66:C70) -> 3504 | P26: =SUM(D66:D70) -> 3536 | Q26: =SUM(E66:E70) -> 3954 | S26: =INDEX(O26:Q26,Index!$B$23) -> 3954
A27: male | B27: 11 | C27: 595 | D27: 652 | E27: 666 | G27: 11 | H27: 7118 | I27: 7179 | J27: 6908 | L27: Males | M27: 55-59 | O27: =SUM(C71:C75) -> 2987 | P27: =SUM(D71:D75) -> 3182 | Q27: =SUM(E71:E75) -> 4125 | S27: =INDEX(O27:Q27,Index!$B$23) -> 4125
A28: male | B28: 12 | C28: 627 | D28: 645 | E28: 639 | G28: 12 | H28: 7745 | I28: 7824 | J28: 7547 | L28: Males | M28: 60-64 | O28: =SUM(C76:C80) -> 2593 | P28: =SUM(D76:D80) -> 4028 | Q28: =SUM(E76:E80) -> 3702 | S28: =INDEX(O28:Q28,Index!$B$23) -> 3702
A29: male | B29: 13 | C29: 602 | D29: 703 | E29: 603 | G29: 13 | H29: 8347 | I29: 8527 | J29: 8150 | L29: Males | M29: 65-69 | O29: =SUM(C81:C85) -> 2312 | P29: =SUM(D81:D85) -> 3122 | Q29: =SUM(E81:E85) -> 3271 | S29: =INDEX(O29:Q29,Index!$B$23) -> 3271
A30: male | B30: 14 | C30: 618 | D30: 650 | E30: 606 | G30: 14 | H30: 8965 | I30: 9177 | J30: 8756 | L30: Males | M30: 70-74 | O30: =SUM(C86:C90) -> 2064 | P30: =SUM(D86:D90) -> 2525 | Q30: =SUM(E86:E90) -> 3790 | S30: =INDEX(O30:Q30,Index!$B$23) -> 3790
A31: male | B31: 15 | C31: 559 | D31: 701 | E31: 577 | G31: 15 | H31: 9524 | I31: 9878 | J31: 9333 | L31: Males | M31: 75-79 | O31: =SUM(C91:C95) -> 1696 | P31: =SUM(D91:D95) -> 1931 | Q31: =SUM(E91:E95) -> 2595 | S31: =INDEX(O31:Q31,Index!$B$23) -> 2595
A32: male | B32: 16 | C32: 618 | D32: 686 | E32: 583 | G32: 16 | H32: 10142 | I32: 10564 | J32: 9916 | L32: Males | M32: 80-84 | O32: =SUM(C96:C100) -> 1085 | P32: =SUM(D96:D100) -> 1349 | Q32: =SUM(E96:E100) -> 1674 | S32: =INDEX(O32:Q32,Index!$B$23) -> 1674
A33: male | B33: 17 | C33: 550 | D33: 715 | E33: 574 | G33: 17 | H33: 10692 | I33: 11279 | J33: 10490 | L33: Males | M33: 85-89 | O33: =SUM(C101:C105) -> 576 | P33: =SUM(D101:D105) -> 721 | Q33: 898 | S33: =INDEX(O33:Q33,Index!$B$23) -> 898
A34: male | B34: 18 | C34: 500 | D34: 694 | E34: 543 | G34: 18 | H34: 11192 | I34: 11973 | J34: 11033 | L34: Males | M34: 90+ | O34: =C106 -> 200 | P34: =D106 -> 367 | Q34: 404 | S34: =INDEX(O34:Q34,Index!$B$23) -> 404
A35: male | B35: 19 | C35: 460 | D35: 640 | E35: 496 | G35: 19 | H35: 11652 | I35: 12613 | J35: 11529
A36: male | B36: 20 | C36: 468 | D36: 621 | E36: 505 | G36: 20 | H36: 12120 | I36: 13234 | J36: 12034 | L36: Males | M36: All Ages | O36: =C200 -> 50193 | P36: =D200 -> 54834 | Q36: =E200 -> 56183 | S36: =INDEX(O36:Q36,Index!$B$23) -> 56183
A37: male | B37: 21 | C37: 472 | D37: 605 | E37: 530 | G37: 21 | H37: 12592 | I37: 13839 | J37: 12564 | L37: Females | M37: 0-4 | O37: =SUM(C109:C113) -> 2612 | P37: =SUM(D109:D113) -> 2992 | Q37: =SUM(E109:E113) -> 2461 | S37: =INDEX(O37:Q37,Index!$B$23) -> 2461
A38: male | B38: 22 | C38: 450 | D38: 705 | E38: 556 | G38: 22 | H38: 13042 | I38: 14544 | J38: 13120 | L38: Females | M38: 5-9 | O38: =SUM(C114:C118) -> 2914 | P38: =SUM(D114:D118) -> 2645 | Q38: =SUM(E114:E118) -> 2832 | S38: =INDEX(O38:Q38,Index!$B$23) -> 2832
A39: male | B39: 23 | C39: 428 | D39: 618 | E39: 629 | G39: 23 | H39: 13470 | I39: 15162 | J39: 13749 | L39: Females | M39: 10-14 | O39: =SUM(C119:C123) -> 3203 | P39: =SUM(D119:D123) -> 3088 | Q39: =SUM(E119:E123) -> 3018 | S39: =INDEX(O39:Q39,Index!$B$23) -> 3018
A40: male | B40: 24 | C40: 494 | D40: 645 | E40: 571 | G40: 24 | H40: 13964 | I40: 15807 | J40: 14320 | L40: Females | M40: 15-19 | O40: =SUM(C124:C128) -> 2625 | P40: =SUM(D124:D128) -> 3154 | Q40: =SUM(E124:E128) -> 2461 | S40: =INDEX(O40:Q40,Index!$B$23) -> 2461
A41: male | B41: 25 | C41: 449 | D41: 597 | E41: 575 | G41: 25 | H41: 14413 | I41: 16404 | J41: 14895 | L41: Females | M41: 20-24 | O41: =SUM(C129:C133) -> 2287 | P41: =SUM(D129:D133) -> 3006 | Q41: =SUM(E129:E133) -> 2461 | S41: =INDEX(O41:Q41,Index!$B$23) -> 2461
A42: male | B42: 26 | C42: 447 | D42: 553 | E42: 553 | G42: 26 | H42: 14860 | I42: 16957 | J42: 15448 | L42: Females | M42: 25-29 | O42: =SUM(C134:C138) -> 2689 | P42: =SUM(D134:D138) -> 2751 | Q42: =SUM(E134:E138) -> 2938 | S42: =INDEX(O42:Q42,Index!$B$23) -> 2938
A43: male | B43: 27 | C43: 455 | D43: 579 | E43: 562 | G43: 27 | H43: 15315 | I43: 17536 | J43: 16010 | L43: Females | M43: 30-34 | O43: =SUM(C139:C143) -> 3211 | P43: =SUM(D139:D143) -> 2779 | Q43: =SUM(E139:E143) -> 3260 | S43: =INDEX(O43:Q43,Index!$B$23) -> 3260
A44: male | B44: 28 | C44: 501 | D44: 556 | E44: 573 | G44: 28 | H44: 15816 | I44: 18092 | J44: 16583 | L44: Females | M44: 35-39 | O44: =SUM(C144:C148) -> 3506 | P44: =SUM(D144:D148) -> 3141 | Q44: =SUM(E144:E148) -> 3090 | S44: =INDEX(O44:Q44,Index!$B$23) -> 3090
A45: male | B45: 29 | C45: 586 | D45: 555 | E45: 636 | G45: 29 | H45: 16402 | I45: 18647 | J45: 17219 | L45: Females | M45: 40-44 | O45: =SUM(C149:C153) -> 3287 | P45: =SUM(D149:D153) -> 3800 | Q45: =SUM(E149:E153) -> 3244 | S45: =INDEX(O45:Q45,Index!$B$23) -> 3244
A46: male | B46: 30 | C46: 598 | D46: 617 | E46: 573 | G46: 30 | H46: 17000 | I46: 19264 | J46: 17792 | L46: Females | M46: 45-49 | O46: =SUM(C154:C158) -> 3101 | P46: =SUM(D154:D158) -> 3900 | Q46: =SUM(E154:E158) -> 3464 | S46: =INDEX(O46:Q46,Index!$B$23) -> 3464
A47: male | B47: 31 | C47: 613 | D47: 609 | E47: 577 | G47: 31 | H47: 17613 | I47: 19873 | J47: 18369 | L47: Females | M47: 50-54 | O47: =SUM(C159:C163) -> 3574 | P47: =SUM(D159:D163) -> 3630 | Q47: =SUM(E159:E163) -> 4058 | S47: =INDEX(O47:Q47,Index!$B$23) -> 4058
A48: male | B48: 32 | C48: 652 | D48: 541 | E48: 588 | G48: 32 | H48: 18265 | I48: 20414 | J48: 18957 | L48: Females | M48: 55-59 | O48: =SUM(C164:C168) -> 3024 | P48: =SUM(D164:D168) -> 3434 | Q48: =SUM(E164:E168) -> 4248 | S48: =INDEX(O48:Q48,Index!$B$23) -> 4248
A49: male | B49: 33 | C49: 659 | D49: 532 | E49: 613 | G49: 33 | H49: =H48+C49 -> 18924 | I49: =I48+D49 -> 20946 | J49: =J48+E49 -> 19570 | L49: Females | M49: 60-64 | O49: =SUM(C169:C173) -> 2792 | P49: =SUM(D169:D173) -> 4114 | Q49: =SUM(E169:E173) -> 3852 | S49: =INDEX(O49:Q49,Index!$B$23) -> 3852
A50: male | B50: 34 | C50: 702 | D50: 523 | E50: 583 | G50: 34 | H50: 19626 | I50: 21469 | J50: 20153 | L50: Females | M50: 65-69 | O50: =SUM(C174:C178) -> 2483 | P50: =SUM(D174:D178) -> 3296 | Q50: =SUM(E174:E178) -> 3649 | S50: =INDEX(O50:Q50,Index!$B$23) -> 3649
A51: male | B51: 35 | C51: 715 | D51: 573 | E51: 555 | G51: 35 | H51: 20341 | I51: 22042 | J51: 20708 | L51: Females | M51: 70-74 | O51: =SUM(C179:C183) -> 2537 | P51: =SUM(D179:D183) -> 2650 | Q51: =SUM(E179:E183) -> 3980 | S51: =INDEX(O51:Q51,Index!$B$23) -> 3980
A52: male | B52: 36 | C52: 708 | D52: 579 | E52: 559 | G52: 36 | H52: 21049 | I52: 22621 | J52: 21267 | L52: Females | M52: 75-79 | O52: =SUM(C184:C188) -> 2503 | P52: =SUM(D184:D188) -> 2193 | Q52: =SUM(E184:E188) -> 2968 | S52: =INDEX(O52:Q52,Index!$B$23) -> 2968
A53: male | B53: 37 | C53: 675 | D53: 604 | E53: 584 | G53: 37 | H53: 21724 | I53: 23225 | J53: 21851 | L53: Females | M53: 80-84 | O53: =SUM(C189:C193) -> 1859 | P53: =SUM(D189:D193) -> 1940 | Q53: =SUM(E189:E193) -> 2026 | S53: =INDEX(O53:Q53,Index!$B$23) -> 2026
A54: male | B54: 38 | C54: 705 | D54: 622 | E54: 548 | G54: 38 | H54: 22429 | I54: 23847 | J54: 22399 | L54: Females | M54: 85-89 | O54: =SUM(C194:C198) -> 1244 | P54: =SUM(D194:D198) -> 1420 | Q54: 1256 | S54: =INDEX(O54:Q54,Index!$B$23) -> 1256
A55: male | B55: 39 | C55: 622 | D55: 715 | E55: 593 | G55: 39 | H55: 23051 | I55: 24562 | J55: 22992 | L55: Females | M55: 90+ | O55: =C199 -> 742 | P55: =D199 -> 901 | Q55: 917 | S55: =INDEX(O55:Q55,Index!$B$23) -> 917
A56: male | B56: 40 | C56: 641 | D56: 755 | E56: 632 | G56: 40 | H56: 23692 | I56: 25317 | J56: 23624
A57: male | B57: 41 | C57: 663 | D57: 771 | E57: 645 | G57: 41 | H57: 24355 | I57: 26088 | J57: 24269
A58: male | B58: 42 | C58: 639 | D58: 776 | E58: 561 | G58: 42 | H58: 24994 | I58: 26864 | J58: 24830
A59: male | B59: 43 | C59: 603 | D59: 804 | E59: 596 | G59: 43 | H59: 25597 | I59: 27668 | J59: 25426
A60: male | B60: 44 | C60: 592 | D60: 791 | E60: 526 | G60: 44 | H60: 26189 | I60: 28459 | J60: 25952
A61: male | B61: 45 | C61: 544 | D61: 802 | E61: 570 | G61: 45 | H61: 26733 | I61: 29261 | J61: 26522
A62: male | B62: 46 | C62: 539 | D62: 793 | E62: 622 | G62: 46 | H62: 27272 | I62: 30054 | J62: 27144
A63: male | B63: 47 | C63: 538 | D63: 759 | E63: 645 | G63: 47 | H63: 27810 | I63: 30813 | J63: 27789
A64: male | B64: 48 | C64: 619 | D64: 809 | E64: 610 | G64: 48 | H64: 28429 | I64: 31622 | J64: 28399
A65: male | B65: 49 | C65: 599 | D65: 752 | E65: 762 | G65: 49 | H65: 29028 | I65: 32374 | J65: 29161
A66: male | B66: 50 | C66: 613 | D66: 732 | E66: 791 | G66: 50 | H66: 29641 | I66: 33106 | J66: 29952
A67: male | B67: 51 | C67: 638 | D67: 735 | E67: 754 | G67: 51 | H67: 30279 | I67: 33841 | J67: 30706
A68: male | B68: 52 | C68: 631 | D68: 724 | E68: 828 | G68: 52 | H68: 30910 | I68: 34565 | J68: 31534
A69: male | B69: 53 | C69: 786 | D69: 693 | E69: 806 | G69: 53 | H69: 31696 | I69: 35258 | J69: 32340
A70: male | B70: 54 | C70: 836 | D70: 652 | E70: 775 | G70: 54 | H70: 32532 | I70: 35910 | J70: 33115
A71: male | B71: 55 | C71: 614 | D71: 621 | E71: 883 | G71: 55 | H71: 33146 | I71: 36531 | J71: 33998
A72: male | B72: 56 | C72: 655 | D72: 590 | E72: 818 | G72: 56 | H72: 33801 | I72: 37121 | J72: 34816
A73: male | B73: 57 | C73: 592 | D73: 628 | E73: 807 | G73: 57 | H73: 34393 | I73: 37749 | J73: 35623
A74: male | B74: 58 | C74: 572 | D74: 678 | E74: 870 | G74: 58 | H74: 34965 | I74: 38427 | J74: 36493
A75: male | B75: 59 | C75: 554 | D75: 665 | E75: 747 | G75: 59 | H75: 35519 | I75: 39092 | J75: 37240
A76: male | B76: 60 | C76: 500 | D76: 701 | E76: 816 | G76: 60 | H76: 36019 | I76: 39793 | J76: 38056
A77: male | B77: 61 | C77: 511 | D77: 740 | E77: 775 | G77: 61 | H77: 36530 | I77: 40533 | J77: 38831
A78: male | B78: 62 | C78: 530 | D78: 749 | E78: 758 | G78: 62 | H78: 37060 | I78: 41282 | J78: 39589
A79: male | B79: 63 | C79: 542 | D79: 897 | E79: 684 | G79: 63 | H79: 37602 | I79: 42179 | J79: 40273
A80: male | B80: 64 | C80: 510 | D80: 941 | E80: 669 | G80: 64 | H80: 38112 | I80: 43120 | J80: 40942
A81: male | B81: 65 | C81: 460 | D81: 638 | E81: 643 | G81: 65 | H81: =H80+C81 -> 38572 | I81: =I80+D81 -> 43758 | J81: =J80+E81 -> 41585
A82: male | B82: 66 | C82: 498 | D82: 740 | E82: 651 | G82: 66 | H82: 39070 | I82: 44498 | J82: 42236
A83: male | B83: 67 | C83: 443 | D83: 645 | E83: 632 | G83: 67 | H83: 39513 | I83: 45143 | J83: 42868
A84: male | B84: 68 | C84: 489 | D84: 577 | E84: 696 | G84: 68 | H84: 40002 | I84: 45720 | J84: 43564
A85: male | B85: 69 | C85: 422 | D85: 522 | E85: 649 | G85: 69 | H85: 40424 | I85: 46242 | J85: 44213
A86: male | B86: 70 | C86: 448 | D86: 520 | E86: 693 | G86: 70 | H86: 40872 | I86: 46762 | J86: 44906
A87: male | B87: 71 | C87: 440 | D87: 562 | E87: 674 | G87: 71 | H87: 41312 | I87: 47324 | J87: 45580
A88: male | B88: 72 | C88: 437 | D88: 485 | E88: 701 | G88: 72 | H88: 41749 | I88: 47809 | J88: 46281
A89: male | B89: 73 | C89: 378 | D89: 481 | E89: 871 | G89: 73 | H89: 42127 | I89: 48290 | J89: 47152
A90: male | B90: 74 | C90: 361 | D90: 477 | E90: 851 | G90: 74 | H90: 42488 | I90: 48767 | J90: 48003
A91: male | B91: 75 | C91: 375 | D91: 427 | E91: 555 | G91: 75 | H91: 42863 | I91: 49194 | J91: 48558
A92: male | B92: 76 | C92: 349 | D92: 416 | E92: 635 | G92: 76 | H92: 43212 | I92: 49610 | J92: 49193
A93: male | B93: 77 | C93: 311 | D93: 363 | E93: 534 | G93: 77 | H93: 43523 | I93: 49973 | J93: 49727
A94: male | B94: 78 | C94: 317 | D94: 394 | E94: 484 | G94: 78 | H94: 43840 | I94: 50367 | J94: 50211
A95: male | B95: 79 | C95: 344 | D95: 331 | E95: 387 | G95: 79 | H95: 44184 | I95: 50698 | J95: 50598
A96: male | B96: 80 | C96: 301 | D96: 323 | E96: 417 | G96: 80 | H96: 44485 | I96: 51021 | J96: 51015
A97: male | B97: 81 | C97: 294 | D97: 307 | E97: 353 | G97: 81 | H97: 44779 | I97: 51328 | J97: 51368
A98: male | B98: 82 | C98: 193 | D98: 280 | E98: 327 | G98: 82 | H98: 44972 | I98: 51608 | J98: 51695
A99: male | B99: 83 | C99: 134 | D99: 209 | E99: 298 | G99: 83 | H99: 45106 | I99: 51817 | J99: 51993
A100: male | B100: 84 | C100: 163 | D100: 230 | E100: 279 | G100: 84 | H100: 45269 | I100: 52047 | J100: 52272
A101: male | B101: 85 | C101: 144 | D101: 181 | E101: 233 | G101: 85 | H101: 45413 | I101: 52228 | J101: 52505
A102: male | B102: 86 | C102: 131 | D102: 165 | E102: 218 | G102: 86 | H102: 45544 | I102: 52393 | J102: 52723
A103: male | B103: 87 | C103: 143 | D103: 135 | E103: 176 | G103: 87 | H103: 45687 | I103: 52528 | J103: 52899
A104: male | B104: 88 | C104: 97 | D104: 111 | E104: 148 | G104: 88 | H104: 45784 | I104: 52639 | J104: 53047
A105: male | B105: 89 | C105: 61 | D105: 129 | E105: 123 | G105: 89 | H105: 45845 | I105: 52768 | J105: 53170
A106: male | B106: 90+ | C106: 200 | D106: 367 | E106: 404 | G106: 90+ | H106: 46045 | I106: 53135 | J106: 53574
B107: All Males | C107: =SUM(C16:C106) -> 46045 | D107: 53135 | E107: =SUM(E16:E106) -> 53574 | G107: Females
A108: Sex | B108: Age
A109: female | B109: 0 | C109: 431 | D109: 607 | E109: 431 | G109: 0 | H109: =C109 -> 431 | I109: =D109 -> 607 | J109: =E109 -> 431
A110: female | B110: 1 | C110: 505 | D110: 599 | E110: 510 | G110: 1 | H110: =H109+C110 -> 936 | I110: =I109+D110 -> 1206 | J110: =J109+E110 -> 941
A111: female | B111: 2 | C111: 568 | D111: 615 | E111: 476 | G111: 2 | H111: 1504 | I111: 1821 | J111: 1417
A112: female | B112: 3 | C112: 553 | D112: 569 | E112: 526 | G112: 3 | H112: 2057 | I112: 2390 | J112: 1943
A113: female | B113: 4 | C113: 555 | D113: 602 | E113: 518 | G113: 4 | H113: 2612 | I113: 2992 | J113: 2461
A114: female | B114: 5 | C114: 515 | D114: 527 | E114: 554 | G114: 5 | H114: 3127 | I114: 3519 | J114: 3015
A115: female | B115: 6 | C115: 580 | D115: 508 | E115: 554 | G115: 6 | H115: 3707 | I115: 4027 | J115: 3569
A116: female | B116: 7 | C116: 621 | D116: 528 | E116: 568 | G116: 7 | H116: 4328 | I116: 4555 | J116: 4137
A117: female | B117: 8 | C117: 578 | D117: 547 | E117: 573 | G117: 8 | H117: 4906 | I117: 5102 | J117: 4710
A118: female | B118: 9 | C118: 620 | D118: 535 | E118: 583 | G118: 9 | H118: 5526 | I118: 5637 | J118: 5293
A119: female | B119: 10 | C119: 652 | D119: 584 | E119: 618 | G119: 10 | H119: 6178 | I119: 6221 | J119: 5911
A120: female | B120: 11 | C120: 674 | D120: 608 | E120: 598 | G120: 11 | H120: 6852 | I120: 6829 | J120: 6509
A121: female | B121: 12 | C121: 630 | D121: 616 | E121: 622 | G121: 12 | H121: 7482 | I121: 7445 | J121: 7131
A122: female | B122: 13 | C122: 613 | D122: 658 | E122: 575 | G122: 13 | H122: 8095 | I122: 8103 | J122: 7706
A123: female | B123: 14 | C123: 634 | D123: 622 | E123: 605 | G123: 14 | H123: 8729 | I123: 8725 | J123: 8311
A124: female | B124: 15 | C124: 539 | D124: 606 | E124: 557 | G124: 15 | H124: 9268 | I124: 9331 | J124: 8868
A125: female | B125: 16 | C125: 584 | D125: 673 | E125: 522 | G125: 16 | H125: 9852 | I125: 10004 | J125: 9390
A126: female | B126: 17 | C126: 546 | D126: 722 | E126: 531 | G126: 17 | H126: 10398 | I126: 10726 | J126: 9921
A127: female | B127: 18 | C127: 511 | D127: 611 | E127: 483 | G127: 18 | H127: 10909 | I127: 11337 | J127: 10404
A128: female | B128: 19 | C128: 445 | D128: 542 | E128: 368 | G128: 19 | H128: 11354 | I128: 11879 | J128: 10772
A129: female | B129: 20 | C129: 481 | D129: 592 | E129: 374 | G129: 20 | H129: 11835 | I129: 12471 | J129: 11146
A130: female | B130: 21 | C130: 472 | D130: 633 | E130: 446 | G130: 21 | H130: 12307 | I130: 13104 | J130: 11592
A131: female | B131: 22 | C131: 434 | D131: 588 | E131: 522 | G131: 22 | H131: 12741 | I131: 13692 | J131: 12114
A132: female | B132: 23 | C132: 440 | D132: 613 | E132: 560 | G132: 23 | H132: 13181 | I132: 14305 | J132: 12674
A133: female | B133: 24 | C133: 460 | D133: 580 | E133: 559 | G133: 24 | H133: 13641 | I133: 14885 | J133: 13233
A134: female | B134: 25 | C134: 491 | D134: 510 | E134: 540 | G134: 25 | H134: 14132 | I134: 15395 | J134: 13773
A135: female | B135: 26 | C135: 502 | D135: 537 | E135: 579 | G135: 26 | H135: 14634 | I135: 15932 | J135: 14352
A136: female | B136: 27 | C136: 522 | D136: 543 | E136: 590 | G136: 27 | H136: 15156 | I136: 16475 | J136: 14942
A137: female | B137: 28 | C137: 556 | D137: 549 | E137: 603 | G137: 28 | H137: 15712 | I137: 17024 | J137: 15545
A138: female | B138: 29 | C138: 618 | D138: 612 | E138: 626 | G138: 29 | H138: 16330 | I138: 17636 | J138: 16171
A139: female | B139: 30 | C139: 616 | D139: 594 | E139: 644 | G139: 30 | H139: 16946 | I139: 18230 | J139: 16815
A140: female | B140: 31 | C140: 607 | D140: 562 | E140: 673 | G140: 31 | H140: 17553 | I140: 18792 | J140: 17488
A141: female | B141: 32 | C141: 644 | D141: 580 | E141: 666 | G141: 32 | H141: 18197 | I141: 19372 | J141: 18154
A142: female | B142: 33 | C142: 631 | D142: 522 | E142: 626 | G142: 33 | H142: =H141+C142 -> 18828 | I142: =I141+D142 -> 19894 | J142: =J141+E142 -> 18780
A143: female | B143: 34 | C143: 713 | D143: 521 | E143: 651 | G143: 34 | H143: 19541 | I143: 20415 | J143: 19431
A144: female | B144: 35 | C144: 751 | D144: 569 | E144: 605 | G144: 35 | H144: 20292 | I144: 20984 | J144: 20036
A145: female | B145: 36 | C145: 696 | D145: 585 | E145: 614 | G145: 36 | H145: 20988 | I145: 21569 | J145: 20650
A146: female | B146: 37 | C146: 694 | D146: 604 | E146: 591 | G146: 37 | H146: 21682 | I146: 22173 | J146: 21241
A147: female | B147: 38 | C147: 692 | D147: 669 | E147: 625 | G147: 38 | H147: 22374 | I147: 22842 | J147: 21866
A148: female | B148: 39 | C148: 673 | D148: 714 | E148: 655 | G148: 39 | H148: 23047 | I148: 23556 | J148: 22521
A149: female | B149: 40 | C149: 669 | D149: 745 | E149: 711 | G149: 40 | H149: 23716 | I149: 24301 | J149: 23232
A150: female | B150: 41 | C150: 638 | D150: 726 | E150: 677 | G150: 41 | H150: 24354 | I150: 25027 | J150: 23909
A151: female | B151: 42 | C151: 661 | D151: 785 | E151: 671 | G151: 42 | H151: 25015 | I151: 25812 | J151: 24580
A152: female | B152: 43 | C152: 660 | D152: 727 | E152: 585 | G152: 43 | H152: 25675 | I152: 26539 | J152: 25165
A153: female | B153: 44 | C153: 659 | D153: 817 | E153: 600 | G153: 44 | H153: 26334 | I153: 27356 | J153: 25765
A154: female | B154: 45 | C154: 608 | D154: 815 | E154: 642 | G154: 45 | H154: 26942 | I154: 28171 | J154: 26407
A155: female | B155: 46 | C155: 592 | D155: 804 | E155: 644 | G155: 46 | H155: 27534 | I155: 28975 | J155: 27051
A156: female | B156: 47 | C156: 648 | D156: 770 | E156: 685 | G156: 47 | H156: 28182 | I156: 29745 | J156: 27736
A157: female | B157: 48 | C157: 612 | D157: 789 | E157: 728 | G157: 48 | H157: 28794 | I157: 30534 | J157: 28464
A158: female | B158: 49 | C158: 641 | D158: 722 | E158: 765 | G158: 49 | H158: 29435 | I158: 31256 | J158: 29229
A159: female | B159: 50 | C159: 603 | D159: 769 | E159: 772 | G159: 50 | H159: 30038 | I159: 32025 | J159: 30001
A160: female | B160: 51 | C160: 643 | D160: 688 | E160: 790 | G160: 51 | H160: 30681 | I160: 32713 | J160: 30791
A161: female | B161: 52 | C161: 701 | D161: 713 | E161: 858 | G161: 52 | H161: 31382 | I161: 33426 | J161: 31649
A162: female | B162: 53 | C162: 788 | D162: 746 | E162: 803 | G162: 53 | H162: 32170 | I162: 34172 | J162: 32452
A163: female | B163: 54 | C163: 839 | D163: 714 | E163: 835 | G163: 54 | H163: 33009 | I163: 34886 | J163: 33287
A164: female | B164: 55 | C164: 651 | D164: 671 | E164: 877 | G164: 55 | H164: 33660 | I164: 35557 | J164: 34164
A165: female | B165: 56 | C165: 605 | D165: 641 | E165: 845 | G165: 56 | H165: 34265 | I165: 36198 | J165: 35009
A166: female | B166: 57 | C166: 611 | D166: 712 | E166: 820 | G166: 57 | H166: 34876 | I166: 36910 | J166: 35829
A167: female | B167: 58 | C167: 612 | D167: 695 | E167: 859 | G167: 58 | H167: 35488 | I167: 37605 | J167: 36688
A168: female | B168: 59 | C168: 545 | D168: 715 | E168: 847 | G168: 59 | H168: 36033 | I168: 38320 | J168: 37535
A169: female | B169: 60 | C169: 537 | D169: 707 | E169: 822 | G169: 60 | H169: 36570 | I169: 39027 | J169: 38357
A170: female | B170: 61 | C170: 574 | D170: 745 | E170: 759 | G170: 61 | H170: 37144 | I170: 39772 | J170: 39116
A171: female | B171: 62 | C171: 551 | D171: 801 | E171: 742 | G171: 62 | H171: 37695 | I171: 40573 | J171: 39858
A172: female | B172: 63 | C172: 552 | D172: 922 | E172: 778 | G172: 63 | H172: 38247 | I172: 41495 | J172: 40636
A173: female | B173: 64 | C173: 578 | D173: 939 | E173: 751 | G173: 64 | H173: 38825 | I173: 42434 | J173: 41387
A174: female | B174: 65 | C174: 514 | D174: 703 | E174: 696 | G174: 65 | H174: =H173+C174 -> 39339 | I174: =I173+D174 -> 43137 | J174: =J173+E174 -> 42083
A175: female | B175: 66 | C175: 474 | D175: 689 | E175: 701 | G175: 66 | H175: 39813 | I175: 43826 | J175: 42784
A176: female | B176: 67 | C176: 479 | D176: 686 | E176: 763 | G176: 67 | H176: 40292 | I176: 44512 | J176: 43547
A177: female | B177: 68 | C177: 526 | D177: 656 | E177: 729 | G177: 68 | H177: 40818 | I177: 45168 | J177: 44276
A178: female | B178: 69 | C178: 490 | D178: 562 | E178: 760 | G178: 69 | H178: 41308 | I178: 45730 | J178: 45036
A179: female | B179: 70 | C179: 544 | D179: 514 | E179: 704 | G179: 70 | H179: 41852 | I179: 46244 | J179: 45740
A180: female | B180: 71 | C180: 486 | D180: 546 | E180: 714 | G180: 71 | H180: 42338 | I180: 46790 | J180: 46454
A181: female | B181: 72 | C181: 507 | D181: 561 | E181: 816 | G181: 72 | H181: 42845 | I181: 47351 | J181: 47270
